Workbook

Sheet PI vs x
A1: Measurement | B1: Hall
A2: Type | B2: Off-axis
A4: PS type | B4: SXR
A5: PS serial no | B5: 16353
A7: Measurement date | B7: ='DF raw data'!B2 -> 30. maj 2017
C11: Nominal gap [mm] | D11: Encoder [counts] | E11: Encoder [mm] | F11: PI [T^2mm^3] | G11: x [mm] | H11: Encoder offset
C12: 10 | D12: =' 10 x=-2'!B3 -> 382610 | E12: =(D12-$H$12)*0.00005+10 -> 9.99595 | F12: =' 10 x=-2'!Q3 -> 4614.13054 | G12: -2 | H12: 382691
C13: 10 | D13: ='10 x=-1'!B3 -> 382608 | E13: =(D13-$H$12)*0.00005+10 -> 9.99585 | F13: ='10 x=-1'!Q3 -> 4616.611297 | G13: -1
C14: 10 | D14: ='10 x=0'!B3 -> 382602 | E14: 9.99555 | F14: ='10 x=0'!Q3 -> 4617.904803 | G14: 0
C15: 10 | D15: ='10 x=1'!B3 -> 382597 | E15: 9.9953 | F15: ='10 x=1'!Q3 -> 4617.599753 | G15: 1
C16: 10 | D16: ='10 x=2'!B3 -> 382593 | E16: 9.9951 | F16: ='10 x=2'!Q3 -> 4616.627921 | G16: 2
C17: 30 | D17: ='30 x=-2'!B3 -> 783807 | E17: 30.0558 | F17: ='30 x=-2'!Q3 -> 831.0721302 | G17: -2
C18: 30 | D18: ='30 x=-1'!B3 -> 783821 | E18: 30.0565 | F18: ='30 x=-1'!Q3 -> 833.0049239 | G18: -1
C19: 30 | D19: ='30 x=0'!B3 -> 783825 | E19: 30.0567 | F19: ='30 x=0'!Q3 -> 834.006386 | G19: 0
C20: 30 | D20: ='30 x=1'!B3 -> 783827 | E20: 30.0568 | F20: ='30 x=1'!Q3 -> 834.2409071 | G20: 1
C21: 30 | D21: ='30 x=2'!B3 -> 783828 | E21: 30.05685 | F21: ='30 x=2'!Q3 -> 833.7181085 | G21: 2
A41: Measuring series at 10 mm gap:
A42: Reference magnet
A43: Tref | B43: 21.33 | C43: degC
A44: Hall ref field | B44: 0.50505 | C44: T
A45: NMR ref field | B45: 0.5063 | C45: T
A47: Measuring series at larger gaps:
A48: Reference magnet
A49: Tref | B49: 21.38 | C49: degC
A50: Hall ref field | B50: 0.505 | C50: T
A51: NMR ref field | B51: 0.50627 | C51: T
A53: Offset from Faro | B53: -0.068

Sheet 10 x=-2
A1: dz | B1: ='DF raw data'!B7 -> 0.50013 | C1: mm | F1: T_coeff | G1: -0.0008 | H1: /degC | L1: Hallref | M1: ='PI vs x'!B44 -> 0.50505 | N1: T | P1: IBy total | Q1: =P1203*1000 -> -6.625256576 | R1: muTm
A2: Tref | B2: ='DF raw data'!B8 -> 21.73 | C2: degC | F2: Tcorr | G2: 20 | H2: degC | L2: NMRref | M2: ='PI vs x'!B45 -> 0.5063 | N2: T | P2: JBy total | Q2: =Q1203 -> -3.546240065 | R2: muTm^2
A3: Encoder | B3: ='DF raw data'!B9 -> 382610 | P3: PI total | Q3: =R1203 -> 4614.13054 | R3: T^2mm^3
J4: SXR-rotation
A5: z [mm] | B5: Bx | C5: By | D5: Bz | F5: Bx_corr | G5: By_corr | H5: Bz_corr | J5: Bx_rot | K5: By_rot | L5: Bz_rot | N5: Ix | O5: Jx | P5: Iy | Q5: Jy | R5: PI
A6: ='PI vs x'!B53 -> -0.068 | B6: ='DF raw data'!A11 -> -1.1642813e-07 | C6: ='DF raw data'!B11 -> -7.6096153e-06 | D6: ='DF raw data'!C11 -> 1.1394632e-05 | F6: =(1-$G$1*($B$2-$G$2))*B6 -> -1.165892665e-07 | G6: =(1-$G$1*($B$2-$G$2))*C6*$M$2/$M$1 -> -7.63900689e-06 | H6: =(1-$G$1*($B$2-$G$2))*D6 -> 1.141040217e-05 | J6: =-CELL("contents", INDEX($F$6:$F$1203,1204-CELL("row",F6))) -> -9.103907794e-06 | K6: =CELL("contents", INDEX($G$6:$G$1203,1204-CELL("row",G6))) -> 9.0818432e-06 | L6: =-CELL("contents", INDEX($H$6:$H$1203,1204-CELL("row",H6))) -> 8.060013141e-06 | N6: =J6*$B$1 -> -4.553137405e-06 | O6: =N6*$B$1 -> -2.27716061e-06 | P6: =K6*$B$1 -> 4.542102239e-06 | Q6: =P6*$B$1 -> 2.271641593e-06 | R6: =(N6^2+P6^2)*$B$1 -> 2.068625352e-11
A7: =A6+$B$1 -> 0.43213 | B7: ='DF raw data'!A12 -> 2.1742308e-08 | C7: ='DF raw data'!B12 -> -1.2113982e-05 | D7: ='DF raw data'!C12 -> 6.807657e-06 | F7: =(1-$G$1*($B$2-$G$2))*B7 -> 2.177239935e-08 | G7: =(1-$G$1*($B$2-$G$2))*C7*$M$2/$M$1 -> -1.216077138e-05 | H7: =(1-$G$1*($B$2-$G$2))*D7 -> 6.817078797e-06 | J7: =-CELL("contents", INDEX($F$6:$F$1203,1204-CELL("row",F7))) -> -2.249810534e-06 | K7: =CELL("contents", INDEX($G$6:$G$1203,1204-CELL("row",G7))) -> 1.036822745e-05 | L7: =-CELL("contents", INDEX($H$6:$H$1203,1204-CELL("row",H7))) -> 8.197835624e-06 | N7: =J7*$B$1+N6 -> -5.678335148e-06 | O7: =N7*$B$1+O6 -> -5.117066368e-06 | P7: =K7*$B$1+P6 -> 9.727563833e-06 | Q7: =P7*$B$1+Q6 -> 7.136688093e-06 | R7: =(N7^2+P7^2)*$B$1+R6 -> 8.413724058e-11
A8: =A7+$B$1 -> 0.93226 | B8: ='DF raw data'!A13 -> -6.666433e-07 | C8: ='DF raw data'!B13 -> 7.1247482e-06 | D8: ='DF raw data'!C13 -> 9.6025924e-06 | F8: -6.675659343e-07 | G8: 7.152267026e-06 | H8: 9.615882388e-06 | J8: -5.512261826e-07 | K8: 7.163515305e-06 | L8: 8.557524946e-06 | N8: =J8*$B$1+N7 -> -5.954019898e-06 | O8: =N8*$B$1+O7 -> -8.09485034e-06 | P8: =K8*$B$1+P7 -> 1.331025274e-05 | Q8: =P8*$B$1+Q7 -> 1.37935448e-05 | R8: =(N8^2+P8^2)*$B$1+R7 -> 1.904714708e-10
A9: 1.43239 | B9: ='DF raw data'!A14 -> -5.5484094e-07 | C9: ='DF raw data'!B14 -> 3.1199304e-06 | D9: ='DF raw data'!C14 -> 4.5015568e-06 | F9: -5.556088399e-07 | G9: 3.131980906e-06 | H9: 4.507786955e-06 | J9: -1.745420623e-06 | K9: 8.185364739e-06 | L9: 9.034045739e-06 | N9: -6.826957115e-06 | O9: -1.15092164e-05 | P9: 1.740399921e-05 | Q9: 2.249780692e-05 | R9: 3.652701726e-10
A10: 1.93252 | B10: ='DF raw data'!A15 -> -5.2860383e-07 | C10: ='DF raw data'!B15 -> 1.3661626e-06 | D10: ='DF raw data'!C15 -> -1.1852882e-06 | F10: -5.293354177e-07 | G10: 1.371439305e-06 | H10: -1.186928639e-06 | J10: -5.358292227e-06 | K10: 1.883234772e-06 | L10: 9.038111358e-06 | N10: -9.506799806e-06 | O10: -1.626385219e-05 | P10: 1.834586142e-05 | Q10: 3.167312259e-05 | R10: 5.788006129e-10
A11: 2.43265 | B11: ='DF raw data'!A16 -> -5.3214723e-07 | C11: ='DF raw data'!B16 -> 8.3739326e-07 | D11: ='DF raw data'!C16 -> -4.7574413e-06 | F11: =(1-$G$1*($B$2-$G$2))*B11 -> -5.328837218e-07 | G11: 8.406276311e-07 | H11: =(1-$G$1*($B$2-$G$2))*D11 -> -4.764025599e-06 | J11: -5.54203848e-06 | K11: -6.124385784e-06 | L11: 8.312066e-06 | N11: -1.227853951e-05 | O11: -2.240471815e-05 | P11: 1.528287235e-05 | Q11: 3.931654554e-05 | R11: 7.710149356e-10
A12: 2.93278 | B12: ='DF raw data'!A17 -> -3.7682011e-07 | C12: ='DF raw data'!B17 -> -3.6125386e-06 | D12: ='DF raw data'!C17 -> -6.0536531e-06 | F12: -3.77341629e-07 | G12: -3.62649177e-06 | H12: -6.062031356e-06 | J12: -1.96172107e-06 | K12: 1.877475513e-06 | L12: 7.709118073e-06 | N12: -1.325965507e-05 | O12: -2.903626944e-05 | P12: 1.622185418e-05 | Q12: 4.742958147e-05 | R12: 9.905555042e-10
A13: 3.43291 | B13: ='DF raw data'!A18 -> -3.0486089e-07 | C13: ='DF raw data'!B18 -> -5.6834619e-06 | D13: ='DF raw data'!C18 -> -6.909735e-06 | F13: -3.052828175e-07 | G13: -5.705413862e-06 | H13: -6.919298073e-06 | J13: -3.533084931e-07 | K13: 3.759798276e-07 | L13: 7.687995881e-06 | N13: -1.343635525e-05 | O13: -3.575619379e-05 | P13: 1.640989297e-05 | Q13: 5.563666125e-05 | R13: 1.215524096e-09
A14: 3.93304 | B14: ='DF raw data'!A19 -> -3.1760837e-07 | C14: ='DF raw data'!B19 -> -4.9199921e-06 | D14: ='DF raw data'!C19 -> -4.7900521e-06 | F14: -3.1804794e-07 | G14: -4.938995215e-06 | H14: -4.796681532e-06 | J14: -5.619372463e-06 | K14: 3.003663195e-06 | L14: 7.777300708e-06 | N14: -1.6246772e-05 | O14: -4.388169187e-05 | P14: 1.791211505e-05 | Q14: 6.459504735e-05 | R14: 1.508000853e-09
A15: 4.43317 | B15: ='DF raw data'!A20 -> -2.1594867e-07 | C15: ='DF raw data'!B20 -> -6.0210336e-06 | D15: ='DF raw data'!C20 -> 4.7551312e-06 | F15: -2.16247543e-07 | G15: -6.044289408e-06 | H15: 4.761712302e-06 | J15: -1.221345306e-05 | K15: -1.929974004e-06 | L15: 7.650072067e-06 | N15: -2.235508627e-05 | O15: -5.506214117e-05 | P15: 1.694687715e-05 | Q15: 7.307068901e-05 | R15: 1.901576419e-09
A16: 4.9333 | B16: ='DF raw data'!A21 -> -3.7127583e-07 | C16: ='DF raw data'!B21 -> -2.3842983e-07 | D16: ='DF raw data'!C21 -> 1.3674837e-05 | F16: -3.717896757e-07 | G16: -2.39350748e-07 | H16: 1.369376297e-05 | J16: -9.407837151e-06 | K16: 7.681205653e-06 | L16: 7.8660737e-06 | N16: -2.706022787e-05 | O16: -6.859577294e-05 | P16: 2.078847853e-05 | Q16: 8.346763078e-05 | R16: 2.48393618e-09
A17: 5.43343 | B17: ='DF raw data'!A22 -> -6.143801e-07 | C17: ='DF raw data'!B22 -> 6.801321e-06 | D17: ='DF raw data'!C22 -> 1.6242493e-05 | F17: -6.152304021e-07 | G17: 6.827590612e-06 | H17: 1.626497261e-05 | J17: -8.27192362e-06 | K17: 2.833153548e-06 | L17: 8.17344201e-06 | N17: -3.119726503e-05 | O17: -8.419846109e-05 | P17: 2.220542362e-05 | Q17: 9.457322929e-05 | R17: 3.217301897e-09
A18: 5.93356 | B18: ='DF raw data'!A23 -> -6.6844774e-07 | C18: ='DF raw data'!B23 -> 6.8989898e-06 | D18: ='DF raw data'!C23 -> 8.5249503e-06 | F18: -6.693728717e-07 | G18: 6.925636651e-06 | H18: 8.536748831e-06 | J18: -5.699387551e-06 | K18: -5.064346813e-07 | L18: 8.224160006e-06 | N18: -3.404769972e-05 | O18: -0.0001012267372 | P18: 2.195214044e-05 | Q18: 0.0001055521533 | R18: 4.038086408e-09
A19: 6.43369 | B19: ='DF raw data'!A24 -> -8.4486788e-07 | C19: ='DF raw data'!B24 -> 1.0789725e-05 | D19: ='DF raw data'!C24 -> 3.556228e-06 | F19: -8.460371771e-07 | G19: 1.083139953e-05 | H19: 3.56114982e-06 | J19: -1.200862897e-06 | K19: 4.622494758e-06 | L19: 8.3391263e-06 | N19: -3.464828728e-05 | O19: -0.0001185553851 | P19: 2.426398874e-05 | Q19: 0.000117687302 | R19: 4.932941491e-09
A20: 6.93382 | B20: ='DF raw data'!A25 -> -4.7627518e-07 | C20: ='DF raw data'!B25 -> 7.2588264e-08 | D20: ='DF raw data'!C25 -> -7.3434492e-08 | F20: -4.769343448e-07 | G20: 7.286863093e-08 | H20: -7.353612534e-08 | J20: -4.751570084e-06 | K20: -3.577568735e-07 | L20: 8.439695295e-06 | N20: -3.702469003e-05 | O20: -0.0001370725433 | P20: 2.40850638e-05 | Q20: 0.0001297329649 | R20: 5.908654095e-09
A21: 7.43395 | B21: ='DF raw data'!A26 -> -6.9581262e-07 | C21: ='DF raw data'!B26 -> 5.1632337e-06 | D21: ='DF raw data'!C26 -> -5.3475142e-06 | F21: -6.967756247e-07 | G21: 5.183176318e-06 | H21: -5.35491516e-06 | J21: -6.674942953e-06 | K21: -3.219841857e-06 | L21: 8.13078956e-06 | N21: -4.036302925e-05 | O21: -0.0001572593051 | P21: 2.247472429e-05 | Q21: 0.0001409732488 | R21: 6.976075234e-09
A22: 7.93408 | B22: ='DF raw data'!A27 -> 1.9215677e-06 | C22: ='DF raw data'!B27 -> -5.2678374e-06 | D22: ='DF raw data'!C27 -> -3.3265296e-06 | F22: 1.92422715e-06 | G22: -5.288184042e-06 | H22: -3.331133517e-06 | J22: -6.191005009e-06 | K22: -2.260811423e-06 | L22: 7.7275153e-06 | N22: -4.345933659e-05 | O22: -0.0001789946231 | P22: 2.134402467e-05 | Q22: 0.0001516480359 | R22: 8.148520653e-09
A23: 8.43421 | B23: ='DF raw data'!A28 -> 6.8866593e-06 | C23: ='DF raw data'!B28 -> -8.9636342e-06 | D23: ='DF raw data'!C28 -> -2.2956065e-06 | F23: 6.896190436e-06 | G23: -8.998255591e-06 | H23: -2.298783619e-06 | J23: -6.663576744e-06 | K23: 3.736731525e-06 | L23: 1.728373964e-07 | N23: -4.679199122e-05 | O23: -0.0002023967017 | P23: 2.321287621e-05 | Q23: 0.0001632574916 | R23: 9.513039368e-09
A24: 8.93434 | B24: ='DF raw data'!A29 -> 5.8426976e-06 | C24: ='DF raw data'!B29 -> 6.9191369e-06 | D24: ='DF raw data'!C29 -> -1.4620147e-06 | F24: 5.850783893e-06 | G24: 6.945861567e-06 | H24: -1.464038128e-06 | J24: -3.064548673e-06 | K24: -3.668413466e-06 | L24: 9.739944553e-07 | N24: -4.832466395e-05 | O24: -0.0002265653159 | P24: 2.137819258e-05 | Q24: 0.0001739493671 | R24: 1.09095525e-08
A25: 9.43447 | B25: ='DF raw data'!A30 -> 9.9100896e-07 | C25: ='DF raw data'!B30 -> 2.6558698e-06 | D25: ='DF raw data'!C30 -> 3.9476308e-06 | F25: 9.923805164e-07 | G25: 2.666127906e-06 | H25: 3.953094321e-06 | J25: -1.048730637e-06 | K25: 6.821962859e-06 | L25: 6.280291611e-06 | N25: -4.88491656e-05 | O25: -0.0002509962491 | P25: 2.479006087e-05 | Q25: 0.0001863476202 | R25: 1.241033665e-08
A26: 9.9346 | B26: ='DF raw data'!A31 -> 3.1283881e-07 | C26: ='DF raw data'!B31 -> 1.4787762e-06 | D26: ='DF raw data'!C31 -> 6.5708609e-06 | F26: 3.132717789e-07 | G26: 1.484487866e-06 | H26: 6.579954971e-06 | J26: 1.430500476e-06 | K26: 1.291433878e-05 | L26: 1.308893104e-05 | N26: -4.81337294e-05 | O26: -0.0002750693712 | P26: 3.124890912e-05 | Q26: 0.0002019761371 | R26: 1.40574399e-08
A27: 10.43473 | B27: ='DF raw data'!A32 -> 3.7649825e-06 | C27: ='DF raw data'!B32 -> -7.340092e-06 | D27: ='DF raw data'!C32 -> 3.57719e-06 | F27: 3.770193236e-06 | G27: -7.368442576e-06 | H27: 3.582140831e-06 | J27: 2.29991288e-06 | K27: 5.604558514e-06 | L27: 9.81567622e-06 | N27: -4.698347397e-05 | O27: -0.000298567216 | P27: 3.405191697e-05 | Q27: 0.0002190065224 | R27: 1.574136754e-08
A28: 10.93486 | B28: ='DF raw data'!A33 -> 4.804273e-06 | C28: ='DF raw data'!B33 -> -8.6929103e-06 | D28: ='DF raw data'!C33 -> 1.8216905e-06 | F28: 4.810922114e-06 | G28: -8.726486039e-06 | H28: 1.82421172e-06 | J28: 3.209296628e-06 | K28: -3.341195172e-06 | L28: 3.636243205e-06 | N28: -4.537840845e-05 | O28: -0.0003212623194 | P28: 3.238088503e-05 | Q28: 0.0002352011744 | R28: 1.729563238e-08
A29: 11.43499 | B29: ='DF raw data'!A34 -> 7.0451224e-06 | C29: ='DF raw data'!B34 -> -2.7169738e-06 | D29: ='DF raw data'!C34 -> -1.4882372e-06 | F29: 7.054872849e-06 | G29: -2.727467915e-06 | H29: -1.49029692e-06 | J29: 5.452373055e-06 | K29: -5.164822099e-06 | L29: -3.464669175e-07 | N29: -4.265151311e-05 | O29: -0.0003425936207 | P29: 2.979780255e-05 | Q29: 0.0002501039494 | R29: 1.86495146e-08
A30: 11.93512 | B30: ='DF raw data'!A35 -> 1.0149635e-05 | C30: ='DF raw data'!B35 -> 4.0956834e-06 | D30: ='DF raw data'!C35 -> -7.2080929e-06 | F30: 1.016368209e-05 | G30: 4.111502682e-06 | H30: -7.218068901e-06 | J30: 5.441342009e-06 | K30: 6.036257706e-06 | L30: -1.168279764e-06 | N30: -3.993013473e-05 | O30: -0.0003625638789 | P30: 3.281671612e-05 | Q30: 0.0002665165736 | R30: 1.998553814e-08
A31: 12.43525 | B31: ='DF raw data'!A36 -> 5.4978682e-06 | C31: ='DF raw data'!B36 -> 4.6179377e-07 | D31: ='DF raw data'!C36 -> -8.3300674e-06 | F31: 5.50547725e-06 | G31: 4.635774151e-07 | H31: -8.341596213e-06 | J31: -1.158953675e-06 | K31: 4.071319374e-06 | L31: -1.926449321e-06 | N31: -4.050976224e-05 | O31: -0.0003828240263 | P31: 3.485290508e-05 | Q31: 0.0002839475571 | R31: 2.14137923e-08
A32: 12.93538 | B32: ='DF raw data'!A37 -> -1.5896568e-06 | C32: ='DF raw data'!B37 -> -1.2622073e-05 | D32: ='DF raw data'!C37 -> -1.0490531e-06 | F32: -1.591856885e-06 | G32: -1.267082485e-05 | H32: -1.050504989e-06 | J32: -9.369002679e-06 | K32: 7.999450822e-06 | L32: -1.704050546e-06 | N32: -4.519548155e-05 | O32: -0.0004054276425 | P32: 3.885367042e-05 | Q32: 0.0003033794432 | R32: 2.319037372e-08
A33: 13.43551 | B33: ='DF raw data'!A38 -> -1.2392903e-06 | C33: ='DF raw data'!B38 -> -7.7366385e-06 | D33: ='DF raw data'!C38 -> 1.6019347e-06 | F33: -1.241005478e-06 | G33: -7.766520708e-06 | H33: 1.604151778e-06 | J33: -1.280561047e-05 | K33: 2.984778535e-06 | L33: -1.658935493e-06 | N33: -5.159995151e-05 | O33: -0.0004312343263 | P33: 4.034644771e-05 | Q33: 0.0003235579121 | R33: 2.533612689e-08
A34: 13.93564 | B34: ='DF raw data'!A39 -> 2.6239013e-06 | C34: ='DF raw data'!B39 -> -6.0832103e-06 | D34: ='DF raw data'!C39 -> 9.7525651e-07 | F34: 2.627532779e-06 | G34: -6.106706261e-06 | H34: 9.76606265e-07 | J34: -1.391117045e-05 | K34: 1.063372296e-06 | L34: -3.736626444e-06 | N34: -5.855734519e-05 | O34: -0.0004605206113 | P34: 4.087827209e-05 | Q34: 0.0003440023624 | R34: 2.788678779e-08
A35: 14.43577 | B35: ='DF raw data'!A40 -> 7.0572599e-07 | C35: ='DF raw data'!B40 -> -4.4523299e-06 | D35: ='DF raw data'!C40 -> 5.972006e-06 | F35: 7.067027148e-07 | G35: -4.469526703e-06 | H35: 5.980271256e-06 | J35: -1.38256833e-05 | K35: 5.775871653e-06 | L35: -2.692414852e-06 | N35: -6.547198418e-05 | O35: -0.0004932651148 | P35: 4.376695878e-05 | Q35: 0.0003658915314 | R35: 3.098865777e-08
A36: 14.9359 | B36: ='DF raw data'!A41 -> -2.4976453e-06 | C36: ='DF raw data'!B41 -> -1.64142e-06 | D36: ='DF raw data'!C41 -> 3.4799541e-06 | F36: -2.501102041e-06 | G36: -1.647759866e-06 | H36: 3.484770356e-06 | J36: -9.199223629e-06 | K36: 1.425095249e-05 | L36: 1.855385204e-06 | N36: -7.007279189e-05 | O36: -0.0005283106202 | P36: 5.089428765e-05 | Q36: 0.0003913452915 | R36: 3.473984516e-08
A37: 15.43603 | B37: ='DF raw data'!A42 -> -2.8375998e-06 | C37: ='DF raw data'!B42 -> -3.9278279e-06 | D37: ='DF raw data'!C42 -> -2.2390359e-06 | F37: -2.841527038e-06 | G37: -3.942998852e-06 | H37: -2.242134726e-06 | J37: -2.511495506e-06 | K37: 1.78672655e-05 | L37: 2.546377416e-06 | N37: -7.132886614e-05 | O37: -0.000563984326 | P37: 5.983024315e-05 | Q37: 0.000421268191 | R37: 3.90747045e-08
A38: 15.93616 | B38: ='DF raw data'!A43 -> -2.0310017e-06 | C38: ='DF raw data'!B43 -> -1.638084e-06 | D38: ='DF raw data'!C43 -> -2.8331615e-06 | F38: -2.033812606e-06 | G38: -1.644410981e-06 | H38: -2.837082596e-06 | J38: 1.077003112e-07 | K38: 6.324632949e-06 | L38: 3.229231179e-06 | N38: -7.127500198e-05 | O38: -0.0005996310927 | P38: 6.299338182e-05 | Q38: 0.0004527730711 | R38: 4.360002681e-08
A39: 16.43629 | B39: ='DF raw data'!A44 -> 3.7113223e-06 | C39: ='DF raw data'!B44 -> -1.1547851e-05 | D39: ='DF raw data'!C44 -> -9.4853076e-06 | F39: 3.71645877e-06 | G39: -1.159245374e-05 | H39: -9.498435266e-06 | J39: -1.068716259e-06 | K39: 9.970148413e-06 | L39: 5.492999905e-06 | N39: -7.180949904e-05 | O39: -0.0006355451775 | P39: 6.797975215e-05 | Q39: 0.0004867717845 | R39: 4.849022336e-08
A40: 16.93642 | B40: ='DF raw data'!A45 -> 3.1924083e-06 | C40: ='DF raw data'!B45 -> -1.0876847e-05 | D40: ='DF raw data'!C45 -> -1.1297247e-05 | F40: 3.196826593e-06 | G40: -1.091885804e-05 | H40: -1.131288239e-05 | J40: -1.026741446e-06 | K40: 4.701385897e-06 | L40: 8.123124667e-06 | N40: -7.232300324e-05 | O40: -0.0006717160811 | P40: 7.033105628e-05 | Q40: 0.0005219464557 | R40: 5.358008352e-08
A41: 17.43655 | B41: ='DF raw data'!A46 -> -4.631298e-06 | C41: ='DF raw data'!B46 -> -1.3081157e-06 | D41: ='DF raw data'!C46 -> -1.0562157e-05 | F41: -4.637707716e-06 | G41: -1.313168203e-06 | H41: -1.057677503e-05 | J41: -1.360747472e-06 | K41: -3.692257608e-06 | L41: 1.449729853e-05 | N41: -7.300355388e-05 | O41: -0.0007082273485 | P41: 6.848444748e-05 | Q41: 0.0005561975824 | R41: 5.859120528e-08
A42: 17.93668 | B42: ='DF raw data'!A47 -> -9.8209985e-06 | C42: ='DF raw data'!B47 -> 8.3075793e-06 | D42: ='DF raw data'!C47 -> -8.5484262e-06 | F42: -9.834590762e-06 | G42: 8.339666726e-06 | H42: -8.560257222e-06 | J42: -4.1197112e-06 | K42: 8.862999183e-07 | L42: 1.409509565e-05 | N42: -7.506394504e-05 | O42: -0.0007457690793 | P42: 6.892771266e-05 | Q42: 0.0005906703994 | R42: 6.378536812e-08
A43: 18.43681 | B43: ='DF raw data'!A48 -> -9.1511665e-06 | C43: ='DF raw data'!B48 -> 1.233802e-06 | D43: ='DF raw data'!C48 -> 1.595008e-06 | F43: -9.163831714e-06 | G43: 1.238567471e-06 | H43: 1.597215491e-06 | J43: -6.604691059e-06 | K43: 2.43936241e-06 | L43: 5.005353335e-06 | N43: -7.836714918e-05 | O43: -0.0007849628417 | P43: 7.014771098e-05 | Q43: 0.0006257533741 | R43: 6.931786191e-08
A44: 18.93694 | B44: ='DF raw data'!A49 -> -1.786697e-06 | C44: ='DF raw data'!B49 -> -8.7672306e-06 | D44: ='DF raw data'!C49 -> 4.3383716e-06 | F44: -1.789169789e-06 | G44: -8.801093396e-06 | H44: 4.344375906e-06 | J44: -5.707606209e-06 | K44: -4.7575002e-06 | L44: 3.387053804e-06 | N44: -8.122169427e-05 | O44: -0.0008255842476 | P44: 6.776834241e-05 | Q44: 0.0006596463551 | R44: 7.491407247e-08
A45: 19.43707 | B45: ='DF raw data'!A50 -> 2.2323529e-06 | C45: ='DF raw data'!B50 -> -4.021626e-06 | D45: ='DF raw data'!C50 -> -8.3094898e-07 | F45: 2.235442476e-06 | G45: -4.03715924e-06 | H45: -8.320990134e-07 | J45: -2.706608068e-06 | K45: -3.428255944e-06 | L45: 2.513983645e-06 | N45: -8.257535016e-05 | O45: -0.0008668826575 | P45: 6.605376876e-05 | Q45: 0.0006926818265 | R45: 8.050642052e-08
A46: 19.9372 | B46: ='DF raw data'!A51 -> 8.5486974e-08 | C46: ='DF raw data'!B51 -> -2.2894749e-06 | D46: ='DF raw data'!C51 -> 2.8716477e-06 | F46: 8.560528797e-08 | G46: -2.298317832e-06 | H46: 2.87562206e-06 | J46: -1.633397898e-06 | K46: -4.306649823e-06 | L46: 1.347876984e-06 | N46: -8.339226145e-05 | O46: -0.0009085896292 | P46: 6.389988398e-05 | Q46: 0.0007246400755 | R46: 8.602658761e-08
A47: 20.43733 | B47: ='DF raw data'!A52 -> -8.8718485e-07 | C47: ='DF raw data'!B52 -> -9.1326874e-06 | D47: ='DF raw data'!C52 -> 3.5844441e-06 | F47: -8.884127138e-07 | G47: -9.167961746e-06 | H47: 3.589404971e-06 | J47: -5.654731532e-06 | K47: -1.047591077e-05 | L47: 2.662137807e-06 | N47: -8.622036234e-05 | O47: -0.000951711019 | P47: 5.866056673e-05 | Q47: 0.0007539779847 | R47: 9.146550785e-08
A48: 20.93746 | B48: ='DF raw data'!A53 -> 1.7386063e-06 | C48: ='DF raw data'!B53 -> -5.8111514e-06 | D48: ='DF raw data'!C53 -> -1.5221141e-06 | F48: 1.741012531e-06 | G48: -5.833596553e-06 | H48: -1.524220706e-06 | J48: -7.954230941e-06 | K48: -6.5872799e-07 | L48: 6.735886883e-06 | N48: -9.019851186e-05 | O48: -0.0009968220008 | P48: 5.83311171e-05 | Q48: 0.0007831511263 | R48: 9.723615321e-08
A49: 21.43759 | B49: ='DF raw data'!A54 -> 1.8419977e-06 | C49: ='DF raw data'!B54 -> 1.1980443e-06 | D49: ='DF raw data'!C54 -> -3.3901579e-06 | F49: 1.844547025e-06 | G49: 1.20267166e-06 | H49: -3.394849879e-06 | J49: -6.382510987e-06 | K49: 6.709451062e-06 | L49: 5.890744122e-06 | N49: -9.339059708e-05 | O49: -0.00104352944 | P49: 6.168671486e-05 | Q49: 0.000814002503 | R49: 1.035013089e-07
A50: 21.93772 | B50: ='DF raw data'!A55 -> 2.0203533e-06 | C50: ='DF raw data'!B55 -> 1.029795e-06 | D50: ='DF raw data'!C55 -> -4.389598e-06 | F50: 2.023149469e-06 | G50: 1.033772509e-06 | H50: -4.395673204e-06 | J50: -3.485586384e-06 | K50: -4.318171956e-06 | L50: -4.918463846e-06 | N50: -9.513384339e-05 | O50: -0.001091108729 | P50: 5.952706752e-05 | Q50: 0.0008437737753 | R50: 1.097999061e-07
A51: 22.43785 | B51: ='DF raw data'!A56 -> 1.8440713e-06 | C51: ='DF raw data'!B56 -> 6.0561283e-06 | D51: ='DF raw data'!C56 -> -8.1541639e-06 | F51: 1.846623495e-06 | G51: 6.079519659e-06 | H51: -8.165449263e-06 | J51: -2.931134283e-06 | K51: 6.006015948e-07 | L51: -6.383749599e-06 | N51: -9.659979158e-05 | O51: -0.001139421183 | P51: 5.98274464e-05 | Q51: 0.0008736952761 | R51: 1.16257006e-07
A52: 22.93798 | B52: ='DF raw data'!A57 -> 3.9913302e-06 | C52: ='DF raw data'!B57 -> -1.2367349e-06 | D52: ='DF raw data'!C57 -> -3.0419451e-06 | F52: 3.996854201e-06 | G52: -1.241511699e-06 | H52: -3.046155152e-06 | J52: -5.072344723e-06 | K52: 4.552843169e-06 | L52: -3.508165791e-06 | N52: -9.913662335e-05 | O52: -0.001189002382 | P52: 6.210445985e-05 | Q52: 0.0009047555796 | R52: 1.231013021e-07
A53: 23.43811 | B53: ='DF raw data'!A58 -> 3.0315441e-06 | C53: ='DF raw data'!B58 -> -6.4900273e-06 | D53: ='DF raw data'!C58 -> -2.295541e-06 | F53: 3.035739757e-06 | G53: -6.515094562e-06 | H53: -2.298718029e-06 | J53: -3.80708963e-06 | K53: 4.279331715e-06 | L53: -9.575460221e-07 | N53: -0.0001010406631 | O53: -0.001239535849 | P53: 6.424468202e-05 | Q53: 0.0009368862724 | R53: 1.302714633e-07
A54: 23.93824 | B54: ='DF raw data'!A59 -> -3.3972956e-06 | C54: ='DF raw data'!B59 -> -8.0746104e-06 | D54: ='DF raw data'!C59 -> -9.8423097e-06 | F54: -3.401997457e-06 | G54: -8.105798e-06 | H54: -9.855931457e-06 | J54: -2.736823228e-06 | K54: 1.575927788e-05 | L54: -2.23681958e-06 | N54: -0.0001024094305 | O54: -0.001290753878 | P54: 7.212636967e-05 | Q54: 0.0009729588337 | R54: 1.381184553e-07
A55: 24.43837 | B55: ='DF raw data'!A60 -> -2.7145197e-06 | C55: ='DF raw data'!B60 -> -5.21433e-06 | D55: ='DF raw data'!C60 -> -1.0308386e-05 | F55: -2.718276595e-06 | G55: -5.234469974e-06 | H55: -1.032265281e-05 | J55: -8.910332657e-06 | K55: -1.274862017e-06 | L55: -2.057810273e-07 | N55: -0.0001068657552 | O55: -0.001344200648 | P55: 7.148877293e-05 | Q55: 0.001008712514 | R55: 1.463860714e-07
A56: 24.9385 | B56: ='DF raw data'!A61 -> 4.3822165e-06 | C56: ='DF raw data'!B61 -> -6.4346573e-06 | D56: ='DF raw data'!C61 -> -3.2221706e-06 | F56: 4.388281488e-06 | G56: -6.4595107e-06 | H56: -3.226630084e-06 | J56: -1.315880061e-05 | K56: -9.212563956e-06 | L56: 3.677758984e-06 | N56: -0.0001134468661 | O56: -0.001400938829 | P56: 6.688129332e-05 | Q56: 0.001042161855 | R56: 1.550599755e-07
A57: 25.43863 | B57: ='DF raw data'!A62 -> 8.9965415e-06 | C57: ='DF raw data'!B62 -> 1.9153483e-06 | D57: ='DF raw data'!C62 -> 2.4194178e-06 | F57: 9.008992713e-06 | G57: 1.922746195e-06 | H57: 2.422766274e-06 | J57: -9.803606839e-06 | K57: 6.435004611e-06 | L57: 7.382157585e-06 | N57: -0.000118349944 | O57: -0.001460129186 | P57: 7.009963217e-05 | Q57: 0.001077220784 | R57: 1.64522769e-07
A58: 25.93876 | B58: ='DF raw data'!A63 -> 7.8717439e-06 | C58: ='DF raw data'!B63 -> 1.4957517e-07 | D58: ='DF raw data'!C63 -> 7.4690706e-06 | F58: 7.882638394e-06 | G58: 1.501528933e-07 | H58: 7.479407794e-06 | J58: -2.905196034e-06 | K58: 1.012659375e-05 | L58: 6.070424856e-06 | N58: -0.0001198029197 | O58: -0.001520046221 | P58: 7.51642455e-05 | Q58: 0.001114812678 | R58: 1.74526571e-07
A59: 26.43889 | B59: ='DF raw data'!A64 -> 3.6461734e-06 | C59: ='DF raw data'!B64 -> -9.0354188e-06 | D59: ='DF raw data'!C64 -> 1.2741688e-05 | F59: 3.651219704e-06 | G59: -9.070317453e-06 | H59: 1.27593225e-05 | J59: -2.564967709e-06 | K59: 1.676427668e-06 | L59: 1.521291658e-06 | N59: -0.000121085737 | O59: -0.00158060483 | P59: 7.600267727e-05 | Q59: 0.001152823897 | R59: 1.847483093e-07
A60: 26.93902 | B60: ='DF raw data'!A65 -> 2.0426469e-06 | C60: ='DF raw data'!B65 -> -5.1397442e-06 | D60: ='DF raw data'!C65 -> 5.7740053e-06 | F60: 2.045473923e-06 | G60: -5.159596091e-06 | H60: 5.781996523e-06 | J60: -6.741449771e-06 | K60: -1.378802435e-06 | L60: -7.790019686e-07 | N60: -0.0001244573383 | O60: -0.001642849679 | P60: 7.531309681e-05 | Q60: 0.001190490236 | R60: 1.953319061e-07
A61: 27.43915 | B61: ='DF raw data'!A66 -> 3.1576292e-06 | C61: ='DF raw data'!B66 -> -4.5514648e-06 | D61: ='DF raw data'!C66 -> 2.5198387e-08 | F61: 3.161999359e-06 | G61: -4.569044505e-06 | H61: 2.523326157e-08 | J61: -4.357804065e-06 | K61: 2.977277274e-06 | L61: 2.606159239e-06 | N61: -0.0001266368068 | O61: -0.001706184545 | P61: 7.680212249e-05 | Q61: 0.001228901282 | R61: 2.063024811e-07
A62: 27.93928 | B62: ='DF raw data'!A67 -> 7.2187862e-07 | C62: ='DF raw data'!B67 -> -5.6940012e-06 | D62: ='DF raw data'!C67 -> 1.2117906e-06 | F62: 7.228777e-07 | G62: -5.715993869e-06 | H62: 1.213467718e-06 | J62: -1.146589286e-06 | K62: 6.29704189e-06 | L62: 5.926139642e-06 | N62: -0.0001272102505 | O62: -0.001769806208 | P62: 7.995146205e-05 | Q62: 0.001268887406 | R62: 2.175927579e-07
A63: 28.43941 | B63: ='DF raw data'!A68 -> 9.4967547e-08 | C63: ='DF raw data'!B68 -> 2.8273241e-06 | D63: ='DF raw data'!C68 -> 1.3620028e-06 | F63: 9.509898209e-08 | G63: 2.838244435e-06 | H63: 1.363887812e-06 | J63: -2.05657056e-06 | K63: 2.840523304e-06 | L63: -2.327056996e-06 | N63: -0.0001282388031 | O63: -0.00183394228 | P63: 8.137209297e-05 | Q63: 0.001309584031 | R63: 2.291290606e-07
A64: 28.93954 | B64: ='DF raw data'!A69 -> 2.2802797e-06 | C64: ='DF raw data'!B69 -> 3.4389557e-06 | D64: ='DF raw data'!C69 -> 1.250318e-07 | F64: 2.283435607e-06 | G64: 3.452238418e-06 | H64: 1.25204844e-07 | J64: -1.944547835e-06 | K64: 4.229507112e-06 | L64: -5.736677488e-06 | N64: -0.0001292113299 | O64: -0.001898564743 | P64: 8.348739636e-05 | Q64: 0.001351338583 | R64: 2.409649937e-07
A65: 29.43967 | B65: ='DF raw data'!A70 -> 3.2251137e-06 | C65: ='DF raw data'!B70 -> 1.1159453e-05 | D65: ='DF raw data'!C70 -> -6.2225645e-06 | F65: 3.229577257e-06 | G65: 1.120255558e-05 | H65: -6.231176529e-06 | J65: -4.90015404e-06 | K65: 1.118824653e-06 | L65: -4.228273042e-06 | N65: -0.0001316620439 | O65: -0.001964412881 | P65: 8.404695414e-05 | Q65: 0.001393372986 | R65: 2.531675577e-07
A66: 29.9398 | B66: ='DF raw data'!A71 -> 1.6949506e-06 | C66: ='DF raw data'!B71 -> -4.6499224e-07 | D66: ='DF raw data'!C71 -> -3.3512897e-06 | F66: 1.697296412e-06 | G66: -4.66788239e-07 | H66: -3.355927885e-06 | J66: -5.256826993e-06 | K66: 5.181836061e-06 | L66: -7.665428591e-07 | N66: -0.0001342911408 | O66: -0.002031575909 | P66: 8.663854581e-05 | Q66: 0.001436703522 | R66: 2.65941052e-07
A67: 30.43993 | B67: ='DF raw data'!A72 -> 1.4501801e-06 | C67: ='DF raw data'!B72 -> 7.9455895e-06 | D67: ='DF raw data'!C72 -> 1.6435314e-06 | F67: 1.452187149e-06 | G67: 7.976278766e-06 | H67: 1.645806047e-06 | J67: -2.603736591e-06 | K67: 8.962367107e-06 | L67: 7.689525895e-06 | N67: -0.0001355933476 | O67: -0.00209939021 | P67: 9.112089447e-05 | Q67: 0.001482275815 | R67: 2.792888082e-07
A68: 30.94006 | B68: ='DF raw data'!A73 -> 1.6532302e-06 | C68: ='DF raw data'!B73 -> 4.8894431e-06 | D68: ='DF raw data'!C73 -> -1.6315299e-06 | F68: 1.655518271e-06 | G68: 4.908328221e-06 | H68: -1.633787937e-06 | J68: -2.710549816e-06 | K68: 5.629337553e-06 | L68: 3.110403349e-06 | N68: -0.0001369489748 | O68: -0.002167882501 | P68: 9.393629506e-05 | Q68: 0.001529256174 | R68: 2.930819181e-07
A69: 31.44019 | B69: ='DF raw data'!A74 -> -8.2937737e-07 | C69: ='DF raw data'!B74 -> 3.7607822e-06 | D69: ='DF raw data'!C74 -> 3.4263812e-06 | F69: -8.305252283e-07 | G69: 3.77530795e-06 | H69: 3.431123312e-06 | J69: -2.01700007e-06 | K69: 9.675341926e-06 | L69: 2.581896706e-06 | N69: -0.0001379577371 | O69: -0.002236879304 | P69: 9.877522382e-05 | Q69: 0.001578656627 | R69: 3.074801017e-07
A70: 31.94032 | B70: ='DF raw data'!A75 -> -2.4413148e-06 | C70: ='DF raw data'!B75 -> 5.8522523e-06 | D70: ='DF raw data'!C75 -> 9.7433604e-06 | F70: -2.44469358e-06 | G70: 5.874856202e-06 | H70: 9.756845211e-06 | J70: -7.401237255e-07 | K70: 6.972784354e-06 | L70: 6.844317544e-06 | N70: -0.0001383278952 | O70: -0.002306061234 | P70: 0.0001022625225 | Q70: 0.001629801182 | R70: 3.222800637e-07
A71: 32.44045 | B71: ='DF raw data'!A76 -> -2.3927187e-06 | C71: ='DF raw data'!B76 -> -4.9977793e-06 | D71: ='DF raw data'!C76 -> 6.1851115e-06 | F71: -2.396030223e-06 | G71: =(1-$G$1*($B$2-$G$2))*C71*$M$2/$M$1 -> -5.017082862e-06 | H71: 6.193671694e-06 | J71: =-CELL("contents", INDEX($F$6:$F$1203,1204-CELL("row",F71))) -> -2.921640562e-06 | K71: =CELL("contents", INDEX($G$6:$G$1203,1204-CELL("row",G71))) -> -5.293943301e-06 | L71: =-CELL("contents", INDEX($H$6:$H$1203,1204-CELL("row",H71))) -> 2.619689339e-06 | N71: -0.0001397890953 | O71: -0.002375973954 | P71: 9.961486259e-05 | Q71: 0.001679621563 | R71: 3.3701595e-07
A72: =A71+$B$1 -> 32.94058 | B72: ='DF raw data'!A77 -> -3.2385706e-06 | C72: ='DF raw data'!B77 -> -3.0457379e-06 | D72: ='DF raw data'!C77 -> 7.025173e-07 | F72: -3.243052782e-06 | G72: -3.057501843e-06 | H72: 7.034895839e-07 | J72: -4.740539038e-06 | K72: -2.449939105e-06 | L72: -1.237526169e-06 | N72: =J72*$B$1+N71 -> -0.000142159981 | O72: =N72*$B$1+O71 -> -0.002447072425 | P72: =K72*$B$1+P71 -> 9.838957455e-05 | Q72: =P72*$B$1+Q71 -> 0.001728829141 | R72: =(N72^2+P72^2)*$B$1+R71 -> 3.5196482e-07
A73: 33.44071 | B73: ='DF raw data'!A78 -> 4.3959326e-07 | C73: ='DF raw data'!B78 -> -3.7143438e-06 | D73: ='DF raw data'!C78 -> -1.3346345e-06 | F73: 4.402016571e-07 | G73: -3.728690185e-06 | H73: -1.336481634e-06 | J73: -6.237329533e-06 | K73: 6.807095355e-06 | L73: -2.424493061e-06 | N73: -0.0001452794567 | O73: -0.00251973104 | P73: 0.0001017940071 | Q73: 0.001779739378 | R73: 3.677029811e-07
A74: 33.94084 | B74: ='DF raw data'!A79 -> 7.4841319e-06 | C74: ='DF raw data'!B79 -> -5.7557777e-06 | D74: ='DF raw data'!C79 -> -2.0269927e-06 | F74: 7.494489939e-06 | G74: -5.778008976e-06 | H74: -2.029798058e-06 | J74: -1.091264923e-05 | K74: -8.956867146e-06 | L74: 6.752162678e-07 | N74: -0.0001507371999 | O74: -0.002595119236 | P74: 9.731440918e-05 | Q74: 0.001828409234 | R74: 3.838030649e-07
A75: 34.44097 | B75: ='DF raw data'!A80 -> 7.1678096e-06 | C75: ='DF raw data'!B80 -> -9.8628007e-06 | D75: ='DF raw data'!C80 -> -7.2620733e-06 | F75: =(1-$G$1*($B$2-$G$2))*B75 -> 7.177729848e-06 | G75: -9.900895056e-06 | H75: =(1-$G$1*($B$2-$G$2))*D75 -> -7.272124009e-06 | J75: -1.010152519e-05 | K75: -5.855026607e-06 | L75: 2.293187886e-06 | N75: -0.0001557892757 | O75: -0.002673034126 | P75: 9.438613473e-05 | Q75: 0.001875614571 | R75: 4.003968986e-07
A76: 34.9411 | B76: ='DF raw data'!A81 -> 3.2831904e-06 | C76: ='DF raw data'!B81 -> -3.3147301e-06 | D76: ='DF raw data'!C81 -> -1.0419461e-05 | F76: 3.287734336e-06 | G76: -3.327533006e-06 | H76: -1.043388153e-05 | J76: -7.343224677e-06 | K76: 5.655993714e-06 | L76: -3.292965666e-06 | N76: -0.0001594618427 | O76: -0.002752785778 | P76: 9.721486686e-05 | Q76: 0.001924234642 | R76: 4.178408376e-07
A77: 35.44123 | B77: ='DF raw data'!A82 -> 3.1329346e-06 | C77: ='DF raw data'!B82 -> 1.060306e-05 | D77: ='DF raw data'!C82 -> -2.7037149e-06 | F77: 3.137270581e-06 | G77: 1.064401355e-05 | H77: -2.707456841e-06 | J77: -3.972059833e-06 | K77: 2.884187003e-06 | L77: -3.092694674e-06 | N77: -0.000161448389 | O77: -0.00283353096 | P77: 9.865733531e-05 | Q77: 0.001973576136 | R77: 4.357449175e-07
A78: 35.94136 | B78: ='DF raw data'!A83 -> 1.4204142e-06 | C78: ='DF raw data'!B83 -> 9.1601796e-06 | D78: ='DF raw data'!C83 -> 1.90655e-06 | F78: 1.422380053e-06 | G78: 9.195560133e-06 | H78: 1.909188665e-06 | J78: -2.919768074e-06 | K78: 4.392001219e-07 | L78: 1.15686649e-06 | N78: -0.0001629086526 | O78: -0.002915006465 | P78: 9.887699246e-05 | Q78: 0.002023027486 | R78: 4.53907583e-07
A79: 36.44149 | B79: ='DF raw data'!A84 -> -4.5828983e-06 | C79: ='DF raw data'!B84 -> 5.6502427e-06 | D79: ='DF raw data'!C84 -> -4.2946904e-06 | F79: -4.589241031e-06 | G79: 5.672066355e-06 | H79: -4.300634252e-06 | J79: -4.877093769e-06 | K79: 2.708342228e-07 | L79: 8.823443068e-06 | N79: -0.0001653478335 | O79: -0.002997701877 | P79: 9.901244478e-05 | Q79: 0.00207254658 | R79: 4.724840967e-07
A80: 36.94162 | B80: ='DF raw data'!A85 -> -4.2210504e-06 | C80: ='DF raw data'!B85 -> 7.0146702e-06 | D80: ='DF raw data'!C85 -> -8.6200434e-06 | F80: -4.226892334e-06 | G80: 7.041763858e-06 | H80: -8.63197354e-06 | J80: -3.387392572e-06 | K80: 2.290151411e-06 | L80: 7.317778208e-06 | N80: -0.0001670419701 | O80: -0.003081244577 | P80: 0.0001001578182 | Q80: 0.002122638509 | R80: 4.914563324e-07
A81: 37.44175 | B81: ='DF raw data'!A86 -> 1.4262204e-06 | C81: ='DF raw data'!B86 -> 4.5512172e-07 | D81: ='DF raw data'!C86 -> -6.6734701e-06 | F81: 1.428194289e-06 | G81: 4.568795948e-07 | H81: -6.682706183e-06 | J81: -7.101459737e-06 | K81: -1.070120059e-05 | L81: 5.515732323e-06 | N81: -0.0001705936232 | O81: -0.003166563566 | P81: 9.480582676e-05 | Q81: 0.002170053748 | R81: 5.105064487e-07
A82: 37.94188 | B82: ='DF raw data'!A87 -> 2.9430321e-06 | C82: ='DF raw data'!B87 -> 2.4934886e-06 | D82: ='DF raw data'!C87 -> -8.9096193e-06 | F82: 2.947105256e-06 | G82: 2.50311952e-06 | H82: -8.921950213e-06 | J82: -1.200190368e-05 | K82: -1.274569893e-05 | L82: 9.951699016e-06 | N82: -0.0001765961353 | O82: -0.003254884591 | P82: 8.843132035e-05 | Q82: 0.002214280904 | R82: 5.300146662e-07
A83: 38.44201 | B83: ='DF raw data'!A88 -> 1.4603301e-06 | C83: ='DF raw data'!B88 -> 1.1549728e-05 | D83: ='DF raw data'!C88 -> -8.2826791e-06 | F83: 1.462351197e-06 | G83: 1.159433799e-05 | H83: -8.294142328e-06 | J83: -8.923432862e-06 | K83: -8.942803134e-06 | L83: 6.914431047e-06 | N83: -0.0001810590117 | O83: -0.003345437635 | P83: 8.395875622e-05 | Q83: 0.002256271197 | R83: 5.499355635e-07
A84: 38.94214 | B84: ='DF raw data'!A89 -> -1.5533995e-07 | C84: ='DF raw data'!B89 -> 7.1786521e-06 | D84: ='DF raw data'!C89 -> -5.7072375e-06 | F84: -1.555549405e-07 | G84: 7.206379126e-06 | H84: -5.715136317e-06 | J84: -6.533237003e-06 | K84: -2.272093833e-05 | L84: 8.570253638e-06 | N84: -0.0001843264796 | O84: -0.003437624837 | P84: 7.259533334e-05 | Q84: 0.002292578301 | R84: 5.695638323e-07
A85: 39.44227 | B85: ='DF raw data'!A90 -> -3.7242335e-06 | C85: ='DF raw data'!B90 -> -4.8895713e-06 | D85: ='DF raw data'!C90 -> -2.7682663e-07 | F85: -3.729387839e-06 | G85: -4.908456917e-06 | H85: -2.772097581e-07 | J85: -7.271304277e-06 | K85: -6.007988237e-06 | L85: 8.196640772e-06 | N85: -0.000187963077 | O85: -0.003531630811 | P85: 6.959055818e-05 | Q85: 0.002327382626 | R85: 5.896555368e-07
A86: 39.9424 | B86: ='DF raw data'!A91 -> -6.0816292e-06 | C86: ='DF raw data'!B91 -> 9.1835282e-06 | D86: ='DF raw data'!C91 -> 3.4821514e-06 | F86: -6.090046175e-06 | G86: 9.218998915e-06 | H86: 3.486970698e-06 | J86: -6.669325389e-06 | K86: 3.694171271e-07 | L86: 6.053724075e-07 | N86: -0.0001912986067 | O86: -0.003627304983 | P86: 6.977531477e-05 | Q86: 0.002362279355 | R86: 6.103928028e-07
A87: 40.44253 | B87: ='DF raw data'!A92 -> -4.0011782e-06 | C87: ='DF raw data'!B92 -> 3.1128695e-07 | D87: ='DF raw data'!C92 -> 2.2699332e-06 | F87: -4.006715831e-06 | G87: 3.124892734e-07 | H87: 2.273074788e-06 | J87: -2.18376996e-06 | K87: 2.582145879e-06 | L87: 2.862809552e-06 | N87: -0.0001923907755 | O87: -0.003723525381 | P87: 7.106672339e-05 | Q87: 0.002397821955 | R87: 6.314306161e-07
A88: 40.94266 | B88: ='DF raw data'!A93 -> -4.3088775e-07 | C88: ='DF raw data'!B93 -> -4.2672659e-06 | D88: ='DF raw data'!C93 -> 6.7995572e-08 | F88: -4.314840986e-07 | G88: -4.283747907e-06 | H88: 6.808967787e-08 | J88: 2.135416231e-06 | K88: 5.226840017e-06 | L88: 5.265741414e-06 | N88: -0.0001913227898 | O88: -0.003819211648 | P88: 7.368082288e-05 | Q88: 0.002434671945 | R88: 6.524527172e-07
A89: 41.44279 | B89: ='DF raw data'!A94 -> 2.8680097e-06 | C89: ='DF raw data'!B94 -> 5.5068081e-06 | D89: ='DF raw data'!C94 -> -9.4382818e-07 | F89: 2.871979025e-06 | G89: 5.528077749e-06 | H89: -9.451344382e-07 | J89: 4.360175643e-06 | K89: 9.648284119e-06 | L89: 3.136326977e-06 | N89: -0.0001891421352 | O89: -0.003913807304 | P89: 7.850621922e-05 | Q89: 0.00247393526 | R89: 6.73427156e-07
A90: 41.94292 | B90: ='DF raw data'!A95 -> 1.6773282e-06 | C90: ='DF raw data'!B95 -> 7.6324359e-06 | D90: ='DF raw data'!C95 -> 1.5536806e-06 | F90: 1.679649622e-06 | G90: 7.661915633e-06 | H90: 1.555830894e-06 | J90: 3.28555943e-06 | K90: 6.772269661e-06 | L90: 1.134560361e-05 | N90: -0.0001874989283 | O90: -0.004007581143 | P90: 8.189323444e-05 | Q90: 0.002514892524 | R90: 6.943637731e-07
A91: 42.44305 | B91: ='DF raw data'!A96 -> -1.259583e-06 | C91: ='DF raw data'!B96 -> 6.1974274e-06 | D91: ='DF raw data'!C96 -> 4.1729163e-06 | F91: -1.261326263e-06 | G91: 6.221364516e-06 | H91: 4.178691616e-06 | J91: -4.521653219e-07 | K91: -2.286356811e-07 | L91: 1.537183321e-05 | N91: -0.0001877250698 | O91: -0.004101468083 | P91: 8.177888688e-05 | Q91: 0.002555792598 | R91: 7.153334679e-07
A92: 42.94318 | B92: ='DF raw data'!A97 -> -5.3670719e-06 | C92: ='DF raw data'!B97 -> -5.3770816e-07 | D92: ='DF raw data'!C97 -> 5.574746e-06 | F92: -5.374499928e-06 | G92: -5.39785019e-07 | H92: 5.582461448e-06 | J92: -2.114793128e-06 | K92: 1.245133836e-06 | L92: 4.46298874e-06 | N92: -0.0001887827413 | O92: -0.004195883995 | P92: 8.240161567e-05 | Q92: 0.002597004118 | R92: 7.365534585e-07
A93: 43.44331 | B93: ='DF raw data'!A98 -> -4.6237528e-06 | C93: ='DF raw data'!B98 -> -4.9225278e-06 | D93: ='DF raw data'!C98 -> 9.5510131e-06 | F93: -4.630152074e-06 | G93: -4.941540709e-06 | H93: 9.564231702e-06 | J93: -7.865441726e-08 | K93: 4.817111459e-06 | L93: 1.546814633e-06 | N93: -0.0001888220787 | O93: -0.004290319581 | P93: 8.481079762e-05 | Q93: 0.002639420543 | R93: 7.57982353e-07
A94: 43.94344 | B94: ='DF raw data'!A99 -> -3.12476e-06 | C94: ='DF raw data'!B99 -> 5.3837898e-06 | D94: ='DF raw data'!C99 -> 3.2850166e-06 | F94: -3.129084668e-06 | G94: 5.4045843e-06 | H94: 3.289563063e-06 | J94: 2.130199521e-06 | K94: 1.030956072e-05 | L94: 3.020763358e-06 | N94: -0.000187756702 | O94: -0.004384222341 | P94: 8.996691823e-05 | Q94: 0.002684415697 | R94: 7.796613008e-07
A95: 44.44357 | B95: ='DF raw data'!A100 -> -6.5289174e-07 | C95: ='DF raw data'!B100 -> -2.5616648e-06 | D95: ='DF raw data'!C100 -> -3.942956e-06 | F95: -6.537953422e-07 | G95: -2.571559046e-06 | H95: -3.948413051e-06 | J95: 4.130104765e-06 | K95: 1.138739577e-05 | L95: -6.090902258e-06 | N95: -0.0001856911127 | O95: -0.004477092037 | P95: 9.566209647e-05 | Q95: 0.002732259182 | R95: 8.01483186e-07
A96: 44.9437 | B96: ='DF raw data'!A101 -> 2.3834746e-06 | C96: ='DF raw data'!B101 -> -2.6998971e-06 | D96: ='DF raw data'!C101 -> -6.791799e-06 | F96: 2.386773329e-06 | G96: -2.710325258e-06 | H96: -6.80119885e-06 | J96: 6.168312646e-06 | K96: 5.673943477e-06 | L96: -4.845618167e-06 | N96: -0.0001826061545 | O96: -0.004568418853 | P96: 9.849980582e-05 | Q96: 0.00278152189 | R96: 8.230123919e-07
A97: 45.44383 | B97: ='DF raw data'!A102 -> 1.1140309e-06 | C97: ='DF raw data'!B102 -> 9.4650604e-06 | D97: ='DF raw data'!C102 -> 2.4225465e-06 | F97: 1.115572719e-06 | G97: 9.501618513e-06 | H97: 2.425899304e-06 | J97: 3.823836576e-06 | K97: 2.203357265e-06 | L97: 7.231402329e-06 | N97: -0.0001806937391 | O97: -0.004658789213 | P97: 9.960177089e-05 | Q97: 0.002831335723 | R97: 8.443032961e-07
A98: 45.94396 | B98: ='DF raw data'!A103 -> 2.0802272e-06 | C98: ='DF raw data'!B103 -> 9.645988e-06 | D98: ='DF raw data'!C103 -> 1.3579733e-05 | F98: 2.083106234e-06 | G98: 9.683244933e-06 | H98: 1.359852735e-05 | J98: 1.161259963e-06 | K98: 7.878101222e-06 | L98: 1.367209002e-05 | N98: -0.0001801129582 | O98: -0.004748869106 | P98: 0.0001035418457 | Q98: 0.002883120107 | R98: 8.658897029e-07
A99: 46.44409 | B99: ='DF raw data'!A104 -> 9.7402608e-06 | C99: ='DF raw data'!B104 -> -1.2861022e-06 | D99: ='DF raw data'!C104 -> 9.1185448e-06 | F99: 9.753741321e-06 | G99: -1.291069677e-06 | H99: 9.131164866e-06 | J99: -1.948489582e-06 | K99: -2.993572571e-07 | L99: 1.693528404e-05 | N99: -0.0001810874563 | O99: -0.004839436376 | P99: 0.0001033921281 | Q99: 0.002934829612 | R99: 8.876366551e-07
A100: 46.94422 | B100: ='DF raw data'!A105 -> 1.2639191e-05 | C100: ='DF raw data'!B105 -> -3.4421503e-06 | D100: ='DF raw data'!C105 -> 9.6328095e-06 | F100: 1.265668364e-05 | G100: -3.455445357e-06 | H100: 9.646141308e-06 | J100: -6.244214849e-06 | K100: 2.192105372e-06 | L100: 1.325481932e-05 | N100: -0.0001842103755 | O100: -0.004931565511 | P100: 0.0001044884658 | Q100: 0.002987087428 | R100: 9.100681368e-07
A101: 47.44435 | B101: ='DF raw data'!A106 -> 6.9906546e-06 | C101: ='DF raw data'!B106 -> 6.7410106e-06 | D101: ='DF raw data'!C106 -> 1.190317e-05 | F101: 7.000329666e-06 | G101: 6.767047267e-06 | H101: 1.191964399e-05 | J101: -8.396922679e-06 | K101: 6.567471085e-06 | L101: 1.265080051e-05 | N101: -0.0001884099284 | O101: -0.005025794968 | P101: 0.0001077730551 | Q101: 0.003040987966 | R101: 9.336309277e-07
A102: 47.94448 | B102: ='DF raw data'!A107 -> 4.6638979e-06 | C102: ='DF raw data'!B107 -> 7.3200858e-06 | D102: ='DF raw data'!C107 -> 6.9787002e-06 | F102: 4.670352735e-06 | G102: 7.348359103e-06 | H102: 6.988358721e-06 | J102: -9.334976852e-06 | K102: -5.457484838e-06 | L102: 1.266646516e-05 | N102: -0.0001930786304 | O102: -0.005122359384 | P102: 0.0001050436032 | Q102: 0.003093523423 | R102: 9.577939665e-07
A103: 48.44461 | B103: ='DF raw data'!A108 -> 8.5037203e-07 | C103: ='DF raw data'!B108 -> 6.4548071e-06 | D103: ='DF raw data'!C108 -> -5.5850252e-10 | F103: 8.515489449e-07 | G103: 6.479738327e-06 | H103: -5.592754875e-10 | J103: -7.123048174e-06 | K103: -1.300579567e-06 | L103: 4.303104165e-06 | N103: -0.0001966410805 | O103: -0.005220705487 | P103: 0.0001043931443 | Q103: 0.003145733567 | R103: 9.825832316e-07
A104: 48.94474 | B104: ='DF raw data'!A109 -> -3.9510459e-07 | C104: ='DF raw data'!B109 -> 1.4207359e-06 | D104: ='DF raw data'!C109 -> -3.464831e-06 | F104: -3.956514148e-07 | G104: 1.42622339e-06 | H104: -3.469626326e-06 | J104: -4.935185256e-06 | K104: 6.026477576e-06 | L104: 9.702567194e-07 | N104: -0.0001991093147 | O104: -0.005320286029 | P104: 0.0001074071666 | Q104: 0.003199451113 | R104: 1.008180294e-06
A105: 49.44487 | B105: ='DF raw data'!A110 -> -2.2318545e-06 | C105: ='DF raw data'!B110 -> 1.0878586e-05 | D105: ='DF raw data'!C110 -> 2.1155956e-06 | F105: -2.234943387e-06 | G105: 1.092060375e-05 | H105: 2.118523584e-06 | J105: -5.637492807e-06 | K105: 7.106324459e-06 | L105: 2.520920031e-06 | N105: -0.0002019287939 | O105: -0.005421276677 | P105: 0.0001109612526 | Q105: 0.003254946164 | R105: 1.034731015e-06
A106: 49.945 | B106: ='DF raw data'!A111 -> -4.1578442e-06 | C106: ='DF raw data'!B111 -> 3.8209578e-06 | D106: ='DF raw data'!C111 -> 3.1046529e-06 | F106: -4.163598656e-06 | G106: 3.835715974e-06 | H106: 3.10894974e-06 | J106: -5.833137204e-06 | K106: 5.471821801e-06 | L106: 4.047583213e-06 | N106: -0.0002048461208 | O106: -0.005523726367 | P106: 0.0001136978749 | Q106: 0.003311809882 | R106: 1.06218272e-06
A107: 50.44513 | B107: ='DF raw data'!A112 -> -4.033418e-06 | C107: ='DF raw data'!B112 -> 3.1834422e-06 | D107: ='DF raw data'!C112 -> 2.4656711e-06 | F107: -4.039000251e-06 | G107: 3.195738016e-06 | H107: 2.469083589e-06 | J107: -2.584756559e-06 | K107: 6.283379624e-06 | L107: -4.287771674e-07 | N107: -0.0002061388351 | O107: -0.005626822583 | P107: 0.0001168403815 | Q107: 0.003370245262 | R107: 1.090262466e-06
A108: 50.94526 | B108: ='DF raw data'!A113 -> -5.7705092e-06 | C108: ='DF raw data'!B113 -> 8.5646934e-06 | D108: ='DF raw data'!C113 -> 1.3152184e-06 | F108: -5.778495585e-06 | G108: 8.597773911e-06 | H108: 1.317038662e-06 | J108: 2.35204443e-06 | K108: -2.022260884e-06 | L108: 1.723231256e-06 | N108: -0.0002049625072 | O108: -0.005729330481 | P108: 0.0001158289882 | Q108: 0.003428174814 | R108: 1.117982663e-06
A109: 51.44539 | B109: ='DF raw data'!A114 -> -4.4285753e-06 | C109: ='DF raw data'!B114 -> 5.4372936e-06 | D109: ='DF raw data'!C114 -> -1.5950628e-06 | F109: -4.434704448e-06 | G109: 5.458294754e-06 | H109: -1.597270367e-06 | J109: 1.311250062e-06 | K109: -2.68916173e-06 | L109: 2.753577384e-06 | N109: -0.0002043067117 | O109: -0.005831510397 | P109: 0.0001144840577 | Q109: 0.003485431726 | R109: 1.145413709e-06
A110: 51.94552 | B110: ='DF raw data'!A115 -> -1.7246258e-06 | C110: ='DF raw data'!B115 -> 2.7536732e-06 | D110: ='DF raw data'!C115 -> 4.0126561e-06 | F110: -1.727012682e-06 | G110: 2.764309064e-06 | H110: 4.018209616e-06 | J110: -5.112447048e-06 | K110: 9.001743209e-06 | L110: -1.040519288e-06 | N110: -0.0002068635998 | O110: -0.005934969089 | P110: 0.0001189860995 | Q110: 0.003544940244 | R110: 1.173896233e-06
A111: 52.44565 | B111: ='DF raw data'!A116 -> -3.5151079e-06 | C111: ='DF raw data'!B116 -> -1.2752938e-06 | D111: ='DF raw data'!C116 -> 2.6193466e-06 | F111: -3.519972809e-06 | G111: -1.28021953e-06 | H111: 2.622971776e-06 | J111: -8.028358992e-06 | K111: 6.540015146e-06 | L111: -3.401928261e-06 | N111: -0.000210878823 | O111: -0.006040435915 | P111: 0.0001222569573 | Q111: 0.003606084616 | R111: 1.203612278e-06
A112: 52.94578 | B112: ='DF raw data'!A117 -> -6.0029979e-06 | C112: ='DF raw data'!B117 -> -1.9537695e-06 | D112: ='DF raw data'!C117 -> -3.7595946e-06 | F112: -6.011306049e-06 | G112: -1.961315794e-06 | H112: -3.764797879e-06 | J112: -7.43112336e-06 | K112: -5.661344903e-06 | L112: -2.967666374e-06 | N112: -0.0002145953507 | O112: -0.006147761488 | P112: 0.0001194255489 | Q112: 0.003665812916 | R112: 1.233776932e-06
A113: 53.44591 | B113: ='DF raw data'!A118 -> -6.2774034e-06 | C113: ='DF raw data'!B118 -> 2.9376677e-06 | D113: ='DF raw data'!C118 -> -2.1015348e-06 | F113: -6.286091326e-06 | G113: 2.94901423e-06 | H113: -2.104443324e-06 | J113: -5.193526006e-06 | K113: -3.645643056e-06 | L113: -4.468537108e-06 | N113: -0.0002171927889 | O113: -0.006256386117 | P113: 0.0001176022534 | Q113: 0.003724629331 | R113: 1.264286361e-06
A114: 53.94604 | B114: ='DF raw data'!A119 -> -7.6650595e-06 | C114: ='DF raw data'!B119 -> 5.5547093e-06 | D114: ='DF raw data'!C119 -> 4.6416553e-06 | F114: -7.675667942e-06 | G114: 5.576163964e-06 | H114: 4.648079351e-06 | J114: -3.916911914e-06 | K114: -2.80421892e-06 | L114: -5.07087419e-07 | N114: -0.000219151754 | O114: -0.006365990484 | P114: 0.0001161997794 | Q114: 0.003782744326 | R114: 1.2950593e-06
A115: 54.44617 | B115: ='DF raw data'!A120 -> -5.4940956e-06 | C115: ='DF raw data'!B120 -> -1.637149e-06 | D115: ='DF raw data'!C120 -> 3.9092938e-06 | F115: -5.501699428e-06 | G115: -1.64347237e-06 | H115: 3.914704263e-06 | J115: -2.207303886e-06 | K115: 6.119849731e-07 | L115: 1.11134778e-05 | N115: -0.0002202556929 | O115: -0.006476146964 | P115: 0.0001165058515 | Q115: 0.003841012398 | R115: 1.326110463e-06
A116: 54.9463 | B116: ='DF raw data'!A121 -> -4.9364735e-06 | C116: ='DF raw data'!B121 -> 2.6422313e-08 | D116: ='DF raw data'!C121 -> -9.0223153e-07 | F116: -4.943305579e-06 | G116: 2.652436728e-08 | H116: -9.034802184e-07 | J116: -4.116051943e-08 | K116: -2.390736117e-06 | L116: 9.109492513e-06 | N116: -0.0002202762785 | O116: -0.006586313739 | P116: 0.0001153101726 | Q116: 0.003898682474 | R116: 1.357027537e-06
A117: 55.44643 | B117: ='DF raw data'!A122 -> -6.5671611e-06 | C117: ='DF raw data'!B122 -> -3.8986077e-06 | D117: ='DF raw data'!C122 -> -2.941646e-06 | F117: -6.576250051e-06 | G117: -3.913665791e-06 | H117: -2.945717238e-06 | J117: 6.032667472e-07 | K117: -7.310313219e-06 | L117: 2.305785497e-06 | N117: -0.0002199745667 | O117: -0.006696329619 | P117: 0.0001116540657 | Q117: 0.003954524022 | R117: 1.387463169e-06
A118: 55.94656 | B118: ='DF raw data'!A123 -> -4.3855889e-06 | C118: ='DF raw data'!B123 -> -5.1208951e-07 | D118: ='DF raw data'!C123 -> 1.4599384e-07 | F118: -4.391658555e-06 | G118: -5.140674188e-07 | H118: 1.461958955e-07 | J118: 3.545641486e-06 | K118: 5.428961593e-06 | L118: 2.1435693e-06 | N118: -0.0002182012851 | O118: -0.006805458628 | P118: 0.0001143692522 | Q118: 0.004011723516 | R118: 1.417817122e-06
A119: 56.44669 | B119: ='DF raw data'!A124 -> -1.0438436e-06 | C119: ='DF raw data'!B124 -> 4.1509225e-06 | D119: ='DF raw data'!C124 -> 4.401265e-06 | F119: -1.04528828e-06 | G119: 4.166955139e-06 | H119: 4.407356351e-06 | J119: 8.274703261e-06 | K119: 8.736941869e-06 | L119: 3.163919212e-06 | N119: -0.0002140628577 | O119: -0.006912517885 | P119: 0.000118738859 | Q119: 0.004071108382 | R119: 1.447785824e-06
A120: 56.94682 | B120: ='DF raw data'!A125 -> -1.65207e-06 | C120: ='DF raw data'!B125 -> 3.7336938e-06 | D120: ='DF raw data'!C125 -> 7.1365666e-06 | F120: -1.654356465e-06 | G120: 3.748114923e-06 | H120: 7.146443608e-06 | J120: 1.006719674e-05 | K120: 4.351393578e-06 | L120: -3.764881695e-06 | N120: -0.0002090279506 | O120: -0.007017059034 | P120: 0.0001209151214 | Q120: 0.004131581662 | R120: 1.47694998e-06
A121: 57.44695 | B121: ='DF raw data'!A126 -> -5.1187653e-06 | C121: ='DF raw data'!B126 -> 5.540965e-06 | D121: ='DF raw data'!C126 -> 5.6021618e-06 | F121: -5.125849671e-06 | G121: 5.562366578e-06 | H121: 5.609915192e-06 | J121: 4.198688153e-06 | K121: -5.296886827e-06 | L121: -7.032278923e-06 | N121: -0.0002069280607 | O121: -0.007120549965 | P121: 0.0001182659894 | Q121: 0.004190730031 | R121: 1.505360398e-06
A122: 57.94708 | B122: ='DF raw data'!A127 -> -5.2542655e-06 | C122: ='DF raw data'!B127 -> -4.042839e-06 | D122: ='DF raw data'!C127 -> 1.3854326e-07 | F122: -5.261537403e-06 | G122: -4.058454174e-06 | H122: 1.387350039e-07 | J122: -3.593332198e-06 | K122: -6.38610848e-06 | L122: 1.201456918e-06 | N122: -0.0002087251939 | O122: -0.007224939696 | P122: 0.000115072105 | Q122: 0.004248281043 | R122: 1.533771681e-06
A123: 58.44721 | B123: ='DF raw data'!A128 -> -3.8989874e-06 | C123: ='DF raw data'!B128 -> -3.0321282e-06 | D123: ='DF raw data'!C128 -> 1.0100659e-07 | F123: -3.904383599e-06 | G123: -3.043839576e-06 | H123: 1.011463831e-07 | J123: -2.846507021e-06 | K123: 7.450020753e-06 | L123: 3.416307234e-06 | N123: -0.0002101488175 | O123: -0.007330041424 | P123: 0.0001187980839 | Q123: 0.004307695529 | R123: 1.562917012e-06
A124: 58.94734 | B124: ='DF raw data'!A129 -> -1.3650407e-06 | C124: ='DF raw data'!B129 -> -1.6283717e-05 | D124: ='DF raw data'!C129 -> 1.6622828e-07 | F124: -1.366929916e-06 | G124: -1.634661168e-05 | H124: 1.664583399e-07 | J124: 1.952668158e-06 | K124: 8.248318457e-06 | L124: 4.957395453e-07 | N124: -0.0002091722296 | O124: -0.007434654731 | P124: 0.0001229233154 | Q124: 0.004369173166 | R124: 1.592356245e-06
A125: 59.44747 | B125: ='DF raw data'!A130 -> 2.0539319e-06 | C125: ='DF raw data'!B130 -> -8.7527985e-07 | D125: ='DF raw data'!C130 -> -2.3938392e-06 | F125: 2.056774542e-06 | G125: -8.786605553e-07 | H125: -2.397152273e-06 | J125: 2.199715499e-06 | K125: -2.721678942e-07 | L125: 9.881220608e-07 | N125: -0.0002080720859 | O125: -0.007538717824 | P125: 0.000122787196 | Q125: 0.004430582727 | R125: 1.621549178e-06
A126: 59.9476 | B126: ='DF raw data'!A131 -> 5.8173337e-06 | C126: ='DF raw data'!B131 -> 8.2927691e-06 | D126: ='DF raw data'!C131 -> -2.4839592e-06 | F126: 5.82538489e-06 | G126: 8.324799323e-06 | H126: -2.487397e-06 | J126: -1.0000017e-06 | K126: -2.463736491e-06 | L126: 2.991334085e-07 | N126: -0.0002085722167 | O126: -0.007643031046 | P126: 0.0001215550075 | Q126: 0.004491376033 | R126: 1.650695749e-06
A127: 60.44773 | B127: ='DF raw data'!A132 -> 8.9615005e-06 | C127: ='DF raw data'!B132 -> -5.4459601e-06 | D127: ='DF raw data'!C132 -> 5.8905443e-06 | F127: 8.973903217e-06 | G127: -5.466994728e-06 | H127: 5.898696813e-06 | J127: -6.104913323e-06 | K127: -4.032469998e-06 | L127: -4.597565336e-06 | N127: -0.000211625467 | O127: -0.007748871291 | P127: 0.0001195382483 | Q127: 0.004551160697 | R127: 1.680240794e-06
A128: 60.94786 | B128: ='DF raw data'!A133 -> 1.7048968e-06 | C128: ='DF raw data'!B133 -> -3.3414146e-06 | D128: ='DF raw data'!C133 -> 1.1377795e-05 | F128: 1.707256377e-06 | G128: -3.354320573e-06 | H128: 1.139354187e-05 | J128: -1.075490021e-05 | K128: -6.999832223e-06 | L128: -2.219828497e-06 | N128: -0.0002170043153 | O128: -0.007857401659 | P128: 0.0001160374222 | Q128: 0.004609194493 | R128: 1.710526444e-06
A129: 61.44799 | B129: ='DF raw data'!A134 -> -7.5864937e-06 | C129: ='DF raw data'!B134 -> 1.1168926e-05 | D129: ='DF raw data'!C134 -> 4.5587312e-06 | F129: -7.596993407e-06 | G129: 1.121206517e-05 | H129: 4.565040484e-06 | J129: -8.059572332e-06 | K129: -1.569536999e-06 | L129: 1.507892739e-06 | N129: -0.0002210351492 | O129: -0.007967947968 | P129: 0.0001152524497 | Q129: 0.0046668357 | R129: 1.741604354e-06
A130: 61.94812 | B130: ='DF raw data'!A135 -> -2.7308033e-06 | C130: ='DF raw data'!B135 -> 4.3149043e-06 | D130: ='DF raw data'!C135 -> -5.0871748e-08 | F130: -2.734582732e-06 | G130: 4.331570307e-06 | H130: -5.09421545e-08 | J130: -2.145671405e-06 | K130: 7.050601863e-06 | L130: 4.181274486e-06 | N130: -0.0002221082638 | O130: -0.008079030974 | P130: 0.0001187786672 | Q130: 0.004726240475 | R130: 1.773332828e-06
A131: 62.44825 | B131: ='DF raw data'!A136 -> 5.7774178e-06 | C131: ='DF raw data'!B136 -> 4.9345394e-06 | D131: ='DF raw data'!C136 -> 1.5684581e-06 | F131: 5.785413746e-06 | G131: 4.953598703e-06 | H131: 1.570628846e-06 | J131: -3.468895116e-07 | K131: 4.693618009e-06 | L131: 9.235854156e-06 | N131: -0.0002222817537 | O131: -0.008190200748 | P131: 0.0001211260864 | Q131: 0.004786819265 | R131: 1.805381512e-06
A132: 62.94838 | B132: ='DF raw data'!A137 -> 8.3459981e-06 | C132: ='DF raw data'!B137 -> 4.554538e-06 | D132: ='DF raw data'!C137 -> 3.7813097e-06 | F132: 8.357548961e-06 | G132: 4.572129575e-06 | H132: 3.786543033e-06 | J132: -7.551620899e-07 | K132: 9.278603649e-06 | L132: 9.95729475e-06 | N132: -0.0002226594329 | O132: -0.00830155941 | P132: 0.0001257665944 | Q132: 0.004849718911 | R132: 1.838087243e-06
A133: 63.44851 | B133: ='DF raw data'!A138 -> 6.9480029e-06 | C133: ='DF raw data'!B138 -> 4.4595395e-06 | D133: ='DF raw data'!C138 -> 9.7450193e-06 | F133: 6.957618936e-06 | G133: 4.47676415e-06 | H133: 9.758506407e-06 | J133: -5.135973663e-06 | K133: 1.273528386e-06 | L133: 6.038169677e-06 | N133: -0.0002252280874 | O133: -0.008414202733 | P133: 0.0001264035241 | Q133: 0.004912937106 | R133: 1.871448686e-06
A134: 63.94864 | B134: ='DF raw data'!A139 -> 3.3742999e-06 | C134: ='DF raw data'!B139 -> 4.6460696e-06 | D134: ='DF raw data'!C139 -> 1.2548744e-05 | F134: 3.378969931e-06 | G134: 4.664014709e-06 | H134: 1.256611146e-05 | J134: -7.16542374e-06 | K134: -5.534637689e-06 | L134: 4.147948226e-06 | N134: -0.0002288117308 | O134: -0.008528638344 | P134: 0.0001236354858 | Q134: 0.004974770922 | R134: 1.90527775e-06
A135: 64.44877 | B135: ='DF raw data'!A140 -> 1.5816785e-06 | C135: ='DF raw data'!B140 -> 5.4432962e-06 | D135: ='DF raw data'!C140 -> 9.6915774e-06 | F135: 1.583867543e-06 | G135: =(1-$G$1*($B$2-$G$2))*C135*$M$2/$M$1 -> 5.464320539e-06 | H135: 9.704990543e-06 | J135: =-CELL("contents", INDEX($F$6:$F$1203,1204-CELL("row",F135))) -> -8.312282199e-07 | K135: =CELL("contents", INDEX($G$6:$G$1203,1204-CELL("row",G135))) -> 2.280510015e-06 | L135: =-CELL("contents", INDEX($H$6:$H$1203,1204-CELL("row",H135))) -> 5.995727318e-07 | N135: -0.0002292274529 | O135: -0.00864328187 | P135: 0.0001247760373 | Q135: 0.005037175161 | R135: 1.939343747e-06
A136: =A135+$B$1 -> 64.9489 | B136: ='DF raw data'!A141 -> 6.9384436e-07 | C136: ='DF raw data'!B141 -> 3.0456101e-06 | D136: ='DF raw data'!C141 -> 1.4467968e-06 | F136: 6.948046406e-07 | G136: 3.057373549e-06 | H136: 1.448799167e-06 | J136: 2.771748799e-06 | K136: 2.84440544e-06 | L136: 2.978642844e-06 | N136: =J136*$B$1+N135 -> -0.0002278412182 | O136: =N136*$B$1+O135 -> -0.008757232099 | P136: =K136*$B$1+P135 -> 0.0001261986098 | Q136: =P136*$B$1+Q135 -> 0.005100290872 | R136: =(N136^2+P136^2)*$B$1+R135 -> 1.973271421e-06
A137: 65.44903 | B137: ='DF raw data'!A142 -> -3.7166956e-06 | C137: ='DF raw data'!B142 -> -2.2023453e-06 | D137: ='DF raw data'!C142 -> -2.2190707e-06 | F137: -3.721839507e-06 | G137: -2.2108517e-06 | H137: -2.222141894e-06 | J137: -2.472464261e-06 | K137: 1.067080162e-05 | L137: 7.680265396e-06 | N137: -0.0002290777717 | O137: -0.008871800765 | P137: 0.0001315353978 | Q137: 0.00516607567 | R137: 2.008169585e-06
A138: 65.94916 | B138: ='DF raw data'!A143 -> -5.6795961e-06 | C138: ='DF raw data'!B143 -> 1.4644436e-05 | D138: ='DF raw data'!C143 -> 9.3358485e-06 | F138: -5.687456661e-06 | G138: 1.470099908e-05 | H138: 9.348769314e-06 | J138: -1.011382419e-05 | K138: 6.320784441e-07 | L138: 4.525298858e-06 | N138: -0.0002341359986 | O138: -0.008988899202 | P138: 0.0001318515192 | Q138: 0.005232018571 | R138: 2.044281216e-06
A139: 66.44929 | B139: ='DF raw data'!A144 -> -4.4757671e-06 | C139: ='DF raw data'!B144 -> 1.9112911e-05 | D139: ='DF raw data'!C144 -> 8.8889374e-06 | F139: =(1-$G$1*($B$2-$G$2))*B139 -> -4.481961562e-06 | G139: 1.918673324e-05 | H139: =(1-$G$1*($B$2-$G$2))*D139 -> 8.901239689e-06 | J139: -1.290272569e-05 | K139: -1.567659876e-06 | L139: -4.75830339e-07 | N139: -0.0002405890388 | O139: -0.009109224998 | P139: 0.0001310674854 | Q139: 0.005297569352 | R139: 2.08182186e-06
A140: 66.94942 | B140: ='DF raw data'!A145 -> -2.7825354e-06 | C140: ='DF raw data'!B145 -> 1.61108e-05 | D140: ='DF raw data'!C145 -> -1.950988e-06 | F140: -2.786386429e-06 | G140: 1.61730268e-05 | H140: -1.953688167e-06 | J140: -1.383303546e-05 | K140: -3.632787895e-06 | L140: -2.427961254e-06 | N140: -0.0002475073549 | O140: -0.009233010851 | P140: 0.0001292506192 | Q140: 0.005362211464 | R140: 2.120814802e-06
A141: 67.44955 | B141: ='DF raw data'!A146 -> 3.1768595e-06 | C141: ='DF raw data'!B146 -> 9.9670399e-07 | D141: ='DF raw data'!C146 -> 7.3779114e-07 | F141: 3.181256274e-06 | G141: 1.000553687e-06 | H141: 7.388122429e-07 | J141: -8.758739542e-06 | K141: -1.193749029e-05 | L141: -6.853931531e-06 | N141: -0.0002518878633 | O141: -0.009358987528 | P141: 0.0001232803222 | Q141: 0.005423867652 | R141: 2.160147793e-06
A142: 67.94968 | B142: ='DF raw data'!A147 -> 4.4510398e-06 | C142: ='DF raw data'!B147 -> 9.8562998e-07 | D142: ='DF raw data'!C147 -> 3.2208573e-06 | F142: 4.457200039e-06 | G142: 9.894369047e-07 | H142: 3.225314967e-06 | J142: 3.496846947e-06 | K142: -1.805677264e-06 | L142: -6.617405231e-06 | N142: -0.0002501389852 | O142: -0.009484089539 | P142: 0.0001223772488 | Q142: 0.005485072185 | R142: 2.198930725e-06
A143: 68.44981 | B143: ='DF raw data'!A148 -> 2.835035e-06 | C143: ='DF raw data'!B148 -> 5.9890149e-06 | D143: ='DF raw data'!C148 -> 2.263283e-06 | F143: 2.838958688e-06 | G143: 6.012147038e-06 | H143: 2.266415384e-06 | J143: 8.11722301e-06 | K143: -1.700783277e-08 | L143: 4.101630912e-06 | N143: -0.0002460793185 | O143: -0.009607161188 | P143: 0.0001223687427 | Q143: 0.005546272465 | R143: 2.236705114e-06
A144: 68.94994 | B144: ='DF raw data'!A149 -> 1.6766588e-06 | C144: ='DF raw data'!B149 -> 5.4545274e-07 | D144: ='DF raw data'!C149 -> 1.4812569e-07 | F144: 1.678979296e-06 | G144: 5.475595119e-07 | H144: 1.48330696e-07 | J144: 1.373480069e-06 | K144: -2.16357249e-06 | L144: 2.51038437e-06 | N144: -0.0002453923999 | O144: -0.009729889289 | P144: 0.0001212866752 | Q144: 0.005606931569 | R144: 2.274178798e-06
A145: 69.45007 | B145: ='DF raw data'!A150 -> -8.7396444e-07 | C145: ='DF raw data'!B150 -> 2.0494521e-07 | D145: ='DF raw data'!C150 -> -4.6661935e-06 | F145: -8.751740068e-07 | G145: 2.057367961e-07 | H145: -4.672651512e-06 | J145: -4.090435939e-06 | K145: -8.163751781e-07 | L145: -4.068723631e-06 | N145: -0.0002474381496 | O145: -0.009853640531 | P145: 0.0001208783815 | Q145: 0.005667386474 | R145: 2.312107268e-06
A146: 69.9502 | B146: ='DF raw data'!A151 -> -3.0435895e-06 | C146: ='DF raw data'!B151 -> 3.9046167e-06 | D146: ='DF raw data'!C151 -> -4.4845056e-06 | F146: -3.047801828e-06 | G146: 3.919698e-06 | H146: -4.490712156e-06 | J146: -3.201037913e-06 | K146: 2.485173471e-06 | L146: -6.31410244e-06 | N146: -0.0002490390847 | O146: -0.009978192449 | P146: 0.0001221212913 | Q146: 0.005728462996 | R146: 2.350584307e-06
A147: 70.45033 | B147: ='DF raw data'!A152 -> -2.4538721e-07 | C147: ='DF raw data'!B152 -> 1.6479993e-05 | D147: ='DF raw data'!C152 -> 5.9463667e-07 | F147: -2.457268259e-07 | G147: 1.654364578e-05 | H147: 5.954596472e-07 | J147: -4.248251354e-06 | K147: -4.540609097e-07 | L147: -1.903724113e-06 | N147: -0.0002511637626 | O147: -0.01010380698 | P147: 0.0001218942018 | Q147: 0.005789425943 | R147: 2.389565155e-06
A148: 70.95046 | B148: ='DF raw data'!A153 -> 8.3530776e-06 | C148: ='DF raw data'!B153 -> 2.2092897e-06 | D148: ='DF raw data'!C153 -> 7.7943205e-06 | F148: 8.364638259e-06 | G148: 2.217822922e-06 | H148: 7.80510784e-06 | J148: -7.936584151e-06 | K148: -2.260946543e-06 | L148: 3.321800117e-06 | N148: -0.0002551330865 | O148: -0.01023140669 | P148: 0.0001207634346 | Q148: 0.005849823359 | R148: 2.429413863e-06
A149: 71.45059 | B149: ='DF raw data'!A154 -> 8.6655946e-06 | C149: ='DF raw data'!B154 -> 7.90583e-06 | D149: ='DF raw data'!C154 -> 3.9967435e-06 | F149: 8.677587783e-06 | G149: 7.936365698e-06 | H149: 4.002274993e-06 | J149: -4.359742144e-06 | K149: 3.946752294e-06 | L149: 1.322289219e-05 | N149: -0.0002573135243 | O149: -0.0103600969 | P149: 0.0001227373238 | Q149: 0.005911207977 | R149: 2.470061779e-06
A150: 71.95072 | B150: ='DF raw data'!A155 -> 2.5547506e-06 | C150: ='DF raw data'!B155 -> 2.4457471e-05 | D150: ='DF raw data'!C155 -> -1.9503259e-06 | F150: 2.558286375e-06 | G150: 2.455193622e-05 | H150: -1.953025151e-06 | J150: 5.484539612e-07 | K150: 7.298797412e-06 | L150: 1.426570445e-05 | N150: -0.000257039226 | O150: -0.01048864993 | P150: 0.0001263876714 | Q150: 0.005974418243 | R150: 2.511093948e-06
A151: 72.45085 | B151: ='DF raw data'!A156 -> 2.1364995e-06 | C151: ='DF raw data'!B156 -> 1.2720815e-05 | D151: ='DF raw data'!C156 -> 1.6670182e-06 | F151: 2.139456415e-06 | G151: 1.276994823e-05 | H151: 1.669325353e-06 | J151: -4.972147341e-06 | K151: -4.7766551e-06 | L151: 8.549000264e-06 | N151: -0.0002595259461 | O151: -0.01061844664 | P151: 0.0001239987229 | Q151: 0.006036433725 | R151: 2.552469403e-06
A152: 72.95098 | B152: ='DF raw data'!A157 -> 1.6280045e-06 | C152: ='DF raw data'!B157 -> 1.252041e-05 | D152: ='DF raw data'!C157 -> -9.7484565e-07 | F152: 1.630257658e-06 | G152: 1.256876918e-05 | H152: -9.761948364e-07 | J152: -9.063936651e-06 | K152: -5.651703508e-06 | L152: 4.875458108e-06 | N152: -0.0002640590927 | O152: -0.01075051052 | P152: 0.0001211721364 | Q152: 0.006097035545 | R152: 2.594685322e-06
A153: 73.45111 | B153: ='DF raw data'!A158 -> -1.3922746e-06 | C153: ='DF raw data'!B158 -> 7.9189049e-06 | D153: ='DF raw data'!C158 -> -7.2441017e-06 | F153: -1.394201508e-06 | G153: 7.949491099e-06 | H153: -7.254127537e-06 | J153: -8.833931363e-06 | K153: -4.965246016e-06 | L153: 2.992901551e-06 | N153: -0.0002684772068 | O153: -0.01088478402 | P153: 0.0001186888679 | Q153: 0.006156395409 | R153: 2.637780052e-06
A154: 73.95124 | B154: ='DF raw data'!A159 -> -2.5422396e-06 | C154: ='DF raw data'!B159 -> -2.5652664e-06 | D154: ='DF raw data'!C159 -> -1.1761991e-05 | F154: -2.54575806e-06 | G154: -2.575174556e-06 | H154: -1.17782696e-05 | J154: -7.966792101e-06 | K154: -6.874998517e-06 | L154: 2.970781179e-06 | N154: -0.0002724616385 | O154: -0.01102105026 | P154: 0.0001152504749 | Q154: 0.006214035629 | R154: 2.681550438e-06
A155: 74.45137 | B155: ='DF raw data'!A160 -> -1.2872825e-06 | C155: ='DF raw data'!B160 -> 1.4974572e-06 | D155: ='DF raw data'!C160 -> -4.8584752e-06 | F155: -1.289064099e-06 | G155: 1.50324102e-06 | H155: -4.86519933e-06 | J155: -2.232630089e-06 | K155: -2.196787688e-06 | L155: 1.443316589e-06 | N155: -0.0002735782438 | O155: -0.01115787495 | P155: 0.0001141517955 | Q155: 0.006271126366 | R155: 2.725499706e-06
A156: 74.9515 | B156: ='DF raw data'!A161 -> -2.7655169e-06 | C156: ='DF raw data'!B161 -> 1.0795597e-05 | D156: ='DF raw data'!C161 -> 2.1393589e-06 | F156: -2.769344375e-06 | G156: 1.083729421e-05 | H156: 2.142319773e-06 | J156: 4.13064391e-06 | K156: -8.081150467e-06 | L156: 2.409815375e-06 | N156: -0.0002715123849 | O156: -0.01129366644 | P156: 0.0001101101697 | Q156: 0.006326195765 | R156: 2.768432478e-06
A157: 75.45163 | B157: ='DF raw data'!A162 -> -6.3900061e-06 | C157: ='DF raw data'!B162 -> 7.8440535e-06 | D157: ='DF raw data'!C162 -> -1.2808579e-06 | F157: -6.398849868e-06 | G157: 7.874350591e-06 | H157: -1.282630607e-06 | J157: 4.102031665e-06 | K157: -8.260231393e-06 | L157: 1.442850345e-06 | N157: -0.0002694608358 | O157: -0.01142843189 | P157: 0.0001059789802 | Q157: 0.006379199033 | R157: 2.81036372e-06
A158: 75.95176 | B158: ='DF raw data'!A163 -> -5.8567512e-06 | C158: ='DF raw data'!B163 -> 2.1267003e-06 | D158: ='DF raw data'!C163 -> -6.234075e-06 | F158: -5.864856944e-06 | G158: 2.134914527e-06 | H158: -6.24270296e-06 | J158: -2.213314794e-06 | K158: -3.086166633e-06 | L158: -4.077321113e-06 | N158: -0.0002705677809 | O158: -0.01156375095 | P158: 0.0001044354956 | Q158: 0.006431430357 | R158: 2.852431503e-06
A159: 76.45189 | B159: ='DF raw data'!A164 -> -3.8931157e-06 | C159: ='DF raw data'!B164 -> 6.216374e-06 | D159: ='DF raw data'!C164 -> -6.0710863e-06 | F159: -3.898503772e-06 | G159: 6.240384296e-06 | H159: -6.079488683e-06 | J159: -8.21878658e-06 | K159: -2.980086081e-06 | L159: -5.229569922e-06 | N159: -0.0002746782427 | O159: -0.01170112578 | P159: 0.0001029450652 | Q159: 0.006482916273 | R159: 2.895465601e-06
A160: 76.95202 | B160: ='DF raw data'!A165 -> 1.198803e-06 | C160: ='DF raw data'!B165 -> 5.5025407e-06 | D160: ='DF raw data'!C165 -> -2.001374e-06 | F160: 1.200462143e-06 | G160: 5.523793867e-06 | H160: -2.004143902e-06 | J160: -1.268482253e-05 | K160: -4.965782882e-06 | L160: -3.835665424e-06 | N160: -0.000281022303 | O160: -0.01184167347 | P160: 0.0001004615282 | Q160: 0.006533160097 | R160: 2.940010206e-06
A161: 77.45215 | B161: ='DF raw data'!A166 -> 1.6946814e-06 | C161: ='DF raw data'!B166 -> 7.2923317e-06 | D161: ='DF raw data'!C166 -> -4.1816147e-06 | F161: 1.697026839e-06 | G161: 7.320497805e-06 | H161: -4.187402055e-06 | J161: -1.274605416e-05 | K161: 3.487904546e-07 | L161: -6.649027836e-07 | N161: -0.000287396987 | O161: -0.01198540932 | P161: 0.0001006359688 | Q161: 0.006583491164 | R161: 2.986384573e-06
A162: 77.95228 | B162: ='DF raw data'!A167 -> -2.6380994e-07 | C162: ='DF raw data'!B167 -> 2.084267e-06 | D162: ='DF raw data'!C167 -> -2.9562925e-06 | F162: -2.64175053e-07 | G162: 2.092317331e-06 | H162: -2.960384009e-06 | J162: -8.63146724e-06 | K162: -1.760538189e-06 | L162: 3.481291248e-06 | N162: -0.0002917138427 | O162: -0.01213130416 | P162: 9.975547081e-05 | Q162: 0.006633381867 | R162: 3.03392099e-06
A163: 78.45241 | B163: ='DF raw data'!A168 -> 1.8869922e-06 | C163: ='DF raw data'!B168 -> 9.3126873e-06 | D163: ='DF raw data'!C168 -> 6.3390502e-07 | F163: 1.889603797e-06 | G163: 9.348656883e-06 | H163: 6.347823445e-07 | J163: -8.557339189e-06 | K163: -8.023287636e-06 | L163: 3.737941561e-06 | N163: -0.0002959936248 | O163: -0.01227933946 | P163: 9.574278396e-05 | Q163: 0.006681265706 | R163: 3.082323024e-06
A164: 78.95254 | B164: ='DF raw data'!A169 -> 4.8975871e-06 | C164: ='DF raw data'!B169 -> 1.4041478e-05 | D164: ='DF raw data'!C169 -> 4.1791081e-06 | F164: 4.904365361e-06 | G164: 1.40957122e-05 | H164: 4.184891986e-06 | J164: -1.007619218e-05 | K164: -4.460820305e-06 | L164: 2.207613514e-06 | N164: -0.0003010330308 | O164: -0.01242989511 | P164: 9.35117939e-05 | Q164: 0.006728033759 | R164: 3.132018612e-06
A165: 79.45267 | B165: ='DF raw data'!A170 -> 4.9614046e-06 | C165: ='DF raw data'!B170 -> 8.4296662e-06 | D165: ='DF raw data'!C170 -> 9.9233166e-06 | F165: 4.968271184e-06 | G165: 8.462225178e-06 | H165: 9.93705047e-06 | J165: -9.489120091e-06 | K165: -5.09517061e-06 | L165: -4.496129243e-06 | N165: -0.0003057788244 | O165: -0.01258282427 | P165: 9.096354623e-05 | Q165: 0.006773527358 | R165: 3.182919371e-06
A166: 79.9528 | B166: ='DF raw data'!A171 -> -6.565661e-07 | C166: ='DF raw data'!B171 -> 8.9233472e-06 | D166: ='DF raw data'!C171 -> 4.4021963e-06 | F166: -6.574747875e-07 | G166: 8.957812985e-06 | H166: 4.40828894e-06 | J166: -7.366088276e-06 | K166: -6.061968931e-06 | L166: -7.350051712e-06 | N166: -0.0003094628261 | O166: -0.01273759591 | P166: 8.79317737e-05 | Q166: 0.006817504676 | R166: 3.234682445e-06
A167: 80.45293 | B167: ='DF raw data'!A172 -> -5.0281869e-06 | C167: ='DF raw data'!B172 -> 1.3277382e-06 | D167: ='DF raw data'!C172 -> -4.7535195e-06 | F167: -5.035145911e-06 | G167: 1.332866493e-06 | H167: -4.760098371e-06 | J167: -4.726906897e-06 | K167: -2.480345997e-06 | L167: -4.914063064e-06 | N167: -0.0003118268941 | O167: -0.0128935499 | P167: 8.669127826e-05 | Q167: 0.006860861585 | R167: 3.287071757e-06
A168: 80.95306 | B168: ='DF raw data'!A173 -> -2.8652412e-06 | C168: ='DF raw data'!B173 -> 5.5146807e-06 | D168: ='DF raw data'!C173 -> -3.8711423e-06 | F168: -2.869206694e-06 | G168: 5.535980756e-06 | H168: -3.876499961e-06 | J168: -3.638651233e-06 | K168: -4.273164386e-06 | L168: -2.637033811e-06 | N168: -0.0003136466927 | O168: -0.01305041402 | P168: 8.455414056e-05 | Q168: 0.006903149647 | R168: 3.339847301e-06
A169: 81.45319 | B169: ='DF raw data'!A174 -> 4.3790806e-06 | C169: ='DF raw data'!B174 -> 8.3042432e-06 | D169: ='DF raw data'!C174 -> -5.7666675e-06 | F169: 4.385141248e-06 | G169: 8.33631774e-06 | H169: -5.774648568e-06 | J169: -5.530206027e-06 | K169: -6.520452076e-06 | L169: 4.877323286e-06 | N169: -0.0003164125147 | O169: -0.01320866141 | P169: 8.129306686e-05 | Q169: 0.006943806749 | R169: 3.393223896e-06
A170: 81.95332 | B170: ='DF raw data'!A175 -> 6.0666371e-06 | C170: ='DF raw data'!B175 -> 5.0115264e-06 | D170: ='DF raw data'!C175 -> -6.0191069e-06 | F170: 6.075033326e-06 | G170: 5.030883059e-06 | H170: -6.027437344e-06 | J170: -9.451283698e-06 | K170: -5.890119027e-06 | L170: 8.400044794e-06 | N170: -0.0003211393852 | O170: -0.01336927285 | P170: 7.834724163e-05 | Q170: 0.006982990555 | R170: 3.447872499e-06
A171: 82.45345 | B171: ='DF raw data'!A176 -> 2.6651279e-07 | C171: ='DF raw data'!B176 -> 5.1787097e-06 | D171: ='DF raw data'!C176 -> -3.7512481e-07 | F171: 2.668816437e-07 | G171: 5.198712093e-06 | H171: -3.756439827e-07 | J171: -1.127753353e-05 | K171: -7.484438378e-06 | L171: 6.221711948e-06 | N171: -0.000326779618 | O171: -0.01353270514 | P171: 7.460404947e-05 | Q171: 0.007020302278 | R171: 3.504062446e-06
A172: 82.95358 | B172: ='DF raw data'!A177 -> -1.5373936e-06 | C172: ='DF raw data'!B177 -> 7.3806618e-06 | D172: ='DF raw data'!C177 -> 4.4368963e-07 | F172: -1.539521353e-06 | G172: 7.409169074e-06 | H172: 4.443036964e-07 | J172: -1.166488789e-05 | K172: -4.192666264e-06 | L172: 2.849148271e-06 | N172: -0.0003326135784 | O172: -0.01369905517 | P172: 7.250717129e-05 | Q172: 0.007056565289 | R172: 3.562022052e-06
A173: 83.45371 | B173: ='DF raw data'!A178 -> 1.5378263e-06 | C173: ='DF raw data'!B178 -> 1.4308065e-05 | D173: ='DF raw data'!C178 -> -6.64871e-06 | F173: 1.539954652e-06 | G173: 1.436332887e-05 | H173: -6.657911815e-06 | J173: -8.860335857e-06 | K173: -9.012721248e-06 | L173: 4.531098573e-06 | N173: -0.0003370448982 | O173: -0.01386762143 | P173: 6.799963901e-05 | Q173: 0.007090573949 | R173: 3.621149029e-06
A174: 83.95384 | B174: ='DF raw data'!A179 -> 3.8158487e-06 | C174: ='DF raw data'!B179 -> 8.6983855e-06 | D174: ='DF raw data'!C179 -> -4.8630664e-06 | F174: 3.821129835e-06 | G174: 8.731982387e-06 | H174: -4.869796884e-06 | J174: -9.389119382e-06 | K174: -4.06274167e-06 | L174: 1.762415512e-06 | N174: -0.0003417406785 | O174: -0.0140385362 | P174: 6.596774002e-05 | Q174: 0.007123566395 | R174: 3.681733994e-06
A175: 84.45397 | B175: ='DF raw data'!A180 -> 6.4524824e-07 | C175: ='DF raw data'!B180 -> 6.325517e-06 | D175: ='DF raw data'!C180 -> -4.1072108e-06 | F175: 6.461412636e-07 | G175: 6.349948853e-06 | H175: -4.11289518e-06 | J175: -1.298775421e-05 | K175: -1.369424051e-06 | L175: -4.285992916e-06 | N175: -0.000348236244 | O175: -0.01421269959 | P175: 6.528284997e-05 | Q175: 0.007156216306 | R175: 3.744515479e-06
A176: 84.9541 | B176: ='DF raw data'!A181 -> -1.5988682e-06 | C176: ='DF raw data'!B181 -> 7.67647e-06 | D176: ='DF raw data'!C181 -> -5.1051229e-06 | F176: -1.601081034e-06 | G176: 7.706119812e-06 | H176: -5.11218839e-06 | J176: -1.100742622e-05 | K176: -3.296589348e-06 | L176: -6.985569366e-07 | N176: -0.000353741388 | O176: -0.01438961627 | P176: 6.363412674e-05 | Q176: 0.007188041642 | R176: 3.809123408e-06
A177: 85.45423 | B177: ='DF raw data'!A182 -> 4.9250903e-06 | C177: ='DF raw data'!B182 -> 1.2397122e-05 | D177: ='DF raw data'!C182 -> -5.3996901e-06 | F177: 4.931906625e-06 | G177: 1.244500499e-05 | H177: -5.407163271e-06 | J177: -5.939884739e-06 | K177: -7.48604526e-06 | L177: 2.741511808e-06 | N177: -0.0003567121026 | O177: -0.0145680187 | P177: 5.989013092e-05 | Q177: 0.007217994493 | R177: 3.874555592e-06
A178: 85.95436 | B178: ='DF raw data'!A183 -> 1.1308077e-05 | C178: ='DF raw data'!B183 -> 8.5021165e-06 | D178: ='DF raw data'!C183 -> -4.6510658e-07 | F178: 1.132372738e-05 | G178: 8.534955312e-06 | H178: -4.657502875e-07 | J178: -9.67119864e-07 | K178: -6.933934979e-06 | L178: 8.615179329e-06 | N178: -0.0003571957883 | O178: -0.01474666303 | P178: 5.642226202e-05 | Q178: 0.007246212959 | R178: 3.939958744e-06
A179: 86.45449 | B179: ='DF raw data'!A184 -> 8.7258686e-06 | C179: ='DF raw data'!B184 -> 3.8360633e-07 | D179: ='DF raw data'!C184 -> 2.1446122e-06 | F179: 8.737945202e-06 | G179: 3.850879818e-07 | H179: 2.147580343e-06 | J179: 2.232334982e-06 | K179: -8.648131766e-06 | L179: 1.12688966e-05 | N179: -0.0003560793306 | O179: -0.01492474898 | P179: 5.209707188e-05 | Q179: 0.007272268268 | R179: 4.004728877e-06
A180: 86.95462 | B180: ='DF raw data'!A185 -> 5.1810075e-06 | C180: ='DF raw data'!B185 -> 6.7079195e-06 | D180: ='DF raw data'!C185 -> -8.7435019e-06 | F180: 5.188178014e-06 | G180: 6.733828355e-06 | H180: -8.755602907e-06 | J180: 2.383461752e-06 | K180: -5.81886427e-06 | L180: 4.431127004e-06 | N180: -0.0003548872898 | O180: -0.01510223876 | P180: 4.918688329e-05 | Q180: 0.007296868104 | R180: 4.068927733e-06
A181: 87.45475 | B181: ='DF raw data'!A186 -> 5.3984786e-06 | C181: ='DF raw data'!B186 -> 2.9623513e-06 | D181: ='DF raw data'!C186 -> -1.0638227e-05 | F181: 5.405950094e-06 | G181: 2.973793168e-06 | H181: -1.065295031e-05 | J181: -4.561799204e-07 | K181: 4.225084495e-06 | L181: 4.245121929e-06 | N181: -0.0003551154391 | O181: -0.01527984265 | P181: 5.12999748e-05 | Q181: 0.00732252476 | R181: 4.133313801e-06
A182: 87.95488 | B182: ='DF raw data'!A187 -> 5.8005771e-06 | C182: ='DF raw data'!B187 -> 7.60375e-06 | D182: ='DF raw data'!C187 -> -6.9543948e-06 | F182: 5.808605099e-06 | G182: 7.633118936e-06 | H182: -6.964019682e-06 | J182: -2.472529852e-06 | K182: -8.194574976e-07 | L182: 2.541240716e-06 | N182: -0.0003563520255 | O182: -0.01545806498 | P182: 5.089013952e-05 | Q182: 0.007347976446 | R182: 4.198118932e-06
A183: 88.45501 | B183: ='DF raw data'!A188 -> 1.0633974e-05 | C183: ='DF raw data'!B188 -> 9.2224909e-06 | D183: ='DF raw data'!C188 -> -7.1545855e-06 | F183: 1.064869142e-05 | G183: 9.258112106e-06 | H183: -7.164487446e-06 | J183: -1.027674035e-06 | K183: -2.283716954e-06 | L183: -2.663217899e-08 | N183: -0.0003568659961 | O183: -0.01563654437 | P183: 4.974798416e-05 | Q183: 0.007372856905 | R183: 4.26304991e-06
A184: 88.95514 | B184: ='DF raw data'!A189 -> 1.1528684e-05 | C184: ='DF raw data'!B189 -> 6.6099851e-06 | D184: ='DF raw data'!C189 -> -1.0046429e-05 | F184: 1.15446397e-05 | G184: 6.635515691e-06 | H184: -1.006033326e-05 | J184: 6.909613689e-07 | K184: -6.978537189e-06 | L184: -1.104038878e-06 | N184: -0.0003565204256 | O184: -0.01581485094 | P184: 4.625780836e-05 | Q184: 0.007395991823 | R184: 4.327690011e-06
A185: 89.45527 | B185: ='DF raw data'!A190 -> 8.142817e-06 | C185: ='DF raw data'!B190 -> 8.1177132e-06 | D185: ='DF raw data'!C190 -> -1.235405e-06 | F185: 8.154086659e-06 | G185: 8.149067282e-06 | H185: -1.237114801e-06 | J185: 2.008617585e-06 | K185: -1.446485148e-05 | L185: -4.165758942e-06 | N185: -0.0003555158556 | O185: -0.01599265508 | P185: 3.902350219e-05 | Q185: 0.007415508647 | R185: 4.391663819e-06
A186: 89.9554 | B186: ='DF raw data'!A191 -> 1.1608377e-05 | C186: ='DF raw data'!B191 -> 6.4039737e-06 | D186: ='DF raw data'!C191 -> 1.3553453e-06 | F186: 1.162444299e-05 | G186: 6.428708587e-06 | H186: 1.357221098e-06 | J186: 3.124538184e-06 | K186: -1.019074558e-05 | L186: -3.062698116e-06 | N186: -0.0003539531804 | O186: -0.01616967768 | P186: 3.39268046e-05 | Q186: 0.00743247646 | R186: 4.454897196e-06
A187: 90.45553 | B187: ='DF raw data'!A192 -> 1.8017659e-05 | C187: ='DF raw data'!B192 -> 1.0238538e-05 | D187: ='DF raw data'!C192 -> -2.5139725e-06 | F187: 1.804259544e-05 | G187: 1.027808361e-05 | H187: -2.517451838e-06 | J187: 8.063939067e-07 | K187: -8.096017871e-06 | L187: -4.668538527e-06 | N187: -0.0003535498786 | O187: -0.01634649858 | P187: 2.987774318e-05 | Q187: 0.007447419215 | R187: 4.51785866e-06
A188: 90.95566 | B188: ='DF raw data'!A193 -> 1.700414e-05 | C188: ='DF raw data'!B193 -> 2.9694236e-06 | D188: ='DF raw data'!C193 -> -3.0450738e-06 | F188: 1.702767373e-05 | G188: 2.980892784e-06 | H188: -3.049288182e-06 | J188: -3.034603186e-06 | K188: -4.419698385e-06 | L188: -4.005743186e-06 | N188: -0.0003550675747 | O188: -0.01652407853 | P188: 2.766731943e-05 | Q188: 0.007461256472 | R188: 4.581294381e-06
A189: 91.45579 | B189: ='DF raw data'!A194 -> 7.889701e-06 | C189: ='DF raw data'!B194 -> 3.9828042e-06 | D189: ='DF raw data'!C194 -> -9.9629669e-06 | F189: 7.900620346e-06 | G189: 3.998187494e-06 | H189: -9.976755646e-06 | J189: -8.022275184e-06 | K189: -1.018444935e-05 | L189: -5.095142732e-06 | N189: -0.0003590797552 | O189: -0.01670366509 | P189: 2.257377078e-05 | Q189: 0.007472546292 | R189: 4.646035132e-06
A190: 91.95592 | B190: ='DF raw data'!A195 -> 5.0848206e-07 | C190: ='DF raw data'!B195 -> 1.3354995e-05 | D190: ='DF raw data'!C195 -> -9.317997e-06 | F190: 5.091857992e-07 | G190: 1.340657771e-05 | H190: -9.330893108e-06 | J190: -1.60944289e-05 | K190: -7.887337158e-06 | L190: -6.576617959e-06 | N190: -0.0003671290619 | O190: -0.01688727735 | P190: 1.862907684e-05 | Q190: 0.007481863252 | R190: 4.713618094e-06
A191: 92.45605 | B191: ='DF raw data'!A196 -> -1.6845062e-06 | C191: ='DF raw data'!B196 -> 1.9639949e-05 | D191: ='DF raw data'!C196 -> -8.3254969e-07 | F191: -1.686837557e-06 | G191: 1.971580689e-05 | H191: -8.337019388e-07 | J191: -1.615885895e-05 | K191: -8.789976623e-06 | L191: -3.768415379e-06 | N191: -0.000375210592 | O191: -0.01707493142 | P191: 1.423294583e-05 | Q191: 0.007488981575 | R191: 4.784129205e-06
A192: 92.95618 | B192: ='DF raw data'!A197 -> -1.7930695e-07 | C192: ='DF raw data'!B197 -> 1.9926283e-05 | D192: ='DF raw data'!C197 -> 1.7018264e-06 | F192: -1.795551108e-07 | G192: 2.000324683e-05 | H192: 1.704181728e-06 | J192: -6.203303807e-06 | K192: -1.388648719e-05 | L192: 3.132064686e-06 | N192: -0.0003783130503 | O192: -0.01726413713 | P192: 7.287896996e-06 | Q192: 0.007492626471 | R192: 4.855734756e-06
A193: 93.45631 | B193: ='DF raw data'!A198 -> 1.7683068e-06 | C193: ='DF raw data'!B198 -> 1.1785891e-05 | D193: ='DF raw data'!C198 -> -1.3371592e-06 | F193: 1.770754137e-06 | G193: 1.183141315e-05 | H193: -1.339009828e-06 | J193: -2.30141746e-06 | K193: -7.443185053e-06 | L193: 9.859326749e-06 | N193: -0.0003794640583 | O193: -0.01745391849 | P193: 3.565336856e-06 | Q193: 0.007494409603 | R193: 4.927756318e-06
A194: 93.95644 | B194: ='DF raw data'!A199 -> 9.5236641e-07 | C194: ='DF raw data'!B199 -> 1.5005891e-05 | D194: ='DF raw data'!C199 -> -2.4061574e-06 | F194: 9.536844851e-07 | G194: 1.506385017e-05 | H194: -2.409487522e-06 | J194: -7.896277844e-06 | K194: -6.193098762e-06 | L194: 1.160325972e-05 | N194: -0.0003834132237 | O194: -0.01764567494 | P194: 4.679823723e-07 | Q194: 0.007494643655 | R194: 5.001278389e-06
A195: 94.45657 | B195: ='DF raw data'!A200 -> -6.6184117e-07 | C195: ='DF raw data'!B200 -> 1.2575249e-05 | D195: ='DF raw data'!C200 -> -1.8359843e-06 | F195: -6.627571582e-07 | G195: 1.262381999e-05 | H195: -1.838525302e-06 | J195: -8.595641826e-06 | K195: -8.649336903e-06 | L195: 4.509837889e-06 | N195: -0.000387712162 | O195: -0.01783958142 | P195: -3.857810493e-06 | Q195: 0.007492714248 | R195: 5.076465734e-06
A196: 94.9567 | B196: ='DF raw data'!A201 -> 4.5467633e-07 | C196: ='DF raw data'!B201 -> 4.5786906e-06 | D196: ='DF raw data'!C201 -> -4.8854254e-06 | F196: 4.55305602e-07 | G196: 4.596375462e-06 | H196: -4.892186829e-06 | J196: -4.718615438e-06 | K196: -2.309142179e-05 | L196: -1.938777359e-06 | N196: -0.0003900720832 | O196: -0.01803466818 | P196: -1.540652327e-05 | Q196: 0.007485008984 | R196: 5.152682341e-06
A197: 95.45683 | B197: ='DF raw data'!A202 -> -6.7492334e-07 | C197: ='DF raw data'!B202 -> 1.4900081e-05 | D197: ='DF raw data'!C202 -> -5.5429173e-06 | F197: -6.758574339e-07 | G197: 1.495763149e-05 | H197: -5.550588698e-06 | J197: -5.58782396e-06 | K197: -2.763367843e-05 | L197: 8.943508308e-07 | N197: -0.0003928667216 | O197: -0.01823115261 | P197: -2.922695486e-05 | Q197: 0.007470391707 | R197: 5.230301754e-06
A198: 95.95696 | B198: ='DF raw data'!A203 -> -6.4209798e-06 | C198: ='DF raw data'!B203 -> 1.5040048e-05 | D198: ='DF raw data'!C203 -> -1.4059098e-06 | F198: -6.429866436e-06 | G198: 1.50981391e-05 | H198: -1.407855579e-06 | J198: -2.800656051e-06 | K198: -1.259662335e-05 | L198: 3.978999825e-06 | N198: -0.0003942674137 | O198: -0.01842833757 | P198: -3.55269041e-05 | Q198: 0.007452623636 | R198: 5.308676604e-06
A199: 96.45709 | B199: ='DF raw data'!A204 -> -7.1268569e-06 | C199: ='DF raw data'!B204 -> 1.1942935e-05 | D199: ='DF raw data'!C204 -> 6.5440139e-07 | F199: -7.13672047e-06 | G199: =(1-$G$1*($B$2-$G$2))*C199*$M$2/$M$1 -> 1.198906373e-05 | H199: 6.553070815e-07 | J199: =-CELL("contents", INDEX($F$6:$F$1203,1204-CELL("row",F199))) -> 2.944733679e-06 | K199: =CELL("contents", INDEX($G$6:$G$1203,1204-CELL("row",G199))) -> -4.963504014e-06 | L199: =-CELL("contents", INDEX($H$6:$H$1203,1204-CELL("row",H199))) -> 7.841205229e-07 | N199: -0.000392794664 | O199: -0.01862478597 | P199: -3.800930136e-05 | Q199: 0.007433614044 | R199: 5.386563026e-06
A200: =A199+$B$1 -> 96.95722 | B200: ='DF raw data'!A205 -> -2.3063458e-06 | C200: ='DF raw data'!B205 -> 1.8509287e-05 | D200: ='DF raw data'!C205 -> 2.0017062e-07 | F200: -2.309537783e-06 | G200: 1.858077779e-05 | H200: 2.004476561e-07 | J200: 3.24598904e-06 | K200: -7.260353396e-06 | L200: -2.715737486e-06 | N200: =J200*$B$1+N199 -> -0.0003911712475 | O200: =N200*$B$1+O199 -> -0.01882042244 | P200: =K200*$B$1+P199 -> -4.164042191e-05 | Q200: =P200*$B$1+Q199 -> 0.00741278842 | R200: =(N200^2+P200^2)*$B$1+R199 -> 5.463957579e-06
... 1003 more rows

Sheet 10 x=-1
A1: dz | B1: ='DF raw data'!E7 -> 0.50015 | C1: mm | F1: T_coeff | G1: -0.0008 | H1: /degC | L1: Hallref | M1: ='PI vs x'!B44 -> 0.50505 | N1: T | P1: IBy total | Q1: =P1203*1000 -> -9.700869457 | R1: muTm
A2: Tref | B2: ='DF raw data'!E8 -> 21.74 | C2: degC | F2: Tcorr | G2: 20 | H2: degC | L2: NMRref | M2: ='PI vs x'!B45 -> 0.5063 | N2: T | P2: JBy total | Q2: =Q1203 -> -4.588222344 | R2: muTm^2
A3: Encoder | B3: ='DF raw data'!E9 -> 382608 | P3: PI total | Q3: =R1203 -> 4616.611297 | R3: T^2mm^3
J4: SXR-rotation
A5: z [mm] | B5: Bx | C5: By | D5: Bz | F5: Bx_corr | G5: By_corr | H5: Bz_corr | J5: Bx_rot | K5: By_rot | L5: Bz_rot | N5: Ix | O5: Jx | P5: Iy | Q5: Jy | R5: PI
A6: ='PI vs x'!B53 -> -0.068 | B6: ='DF raw data'!D11 -> 5.4556112e-06 | C6: ='DF raw data'!E11 -> -6.1621455e-07 | D6: ='DF raw data'!F11 -> -5.8674191e-06 | F6: =(1-$G$1*($B$2-$G$2))*B6 -> 5.463205411e-06 | G6: =(1-$G$1*($B$2-$G$2))*C6*$M$2/$M$1 -> -6.185995762e-07 | H6: =(1-$G$1*($B$2-$G$2))*D6 -> -5.875586547e-06 | J6: =-CELL("contents", INDEX($F$6:$F$1203,1204-CELL("row",F6))) -> -1.226728733e-05 | K6: =CELL("contents", INDEX($G$6:$G$1203,1204-CELL("row",G6))) -> 1.394213927e-05 | L6: =-CELL("contents", INDEX($H$6:$H$1203,1204-CELL("row",H6))) -> 8.580042617e-06 | N6: =J6*$B$1 -> -6.135483757e-06 | O6: =N6*$B$1 -> -3.068662201e-06 | P6: =K6*$B$1 -> 6.973160955e-06 | Q6: =P6*$B$1 -> 3.487626451e-06 | R6: =(N6^2+P6^2)*$B$1 -> 4.314750768e-11
A7: =A6+$B$1 -> 0.43215 | B7: ='DF raw data'!D12 -> 5.8688565e-06 | C7: ='DF raw data'!E12 -> -1.1976207e-05 | D7: ='DF raw data'!F12 -> -6.8330551e-06 | F7: =(1-$G$1*($B$2-$G$2))*B7 -> 5.877025948e-06 | G7: =(1-$G$1*($B$2-$G$2))*C7*$M$2/$M$1 -> -1.202256028e-05 | H7: -6.842566713e-06 | J7: =-CELL("contents", INDEX($F$6:$F$1203,1204-CELL("row",F7))) -> -1.41696257e-05 | K7: =CELL("contents", INDEX($G$6:$G$1203,1204-CELL("row",G7))) -> 2.861119217e-06 | L7: =-CELL("contents", INDEX($H$6:$H$1203,1204-CELL("row",H7))) -> 8.165835943e-06 | N7: =J7*$B$1+N6 -> -1.322242205e-05 | O7: =N7*$B$1+O6 -> -9.68185659e-06 | P7: =K7*$B$1+P6 -> 8.404149731e-06 | Q7: =P7*$B$1+Q6 -> 7.690961939e-06 | R7: =(N7^2+P7^2)*$B$1+R6 -> 1.659154158e-10
A8: =A7+$B$1 -> 0.9323 | B8: ='DF raw data'!D13 -> 5.6284953e-06 | C8: ='DF raw data'!E13 -> -4.2879974e-06 | D8: ='DF raw data'!F13 -> -8.1836282e-07 | F8: 5.636330165e-06 | G8: -4.30459387e-06 | H8: -8.19501981e-07 | J8: -1.563848651e-05 | K8: 2.58680208e-06 | L8: 7.429191259e-06 | N8: =J8*$B$1+N7 -> -2.104401108e-05 | O8: =N8*$B$1+O7 -> -2.020701873e-05 | P8: =K8*$B$1+P7 -> 9.697938791e-06 | Q8: =P8*$B$1+Q7 -> 1.254138603e-05 | R8: =(N8^2+P8^2)*$B$1+R7 -> 4.344461605e-10
A9: 1.43245 | B9: ='DF raw data'!D14 -> 5.6618701e-06 | C9: ='DF raw data'!E14 -> -5.3313988e-06 | D9: ='DF raw data'!F14 -> -1.971544e-06 | F9: 5.669751423e-06 | G9: -5.3520337e-06 | H9: -1.974288389e-06 | J9: -1.882706685e-05 | K9: -3.107941848e-06 | L9: 6.488805361e-06 | N9: -3.046036856e-05 | O9: -3.544177207e-05 | P9: 8.143501676e-06 | Q9: 1.661435839e-05 | R9: 9.316706194e-10
A10: 1.9326 | B10: ='DF raw data'!D15 -> 5.5591408e-06 | C10: ='DF raw data'!E15 -> -2.056694e-06 | D10: ='DF raw data'!F15 -> 9.8711507e-07 | F10: 5.566879124e-06 | G10: -2.064654327e-06 | H10: 9.884891342e-07 | J10: -2.312837094e-05 | K10: -5.674035787e-06 | L10: 5.362609676e-06 | N10: -4.202802329e-05 | O10: -5.646208792e-05 | P10: 5.305632677e-06 | Q10: 1.926797057e-05 | R10: 1.829192035e-09
A11: 2.43275 | B11: ='DF raw data'!D16 -> 5.3104341e-06 | C11: ='DF raw data'!E16 -> 5.3557169e-06 | D11: ='DF raw data'!F16 -> 5.000526e-06 | F11: 5.317826224e-06 | G11: 5.376445922e-06 | H11: 5.007486732e-06 | J11: -1.854565667e-05 | K11: 4.785619375e-06 | L11: 4.777915814e-06 | N11: -5.130363347e-05 | O11: -8.21216002e-05 | P11: 7.699160208e-06 | Q11: 2.311870555e-05 | R11: 3.175265674e-09
A12: 2.9329 | B12: ='DF raw data'!D17 -> 5.8047117e-06 | C12: ='DF raw data'!E17 -> -7.6047318e-06 | D12: ='DF raw data'!F17 -> 8.060947e-06 | F12: 5.812791859e-06 | G12: -7.634165517e-06 | H12: 8.072167838e-06 | J12: -1.196529354e-05 | K12: 8.149213597e-06 | L12: 5.073628974e-06 | N12: -5.728807503e-05 | O12: -0.0001107742309 | P12: 1.177498939e-05 | Q12: 2.900796649e-05 | R12: 4.886065718e-09
A13: 3.43305 | B13: ='DF raw data'!D18 -> 5.4335869e-06 | C13: ='DF raw data'!E18 -> 2.730806e-06 | D13: ='DF raw data'!F18 -> 9.1623524e-06 | F13: 5.441150453e-06 | G13: 2.741375442e-06 | H13: 9.175106395e-06 | J13: -7.776617804e-06 | K13: 1.032177587e-05 | L13: 5.879389834e-06 | N13: -6.117755043e-05 | O13: -0.0001413721828 | P13: 1.693742559e-05 | Q13: 3.74792199e-05 | R13: 6.901454684e-09
A14: 3.9332 | B14: ='DF raw data'!D19 -> 5.2911382e-06 | C14: ='DF raw data'!E19 -> 6.573774e-06 | D14: ='DF raw data'!F19 -> 9.088807e-06 | F14: 5.298503464e-06 | G14: 6.599217448e-06 | H14: 9.101458619e-06 | J14: -6.786285779e-06 | K14: 1.043241544e-05 | L14: 6.753188271e-06 | N14: -6.457171126e-05 | O14: -0.0001736677242 | P14: 2.215519817e-05 | Q14: 4.856014227e-05 | R14: 9.232333089e-09
A15: 4.43335 | B15: ='DF raw data'!D20 -> 5.5441233e-06 | C15: ='DF raw data'!E20 -> -1.8361416e-06 | D15: ='DF raw data'!F20 -> 2.2600631e-07 | F15: 5.55184072e-06 | G15: -1.84324829e-06 | H15: 2.263209108e-07 | J15: -1.11637223e-05 | K15: 8.004150101e-06 | L15: 7.111080765e-06 | N15: -7.015524697e-05 | O15: -0.0002087558709 | P15: 2.615847384e-05 | Q15: 6.164330296e-05 | R15: 1.203618621e-08
A16: 4.9335 | B16: ='DF raw data'!D21 -> 5.3570875e-06 | C16: ='DF raw data'!E21 -> 3.5190906e-06 | D16: ='DF raw data'!F21 -> 1.771456e-06 | F16: 5.364544566e-06 | G16: 3.532711056e-06 | H16: 1.773921867e-06 | J16: -1.643986148e-05 | K16: -4.380808718e-06 | L16: 6.622964051e-06 | N16: -7.837764369e-05 | O16: -0.0002479564494 | P16: 2.396741236e-05 | Q16: 7.363060425e-05 | R16: 1.539593977e-08
A17: 5.43365 | B17: ='DF raw data'!D22 -> 5.3485455e-06 | C17: ='DF raw data'!E22 -> 4.6464202e-06 | D17: ='DF raw data'!F22 -> 7.3142805e-06 | F17: 5.355990675e-06 | G17: 4.664403926e-06 | H17: 7.324461978e-06 | J17: -1.138650899e-05 | K17: 6.999037665e-06 | L17: 6.24134798e-06 | N17: -8.407260616e-05 | O17: -0.0002900053634 | P17: 2.746798105e-05 | Q17: 8.736871497e-05 | R17: 1.930845972e-08
A18: 5.9338 | B18: ='DF raw data'!D23 -> 5.5148157e-06 | C18: ='DF raw data'!E23 -> -1.2781484e-06 | D18: ='DF raw data'!F23 -> -9.8441478e-07 | F18: 5.522492323e-06 | G18: -1.283095407e-06 | H18: -9.857850854e-07 | J18: -2.137529906e-06 | K18: 1.415291291e-07 | L18: 6.514794788e-06 | N18: -8.514169174e-05 | O18: -0.0003325889805 | P18: 2.753876684e-05 | Q18: 0.0001011422292 | R18: 2.331340652e-08
A19: 6.43395 | B19: ='DF raw data'!D24 -> 5.5842356e-06 | C19: ='DF raw data'!E24 -> -3.3618808e-06 | D19: ='DF raw data'!F24 -> -2.5207478e-06 | F19: 5.592008856e-06 | G19: -3.374892784e-06 | H19: -2.524256681e-06 | J19: 3.237932837e-06 | K19: 3.280229507e-06 | L19: 7.200721471e-06 | N19: -8.352223963e-05 | O19: -0.0003743626287 | P19: 2.917937363e-05 | Q19: 0.0001157362929 | R19: 2.722828081e-08
A20: 6.9341 | B20: ='DF raw data'!D25 -> 5.3772492e-06 | C20: ='DF raw data'!E25 -> 2.6887765e-06 | D20: ='DF raw data'!F25 -> -2.7055597e-07 | F20: 5.384734331e-06 | G20: 2.699183269e-06 | H20: -2.709325839e-07 | J20: 3.514257647e-06 | K20: -4.306471007e-06 | L20: 7.261771635e-06 | N20: -8.176458367e-05 | O20: -0.0004152571852 | P20: 2.702549216e-05 | Q20: 0.0001292530928 | R20: 3.093730537e-08
A21: 7.43425 | B21: ='DF raw data'!D26 -> 5.213511e-06 | C21: ='DF raw data'!E26 -> 7.1793993e-06 | D21: ='DF raw data'!F26 -> 1.7282633e-07 | F21: 5.220768207e-06 | G21: 7.207186789e-06 | H21: 1.730669043e-07 | J21: 8.429746796e-07 | K21: -1.446689447e-05 | L21: 6.388169972e-06 | N21: -8.134296988e-05 | O21: -0.0004559408716 | P21: 1.978987489e-05 | Q21: 0.0001391509988 | R21: 3.444251557e-08
A22: 7.9344 | B22: ='DF raw data'!D27 -> 2.6004673e-06 | C22: ='DF raw data'!E27 -> -2.1084661e-06 | D22: ='DF raw data'!F27 -> -7.0459569e-06 | F22: 2.60408715e-06 | G22: -2.116626808e-06 | H22: -7.055764872e-06 | J22: -1.819426621e-06 | K22: -2.484568115e-06 | L22: 5.299956584e-06 | N22: -8.225295611e-05 | O22: -0.0004970796876 | P22: 1.854721814e-05 | Q22: 0.0001484273899 | R22: 3.799835604e-08
A23: 8.43455 | B23: ='DF raw data'!D28 -> -3.0730989e-06 | C23: ='DF raw data'!E28 -> 2.8875811e-06 | D23: ='DF raw data'!F28 -> -7.1537793e-06 | F23: =(1-$G$1*($B$2-$G$2))*B23 -> -3.077376654e-06 | G23: 2.898757332e-06 | H23: -7.163737361e-06 | J23: -7.299765349e-06 | K23: -9.116653285e-06 | L23: -1.842032245e-06 | N23: -8.590393375e-05 | O23: -0.00054004454 | P23: 1.3987524e-05 | Q23: 0.00015542325 | R23: 4.178706064e-08
A24: 8.9347 | B24: ='DF raw data'!D29 -> -1.7778875e-08 | C24: ='DF raw data'!E29 -> 1.4118787e-06 | D24: ='DF raw data'!F29 -> -2.3051102e-06 | F24: -1.780362319e-08 | G24: 1.417343303e-06 | H24: -2.308318913e-06 | J24: -1.030238999e-05 | K24: 6.190555743e-06 | L24: 3.765662616e-07 | N24: -9.10566741e-05 | O24: -0.0005855865356 | P24: 1.708373046e-05 | Q24: 0.0001639676778 | R24: 4.607993399e-08
A25: 9.43485 | B25: ='DF raw data'!D30 -> 8.418956e-06 | C25: ='DF raw data'!E30 -> -1.6131844e-06 | D25: ='DF raw data'!F30 -> -3.3159372e-06 | F25: 8.430675187e-06 | G25: -1.619428146e-06 | H25: -3.320552985e-06 | J25: -8.09198148e-06 | K25: 1.167808917e-05 | L25: 8.870804295e-07 | N25: -9.510387864e-05 | O25: -0.0006331527405 | P25: 2.292452676e-05 | Q25: 0.0001754333799 | R25: 5.086651036e-08
A26: 9.935 | B26: ='DF raw data'!D31 -> 8.8227207e-06 | C26: ='DF raw data'!E31 -> 2.0134985e-06 | D26: ='DF raw data'!F31 -> 6.694529e-06 | F26: 8.835001927e-06 | G26: 2.021291641e-06 | H26: 6.703847784e-06 | J26: -4.616314577e-06 | K26: -3.286491049e-06 | L26: 3.390266291e-06 | N26: -9.741272838e-05 | O26: -0.0006818737166 | P26: 2.128078826e-05 | Q26: 0.0001860769661 | R26: 5.583905748e-08
A27: 10.43515 | B27: ='DF raw data'!D32 -> 2.0642074e-06 | C27: ='DF raw data'!E32 -> -1.2815594e-05 | D27: ='DF raw data'!F32 -> 4.2651013e-06 | F27: 2.067080777e-06 | G27: -1.286519609e-05 | H27: 4.271038321e-06 | J27: -6.640899182e-06 | K27: 1.475739651e-06 | L27: 1.754685727e-06 | N27: -0.0001007341741 | O27: -0.0007322559138 | P27: 2.201887944e-05 | Q27: 0.0001970897087 | R27: 6.115675475e-08
A28: 10.9353 | B28: ='DF raw data'!D33 -> -7.0025089e-06 | C28: ='DF raw data'!E33 -> 8.0362706e-06 | D28: ='DF raw data'!F33 -> 4.4018093e-06 | F28: -7.012256392e-06 | G28: 8.067374565e-06 | H28: 4.407936619e-06 | J28: -1.110450098e-05 | K28: -1.16000272e-06 | L28: -8.286371495e-06 | N28: -0.0001062880903 | O28: -0.0007854159021 | P28: 2.143870408e-05 | Q28: 0.0002078122765 | R28: 6.703690635e-08
A29: 11.43545 | B29: ='DF raw data'!D34 -> -1.2120054e-05 | C29: ='DF raw data'!E34 -> -4.3624523e-06 | D29: ='DF raw data'!F34 -> 6.8238446e-06 | F29: -1.213692512e-05 | G29: -4.379336943e-06 | H29: 6.833343392e-06 | J29: -1.17985878e-05 | K29: -5.277560969e-06 | L29: -5.208896004e-06 | N29: -0.000112189154 | O29: -0.0008415273075 | P29: 1.879913197e-05 | Q29: 0.0002172146624 | R29: 7.350875414e-08
A30: 11.9356 | B30: ='DF raw data'!D35 -> -7.6581891e-06 | C30: ='DF raw data'!E35 -> -5.5147275e-06 | D30: ='DF raw data'!F35 -> 2.0769371e-06 | F30: -7.668849299e-06 | G30: -5.536071964e-06 | H30: 2.079828196e-06 | J30: -9.843789608e-06 | K30: -5.85384093e-07 | L30: -3.011281377e-06 | N30: -0.0001171125253 | O30: -0.000900101137 | P30: 1.850635211e-05 | Q30: 0.0002264706144 | R30: 8.053977714e-08
A31: 12.43575 | B31: ='DF raw data'!D36 -> 3.8105273e-07 | C31: ='DF raw data'!E36 -> 1.3430299e-06 | D31: ='DF raw data'!F36 -> -2.686334e-06 | F31: 3.815831554e-07 | G31: 1.348228027e-06 | H31: -2.690073377e-06 | J31: -1.026676147e-05 | K31: -3.675194304e-06 | L31: -9.975431198e-08 | N31: -0.0001222474461 | O31: -0.0009612431972 | P31: 1.666820368e-05 | Q31: 0.0002348072165 | R31: 8.815319402e-08
A32: 12.9359 | B32: ='DF raw data'!D37 -> 5.0751369e-06 | C32: ='DF raw data'!E37 -> 1.4847292e-06 | D32: ='DF raw data'!F37 -> -5.9896115e-06 | F32: 5.082201491e-06 | G32: 1.490475767e-06 | H32: -5.997949039e-06 | J32: -1.138650899e-05 | K32: -6.15448979e-06 | L32: 4.902347582e-06 | N32: -0.0001279424085 | O32: -0.001025233593 | P32: 1.359003561e-05 | Q32: 0.0002416042728 | R32: 9.64326516e-08
A33: 13.43605 | B33: ='DF raw data'!D38 -> 3.8609687e-06 | C33: ='DF raw data'!E38 -> -3.6572883e-06 | D33: ='DF raw data'!F38 -> -5.932738e-07 | F33: 3.866343168e-06 | G33: -3.671443643e-06 | H33: -5.940996371e-07 | J33: -9.814310129e-06 | K33: 1.267302316e-05 | L33: 8.932069858e-06 | N33: -0.0001328510358 | O33: -0.001091679038 | P33: 1.992844814e-05 | Q33: 0.0002515714861 | R33: 1.05458629e-07
A34: 13.9362 | B34: ='DF raw data'!D39 -> -1.2614511e-06 | C34: ='DF raw data'!E39 -> -2.1847873e-06 | D34: ='DF raw data'!F39 -> 4.8504448e-06 | F34: -1.26320704e-06 | G34: -2.193243405e-06 | H34: 4.857196619e-06 | J34: -8.529598396e-06 | K34: 5.71010174e-06 | L34: 5.775147831e-06 | N34: -0.0001371171144 | O34: -0.001160258163 | P34: 2.278435553e-05 | Q34: 0.0002629670815 | R34: 1.15121642e-07
A35: 14.43635 | B35: ='DF raw data'!D40 -> -4.7458416e-06 | C35: ='DF raw data'!E40 -> 3.794166e-07 | D35: ='DF raw data'!F40 -> -2.7967275e-07 | F35: -4.752447812e-06 | G35: 3.808851121e-07 | H35: -2.800620545e-07 | J35: -8.785536667e-06 | K35: 1.015850035e-05 | L35: 9.289233839e-06 | N35: -0.0001415112006 | O35: -0.00123103499 | P35: 2.786512948e-05 | Q35: 0.0002769038261 | R35: 1.255257049e-07
A36: 14.9365 | B36: ='DF raw data'!D41 -> -3.1648779e-06 | C36: ='DF raw data'!E41 -> 2.464084e-06 | D36: ='DF raw data'!F41 -> -4.8740326e-06 | F36: -3.16928341e-06 | G36: 2.473621108e-06 | H36: -4.880817253e-06 | J36: -8.194117857e-06 | K36: 5.359704877e-06 | L36: 6.050401552e-06 | N36: -0.0001456094886 | O36: -0.001303861576 | P36: 3.054578588e-05 | Q36: 0.0002921813009 | R36: 1.365966093e-07
A37: 15.43665 | B37: ='DF raw data'!D42 -> 3.1017589e-06 | C37: ='DF raw data'!E42 -> -6.1936071e-06 | D37: ='DF raw data'!F42 -> -4.1978415e-06 | F37: 3.106076548e-06 | G37: -6.217579132e-06 | H37: -4.203684895e-06 | J37: -8.728457524e-06 | K37: 4.408836379e-06 | L37: 3.651319371e-06 | N37: -0.0001499750266 | O37: -0.001378871585 | P37: 3.275086539e-05 | Q37: 0.0003085616462 | R37: 1.483827079e-07
A38: 15.9368 | B38: ='DF raw data'!D43 -> 7.6906472e-06 | C38: ='DF raw data'!E43 -> -1.8306659e-05 | D38: ='DF raw data'!F43 -> -2.9335856e-06 | F38: 7.701352581e-06 | G38: -1.837751397e-05 | H38: -2.937669151e-06 | J38: -1.156745151e-05 | K38: 1.015649161e-05 | L38: 1.621659011e-07 | N38: -0.0001557604875 | O38: -0.001456775193 | P38: 3.783063467e-05 | Q38: 0.0003274826381 | R38: 1.61232805e-07
A39: 16.43695 | B39: ='DF raw data'!D44 -> 5.6177487e-06 | C39: ='DF raw data'!E44 -> -7.2448775e-06 | D39: ='DF raw data'!F44 -> -7.5927669e-06 | F39: 5.625568606e-06 | G39: -7.272918419e-06 | H39: -7.603336032e-06 | J39: -1.264260805e-05 | K39: 2.279393459e-05 | L39: -8.707113854e-06 | N39: -0.0001620836879 | O39: -0.00153784135 | P39: 4.923102105e-05 | Q39: 0.0003521055333 | R39: 1.755845169e-07
A40: 16.9371 | B40: ='DF raw data'!D45 -> -5.5555645e-08 | C40: ='DF raw data'!E45 -> -3.1854054e-07 | D40: ='DF raw data'!F45 -> -1.218586e-05 | F40: -5.563297846e-08 | G40: -3.197734345e-07 | H40: -1.220282272e-05 | J40: -1.182365966e-05 | K40: -1.680373723e-06 | L40: -8.571155463e-06 | N40: -0.0001679972913 | O40: -0.001621865195 | P40: 4.839058213e-05 | Q40: 0.0003763080829 | R40: 1.908714708e-07
A41: 17.43725 | B41: ='DF raw data'!D46 -> -5.2339783e-06 | C41: ='DF raw data'!E46 -> 8.1181943e-06 | D41: ='DF raw data'!F46 -> -8.0493983e-06 | F41: -5.241263998e-06 | G41: 8.149615346e-06 | H41: -8.060603062e-06 | J41: -9.564921964e-06 | K41: 6.775086114e-06 | L41: -3.864227027e-06 | N41: -0.000172781187 | O41: -0.001708281706 | P41: 5.177914145e-05 | Q41: 0.0004022054205 | R41: 2.0714356e-07
A42: 17.9374 | B42: ='DF raw data'!D47 -> -7.663195e-06 | C42: ='DF raw data'!E47 -> 1.8812725e-06 | D42: ='DF raw data'!F47 -> -7.8257717e-06 | F42: -7.673862167e-06 | G42: 1.888553867e-06 | H42: -7.836665174e-06 | J42: -1.104688289e-05 | K42: 7.170085545e-06 | L42: 3.061896936e-06 | N42: -0.0001783062855 | O42: -0.001797461594 | P42: 5.536525974e-05 | Q42: 0.0004298963552 | R42: 2.245780105e-07
A43: 18.43755 | B43: ='DF raw data'!D48 -> -5.3594667e-06 | C43: ='DF raw data'!E48 -> -3.6833071e-06 | D43: ='DF raw data'!F48 -> -5.5740525e-06 | F43: -5.366927078e-06 | G43: -3.697563147e-06 | H43: -5.581811581e-06 | J43: -1.000654625e-05 | K43: 1.717674236e-05 | L43: 7.024645915e-06 | N43: -0.0001833110596 | O43: -0.001889144621 | P43: 6.395620743e-05 | Q43: 0.0004618840523 | R43: 2.43430335e-07
A44: 18.9377 | B44: ='DF raw data'!D49 -> -1.4107028e-06 | C44: ='DF raw data'!E49 -> 6.620875e-06 | D44: ='DF raw data'!F49 -> 6.5021646e-07 | F44: -1.412666498e-06 | G44: 6.64650075e-06 | H44: 6.511215613e-07 | J44: -6.274205053e-06 | K44: 2.937659219e-05 | L44: 4.0888733e-07 | N44: -0.0001864491033 | O44: -0.00198239714 | P44: 7.864891001e-05 | Q44: 0.0005012203047 | R44: 2.639109369e-07
A45: 19.43785 | B45: ='DF raw data'!D50 -> 2.4201763e-06 | C45: ='DF raw data'!E50 -> 7.9858337e-06 | D45: ='DF raw data'!F50 -> 5.8188748e-06 | F45: 2.423545185e-06 | G45: 8.016742452e-06 | H45: 5.826974674e-06 | J45: -6.913551787e-06 | K45: 2.442279169e-06 | L45: -4.82540743e-06 | N45: -0.0001899069162 | O45: -0.002077379084 | P45: 7.987041594e-05 | Q45: 0.0005411674932 | R45: 2.851392636e-07
A46: 19.938 | B46: ='DF raw data'!D51 -> 4.2580614e-06 | C46: ='DF raw data'!E51 -> 9.1924167e-06 | D46: ='DF raw data'!F51 -> 5.315524e-06 | F46: 4.263988621e-06 | G46: 9.227995468e-06 | H46: 5.322923209e-06 | J46: -1.127581912e-05 | K46: -1.092625846e-06 | L46: -1.618699097e-06 | N46: -0.0001955465171 | O46: -0.002175181674 | P46: 7.932393912e-05 | Q46: 0.0005808413614 | R46: 3.07411307e-07
A47: 20.43815 | B47: ='DF raw data'!D52 -> 5.7361576e-06 | C47: ='DF raw data'!E52 -> 1.4815278e-06 | D47: ='DF raw data'!F52 -> 7.188894e-06 | F47: 5.744142331e-06 | G47: 1.487261976e-06 | H47: 7.19890094e-06 | J47: -1.084542284e-05 | K47: 7.288715726e-07 | L47: 8.091124489e-06 | N47: -0.0002009708554 | O47: -0.002275697248 | P47: 7.968848424e-05 | Q47: 0.0006206975568 | R47: 3.307880875e-07
A48: 20.9383 | B48: ='DF raw data'!D53 -> 5.3608273e-06 | C48: ='DF raw data'!E53 -> -4.4349026e-06 | D48: ='DF raw data'!F53 -> 6.4995261e-06 | F48: 5.368289572e-06 | G48: -4.452067658e-06 | H48: 6.50857344e-06 | J48: -6.010915063e-06 | K48: 1.243447041e-05 | L48: 8.052005411e-06 | N48: -0.0002039772145 | O48: -0.002377716452 | P48: 8.590758462e-05 | Q48: 0.0006636642352 | R48: 3.552888441e-07
A49: 21.43845 | B49: ='DF raw data'!D54 -> 1.1685587e-06 | C49: ='DF raw data'!E54 -> -1.0852883e-05 | D49: ='DF raw data'!F54 -> 5.1809912e-09 | F49: 1.170185334e-06 | G49: -1.089488852e-05 | H49: 5.18820314e-09 | J49: -9.274622528e-06 | K49: -4.568732764e-06 | L49: 9.620065817e-06 | N49: -0.000208615917 | O49: -0.002482055702 | P49: 8.362253292e-05 | Q49: 0.0007054880451 | R49: 3.805530855e-07
A50: 21.9386 | B50: ='DF raw data'!D55 -> -2.4869769e-06 | C50: ='DF raw data'!E55 -> -1.3527831e-05 | D50: ='DF raw data'!F55 -> -4.336543e-06 | F50: -2.490438772e-06 | G50: -1.358018976e-05 | H50: -4.342579468e-06 | J50: -1.231308098e-05 | K50: 2.341285083e-06 | L50: 5.138475115e-06 | N50: -0.0002147743044 | O50: -0.002589475071 | P50: 8.479352666e-05 | Q50: 0.0007478975274 | R50: 4.072200552e-07
A51: 22.43875 | B51: ='DF raw data'!D56 -> 4.8164287e-07 | C51: ='DF raw data'!E56 -> -1.5731785e-05 | D51: ='DF raw data'!F56 -> 9.8053033e-07 | F51: 4.823133169e-07 | G51: -1.579267405e-05 | H51: 9.818952282e-07 | J51: -8.442099768e-06 | K51: 4.493320108e-07 | L51: 2.565780101e-06 | N51: -0.0002189966206 | O51: -0.002699006231 | P51: 8.501826006e-05 | Q51: 0.0007904194102 | R51: 4.348221456e-07
A52: 22.9389 | B52: ='DF raw data'!D57 -> 2.789373e-06 | C52: ='DF raw data'!E57 -> -4.8251777e-06 | D52: ='DF raw data'!F57 -> 8.323369e-06 | F52: 2.793255807e-06 | G52: -4.843853298e-06 | H52: 8.33495513e-06 | J52: -7.05819515e-06 | K52: -7.050171915e-06 | L52: 1.301498067e-05 | N52: -0.0002225267769 | O52: -0.002810302998 | P52: 8.149211658e-05 | Q52: 0.0008311776923 | R52: 4.629101352e-07
A53: 23.43905 | B53: ='DF raw data'!D58 -> 4.399637e-06 | C53: ='DF raw data'!E58 -> 7.7889939e-07 | D53: ='DF raw data'!F58 -> 4.1282042e-06 | F53: 4.405761295e-06 | G53: 7.819140793e-07 | H53: 4.13395066e-06 | J53: -6.640636917e-06 | K53: -3.688590051e-06 | L53: 1.212398012e-05 | N53: -0.0002258480915 | O53: -0.002923260921 | P53: 7.964726827e-05 | Q53: 0.0008710132735 | R53: 4.915942618e-07
A54: 23.9392 | B54: ='DF raw data'!D59 -> 7.8261546e-06 | C54: ='DF raw data'!E59 -> 1.5375672e-06 | D54: ='DF raw data'!F59 -> 8.6845154e-07 | F54: 7.837048607e-06 | G54: 1.543518273e-06 | H54: 8.696604245e-07 | J54: -8.411352427e-06 | K54: -8.445634455e-07 | L54: 9.172739705e-07 | N54: -0.0002300550294 | O54: -0.003038322944 | P54: 7.922485986e-05 | Q54: 0.0009106375872 | R54: 5.212040895e-07
A55: 24.43935 | B55: ='DF raw data'!D60 -> 6.2756917e-06 | C55: ='DF raw data'!E60 -> -3.2942326e-06 | D55: ='DF raw data'!F60 -> 5.6577487e-06 | F55: 6.284427463e-06 | G55: -3.306982755e-06 | H55: 5.665624286e-06 | J55: -9.55161757e-06 | K55: 5.889184097e-06 | L55: -1.028217589e-07 | N55: -0.0002348322709 | O55: -0.003155774304 | P55: 8.217033529e-05 | Q55: 0.0009517350804 | R55: 5.52162454e-07
A56: 24.9395 | B56: ='DF raw data'!D61 -> 3.8966019e-07 | C56: ='DF raw data'!E61 -> -4.1302874e-06 | D56: ='DF raw data'!F61 -> 5.2206237e-06 | F56: 3.90202597e-07 | G56: -4.146273461e-06 | H56: 5.227890808e-06 | J56: -1.135496013e-05 | K56: 1.148534403e-05 | L56: 9.589143633e-06 | N56: -0.0002405114542 | O56: -0.003276066108 | P56: 8.79147301e-05 | Q56: 0.0009957056326 | R56: 5.849596699e-07
A57: 25.43965 | B57: ='DF raw data'!D62 -> -1.7023201e-07 | C57: ='DF raw data'!E62 -> -6.7158823e-07 | D57: ='DF raw data'!F62 -> -5.9652516e-06 | F57: -1.70468973e-07 | G57: -6.741875771e-07 | H57: -5.97355523e-06 | J57: -1.598800737e-05 | K57: -1.410055705e-05 | L57: 8.953068347e-06 | N57: -0.0002485078561 | O57: -0.003400357312 | P57: 8.086233649e-05 | Q57: 0.00103614893 | R57: 6.191173501e-07
A58: 25.9398 | B58: ='DF raw data'!D63 -> 1.0135662e-06 | C58: ='DF raw data'!E63 -> 5.3793347e-06 | D58: ='DF raw data'!F63 -> -9.22667e-06 | F58: 1.014977084e-06 | G58: 5.400155134e-06 | H58: -9.239513525e-06 | J58: -1.806018483e-05 | K58: -1.027660571e-05 | L58: 9.099285599e-06 | N58: -0.0002575406576 | O58: -0.003529166272 | P58: 7.572249215e-05 | Q58: 0.001074021535 | R58: 6.551587024e-07
A59: 26.43995 | B59: ='DF raw data'!D64 -> 6.2061366e-07 | C59: ='DF raw data'!E64 -> 2.6084535e-06 | D59: ='DF raw data'!F64 -> -9.5048663e-06 | F59: 6.214775542e-07 | G59: 2.618549383e-06 | H59: -9.518097074e-06 | J59: -1.727679186e-05 | K59: 4.569648193e-07 | L59: 7.137298709e-07 | N59: -0.000266181645 | O59: -0.003662297022 | P59: 7.59510431e-05 | Q59: 0.001112008449 | R59: 6.934808101e-07
A60: 26.9401 | B60: ='DF raw data'!D65 -> -6.0317331e-07 | C60: ='DF raw data'!E65 -> 3.5206628e-07 | D60: ='DF raw data'!F65 -> -2.9301223e-06 | F60: -6.040129272e-07 | G60: 3.534289341e-07 | H60: -2.93420103e-06 | J60: -1.111198338e-05 | K60: -5.755604578e-06 | L60: -3.241084518e-06 | N60: -0.0002717393035 | O60: -0.003798207435 | P60: 7.307237747e-05 | Q60: 0.001148555598 | R60: 7.330835981e-07
A61: 27.44025 | B61: ='DF raw data'!D66 -> -9.6641827e-07 | C61: ='DF raw data'!E66 -> 3.4090162e-06 | D61: ='DF raw data'!F66 -> -8.404599e-07 | F61: -9.677635242e-07 | G61: 3.422210619e-06 | H61: -8.416298202e-07 | J61: -6.460160543e-06 | K61: -8.309774544e-06 | L61: -2.528760341e-06 | N61: -0.0002749703528 | O61: -0.003935733857 | P61: 6.891624373e-05 | Q61: 0.001183024058 | R61: 7.732747236e-07
A62: 27.9404 | B62: ='DF raw data'!D67 -> -1.1200137e-06 | C62: ='DF raw data'!E67 -> -7.0894663e-07 | D62: ='DF raw data'!F67 -> -2.676948e-06 | F62: -1.121572759e-06 | G62: -7.116905708e-07 | H62: -2.680674312e-06 | J62: -1.230184537e-05 | K62: -5.496290084e-06 | L62: 8.315856481e-06 | N62: -0.0002811231208 | O62: -0.004076337586 | P62: 6.616727425e-05 | Q62: 0.00121611762 | R62: 8.149913934e-07
A63: 28.44055 | B63: ='DF raw data'!D68 -> -5.2360519e-06 | C63: ='DF raw data'!E68 -> -1.0911724e-05 | D63: ='DF raw data'!F68 -> -3.1910163e-06 | F63: -5.243340484e-06 | G63: -1.095395726e-05 | H63: -3.195458195e-06 | J63: -1.891844186e-05 | K63: -7.132412696e-06 | L63: 1.181687122e-05 | N63: -0.0002905851795 | O63: -0.004221673763 | P63: 6.259999804e-05 | Q63: 0.001247427009 | R63: 8.591839004e-07
A64: 28.9407 | B64: ='DF raw data'!D69 -> -9.911917e-06 | C64: ='DF raw data'!E69 -> -1.4438656e-06 | D64: ='DF raw data'!F69 -> -4.4180047e-06 | F64: -9.925714388e-06 | G64: -1.449454006e-06 | H64: -4.424154563e-06 | J64: -1.715687717e-05 | K64: -8.026754553e-06 | L64: 8.481942852e-06 | N64: -0.0002991661916 | O64: -0.004371301734 | P64: 5.858541675e-05 | Q64: 0.001276728505 | R64: 9.056641709e-07
A65: 29.44085 | B65: ='DF raw data'!D70 -> -1.2692031e-05 | C65: ='DF raw data'!E70 -> -2.7246306e-06 | D65: ='DF raw data'!F70 -> -6.6478965e-06 | F65: -1.270969831e-05 | G65: -2.73517614e-06 | H65: -6.657150372e-06 | J65: -1.020332929e-05 | K65: -1.292360026e-05 | L65: 5.224181352e-06 | N65: -0.0003042693867 | O65: -0.004523482068 | P65: 5.212167808e-05 | Q65: 0.001302797162 | R65: 9.533267299e-07
A66: 29.941 | B66: ='DF raw data'!D71 -> -1.1083099e-05 | C66: ='DF raw data'!E71 -> 4.7651674e-06 | D66: ='DF raw data'!F71 -> 5.6956704e-08 | F66: -1.109852667e-05 | G66: 4.783610731e-06 | H66: 5.703598773e-08 | J66: -5.310066538e-06 | K66: -1.149535664e-05 | L66: 1.026200686e-05 | N66: -0.0003069252165 | O66: -0.004676990715 | P66: 4.637227546e-05 | Q66: 0.001325990256 | R66: 1.001517921e-06
A67: 30.44115 | B67: ='DF raw data'!D72 -> -8.509709e-06 | C67: ='DF raw data'!E72 -> 4.1288558e-06 | D67: ='DF raw data'!F72 -> 1.2803926e-05 | F67: -8.521554515e-06 | G67: 4.14483632e-06 | H67: 1.282174906e-05 | J67: -5.044036939e-06 | K67: -9.69876965e-06 | L67: 1.478072016e-05 | N67: -0.0003094479916 | O67: -0.004831761128 | P67: 4.152143582e-05 | Q67: 0.001346757202 | R67: 1.050273588e-06
A68: 30.9413 | B68: ='DF raw data'!D73 -> -9.7124685e-06 | C68: ='DF raw data'!E73 -> -4.3152168e-06 | D68: ='DF raw data'!F73 -> 1.1347657e-05 | F68: -9.725988256e-06 | G68: -4.331918621e-06 | H68: 1.136345294e-05 | J68: -7.624018081e-06 | K68: -2.303341993e-06 | L68: 8.092793009e-06 | N68: -0.0003132611442 | O68: -0.004988438689 | P68: 4.036941932e-05 | Q68: 0.001366947967 | R68: 1.10016967e-06
A69: 31.44145 | B69: ='DF raw data'!D74 -> -7.1079012e-06 | C69: ='DF raw data'!E74 -> -9.89007e-06 | D69: ='DF raw data'!F74 -> 3.6393617e-06 | F69: -7.117795398e-06 | G69: -9.928348998e-06 | H69: 3.644427691e-06 | J69: -7.623821307e-06 | K69: -2.295975792e-06 | L69: -3.979373688e-07 | N69: -0.0003170741985 | O69: -0.005147023349 | P69: 3.922108702e-05 | Q69: 0.001386564394 | R69: 1.151222151e-06
A70: 31.9416 | B70: ='DF raw data'!D75 -> -4.7415051e-06 | C70: ='DF raw data'!E75 -> 2.822334e-06 | D70: ='DF raw data'!F75 -> -5.1360934e-07 | F70: -4.748105275e-06 | G70: 2.833257696e-06 | H70: -5.143242842e-07 | J70: -6.022208562e-06 | K70: 2.594705151e-06 | L70: -1.486075141e-07 | N70: -0.0003200862061 | O70: -0.005307114465 | P70: 4.051882881e-05 | Q70: 0.001406829886 | R70: 1.203286243e-06
A71: 32.44175 | B71: ='DF raw data'!D76 -> -3.7534082e-06 | C71: ='DF raw data'!E76 -> 1.4444349e-06 | D71: ='DF raw data'!F76 -> -5.34737e-06 | F71: -3.758632944e-06 | G71: =(1-$G$1*($B$2-$G$2))*C71*$M$2/$M$1 -> 1.45002551e-06 | H71: -5.354813539e-06 | J71: =-CELL("contents", INDEX($F$6:$F$1203,1204-CELL("row",F71))) -> -5.337338347e-06 | K71: =CELL("contents", INDEX($G$6:$G$1203,1204-CELL("row",G71))) -> 6.97127874e-07 | L71: =-CELL("contents", INDEX($H$6:$H$1203,1204-CELL("row",H71))) -> 1.657853624e-06 | N71: -0.0003227556758 | O71: -0.005468540716 | P71: 4.086749731e-05 | Q71: 0.001427269765 | R71: 1.256222809e-06
A72: =A71+$B$1 -> 32.9419 | B72: ='DF raw data'!D77 -> -1.1882258e-06 | C72: ='DF raw data'!E77 -> 6.6678413e-06 | D72: ='DF raw data'!F77 -> 3.7967453e-07 | F72: -1.18987981e-06 | G72: 6.693648831e-06 | H72: 3.802030369e-07 | J72: -6.068329473e-06 | K72: 5.914365083e-06 | L72: 5.434122584e-06 | N72: =J72*$B$1+N71 -> -0.0003257907508 | O72: =N72*$B$1+O71 -> -0.00563148496 | P72: =K72*$B$1+P71 -> 4.382556701e-05 | Q72: =P72*$B$1+Q71 -> 0.001449189122 | R72: =(N72^2+P72^2)*$B$1+R71 -> 1.310269165e-06
A73: 33.44205 | B73: ='DF raw data'!D78 -> -3.1953205e-06 | C73: ='DF raw data'!E78 -> 4.7753101e-06 | D73: ='DF raw data'!F78 -> 3.6788265e-06 | F73: -3.199768386e-06 | G73: 4.793792688e-06 | H73: 3.683947426e-06 | J73: -9.997591602e-06 | K73: -4.459298738e-06 | L73: 3.758621628e-06 | N73: -0.0003307910463 | O73: -0.005796930102 | P73: 4.159524874e-05 | Q73: 0.001469992986 | R73: 1.365862278e-06
A74: 33.9422 | B74: ='DF raw data'!D79 -> -2.9920666e-06 | C74: ='DF raw data'!E79 -> 5.1733232e-06 | D74: ='DF raw data'!F79 -> 5.7818038e-06 | F74: -2.996231557e-06 | G74: 5.193346277e-06 | H74: 5.789852071e-06 | J74: -1.227631488e-05 | K74: -1.377793317e-06 | L74: 5.780146079e-06 | N74: -0.0003369310452 | O74: -0.005965446165 | P74: 4.090614542e-05 | Q74: 0.001490452195 | R74: 1.423477478e-06
A75: 34.44235 | B75: ='DF raw data'!D80 -> 4.3676591e-06 | C75: ='DF raw data'!E80 -> -7.7472856e-07 | D75: ='DF raw data'!F80 -> 9.9090912e-06 | F75: 4.373738881e-06 | G75: -7.777271064e-07 | H75: 9.922884655e-06 | J75: -8.901312603e-06 | K75: 2.282081523e-06 | L75: 4.889218131e-06 | N75: -0.0003413830367 | O75: -0.00613618889 | P75: 4.204752849e-05 | Q75: 0.001511482266 | R75: 1.482650411e-06
A76: 34.9425 | B76: ='DF raw data'!D81 -> 5.7256148e-06 | C76: ='DF raw data'!E81 -> -2.3359598e-06 | D76: ='DF raw data'!F81 -> 6.9344537e-06 | F76: 5.733584856e-06 | G76: -2.34500101e-06 | H76: 6.94410646e-06 | J76: -3.723368324e-06 | K76: -1.350201937e-06 | L76: 8.241815259e-06 | N76: -0.0003432452793 | O76: -0.006307863017 | P76: 4.137222499e-05 | Q76: 0.001532174584 | R76: 1.542432832e-06
A77: 35.44265 | B77: ='DF raw data'!D82 -> 2.0110056e-06 | C77: ='DF raw data'!E82 -> 8.515407e-06 | D77: ='DF raw data'!F82 -> 5.2036489e-06 | F77: 2.01380492e-06 | G77: 8.548365437e-06 | H77: 5.210892379e-06 | J77: -6.783600245e-07 | K77: 1.341841905e-05 | L77: 5.866457057e-06 | N77: -0.0003435845611 | O77: -0.006479706835 | P77: 4.808344728e-05 | Q77: 0.00155622352 | R77: 1.60263207e-06
A78: 35.9428 | B78: ='DF raw data'!D83 -> 3.2010175e-06 | C78: ='DF raw data'!E83 -> 1.1529527e-05 | D78: ='DF raw data'!F83 -> 3.1207751e-06 | F78: 3.205473316e-06 | G78: 1.157415143e-05 | H78: 3.125119219e-06 | J78: -1.871296223e-06 | K78: 6.937558932e-06 | L78: 7.175934215e-06 | N78: -0.0003445204899 | O78: -0.006652018758 | P78: 5.155326738e-05 | Q78: 0.001582007887 | R78: 1.663326327e-06
A79: 36.44295 | B79: ='DF raw data'!D84 -> 4.9752161e-06 | C79: ='DF raw data'!E84 -> 2.8839795e-06 | D79: ='DF raw data'!F84 -> 7.8649473e-06 | F79: 4.982141601e-06 | G79: 2.895141792e-06 | H79: 7.875895307e-06 | J79: -3.593559381e-06 | K79: 7.260094175e-06 | L79: 7.829269794e-06 | N79: -0.0003463178086 | O79: -0.00682522961 | P79: 5.518440348e-05 | Q79: 0.001609608367 | R79: 1.724835446e-06
A80: 36.9431 | B80: ='DF raw data'!D85 -> 3.0909468e-06 | C80: ='DF raw data'!E85 -> -8.8897677e-06 | D80: ='DF raw data'!F85 -> 2.9260996e-06 | F80: 3.095249398e-06 | G80: -8.924175081e-06 | H80: 2.930172731e-06 | J80: -6.908203853e-06 | K80: 1.434999778e-05 | L80: 5.52602203e-06 | N80: -0.0003497729468 | O80: -0.007000168549 | P80: 6.236155487e-05 | Q80: 0.001640798498 | R80: 1.787969419e-06
A81: 37.44325 | B81: ='DF raw data'!D86 -> -3.3376645e-07 | C81: ='DF raw data'!E86 -> 1.1246093e-06 | D81: ='DF raw data'!F86 -> -1.0366805e-05 | F81: -3.342310529e-07 | G81: 1.128962041e-06 | H81: -1.038123559e-05 | J81: -1.220051751e-05 | K81: 6.006250851e-06 | L81: 8.462146534e-06 | N81: -0.0003558750356 | O81: -0.007178159448 | P81: 6.536558123e-05 | Q81: 0.001673491094 | R81: 1.853448907e-06
A82: 37.9434 | B82: ='DF raw data'!D87 -> -1.7143255e-07 | C82: ='DF raw data'!E87 -> -4.1279272e-08 | D82: ='DF raw data'!F87 -> -8.367525e-06 | F82: -1.716711841e-07 | G82: -4.143904126e-08 | H82: -8.379172595e-06 | J82: -1.319954222e-05 | K82: 3.189684007e-06 | L82: 4.429021628e-06 | N82: -0.0003624767866 | O82: -0.007359452213 | P82: 6.696090169e-05 | Q82: 0.001706981589 | R82: 1.92140588e-06
A83: 38.44355 | B83: ='DF raw data'!D88 -> 3.686353e-06 | C83: ='DF raw data'!E88 -> -1.2758893e-05 | D83: ='DF raw data'!F88 -> -6.7065334e-06 | F83: 3.691484403e-06 | G83: -1.280827563e-05 | H83: -6.715868894e-06 | J83: -1.145889661e-05 | K83: 5.493377555e-06 | L83: 2.370833513e-06 | N83: -0.0003682079538 | O83: -0.007543611421 | P83: 6.970841447e-05 | Q83: 0.001741846252 | R83: 1.991645125e-06
A84: 38.9437 | B84: ='DF raw data'!D89 -> 5.4307784e-06 | C84: ='DF raw data'!E89 -> -2.6556509e-06 | D84: ='DF raw data'!F89 -> -5.8626315e-06 | F84: 5.438338044e-06 | G84: -2.665929458e-06 | H84: -5.870792283e-06 | J84: -8.426660506e-06 | K84: 3.836972042e-07 | L84: 1.265702309e-05 | N84: -0.000372422548 | O84: -0.007729878559 | P84: 6.990032063e-05 | Q84: 0.001776806897 | R84: 2.063458967e-06
A85: 39.44385 | B85: ='DF raw data'!D90 -> 6.674989e-06 | C85: ='DF raw data'!E90 -> 9.2939526e-06 | D85: ='DF raw data'!F90 -> -5.822832e-06 | F85: 6.684280585e-06 | G85: 9.329924357e-06 | H85: -5.830937382e-06 | J85: -4.393127233e-06 | K85: -1.297056735e-07 | L85: 1.209332751e-05 | N85: -0.0003746197706 | O85: -0.007917244637 | P85: 6.983544834e-05 | Q85: 0.001811735097 | R85: 2.136089231e-06
A86: 39.944 | B86: ='DF raw data'!D91 -> 8.2691658e-06 | C86: ='DF raw data'!E91 -> -5.5350671e-07 | D86: ='DF raw data'!F91 -> -5.837202e-06 | F86: 8.280676479e-06 | G86: -5.556490288e-07 | H86: -5.845327385e-06 | J86: -4.668985694e-06 | K86: -4.292271862e-06 | L86: 8.918874816e-06 | N86: -0.0003769549638 | O86: -0.008105778662 | P86: 6.768866856e-05 | Q86: 0.001845589585 | R86: 2.209449633e-06
A87: 40.44415 | B87: ='DF raw data'!D92 -> 6.096674e-06 | C87: ='DF raw data'!E92 -> 6.4143287e-06 | D87: ='DF raw data'!F92 -> -1.2140807e-05 | F87: =(1-$G$1*($B$2-$G$2))*B87 -> 6.10516057e-06 | G87: 6.439155024e-06 | H87: -1.2157707e-05 | J87: -5.450775432e-06 | K87: -9.453654301e-06 | L87: 2.07552852e-06 | N87: -0.0003796811692 | O87: -0.008295676199 | P87: 6.296042337e-05 | Q87: 0.00187707924 | R87: 2.283532754e-06
A88: 40.9443 | B88: ='DF raw data'!D93 -> 4.7051471e-06 | C88: ='DF raw data'!E93 -> 2.1035639e-06 | D88: ='DF raw data'!F93 -> -1.0521216e-05 | F88: 4.711696665e-06 | G88: 2.111705634e-06 | H88: -1.053586153e-05 | J88: -3.918948694e-06 | K88: -8.258474054e-06 | L88: -7.844769139e-06 | N88: -0.0003816412313 | O88: -0.008486554061 | P88: 5.882994757e-05 | Q88: 0.001906503039 | R88: 2.358110617e-06
A89: 41.44445 | B89: ='DF raw data'!D94 -> 2.5257796e-06 | C89: ='DF raw data'!E94 -> 7.5501606e-07 | D89: ='DF raw data'!F94 -> -6.5909258e-06 | F89: 2.529295485e-06 | G89: 7.579383102e-07 | H89: -6.600100369e-06 | J89: -4.300819719e-06 | K89: 6.176992248e-07 | L89: -3.020614851e-06 | N89: -0.0003837922863 | O89: -0.008678507773 | P89: 5.913888984e-05 | Q89: 0.001936081354 | R89: 2.433530199e-06
A90: 41.9446 | B90: ='DF raw data'!D95 -> -2.9154362e-06 | C90: ='DF raw data'!E95 -> 6.4283386e-06 | D90: ='DF raw data'!F95 -> -1.5842011e-06 | F90: -2.919494487e-06 | G90: 6.453219148e-06 | H90: -1.586406308e-06 | J90: -3.894212509e-06 | K90: 4.800355491e-06 | L90: 4.883287187e-06 | N90: -0.0003857399767 | O90: -0.008871435622 | P90: 6.153978763e-05 | Q90: 0.001966860479 | R90: 2.509844324e-06
A91: 42.44475 | B91: ='DF raw data'!D96 -> -4.4937951e-06 | C91: ='DF raw data'!E96 -> 1.2229439e-06 | D91: ='DF raw data'!F96 -> 4.9446176e-06 | F91: -4.500050463e-06 | G91: 1.22767724e-06 | H91: 4.951500508e-06 | J91: -9.294239698e-07 | K91: -2.064573515e-07 | L91: 4.930938225e-06 | N91: -0.0003862048281 | O91: -0.009064595967 | P91: 6.143652799e-05 | Q91: 0.001997587959 | R91: 2.586331572e-06
A92: 42.9449 | B92: ='DF raw data'!D97 -> -2.9982075e-06 | C92: ='DF raw data'!E97 -> 9.3862845e-06 | D92: ='DF raw data'!F97 -> -3.8636786e-06 | F92: -3.002381005e-06 | G92: 9.422613623e-06 | H92: -3.869056841e-06 | J92: -1.488893258e-06 | K92: -2.693118988e-06 | L92: 4.477809246e-06 | N92: -0.0003869494981 | O92: -0.009258128758 | P92: 6.008956453e-05 | Q92: 0.002027641754 | R92: 2.663024908e-06
A93: 43.44505 | B93: ='DF raw data'!D98 -> 2.1779451e-06 | C93: ='DF raw data'!E98 -> 2.5773349e-07 | D93: ='DF raw data'!F98 -> -1.0818308e-05 | F93: 2.1809768e-06 | G93: 2.58731034e-07 | H93: -1.083336708e-05 | J93: -8.35841484e-07 | K93: 1.406357848e-06 | L93: 1.861521636e-06 | N93: -0.0003873675442 | O93: -0.009451870636 | P93: 6.079295441e-05 | Q93: 0.00205804735 | R93: 2.739922669e-06
A94: 43.9452 | B94: ='DF raw data'!D99 -> 3.5211451e-06 | C94: ='DF raw data'!E99 -> -6.1358323e-06 | D94: ='DF raw data'!F99 -> -3.6376582e-06 | F94: 3.526046534e-06 | G94: -6.159580718e-06 | H94: -3.64272182e-06 | J94: 1.122235781e-06 | K94: 3.252367986e-06 | L94: 4.991449139e-06 | N94: -0.000386806258 | O94: -0.009645331785 | P94: 6.241962625e-05 | Q94: 0.002089266526 | R94: 2.816703342e-06
A95: 44.44535 | B95: ='DF raw data'!D100 -> 5.3103935e-07 | C95: ='DF raw data'!E100 -> -5.7502284e-06 | D95: ='DF raw data'!F100 -> 1.285012e-07 | F95: 5.317785568e-07 | G95: -5.772484358e-06 | H95: 1.286800737e-07 | J95: 2.28757658e-07 | K95: 2.701056792e-06 | L95: 9.148743548e-06 | N95: -0.0003866918448 | O95: -0.009838735712 | P95: 6.377055981e-05 | Q95: 0.002121161372 | R95: 2.893525015e-06
A96: 44.9455 | B96: ='DF raw data'!D101 -> -2.8478207e-06 | C96: ='DF raw data'!E101 -> -1.1145667e-06 | D96: ='DF raw data'!F101 -> -2.1836527e-06 | F96: -2.851784866e-06 | G96: -1.118880572e-06 | H96: -2.186692345e-06 | J96: -3.352185956e-06 | K96: 3.550259213e-06 | L96: 9.961098375e-06 | N96: -0.0003883684406 | O96: -0.01003297819 | P96: 6.554622195e-05 | Q96: 0.002153944315 | R96: 2.97111146e-06
A97: 45.44565 | B97: ='DF raw data'!D102 -> -7.1982831e-06 | C97: ='DF raw data'!E102 -> 2.1415917e-06 | D97: ='DF raw data'!F102 -> 2.4662809e-06 | F97: -7.20830311e-06 | G97: 2.149880619e-06 | H97: 2.469713963e-06 | J97: -8.79703415e-06 | K97: 5.358602326e-07 | L97: 9.65831779e-06 | N97: -0.0003927682773 | O97: -0.01022942124 | P97: 6.581423245e-05 | Q97: 0.002186861303 | R97: 3.050434466e-06
A98: 45.9458 | B98: ='DF raw data'!D103 -> -6.7861729e-06 | C98: ='DF raw data'!E103 -> -7.3404108e-06 | D98: ='DF raw data'!F103 -> 5.9940435e-06 | F98: -6.795619253e-06 | G98: -7.368821476e-06 | H98: 6.002387209e-06 | J98: -1.146491498e-05 | K98: 2.877863876e-06 | L98: 6.499464879e-06 | N98: -0.0003985024545 | O98: -0.01042873224 | P98: 6.725359607e-05 | Q98: 0.002220498189 | R98: 3.132122592e-06
A99: 46.44595 | B99: ='DF raw data'!D104 -> -6.1034552e-06 | C99: ='DF raw data'!E104 -> 4.587976e-06 | D99: ='DF raw data'!F104 -> 5.7125876e-06 | F99: -6.11195121e-06 | G99: 4.605733521e-06 | H99: 5.720539522e-06 | J99: -9.699270116e-06 | K99: -6.199629226e-06 | L99: 8.832301473e-06 | N99: -0.0004033535444 | O99: -0.01063046952 | P99: 6.415285151e-05 | Q99: 0.002252584238 | R99: 3.215552448e-06
A100: 46.9461 | B100: ='DF raw data'!D105 -> -7.6936303e-06 | C100: ='DF raw data'!E105 -> 1.0791272e-05 | D100: ='DF raw data'!F105 -> 6.4832207e-06 | F100: -7.704339833e-06 | G100: 1.083303905e-05 | H100: 6.492245343e-06 | J100: -7.874076478e-06 | K100: -3.109146994e-06 | L100: 7.901977663e-06 | N100: -0.0004072917638 | O100: -0.01083417649 | P100: 6.259781164e-05 | Q100: 0.002283892533 | R100: 3.300480452e-06
A101: 47.44625 | B101: ='DF raw data'!D106 -> -3.3054566e-06 | C101: ='DF raw data'!E106 -> 1.1271478e-05 | D101: ='DF raw data'!F106 -> 6.8943923e-06 | F101: -3.310057796e-06 | G101: 1.131510367e-05 | H101: 6.903989294e-06 | J101: -7.854892211e-06 | K101: 5.100792132e-06 | L101: -1.056002011e-06 | N101: -0.0004112203881 | O101: -0.01103984837 | P101: 6.514897283e-05 | Q101: 0.002316476792 | R101: 3.387179753e-06
A102: 47.9464 | B102: ='DF raw data'!D107 -> 4.5803936e-06 | C102: ='DF raw data'!E107 -> 8.744767e-06 | D102: ='DF raw data'!F107 -> 5.6815047e-06 | F102: 4.586769508e-06 | G102: 8.778613163e-06 | H102: 5.689413355e-06 | J102: -9.415797671e-06 | K102: -1.607153721e-05 | L102: 5.858194672e-06 | N102: -0.0004159296993 | O102: -0.01124787561 | P102: 5.711079349e-05 | Q102: 0.002345040756 | R102: 3.47533577e-06
A103: 48.44655 | B103: ='DF raw data'!D108 -> 5.9675767e-06 | C103: ='DF raw data'!E108 -> 2.9897865e-06 | D103: ='DF raw data'!F108 -> -1.3536551e-06 | F103: 5.975883567e-06 | G103: 3.001358312e-06 | H103: -1.355539388e-06 | J103: -1.105557497e-05 | K103: -6.636554301e-06 | L103: 1.859417812e-05 | N103: -0.0004214591451 | O103: -0.0114586684 | P103: 5.379152085e-05 | Q103: 0.002371944585 | R103: 3.565623518e-06
A104: 48.9467 | B104: ='DF raw data'!D109 -> 2.1335545e-06 | C104: ='DF raw data'!E109 -> 4.7709045e-06 | D104: ='DF raw data'!F109 -> 1.4491384e-06 | F104: 2.136524408e-06 | G104: 4.789370036e-06 | H104: 1.451155601e-06 | J104: -9.640114386e-06 | K104: -1.284300553e-06 | L104: 1.588492708e-05 | N104: -0.0004262806484 | O104: -0.01167187267 | P104: 5.314917793e-05 | Q104: 0.002398527146 | R104: 3.657921212e-06
A105: 49.44685 | B105: ='DF raw data'!D110 -> 1.4966971e-06 | C105: ='DF raw data'!E110 -> 1.06872e-05 | D105: ='DF raw data'!F110 -> 7.2923144e-06 | F105: 1.498780502e-06 | G105: 1.072856425e-05 | H105: 7.302465302e-06 | J105: -9.164063444e-06 | K105: -3.456596595e-06 | L105: 9.746158795e-06 | N105: -0.0004308640547 | O105: -0.01188736933 | P105: 5.142036115e-05 | Q105: 0.00242424504 | R105: 3.752093399e-06
A106: 49.947 | B106: ='DF raw data'!D111 -> 4.3790096e-06 | C106: ='DF raw data'!E111 -> 7.3110941e-06 | D106: ='DF raw data'!F111 -> 3.5631606e-06 | F106: 4.385105181e-06 | G106: 7.339391307e-06 | H106: 3.56812052e-06 | J106: -1.240598513e-05 | K106: 1.217630405e-06 | L106: 1.385526372e-05 | N106: -0.0004370689082 | O106: -0.01210596934 | P106: 5.202935899e-05 | Q106: 0.002450267524 | R106: 3.848990601e-06
A107: 50.44715 | B107: ='DF raw data'!D112 -> 4.6730383e-06 | C107: ='DF raw data'!E112 -> 3.5493804e-06 | D107: ='DF raw data'!F112 -> 4.8361403e-06 | F107: 4.679543169e-06 | G107: 3.563118091e-06 | H107: 4.842872207e-06 | J107: -1.446419517e-05 | K107: -5.740605549e-06 | L107: 8.903012967e-06 | N107: -0.0004443031754 | O107: -0.01232818757 | P107: 4.915819513e-05 | Q107: 0.002474853995 | R107: 3.948931495e-06
A108: 50.9473 | B108: ='DF raw data'!D113 -> 5.1918869e-06 | C108: ='DF raw data'!E113 -> -6.02829e-06 | D108: ='DF raw data'!F113 -> 4.7393701e-06 | F108: 5.199114007e-06 | G108: -6.051622181e-06 | H108: 4.745967303e-06 | J108: -1.495629022e-05 | K108: 8.877288508e-07 | L108: 1.072747088e-05 | N108: -0.0004517835639 | O108: -0.01255414712 | P108: 4.960219271e-05 | Q108: 0.002499662532 | R108: 4.052246863e-06
A109: 51.44745 | B109: ='DF raw data'!D114 -> 4.0002742e-06 | C109: ='DF raw data'!E114 -> 1.8693981e-06 | D109: ='DF raw data'!F114 -> 1.330533e-06 | F109: 4.005842582e-06 | G109: 1.876633508e-06 | H109: 1.332385102e-06 | J109: -1.312688522e-05 | K109: 2.408121372e-06 | L109: 1.452826423e-05 | N109: -0.0004583489756 | O109: -0.01278339036 | P109: 5.080661462e-05 | Q109: 0.00252507346 | R109: 4.158611311e-06
A110: 51.9476 | B110: ='DF raw data'!D115 -> 5.8830841e-07 | C110: ='DF raw data'!E115 -> -1.9160643e-06 | D110: ='DF raw data'!F115 -> 2.8658037e-06 | F110: 5.891273353e-07 | G110: -1.923480327e-06 | H110: 2.869792899e-06 | J110: -9.09220806e-06 | K110: -2.145021584e-06 | L110: 8.950999171e-06 | N110: -0.0004628964434 | O110: -0.01301490802 | P110: 4.973378207e-05 | Q110: 0.002549947811 | R110: 4.267017106e-06
A111: 52.44775 | B111: ='DF raw data'!D116 -> -5.8317529e-09 | C111: ='DF raw data'!E116 -> -6.0611119e-06 | D111: ='DF raw data'!F116 -> 2.6295388e-06 | F111: -5.8398707e-09 | G111: -6.084571116e-06 | H111: 2.633199118e-06 | J111: -8.703925222e-06 | K111: -7.255505383e-06 | L111: 5.059231661e-06 | N111: -0.0004672497116 | O111: -0.01324860296 | P111: 4.610494105e-05 | Q111: 0.002573007197 | R111: 4.377274152e-06
A112: 52.9479 | B112: ='DF raw data'!D117 -> 1.3017888e-06 | C112: ='DF raw data'!E117 -> -7.7112045e-06 | D112: ='DF raw data'!F117 -> 6.4726341e-06 | F112: 1.30360089e-06 | G112: -7.741050314e-06 | H112: 6.481644007e-06 | J112: -8.78740917e-06 | K112: -5.279569513e-06 | L112: 3.256510862e-07 | N112: -0.0004716447343 | O112: -0.01348449608 | P112: 4.346436436e-05 | Q112: 0.002594745899 | R112: 4.489476756e-06
A113: 53.44805 | B113: ='DF raw data'!D118 -> 2.9158582e-06 | C113: ='DF raw data'!E118 -> -7.7250834e-06 | D113: ='DF raw data'!F118 -> 5.7432703e-06 | F113: 2.919917075e-06 | G113: -7.754982931e-06 | H113: 5.751264932e-06 | J113: -7.31801702e-06 | K113: -3.35613948e-06 | L113: -4.062372161e-06 | N113: -0.0004753048405 | O113: -0.01372221979 | P113: 4.17857912e-05 | Q113: 0.002615645063 | R113: 4.603341277e-06
A114: 53.9482 | B114: ='DF raw data'!D119 -> 6.3262232e-06 | C114: ='DF raw data'!E119 -> -5.5623595e-06 | D114: ='DF raw data'!F119 -> 2.3480175e-06 | F114: 6.335029303e-06 | G114: -5.583888321e-06 | H114: 2.35128594e-06 | J114: -7.879555695e-06 | K114: -2.37995859e-06 | L114: 1.123142341e-06 | N114: -0.0004792458003 | O114: -0.01396191458 | P114: 4.059545491e-05 | Q114: 0.002635948879 | R114: 4.71903824e-06
A115: 54.44835 | B115: ='DF raw data'!D120 -> 9.5472824e-06 | C115: ='DF raw data'!E120 -> -1.0036975e-05 | D115: ='DF raw data'!F120 -> 9.7946076e-07 | F115: 9.560572217e-06 | G115: -1.007582259e-05 | H115: 9.808241694e-07 | J115: -7.45624136e-06 | K115: -4.176545375e-06 | L115: 8.825102867e-06 | N115: -0.0004829750394 | O115: -0.01420347455 | P115: 3.850655574e-05 | Q115: 0.002655207933 | R115: 4.836447274e-06
A116: 54.9485 | B116: ='DF raw data'!D121 -> 7.4429445e-06 | C116: ='DF raw data'!E121 -> -7.0911692e-06 | D116: ='DF raw data'!F121 -> -2.3125026e-06 | F116: 7.453305079e-06 | G116: -7.118615199e-06 | H116: -2.315721604e-06 | J116: -3.731718131e-06 | K116: -8.330405086e-06 | L116: 7.481906136e-06 | N116: -0.0004848414583 | O116: -0.014445968 | P116: 3.434010364e-05 | Q116: 0.002672383136 | R116: 4.954607952e-06
A117: 55.44865 | B117: ='DF raw data'!D122 -> 3.0615083e-06 | C117: ='DF raw data'!E122 -> 3.4423729e-06 | D117: ='DF raw data'!F122 -> -1.5380133e-06 | F117: 3.06576992e-06 | G117: 3.455696424e-06 | H117: -1.540154215e-06 | J117: -2.62340981e-06 | K117: -1.006725154e-05 | L117: 7.374735061e-06 | N117: -0.0004861535567 | O117: -0.0146891177 | P117: 2.930496778e-05 | Q117: 0.002687040016 | R117: 5.073245564e-06
A118: 55.9488 | B118: ='DF raw data'!D123 -> -1.3119171e-06 | C118: ='DF raw data'!E123 -> 1.1937236e-06 | D118: ='DF raw data'!F123 -> -1.9173017e-06 | F118: -1.313743289e-06 | G118: 1.198343845e-06 | H118: -1.919970584e-06 | J118: -5.107404024e-06 | K118: -6.732859107e-06 | L118: 5.418858265e-06 | N118: -0.0004887080248 | O118: -0.01493354502 | P118: 2.59375283e-05 | Q118: 0.00270001267 | R118: 5.193035635e-06
A119: 56.44895 | B119: ='DF raw data'!D124 -> -3.3521101e-06 | C119: ='DF raw data'!E124 -> 6.3937814e-06 | D119: ='DF raw data'!F124 -> 3.705696e-08 | F119: -3.356776237e-06 | G119: 6.418528196e-06 | H119: 3.710854329e-08 | J119: -8.274665523e-06 | K119: -9.07888005e-06 | L119: 1.13220624e-06 | N119: -0.0004928465988 | O119: -0.01518004225 | P119: 2.139672644e-05 | Q119: 0.002710714243 | R119: 5.314749933e-06
A120: 56.9491 | B120: ='DF raw data'!D125 -> -2.7617825e-06 | C120: ='DF raw data'!E125 -> 5.1718534e-06 | D120: ='DF raw data'!F125 -> 4.8585648e-06 | F120: -2.765626901e-06 | G120: 5.191870788e-06 | H120: 4.865327922e-06 | J120: -8.533008236e-06 | K120: -1.59082617e-05 | L120: -3.410828473e-06 | N120: -0.0004971143828 | O120: -0.01542867401 | P120: 1.344020935e-05 | Q120: 0.002717436364 | R120: 5.438438703e-06
A121: 57.44925 | B121: ='DF raw data'!D126 -> -2.456738e-06 | C121: ='DF raw data'!E126 -> -1.9031636e-07 | D121: ='DF raw data'!F126 -> 1.55309e-06 | F121: -2.460157779e-06 | G121: -1.910529695e-07 | H121: 1.555251901e-06 | J121: -3.887064773e-06 | K121: -1.119947385e-05 | L121: -5.687016222e-06 | N121: -0.0004990584983 | O121: -0.01567827811 | P121: 7.838792504e-06 | Q121: 0.002721356936 | R121: 5.563036487e-06
A122: 57.9494 | B122: ='DF raw data'!D127 -> -2.7285387e-06 | C122: ='DF raw data'!E127 -> 2.4427363e-06 | D122: ='DF raw data'!F127 -> -4.78838e-06 | F122: -2.732336826e-06 | G122: 2.452190783e-06 | H122: -4.795045425e-06 | J122: -1.704321017e-06 | K122: -9.36404742e-06 | L122: -9.099160425e-07 | N122: -0.0004999109144 | O122: -0.01592830856 | P122: 3.155364188e-06 | Q122: 0.002722935091 | R122: 5.688034414e-06
A123: 58.44955 | B123: ='DF raw data'!D128 -> -6.3707885e-06 | C123: ='DF raw data'!E128 -> 1.2389546e-06 | D123: ='DF raw data'!F128 -> -4.6534765e-06 | F123: -6.379656638e-06 | G123: 1.243749909e-06 | H123: -4.659954139e-06 | J123: -3.331202088e-06 | K123: -8.075509529e-06 | L123: -1.928605487e-06 | N123: -0.0005015770151 | O123: -0.0161791723 | P123: -8.836019036e-07 | Q123: 0.002722493158 | R123: 5.813862293e-06
A124: 58.9497 | B124: ='DF raw data'!D129 -> -6.1803548e-06 | C124: ='DF raw data'!E129 -> 2.5351992e-06 | D124: ='DF raw data'!F129 -> -7.5939674e-06 | F124: -6.188957854e-06 | G124: 2.545011556e-06 | H124: -7.604538203e-06 | J124: -5.245580398e-07 | K124: 4.093667337e-06 | L124: -2.900787884e-06 | N124: -0.0005018393729 | O124: -0.01643016726 | P124: 1.163845815e-06 | Q124: 0.002723075255 | R124: 5.939822125e-06
A125: 59.44985 | B125: ='DF raw data'!D130 -> 1.2106792e-06 | C125: ='DF raw data'!E130 -> 6.5254726e-06 | D125: ='DF raw data'!F130 -> -5.5780397e-06 | F125: 1.212364465e-06 | G125: 6.5507291e-06 | H125: -5.585804331e-06 | J125: 5.243340484e-06 | K125: 6.79665146e-06 | L125: 1.600534046e-06 | N125: -0.0004992169161 | O125: -0.0166798506 | P125: 4.563191043e-06 | Q125: 0.002725357535 | R125: 6.064478686e-06
A126: 59.95 | B126: ='DF raw data'!D131 -> 7.6687538e-06 | C126: ='DF raw data'!E131 -> 2.3203838e-06 | D126: ='DF raw data'!F131 -> 9.7575476e-06 | F126: 7.679428705e-06 | G126: 2.329364724e-06 | H126: 9.771130106e-06 | J126: 3.107723237e-06 | K126: -4.932255033e-06 | L126: 7.196189571e-06 | N126: -0.0004976625883 | O126: -0.01692875655 | P126: 2.096323688e-06 | Q126: 0.002726406012 | R126: 6.18835206e-06
A127: 60.45015 | B127: ='DF raw data'!D132 -> 2.1357591e-06 | C127: ='DF raw data'!E132 -> -2.7087544e-06 | D127: ='DF raw data'!F132 -> 6.5160934e-06 | F127: 2.138732077e-06 | G127: -2.719238492e-06 | H127: 6.525163802e-06 | J127: -3.552247355e-06 | K127: 3.116384197e-07 | L127: 1.273840121e-05 | N127: -0.0004994392448 | O127: -0.01717855109 | P127: 2.252189644e-06 | Q127: 0.002727532444 | R127: 6.313111793e-06
A128: 60.9503 | B128: ='DF raw data'!D133 -> -6.9459675e-06 | C128: ='DF raw data'!E133 -> -5.6525596e-06 | D128: ='DF raw data'!F133 -> -3.5156919e-08 | F128: -6.955636287e-06 | G128: -5.674437536e-06 | H128: -3.520585743e-08 | J128: -7.313332107e-06 | K128: -1.826101882e-06 | L128: 1.27791889e-05 | N128: -0.0005030970079 | O128: -0.01743017505 | P128: 1.338864788e-06 | Q128: 0.002728202078 | R128: 6.439703955e-06
A129: 61.45045 | B129: ='DF raw data'!D134 -> -7.9337951e-06 | C129: ='DF raw data'!E134 -> -3.0728761e-06 | D129: ='DF raw data'!F134 -> 1.8699579e-06 | F129: -7.944838943e-06 | G129: -3.084769506e-06 | H129: 1.872560881e-06 | J129: -7.552162697e-06 | K129: -1.067026447e-05 | L129: 8.399763017e-06 | N129: -0.0005068742221 | O129: -0.0176836882 | P129: -3.997867988e-06 | Q129: 0.002726202544 | R129: 6.568211226e-06
A130: 61.9506 | B130: ='DF raw data'!D135 -> -4.5367815e-06 | C130: ='DF raw data'!E135 -> 8.6053378e-06 | D130: ='DF raw data'!F135 -> 2.3468169e-06 | F130: -4.5430967e-06 | G130: 8.63864431e-06 | H130: 2.350083669e-06 | J130: -5.93798869e-06 | K130: -1.265852225e-05 | L130: 6.103254821e-06 | N130: -0.0005098441071 | O130: -0.01793868673 | P130: -1.032902789e-05 | Q130: 0.002721036481 | R130: 6.698274084e-06
A131: 62.45075 | B131: ='DF raw data'!D136 -> -3.2181451e-06 | C131: ='DF raw data'!E136 -> 6.3258676e-06 | D131: ='DF raw data'!F136 -> 1.0511435e-06 | F131: -3.222624758e-06 | G131: 6.35035154e-06 | H131: 1.052606692e-06 | J131: -4.543985636e-06 | K131: -1.047738482e-05 | L131: 9.599540886e-06 | N131: -0.0005121167815 | O131: -0.01819482194 | P131: -1.556929191e-05 | Q131: 0.002713249499 | R131: 6.82956646e-06
A132: 62.9509 | B132: ='DF raw data'!D137 -> -1.6308442e-06 | C132: ='DF raw data'!E137 -> 6.156949e-06 | D132: ='DF raw data'!F137 -> -2.7466299e-06 | F132: -1.633114335e-06 | G132: 6.180779149e-06 | H132: -2.750453209e-06 | J132: -6.034172292e-06 | K132: -1.445926205e-05 | L132: 8.710740496e-06 | N132: -0.0005151347728 | O132: -0.01845246659 | P132: -2.280109182e-05 | Q132: 0.002701845533 | R132: 6.962548205e-06
A133: 63.45105 | B133: ='DF raw data'!D138 -> 2.4660367e-06 | C133: ='DF raw data'!E138 -> 9.5269179e-06 | D133: ='DF raw data'!F138 -> 7.0851871e-07 | F133: 2.469469423e-06 | G133: 9.563791337e-06 | H133: 7.09504968e-07 | J133: -1.06061252e-05 | K133: -9.024632296e-06 | L133: 3.179326771e-06 | N133: -0.0005204394263 | O133: -0.01871276437 | P133: -2.731476166e-05 | Q133: 0.002688184055 | R133: 7.098390592e-06
A134: 63.9512 | B134: ='DF raw data'!D139 -> 4.7520043e-06 | C134: ='DF raw data'!E139 -> -6.8295185e-06 | D134: ='DF raw data'!F139 -> 2.0628945e-06 | F134: 4.75861909e-06 | G134: -6.855951794e-06 | H134: 2.065766049e-06 | J134: -1.450731411e-05 | K134: -1.61782125e-06 | L134: 5.083093531e-06 | N134: -0.0005276952595 | O134: -0.01897669115 | P134: -2.812391496e-05 | Q134: 0.002674117879 | R134: 7.2380591e-06
A135: 64.45135 | B135: ='DF raw data'!D140 -> 3.142206e-06 | C135: ='DF raw data'!E140 -> -8.5389865e-06 | D135: ='DF raw data'!F140 -> 3.4719783e-06 | F135: 3.146579951e-06 | G135: =(1-$G$1*($B$2-$G$2))*C135*$M$2/$M$1 -> -8.5720362e-06 | H135: 3.476811294e-06 | J135: =-CELL("contents", INDEX($F$6:$F$1203,1204-CELL("row",F135))) -> -1.341036528e-05 | K135: =CELL("contents", INDEX($G$6:$G$1203,1204-CELL("row",G135))) -> -8.744690975e-06 | L135: =-CELL("contents", INDEX($H$6:$H$1203,1204-CELL("row",H135))) -> 5.65565603e-06 | N135: -0.0005344024537 | O135: -0.01924397254 | P135: -3.249757215e-05 | Q135: 0.002657864218 | R135: 7.381423134e-06
A136: =A135+$B$1 -> 64.9515 | B136: ='DF raw data'!D141 -> 3.4072036e-06 | C136: ='DF raw data'!E141 -> -7.0307857e-07 | D136: ='DF raw data'!F141 -> 5.9155141e-06 | F136: 3.411946427e-06 | G136: -7.057997988e-07 | H136: 5.923748496e-06 | J136: -7.744398718e-06 | K136: -2.289576921e-07 | L136: 1.072113908e-05 | N136: =J136*$B$1+N135 -> -0.0005382758147 | O136: =N136*$B$1+O135 -> -0.01951319119 | P136: =K136*$B$1+P135 -> -3.261208534e-05 | Q136: =P136*$B$1+Q135 -> 0.002641553284 | R136: =(N136^2+P136^2)*$B$1+R135 -> 7.526868955e-06
A137: 65.45165 | B137: ='DF raw data'!D142 -> 7.1429058e-06 | C137: ='DF raw data'!E142 -> -5.0766857e-06 | D137: ='DF raw data'!F142 -> 3.3221663e-06 | F137: 7.152848725e-06 | G137: -5.096334746e-06 | H137: 3.326790755e-06 | J137: -4.84959315e-06 | K137: -2.520467927e-06 | L137: 1.303817291e-05 | N137: -0.0005407013387 | O137: -0.01978362297 | P137: -3.387269738e-05 | Q137: 0.002624611854 | R137: 7.67366563e-06
A138: 65.9518 | B138: ='DF raw data'!D143 -> 3.5728772e-06 | C138: ='DF raw data'!E143 -> 3.9884881e-06 | D138: ='DF raw data'!F143 -> 1.5711271e-06 | F138: 3.577850645e-06 | G138: 4.003925335e-06 | H138: 1.573314109e-06 | J138: -3.245240796e-06 | K138: -9.589474459e-06 | L138: 1.516161163e-06 | N138: -0.0005423244459 | O138: -0.02005486654 | P138: -3.866887303e-05 | Q138: 0.002605271617 | R138: 7.821515514e-06
A139: 66.45195 | B139: ='DF raw data'!D144 -> -8.8438907e-07 | C139: ='DF raw data'!E144 -> 4.303377e-06 | D139: ='DF raw data'!F144 -> -5.9660618e-07 | F139: -8.856201396e-07 | G139: 4.320032996e-06 | H139: -5.974366558e-07 | J139: -3.316425848e-06 | K139: -6.598112789e-06 | L139: -1.615770126e-06 | N139: -0.0005439831563 | O139: -0.02032693971 | P139: -4.196891914e-05 | Q139: 0.002584280862 | R139: 7.970399699e-06
A140: 66.9521 | B140: ='DF raw data'!D145 -> -2.3898255e-07 | C140: ='DF raw data'!E145 -> -4.4409447e-07 | D140: ='DF raw data'!F145 -> -7.0612655e-06 | F140: -2.393152137e-07 | G140: -4.458133144e-07 | H140: -7.071094782e-06 | J140: -6.744041056e-06 | K140: -9.915625242e-06 | L140: 6.644487169e-06 | N140: -0.0005473561884 | O140: -0.02060069991 | P140: -4.692821911e-05 | Q140: 0.002560809714 | R140: 8.121345496e-06
A141: 67.45225 | B141: ='DF raw data'!D146 -> -2.1980122e-06 | C141: ='DF raw data'!E146 -> -1.2084993e-06 | D141: ='DF raw data'!F146 -> -5.0283047e-06 | F141: -2.201071833e-06 | G141: -1.213176733e-06 | H141: -5.0353041e-06 | J141: -9.129243242e-06 | K141: -7.47021721e-06 | L141: 7.900913884e-06 | N141: -0.0005519221794 | O141: -0.02087674379 | P141: -5.066444824e-05 | Q141: 0.00253546989 | R141: 8.274984063e-06
A142: 67.9524 | B142: ='DF raw data'!D147 -> -5.3512595e-06 | C142: ='DF raw data'!E147 -> 4.6446849e-06 | D142: ='DF raw data'!F147 -> -1.1212464e-06 | F142: -5.358708453e-06 | G142: 4.66266191e-06 | H142: -1.122807175e-06 | J142: -1.038714981e-05 | K142: -2.178240661e-06 | L142: -1.343117521e-06 | N142: -0.0005571173124 | O142: -0.02115538601 | P142: -5.175389531e-05 | Q142: 0.002509585179 | R142: 8.431560104e-06
A143: 68.45255 | B143: ='DF raw data'!D148 -> -7.7507029e-06 | C143: ='DF raw data'!E148 -> 7.1423065e-06 | D143: ='DF raw data'!F148 -> -7.083428e-06 | F143: -7.761491878e-06 | G143: 7.169950424e-06 | H143: -7.093288132e-06 | J143: -1.244943252e-05 | K143: -1.010984576e-05 | L143: -3.877961318e-06 | N143: -0.0005633438961 | O143: -0.02143714246 | P143: -5.681033467e-05 | Q143: 0.00248117149 | R143: 8.591900072e-06
A144: 68.9527 | B144: ='DF raw data'!D149 -> -6.4853339e-06 | C144: ='DF raw data'!E149 -> 5.1826619e-06 | D144: ='DF raw data'!F149 -> -2.1175651e-06 | F144: -6.494361485e-06 | G144: 5.202721122e-06 | H144: -2.120512751e-06 | J144: -1.260477946e-05 | K144: -1.130113983e-05 | L144: 2.378756126e-07 | N144: -0.0005696481765 | O144: -0.021722052 | P144: -6.246259975e-05 | Q144: 0.002449930821 | R144: 8.756149643e-06
A145: 69.45285 | B145: ='DF raw data'!D150 -> -1.5709703e-06 | C145: ='DF raw data'!E150 -> 1.2349528e-06 | D145: ='DF raw data'!F150 -> 7.2390035e-06 | F145: -1.573157091e-06 | G145: 1.23973262e-06 | H145: 7.249080193e-06 | J145: -8.089307463e-06 | K145: -2.04850446e-07 | L145: 5.755490005e-06 | N145: -0.0005736940436 | O145: -0.02200898507 | P145: -6.25650557e-05 | Q145: 0.002418638908 | R145: 8.922719219e-06
A146: 69.953 | B146: ='DF raw data'!D151 -> -8.7310406e-07 | C146: ='DF raw data'!E151 -> -6.0213524e-06 | D146: ='DF raw data'!F151 -> 1.4986341e-07 | F146: -8.743194209e-07 | G146: -6.044657729e-06 | H146: 1.500720199e-07 | J146: -4.069071274e-06 | K146: -1.129618372e-05 | L146: 5.911040631e-06 | N146: -0.0005757291896 | O146: -0.02229693603 | P146: -6.821484199e-05 | Q146: 0.002384521255 | R146: 9.090828319e-06
A147: 70.45315 | B147: ='DF raw data'!D152 -> -4.1710628e-06 | C147: ='DF raw data'!E152 -> -9.9985336e-08 | D147: ='DF raw data'!F152 -> -1.1263291e-05 | F147: -4.176868919e-06 | G147: -1.00372324e-07 | H147: -1.12789695e-05 | J147: -1.894159905e-06 | K147: -1.670281813e-05 | L147: -1.470118661e-07 | N147: -0.0005766765537 | O147: -0.02258536081 | P147: -7.656875648e-05 | Q147: 0.002346225392 | R147: 9.260088393e-06
A148: 70.9533 | B148: ='DF raw data'!D153 -> -4.6597379e-06 | C148: ='DF raw data'!E153 -> 7.7436283e-07 | D148: ='DF raw data'!F153 -> -6.1191308e-06 | F148: -4.666224255e-06 | G148: 7.773599608e-07 | H148: -6.12764863e-06 | J148: -3.063627842e-06 | K148: -1.374882695e-05 | L148: -2.086895721e-06 | N148: -0.0005782088272 | O148: -0.02287455195 | P148: -8.344523228e-05 | Q148: 0.002304490259 | R148: 9.430783864e-06
A149: 71.45345 | B149: ='DF raw data'!D154 -> -2.5839581e-06 | C149: ='DF raw data'!E154 -> -3.1539994e-06 | D149: ='DF raw data'!F154 -> -2.2171293e-06 | F149: -2.58755497e-06 | G149: -3.16620679e-06 | H149: -2.220215544e-06 | J149: -7.231851744e-06 | K149: -1.353464818e-05 | L149: 3.167183491e-07 | N149: -0.0005818258378 | O149: -0.02316555214 | P149: -9.021458656e-05 | Q149: 0.002259369433 | R149: 9.604165851e-06
A150: 71.9536 | B150: ='DF raw data'!D155 -> -3.5970188e-06 | C150: ='DF raw data'!E155 -> 7.5519283e-06 | D150: ='DF raw data'!F155 -> -4.9513687e-06 | F150: -3.60202585e-06 | G150: 7.581157643e-06 | H150: -4.958261005e-06 | J150: -7.531710668e-06 | K150: -1.44492113e-05 | L150: 1.690641001e-06 | N150: -0.0005855928229 | O150: -0.02345843639 | P150: -9.744135959e-05 | Q150: 0.002210634137 | R150: 9.7804256e-06
A151: 72.45375 | B151: ='DF raw data'!D156 -> -3.7905884e-06 | C151: ='DF raw data'!E156 -> 8.0425389e-06 | D151: ='DF raw data'!F156 -> -1.40164e-06 | F151: =(1-$G$1*($B$2-$G$2))*B151 -> -3.795864899e-06 | G151: 8.073667126e-06 | H151: -1.403591083e-06 | J151: -5.595950635e-06 | K151: -6.09595822e-06 | L151: 3.854324362e-06 | N151: -0.0005883916376 | O151: -0.02375272047 | P151: -0.0001004902531 | Q151: 0.002160373937 | R151: 9.95863055e-06
A152: 72.9539 | B152: ='DF raw data'!D157 -> -1.3842692e-06 | C152: ='DF raw data'!E157 -> 5.6113649e-06 | D152: ='DF raw data'!F157 -> -2.1071169e-06 | F152: -1.386196103e-06 | G152: 5.633083394e-06 | H152: -2.110050007e-06 | J152: -1.163810472e-05 | K152: -3.184291817e-06 | L152: 6.606701545e-06 | N152: -0.0005942124357 | O152: -0.02404991582 | P152: -0.0001020828766 | Q152: 0.002109317186 | R152: 1.014043974e-05
A153: 73.45405 | B153: ='DF raw data'!D158 -> -1.6833766e-06 | C153: ='DF raw data'!E158 -> 2.3868279e-06 | D153: ='DF raw data'!F158 -> -3.8093053e-06 | F153: -1.68571986e-06 | G153: 2.396065993e-06 | H153: -3.814607853e-06 | J153: -2.148591983e-05 | K153: -1.404243094e-05 | L153: 8.724802643e-06 | N153: -0.0006049586185 | O153: -0.02435248587 | P153: -0.0001091061985 | Q153: 0.002054747721 | R153: 1.032943597e-05
A154: 73.9542 | B154: ='DF raw data'!D159 -> -6.830706e-07 | C154: ='DF raw data'!E159 -> 2.023241e-06 | D154: ='DF raw data'!F159 -> -4.5112461e-06 | F154: -6.840214343e-07 | G154: 2.031071848e-06 | H154: -4.517525755e-06 | J154: -1.772329754e-05 | K154: -5.194783317e-06 | L154: 1.205866733e-05 | N154: -0.0006138229258 | O154: -0.02465948941 | P154: -0.0001117043694 | Q154: 0.001998878781 | R154: 1.052412258e-05
A155: 74.45435 | B155: ='DF raw data'!D160 -> 2.5867885e-06 | C155: ='DF raw data'!E160 -> 1.3673435e-05 | D155: ='DF raw data'!F160 -> -1.672182e-06 | F155: 2.59038931e-06 | G155: 1.372635731e-05 | H155: -1.674509677e-06 | J155: -1.11268911e-05 | K155: -2.692582118e-06 | L155: 1.068914561e-05 | N155: -0.0006193880404 | O155: -0.02496927634 | P155: -0.0001130510643 | Q155: 0.001942336291 | R155: 1.072239309e-05
A156: 74.9545 | B156: ='DF raw data'!D161 -> 2.3961511e-06 | C156: ='DF raw data'!E161 -> 4.6240029e-06 | D156: ='DF raw data'!F161 -> -3.2134408e-06 | F156: 2.399486542e-06 | G156: 4.641899861e-06 | H156: -3.21791391e-06 | J156: -1.396482201e-05 | K156: -5.681000239e-06 | L156: 3.721499026e-06 | N156: -0.0006263725461 | O156: -0.02528255657 | P156: -0.0001158924166 | Q156: 0.001884372699 | R156: 1.092534077e-05
A157: 75.45465 | B157: ='DF raw data'!D162 -> -2.3645516e-06 | C157: ='DF raw data'!E162 -> 2.3605435e-06 | D157: ='DF raw data'!F162 -> -1.0227776e-05 | F157: -2.367843056e-06 | G157: 2.36967986e-06 | H157: -1.024201306e-05 | J157: -1.783773361e-05 | K157: -5.186792308e-07 | L157: -3.046006848e-06 | N157: -0.0006352940886 | O157: -0.02560029891 | P157: -0.000116151834 | Q157: 0.001826279359 | R157: 1.113394824e-05
A158: 75.9548 | B158: ='DF raw data'!D163 -> -6.2752697e-06 | C158: ='DF raw data'!E163 -> 1.0931771e-05 | D158: ='DF raw data'!F163 -> -7.334274e-06 | F158: -6.284004875e-06 | G158: 1.097408185e-05 | H158: -7.344483309e-06 | J158: -1.739396674e-05 | K158: -2.254053761e-06 | L158: -7.701480959e-06 | N158: -0.000643993681 | O158: -0.02592239235 | P158: -0.000117279199 | Q158: 0.001767622168 | R158: 1.134825365e-05
A159: 76.45495 | B159: ='DF raw data'!D164 -> -3.6255187e-06 | C159: ='DF raw data'!E164 -> 5.957475e-06 | D159: ='DF raw data'!F164 -> -2.9180078e-06 | F159: -3.630565422e-06 | G159: 5.980533095e-06 | H159: -2.922069667e-06 | J159: -1.504298773e-05 | K159: -4.195028437e-06 | L159: -8.70631234e-06 | N159: -0.0006515174313 | O159: -0.02624824879 | P159: -0.0001193773425 | Q159: 0.00170791559 | R159: 1.156768242e-05
A160: 76.9551 | B160: ='DF raw data'!D165 -> 3.0868723e-06 | C160: ='DF raw data'!E165 -> 5.2896694e-06 | D160: ='DF raw data'!F165 -> -5.4697589e-06 | F160: 3.091169226e-06 | G160: 5.310142789e-06 | H160: -5.477372804e-06 | J160: -1.437035072e-05 | K160: -2.982438767e-06 | L160: -3.283001385e-06 | N160: -0.0006587047623 | O160: -0.02657769998 | P160: -0.0001208690092 | Q160: 0.001647462955 | R160: 1.179200033e-05
A161: 77.45525 | B161: ='DF raw data'!D166 -> 5.6613317e-06 | C161: ='DF raw data'!E166 -> -1.0321082e-06 | D161: ='DF raw data'!F166 -> -8.8278748e-06 | F161: 5.669212274e-06 | G161: -1.036102921e-06 | H161: -8.840163202e-06 | J161: -1.43488278e-05 | K161: -8.579270994e-06 | L161: -3.697280961e-06 | N161: -0.0006658813285 | O161: -0.02691074052 | P161: -0.0001251599316 | Q161: 0.001584864215 | R161: 1.202160067e-05
A162: 77.9554 | B162: ='DF raw data'!D167 -> 4.9084665e-06 | C162: ='DF raw data'!E167 -> 9.5168519e-07 | D162: ='DF raw data'!F167 -> -6.536618e-06 | F162: 4.915299085e-06 | G162: 9.553686377e-07 | H162: -6.545716972e-06 | J162: -1.38620151e-05 | K162: -1.194098778e-05 | L162: 2.933955889e-07 | N162: -0.0006728144153 | O162: -0.02724724865 | P162: -0.0001311322166 | Q162: 0.001519278437 | R162: 1.22566086e-05
A163: 78.45555 | B163: ='DF raw data'!D168 -> 5.4617522e-06 | C163: ='DF raw data'!E168 -> 8.0824366e-06 | D163: ='DF raw data'!F168 -> 1.8425349e-06 | F163: 5.469354959e-06 | G163: 8.113719248e-06 | H163: 1.845099709e-06 | J163: -1.134439545e-05 | K163: -2.287269324e-06 | L163: 6.211154509e-06 | N163: -0.0006784883147 | O163: -0.02758659458 | P163: -0.0001322761944 | Q163: 0.001453120498 | R163: 1.249560197e-05
A164: 78.9557 | B164: ='DF raw data'!D169 -> 4.3701984e-06 | C164: ='DF raw data'!E169 -> 9.9332037e-06 | D164: ='DF raw data'!F169 -> 7.4491841e-06 | F164: 4.376281716e-06 | G164: 9.971649645e-06 | H164: 7.459553364e-06 | J164: -7.844465818e-06 | K164: -1.558482569e-06 | L164: 8.105718476e-06 | N164: -0.0006824117243 | O164: -0.02792790281 | P164: -0.0001330556694 | Q164: 0.001386572705 | R164: 1.273736926e-05
A165: 79.45585 | B165: ='DF raw data'!D170 -> 6.2865111e-06 | C165: ='DF raw data'!E170 -> 2.934813e-06 | D165: ='DF raw data'!F170 -> -9.4428054e-07 | F165: 6.295261923e-06 | G165: 2.94617204e-06 | H165: -9.455949785e-07 | J165: -6.69310405e-06 | K165: -7.301046568e-06 | L165: 3.722030865e-06 | N165: -0.0006857592803 | O165: -0.02827088531 | P165: -0.0001367072879 | Q165: 0.001318198555 | R165: 1.298191994e-05
A166: 79.956 | B166: ='DF raw data'!D171 -> 9.8413184e-06 | C166: ='DF raw data'!E171 -> 6.6372859e-06 | D166: ='DF raw data'!F171 -> -8.9990563e-06 | F166: 9.855017515e-06 | G166: 6.662975168e-06 | H166: -9.011582986e-06 | J166: -8.883928038e-06 | K166: -4.382415613e-06 | L166: -3.146911912e-06 | N166: -0.0006902025769 | O166: -0.02861609013 | P166: -0.0001388991531 | Q166: 0.001248728144 | R166: 1.322983058e-05
A167: 80.45615 | B167: ='DF raw data'!D172 -> 5.2990836e-06 | C167: ='DF raw data'!E172 -> 1.5880585e-05 | D167: ='DF raw data'!F172 -> -1.3705029e-05 | F167: 5.306459924e-06 | G167: 1.594204997e-05 | H167: -1.37241064e-05 | J167: -1.094401089e-05 | K167: -1.729716164e-07 | L167: -7.408278489e-07 | N167: -0.0006956762239 | O167: -0.02896403259 | P167: -0.0001389856648 | Q167: 0.001179214464 | R167: 1.348154728e-05
A168: 80.9563 | B168: ='DF raw data'!D173 -> -1.149183e-06 | C168: ='DF raw data'!E173 -> 8.4209396e-06 | D168: ='DF raw data'!F173 -> -1.3351556e-05 | F168: -1.150782663e-06 | G168: 8.453532406e-06 | H168: -1.337014137e-05 | J168: -5.801760725e-06 | K168: -2.76812869e-06 | L168: -1.557853017e-06 | N168: -0.0006985779746 | O168: -0.02931342637 | P168: -0.0001403701444 | Q168: 0.001109008336 | R168: 1.373548092e-05
A169: 81.45645 | B169: ='DF raw data'!D174 -> -2.3762368e-06 | C169: ='DF raw data'!E174 -> 1.2655518e-05 | D169: ='DF raw data'!F174 -> -9.6859576e-06 | F169: -2.379544522e-06 | G169: 1.270450052e-05 | H169: -9.699440453e-06 | J169: -3.519962677e-06 | K169: -4.320535132e-06 | L169: -7.377021239e-07 | N169: -0.0007003384839 | O169: -0.02966370066 | P169: -0.00014253106 | Q169: 0.001037721426 | R169: 1.399095209e-05
A170: 81.9566 | B170: ='DF raw data'!D175 -> 7.610542e-07 | C170: ='DF raw data'!E175 -> 1.2269779e-05 | D170: ='DF raw data'!F175 -> -4.695466e-06 | F170: 7.621135874e-07 | G170: 1.231726854e-05 | H170: -4.702002089e-06 | J170: -1.143403605e-05 | K170: -7.396818118e-06 | L170: 3.258169467e-06 | N170: -0.000706057217 | O170: -0.03001683518 | P170: -0.0001462305786 | Q170: 0.0009645842024 | R170: 1.425098016e-05
A171: 82.45675 | B171: ='DF raw data'!D176 -> 5.2063006e-06 | C171: ='DF raw data'!E176 -> 9.6470039e-06 | D171: ='DF raw data'!F176 -> 3.8189905e-06 | F171: 5.21354777e-06 | G171: 9.684342124e-06 | H171: 3.824306535e-06 | J171: -1.712800304e-05 | K171: -6.065551185e-06 | L171: 4.258206684e-06 | N171: -0.0007146237877 | O171: -0.03037425426 | P171: -0.000149264264 | Q171: 0.0008899296808 | R171: 1.45175436e-05
A172: 82.9569 | B172: ='DF raw data'!D177 -> 6.1909195e-06 | C172: ='DF raw data'!E177 -> 2.0519265e-06 | D172: ='DF raw data'!F177 -> 2.4756014e-06 | F172: 6.19953726e-06 | G172: 2.059868374e-06 | H172: 2.479047437e-06 | J172: -1.256554292e-05 | K172: -6.544131664e-06 | L172: 1.054905587e-05 | N172: -0.000720908444 | O172: -0.03073481662 | P172: -0.0001525373115 | Q172: 0.0008136381444 | R172: 1.478911335e-05
A173: 83.45705 | B173: ='DF raw data'!D178 -> 3.950543e-06 | C173: ='DF raw data'!E178 -> -1.0300092e-05 | D173: ='DF raw data'!F178 -> 3.0399459e-08 | F173: 3.956042156e-06 | G173: -1.033995797e-05 | H173: 3.044177505e-08 | J173: -4.428282501e-06 | K173: -6.835591595e-06 | L173: 1.283710541e-05 | N173: -0.0007231232495 | O173: -0.03109648672 | P173: -0.0001559561326 | Q173: 0.0007356366847 | R173: 1.506281021e-05
A174: 83.9572 | B174: ='DF raw data'!D179 -> 1.8301179e-06 | C174: ='DF raw data'!E179 -> 4.8063966e-06 | D174: ='DF raw data'!F179 -> 3.8808216e-06 | F174: 1.832665424e-06 | G174: 4.824999507e-06 | H174: 3.886223704e-06 | J174: -7.43665213e-07 | K174: -8.680531607e-06 | L174: 5.143203788e-06 | N174: -0.0007234951937 | O174: -0.03145834284 | P174: -0.0001602977005 | Q174: 0.0006554637898 | R174: 1.53374629e-05
A175: 84.45735 | B175: ='DF raw data'!D180 -> 2.0392436e-06 | C175: ='DF raw data'!E180 -> 1.5551421e-05 | D175: ='DF raw data'!F180 -> 1.7132847e-06 | F175: 2.042082227e-06 | G175: 1.561161196e-05 | H175: 1.715669592e-06 | J175: -4.422606711e-06 | K175: -1.36038028e-06 | L175: -4.326092049e-06 | N175: -0.0007257071604 | O175: -0.03182130527 | P175: -0.0001609780947 | Q175: 0.0005749505958 | R175: 1.56138282e-05
A176: 84.9575 | B176: ='DF raw data'!D181 -> 3.275909e-06 | C176: ='DF raw data'!E181 -> 7.7063023e-06 | D176: ='DF raw data'!F181 -> -5.7757228e-07 | F176: 3.280469065e-06 | G176: 7.73612914e-06 | H176: -5.783762606e-07 | J176: -8.164572787e-06 | K176: 8.0375044e-06 | L176: -4.993759751e-06 | N176: -0.0007297906715 | O176: -0.03218631008 | P176: -0.0001569581369 | Q176: 0.0004964479836 | R176: 1.589252693e-05
A177: 85.45765 | B177: ='DF raw data'!D182 -> 5.518741e-09 | C177: ='DF raw data'!E182 -> 5.98723e-06 | D177: ='DF raw data'!F182 -> -2.1607552e-06 | F177: 5.526423087e-09 | G177: 6.01040326e-06 | H177: -2.163762971e-06 | J177: -8.936737546e-06 | K177: -8.593335019e-06 | L177: 4.941065903e-06 | N177: -0.0007342603808 | O177: -0.03255355041 | P177: -0.0001612560934 | Q177: 0.0004157957485 | R177: 1.617518262e-05
A178: 85.9578 | B178: ='DF raw data'!D183 -> -5.6734607e-06 | C178: ='DF raw data'!E183 -> 1.032401e-05 | D178: ='DF raw data'!F183 -> -1.7239649e-06 | F178: -5.681358157e-06 | G178: 1.036396854e-05 | H178: -1.726364659e-06 | J178: -7.612389416e-06 | K178: -1.602761086e-05 | L178: 8.12924528e-06 | N178: -0.0007380677174 | O178: -0.03292269498 | P178: -0.0001692723029 | Q178: 0.0003311342062 | R178: 1.646196716e-05
A179: 86.45795 | B179: ='DF raw data'!D184 -> -2.9411349e-06 | C179: ='DF raw data'!E184 -> 7.5715407e-06 | D179: ='DF raw data'!F184 -> -6.8420409e-06 | F179: -2.94522896e-06 | G179: 7.600845952e-06 | H179: -6.851565021e-06 | J179: -7.413333616e-06 | K179: -1.28578337e-05 | L179: 8.567379415e-06 | N179: -0.0007417754962 | O179: -0.03329369399 | P179: -0.0001757031485 | Q179: 0.0002432562765 | R179: 1.675260557e-05
A180: 86.9581 | B180: ='DF raw data'!D185 -> 5.4481316e-06 | C180: ='DF raw data'!E185 -> 5.9810891e-06 | D180: ='DF raw data'!F185 -> -9.759503e-06 | F180: 5.455715399e-06 | G180: 6.004238592e-06 | H180: -9.773088228e-06 | J180: -8.542232459e-06 | K180: -1.883533611e-05 | L180: 7.666520562e-06 | N180: -0.0007460478937 | O180: -0.03366682984 | P180: -0.0001851236418 | Q180: 0.000150666687 | R180: 1.704812331e-05
A181: 87.45825 | B181: ='DF raw data'!D186 -> 6.1227729e-06 | C181: ='DF raw data'!E186 -> 8.7027374e-06 | D181: ='DF raw data'!F186 -> -1.2809828e-06 | F181: 6.1312958e-06 | G181: 8.73642089e-06 | H181: -1.282765928e-06 | J181: -7.095762271e-06 | K181: -1.071473192e-05 | L181: 2.212550589e-06 | N181: -0.0007495968392 | O181: -0.0340417407 | P181: -0.000190482615 | Q181: 5.539680714e-05 | R181: 1.734730256e-05
A182: 87.9584 | B182: ='DF raw data'!D187 -> 3.1777373e-07 | C182: ='DF raw data'!E187 -> 1.7124261e-05 | D182: ='DF raw data'!F187 -> 7.4733402e-06 | F182: 3.18216071e-07 | G182: 1.719053956e-05 | H182: 7.48374309e-06 | J182: -8.185695149e-06 | K182: -5.152992793e-06 | L182: -1.100723978e-06 | N182: -0.0007536909147 | O182: -0.03441869921 | P182: -0.0001930598843 | Q182: -4.116209401e-05 | R182: 1.765005441e-05
A183: 88.45855 | B183: ='DF raw data'!D188 -> -3.1464551e-06 | C183: ='DF raw data'!E188 -> 2.0126237e-05 | D183: ='DF raw data'!F188 -> 8.0911641e-06 | F183: -3.150834965e-06 | G183: 2.020413455e-05 | H183: 8.102427e-06 | J183: -1.022131129e-05 | K183: -1.21385535e-05 | L183: -1.121248909e-06 | N183: -0.0007588031035 | O183: -0.03479821459 | P183: -0.0001991309819 | Q183: -0.0001407574546 | R183: 1.795786438e-05
A184: 88.9587 | B184: ='DF raw data'!D189 -> -7.5428767e-07 | C184: ='DF raw data'!E189 -> 3.5258972e-06 | D184: ='DF raw data'!F189 -> -2.5045078e-06 | F184: -7.553376384e-07 | G184: 3.539544001e-06 | H184: -2.507994075e-06 | J184: -8.498916647e-06 | K184: -2.896312305e-06 | L184: 1.21464834e-06 | N184: -0.0007630538367 | O184: -0.03517985596 | P184: -0.0002005795725 | Q184: -0.0002410773278 | R184: 1.826919941e-05
A185: 89.45885 | B185: ='DF raw data'!D190 -> 2.3539651e-06 | C185: ='DF raw data'!E190 -> 6.9944699e-06 | D185: ='DF raw data'!F190 -> -6.8244694e-06 | F185: 2.357241819e-06 | G185: 7.02154163e-06 | H185: -6.833969061e-06 | J185: -5.763261008e-06 | K185: -5.886870477e-06 | L185: -2.611005668e-06 | N185: -0.0007659363317 | O185: -0.03556293902 | P185: -0.0002035238907 | Q185: -0.0003428698017 | R185: 1.858333384e-05
A186: 89.959 | B186: ='DF raw data'!D191 -> 1.4308527e-07 | C186: ='DF raw data'!E191 -> 2.5361252e-05 | D186: ='DF raw data'!F191 -> -4.7105127e-06 | F186: 1.432844447e-07 | G186: 2.54594114e-05 | H186: -4.717069734e-06 | J186: -5.32898844e-06 | K186: -5.055081092e-06 | L186: 3.087223341e-06 | N186: -0.0007686016252 | O186: -0.03594735512 | P186: -0.0002060521895 | Q186: -0.0004459268043 | R186: 1.890003181e-05
A187: 90.45915 | B187: ='DF raw data'!D192 -> -1.6925225e-06 | C187: ='DF raw data'!E192 -> 1.8429444e-05 | D187: ='DF raw data'!F192 -> 7.9830403e-07 | F187: -1.694878491e-06 | G187: 1.85007742e-05 | H187: 7.994152692e-07 | J187: -9.334382999e-06 | K187: -6.693745604e-06 | L187: 3.089219716e-06 | N187: -0.0007732702169 | O187: -0.03633410622 | P187: -0.0002094000664 | Q187: -0.0005506582475 | R187: 1.922102568e-05
A188: 90.9593 | B188: ='DF raw data'!D193 -> -1.6989732e-07 | C188: ='DF raw data'!E193 -> 6.6064649e-06 | D188: ='DF raw data'!F193 -> 5.9263625e-06 | F188: -1.701338171e-07 | G188: 6.632034877e-06 | H188: 5.934611997e-06 | J188: -1.25053162e-05 | K188: -6.00808964e-06 | L188: -1.067470353e-06 | N188: -0.0007795247508 | O188: -0.03672398553 | P188: -0.0002124050124 | Q188: -0.0006568926145 | R188: 1.954751096e-05
A189: 91.45945 | B189: ='DF raw data'!D194 -> 1.8997342e-06 | C189: ='DF raw data'!E194 -> -2.3837265e-06 | D189: ='DF raw data'!F194 -> 5.4274719e-06 | F189: 1.90237863e-06 | G189: -2.392952589e-06 | H189: 5.435026941e-06 | J189: -1.219363294e-05 | K189: -1.08238958e-05 | L189: 2.530588282e-06 | N189: -0.0007856233963 | O189: -0.03711691507 | P189: -0.0002178185839 | Q189: -0.0007658345793 | R189: 1.987993519e-05
A190: 91.9596 | B190: ='DF raw data'!D195 -> 2.1333581e-06 | C190: ='DF raw data'!E195 -> 6.3889756e-06 | D190: ='DF raw data'!F195 -> 7.2973712e-06 | F190: 2.136327734e-06 | G190: 6.413703796e-06 | H190: 7.307529141e-06 | J190: -8.672442058e-06 | K190: -1.757961163e-05 | L190: 1.546420225e-06 | N190: -0.0007899609182 | O190: -0.03751201402 | P190: -0.0002266110267 | Q190: -0.0008791740842 | R190: 2.02177319e-05
A191: 92.45975 | B191: ='DF raw data'!D196 -> 1.1185001e-06 | C191: ='DF raw data'!E196 -> 3.0977739e-05 | D191: ='DF raw data'!F196 -> 5.489565e-06 | F191: 1.120057052e-06 | G191: 3.109763672e-05 | H191: 5.497206474e-06 | J191: -1.791287706e-06 | K191: -1.006229543e-05 | L191: -8.254703074e-07 | N191: -0.0007908568307 | O191: -0.03790756106 | P191: -0.0002316436837 | Q191: -0.0009950306727 | R191: 2.055739043e-05
A192: 92.9599 | B192: ='DF raw data'!D197 -> 1.8009413e-06 | C192: ='DF raw data'!E197 -> 1.2881946e-05 | D192: ='DF raw data'!F197 -> -5.3092294e-06 | F192: 1.80344821e-06 | G192: 1.29318049e-05 | H192: -5.316619847e-06 | J192: -3.914802931e-06 | K192: -9.401550413e-06 | L192: 4.621413365e-07 | N192: -0.0007928148194 | O192: -0.0383040874 | P192: -0.0002363458692 | Q192: -0.001113239059 | R192: 2.089970045e-05
A193: 93.46005 | B193: ='DF raw data'!D198 -> 2.0274274e-06 | C193: ='DF raw data'!E198 -> 1.0058758e-05 | D193: ='DF raw data'!F198 -> -8.1283933e-06 | F193: 2.030249579e-06 | G193: 1.00976899e-05 | H193: -8.139708023e-06 | J193: -1.433806584e-05 | K193: -1.677675018e-05 | L193: 3.819066951e-06 | N193: -0.0007999860031 | O193: -0.0387042004 | P193: -0.0002447367608 | Q193: -0.00123564415 | R193: 2.124974227e-05
A194: 93.9602 | B194: ='DF raw data'!D199 -> 1.04868e-06 | C194: ='DF raw data'!E199 -> 2.282507e-05 | D194: ='DF raw data'!F199 -> 2.0386074e-06 | F194: 1.050139763e-06 | G194: 2.291341324e-05 | H194: 2.041445142e-06 | J194: -1.813337357e-05 | K194: -2.002140001e-05 | L194: 4.319854178e-06 | N194: -0.0008090554099 | O194: -0.03910884946 | P194: -0.000254750464 | Q194: -0.001363057595 | R194: 2.160958442e-05
A195: 94.46035 | B195: ='DF raw data'!D200 -> -9.786346e-07 | C195: ='DF raw data'!E200 -> 1.086039e-05 | D195: ='DF raw data'!F200 -> 3.7573632e-06 | F195: -9.799968594e-07 | G195: 1.090242457e-05 | H195: 3.76259345e-06 | J195: -9.605629349e-06 | K195: -3.686176044e-06 | L195: 4.514327108e-06 | N195: -0.0008138596654 | O195: -0.03951590137 | P195: -0.000256594105 | Q195: -0.001491393136 | R195: 2.197379769e-05
A196: 94.9605 | B196: ='DF raw data'!D201 -> -3.1847703e-06 | C196: ='DF raw data'!E201 -> 4.6620307e-06 | D196: ='DF raw data'!F201 -> -3.223096e-06 | F196: -3.1892035e-06 | G196: 4.680074846e-06 | H196: -3.22758255e-06 | J196: -5.544285017e-06 | K196: -4.704549107e-06 | L196: 4.695073057e-06 | N196: -0.0008166326395 | O196: -0.03992434018 | P196: -0.0002589470852 | Q196: -0.001620905521 | R196: 2.234087902e-05
A197: 95.46065 | B197: ='DF raw data'!D202 -> -2.7243332e-06 | C197: ='DF raw data'!E202 -> 3.3967381e-06 | D197: ='DF raw data'!F202 -> -2.3401876e-06 | F197: -2.728125472e-06 | G197: 3.409884997e-06 | H197: -2.343445141e-06 | J197: -9.003645653e-06 | K197: -1.850851304e-05 | L197: 6.930407717e-06 | N197: -0.0008211358129 | O197: -0.04033503126 | P197: -0.000268204118 | Q197: -0.00175504781 | R197: 2.271408968e-05
A198: 95.9608 | B198: ='DF raw data'!D203 -> 1.1593473e-06 | C198: ='DF raw data'!E203 -> 1.5868845e-05 | D198: ='DF raw data'!F203 -> 3.8049479e-06 | F198: 1.160961111e-06 | G198: 1.593026453e-05 | H198: 3.810244387e-06 | J198: -6.705534028e-06 | K198: -1.027151508e-05 | L198: 3.991084167e-06 | N198: -0.0008244895857 | O198: -0.04074739973 | P198: -0.0002733414163 | Q198: -0.00189175952 | R198: 2.309145216e-05
A199: 96.46095 | B199: ='DF raw data'!D204 -> 4.4338776e-06 | C199: ='DF raw data'!E204 -> 1.4573933e-05 | D199: ='DF raw data'!F204 -> 8.0975524e-06 | F199: 4.440049558e-06 | G199: =(1-$G$1*($B$2-$G$2))*C199*$M$2/$M$1 -> 1.463034065e-05 | H199: 8.108824193e-06 | J199: =-CELL("contents", INDEX($F$6:$F$1203,1204-CELL("row",F199))) -> -2.35155872e-06 | K199: =CELL("contents", INDEX($G$6:$G$1203,1204-CELL("row",G199))) -> -9.22434158e-06 | L199: =-CELL("contents", INDEX($H$6:$H$1203,1204-CELL("row",H199))) -> -5.397634763e-06 | N199: -0.0008256657178 | O199: -0.04116035644 | P199: -0.0002779549707 | Q199: -0.002030778698 | R199: 2.347105743e-05
A200: =A199+$B$1 -> 96.9611 | B200: ='DF raw data'!D205 -> 4.1620697e-06 | C200: ='DF raw data'!E205 -> 8.8971401e-06 | D200: ='DF raw data'!F205 -> 7.7128725e-06 | F200: 4.167863301e-06 | G200: 8.931576015e-06 | H200: 7.723608819e-06 | J200: -1.358282902e-06 | K200: -1.601019772e-05 | L200: -3.944337586e-06 | N200: =J200*$B$1+N199 -> -0.000826345063 | O200: =N200*$B$1+O199 -> -0.04157365292 | P200: =K200*$B$1+P199 -> -0.0002859624711 | Q200: =P200*$B$1+Q199 -> -0.002173802828 | R200: =(N200^2+P200^2)*$B$1+R199 -> 2.385348247e-05
... 1003 more rows

Sheet 10 x=0
A1: dz | B1: ='DF raw data'!H7 -> 0.50017 | C1: mm | F1: T_coeff | G1: -0.0008 | H1: /degC | L1: Hallref | M1: ='PI vs x'!B44 -> 0.50505 | N1: T | P1: IBy total | Q1: =P1203*1000 -> -9.972219038 | R1: muTm
A2: Tref | B2: ='DF raw data'!H8 -> 21.8 | C2: degC | F2: Tcorr | G2: 20 | H2: degC | L2: NMRref | M2: ='PI vs x'!B45 -> 0.5063 | N2: T | P2: JBy total | Q2: =Q1203 -> -4.524042274 | R2: muTm^2
A3: Encoder | B3: ='DF raw data'!H9 -> 382602 | P3: PI total | Q3: =R1203 -> 4617.904803 | R3: T^2mm^3
J4: SXR-rotation
A5: z [mm] | B5: Bx | C5: By | D5: Bz | F5: Bx_corr | G5: By_corr | H5: Bz_corr | J5: Bx_rot | K5: By_rot | L5: Bz_rot | N5: Ix | O5: Jx | P5: Iy | Q5: Jy | R5: PI
A6: ='PI vs x'!B53 -> -0.068 | B6: ='DF raw data'!G11 -> -5.5347928e-06 | C6: ='DF raw data'!H11 -> -1.1223227e-05 | D6: ='DF raw data'!I11 -> -4.1386634e-06 | F6: =(1-$G$1*($B$2-$G$2))*B6 -> -5.542762902e-06 | G6: =(1-$G$1*($B$2-$G$2))*C6*$M$2/$M$1 -> -1.126720596e-05 | H6: =(1-$G$1*($B$2-$G$2))*D6 -> -4.144623075e-06 | J6: =-CELL("contents", INDEX($F$6:$F$1203,1204-CELL("row",F6))) -> -9.231465095e-07 | K6: =CELL("contents", INDEX($G$6:$G$1203,1204-CELL("row",G6))) -> -2.101544297e-06 | L6: =-CELL("contents", INDEX($H$6:$H$1203,1204-CELL("row",H6))) -> -5.562336547e-06 | N6: =J6*$B$1 -> -4.617301897e-07 | O6: =N6*$B$1 -> -2.30943589e-07 | P6: =K6*$B$1 -> -1.051129411e-06 | Q6: =P6*$B$1 -> -5.257433976e-07 | R6: =(N6^2+P6^2)*$B$1 -> 6.592579751e-13
A7: =A6+$B$1 -> 0.43217 | B7: ='DF raw data'!G12 -> -6.1331966e-06 | C7: ='DF raw data'!H12 -> 5.9882104e-06 | D7: ='DF raw data'!I12 -> 2.02058e-06 | F7: =(1-$G$1*($B$2-$G$2))*B7 -> -6.142028403e-06 | G7: =(1-$G$1*($B$2-$G$2))*C7*$M$2/$M$1 -> 6.011675601e-06 | H7: 2.023489635e-06 | J7: =-CELL("contents", INDEX($F$6:$F$1203,1204-CELL("row",F7))) -> -4.200920327e-06 | K7: =CELL("contents", INDEX($G$6:$G$1203,1204-CELL("row",G7))) -> 9.133780924e-06 | L7: =-CELL("contents", INDEX($H$6:$H$1203,1204-CELL("row",H7))) -> -5.328798937e-06 | N7: =J7*$B$1+N6 -> -2.562904509e-06 | O7: =N7*$B$1+O6 -> -1.512831537e-06 | P7: =K7*$B$1+P6 -> 3.517313794e-06 | Q7: =P7*$B$1+Q6 -> 1.233511443e-06 | R7: =(N7^2+P7^2)*$B$1+R6 -> 1.01324657e-11
A8: =A7+$B$1 -> 0.93234 | B8: ='DF raw data'!G13 -> -6.1026958e-06 | C8: ='DF raw data'!H13 -> 6.151392e-06 | D8: ='DF raw data'!I13 -> 9.4953384e-06 | F8: -6.111483682e-06 | G8: 6.175496638e-06 | H8: 9.509011687e-06 | J8: -8.622955701e-06 | K8: 4.41941096e-06 | L8: -4.697487656e-06 | N8: =J8*$B$1+N7 -> -6.875848263e-06 | O8: =N8*$B$1+O7 -> -4.951924563e-06 | P8: =K8*$B$1+P7 -> 5.727770573e-06 | Q8: =P8*$B$1+Q7 -> 4.09837045e-06 | R8: =(N8^2+P8^2)*$B$1+R7 -> 5.018840262e-11
A9: 1.43251 | B9: ='DF raw data'!G14 -> -5.6409854e-06 | C9: ='DF raw data'!H14 -> -6.5910363e-06 | D9: ='DF raw data'!I14 -> 9.2069558e-06 | F9: -5.649108419e-06 | G9: -6.616863714e-06 | H9: 9.220213816e-06 | J9: -3.01821508e-06 | K9: 2.381523834e-05 | L9: -3.375553307e-06 | N9: -8.385468899e-06 | O9: -9.146084542e-06 | P9: 1.763943833e-05 | Q9: 1.292108832e-05 | R9: 2.409861885e-10
A10: 1.93268 | B10: ='DF raw data'!G15 -> -5.6421204e-06 | C10: ='DF raw data'!H15 -> -7.5758626e-06 | D10: ='DF raw data'!I15 -> 2.59987e-06 | F10: -5.650245053e-06 | G10: -7.605549121e-06 | H10: 2.603613813e-06 | J10: 3.390401157e-06 | K10: 8.709296346e-06 | L10: -2.358942593e-06 | N10: -6.689691952e-06 | O10: -1.249206777e-05 | P10: 2.199556708e-05 | Q10: 2.392261111e-05 | R10: 5.053545181e-10
A11: 2.43285 | B11: ='DF raw data'!G16 -> -5.5781138e-06 | C11: ='DF raw data'!H16 -> -7.8021558e-06 | D11: ='DF raw data'!I16 -> 1.0885985e-05 | F11: -5.586146284e-06 | G11: -7.832729066e-06 | H11: 1.090166082e-05 | J11: 3.222951677e-06 | K11: 4.857427055e-06 | L11: -2.101272381e-06 | N11: -5.077668212e-06 | O11: -1.503176508e-05 | P11: 2.442510638e-05 | Q11: 3.613931657e-05 | R11: 8.166445887e-10
A12: 2.93302 | B12: ='DF raw data'!G17 -> -5.8615269e-06 | C12: ='DF raw data'!H17 -> -1.5324124e-06 | D12: ='DF raw data'!I17 -> 1.9471074e-06 | F12: -5.869967499e-06 | G12: -1.53841726e-06 | H12: 1.949911235e-06 | J12: -3.466083083e-06 | K12: 8.131436201e-06 | L12: -2.006898478e-06 | N12: -6.811298988e-06 | O12: -1.843857249e-05 | P12: 2.849220682e-05 | Q12: 5.039026365e-05 | R12: 1.245890304e-09
A13: 3.43319 | B13: ='DF raw data'!G18 -> -6.2086265e-06 | C13: ='DF raw data'!H18 -> 6.5579434e-06 | D13: ='DF raw data'!I18 -> -5.600054e-06 | F13: -6.217566922e-06 | G13: 6.583641137e-06 | H13: -5.608118078e-06 | J13: -1.655702784e-06 | K13: -2.079707663e-06 | L13: -2.143730433e-06 | N13: -7.639431849e-06 | O13: -2.225958712e-05 | P13: 2.745199944e-05 | Q13: 6.412093021e-05 | R13: 1.652014936e-09
A14: 3.93336 | B14: ='DF raw data'!G19 -> -6.018593e-06 | C14: ='DF raw data'!H19 -> 2.1056137e-06 | D14: ='DF raw data'!I19 -> -3.4075194e-07 | F14: -6.027259774e-06 | G14: 2.113864687e-06 | H14: -3.412426228e-07 | J14: 7.29278501e-07 | K14: -6.991254262e-06 | L14: -3.133949698e-06 | N14: -7.274668621e-06 | O14: -2.589815812e-05 | P14: 2.395518379e-05 | Q14: 7.610259449e-05 | R14: 1.965507304e-09
A15: 4.43353 | B15: ='DF raw data'!G20 -> -5.5848514e-06 | C15: ='DF raw data'!H20 -> -8.8270108e-06 | D15: ='DF raw data'!I20 -> 4.9992118e-06 | F15: -5.592893586e-06 | G15: -8.861600029e-06 | H15: 5.006410665e-06 | J15: -4.019969032e-06 | K15: -4.226929051e-06 | L15: -4.286722204e-06 | N15: -9.285336532e-06 | O15: -3.05424049e-05 | P15: 2.184100069e-05 | Q15: 8.70268078e-05 | R15: 2.247226449e-09
A16: 4.9337 | B16: ='DF raw data'!G21 -> -5.3655831e-06 | C16: ='DF raw data'!H21 -> -1.329562e-05 | D16: ='DF raw data'!I21 -> 1.3316802e-05 | F16: -5.37330954e-06 | G16: -1.334771977e-05 | H16: 1.333597819e-05 | J16: -5.253336527e-06 | K16: 4.037518731e-06 | L16: -4.205347292e-06 | N16: -1.191289786e-05 | O16: -3.650087902e-05 | P16: 2.386044643e-05 | Q16: 9.89610873e-05 | R16: 2.602966379e-09
A17: 5.43387 | B17: ='DF raw data'!G22 -> -5.8083324e-06 | C17: ='DF raw data'!H22 -> -2.5895545e-06 | D17: ='DF raw data'!I22 -> 4.9403784e-06 | F17: -5.816696399e-06 | G17: -2.599701841e-06 | H17: 4.947492545e-06 | J17: -2.181912035e-07 | K17: 9.7253042e-06 | L17: -3.218326526e-06 | N17: -1.202203056e-05 | O17: -4.251393804e-05 | P17: 2.872475184e-05 | Q17: 0.0001133283464 | R17: 3.087951511e-09
A18: 5.93404 | B18: ='DF raw data'!G23 -> -5.8830856e-06 | C18: ='DF raw data'!H23 -> -2.1383069e-06 | D18: ='DF raw data'!I23 -> -4.1969656e-06 | F18: -5.891557243e-06 | G18: -2.146685998e-06 | H18: -4.20300923e-06 | J18: 4.2406114e-06 | K18: -2.962843482e-06 | L18: -3.055234311e-06 | N18: -9.901003953e-06 | O18: -4.746612319e-05 | P18: 2.724282641e-05 | Q18: 0.0001269543909 | R18: 3.508195081e-09
A19: 6.43421 | B19: ='DF raw data'!G24 -> -5.2958285e-06 | C19: ='DF raw data'!H24 -> -1.7730208e-05 | D19: ='DF raw data'!I24 -> -1.7837126e-06 | F19: -5.303454493e-06 | G19: -1.7799685e-05 | H19: -1.786281146e-06 | J19: 6.771182983e-06 | K19: -1.064769886e-06 | L19: -3.715866253e-06 | N19: -6.51426136e-06 | O19: -5.072436129e-05 | P19: 2.671026046e-05 | Q19: 0.0001403140619 | R19: 3.886260387e-09
A20: 6.93438 | B20: ='DF raw data'!G25 -> -5.8296873e-06 | C20: ='DF raw data'!H25 -> -3.3512927e-06 | D20: ='DF raw data'!I25 -> -3.4232041e-06 | F20: -5.83808205e-06 | G20: -3.364424963e-06 | H20: -3.428133514e-06 | J20: 7.608219482e-06 | K20: 8.533017582e-06 | L20: -3.94307937e-06 | N20: -2.708858222e-06 | O20: -5.207925091e-05 | P20: 3.097821986e-05 | Q20: 0.0001558084381 | R20: 4.369918784e-09
A21: 7.43455 | B21: ='DF raw data'!G26 -> -5.6702274e-06 | C21: ='DF raw data'!H26 -> -8.2229826e-06 | D21: ='DF raw data'!I26 -> -6.7447222e-06 | F21: -5.678392527e-06 | G21: -8.255204904e-06 | H21: -6.7544346e-06 | J21: 1.134441947e-05 | K21: 3.452561986e-06 | L21: -3.538179252e-06 | N21: 2.965280067e-06 | O21: -5.059610678e-05 | P21: 3.270508779e-05 | Q21: 0.0001721665419 | R21: 4.909309941e-09
A22: 7.93472 | B22: ='DF raw data'!G27 -> -7.0454635e-06 | C22: ='DF raw data'!H27 -> 1.1863001e-06 | D22: ='DF raw data'!I27 -> -1.982841e-06 | F22: -7.055608967e-06 | G22: 1.190948696e-06 | H22: -1.985696291e-06 | J22: 1.139121276e-05 | K22: 8.627183136e-06 | L22: -3.001781049e-06 | N22: 8.662822953e-06 | O22: -4.626322262e-05 | P22: 3.702014598e-05 | Q22: 0.0001906829083 | R22: 5.632323537e-09
A23: 8.43489 | B23: ='DF raw data'!G28 -> -7.0231044e-06 | C23: ='DF raw data'!H28 -> 1.0965039e-06 | D23: ='DF raw data'!I28 -> -4.7551553e-06 | F23: =(1-$G$1*($B$2-$G$2))*B23 -> -7.03321767e-06 | G23: 1.100800623e-06 | H23: -4.762002724e-06 | J23: 6.629265015e-06 | K23: 4.130749335e-06 | L23: -5.295135631e-06 | N23: 1.197858244e-05 | O23: -4.027189505e-05 | P23: 3.908622287e-05 | Q23: 0.0002102326644 | R23: 6.468217272e-09
A24: 8.93506 | B24: ='DF raw data'!G29 -> -3.0138629e-06 | C24: ='DF raw data'!H29 -> -4.8930424e-06 | D24: ='DF raw data'!I29 -> 5.9345653e-06 | F24: -3.018202863e-06 | G24: -4.912216112e-06 | H24: 5.943111074e-06 | J24: 3.722487775e-06 | K24: -2.555498805e-06 | L24: -5.826338664e-06 | N24: 1.384045915e-05 | O24: -3.33493126e-05 | P24: 3.780803904e-05 | Q24: 0.0002291431113 | R24: 7.278995906e-09
A25: 9.43523 | B25: ='DF raw data'!G30 -> -1.5347625e-06 | C25: ='DF raw data'!H30 -> -2.602633e-06 | D25: ='DF raw data'!I30 -> 2.3511559e-06 | F25: -1.536972558e-06 | G25: -2.61283159e-06 | H25: 2.354541564e-06 | J25: -5.891873398e-07 | K25: 1.16140026e-05 | L25: 2.742909911e-06 | N25: 1.354576531e-05 | O25: -2.657412716e-05 | P25: 4.361701472e-05 | Q25: 0.0002509590335 | R25: 8.32231638e-09
A26: 9.9354 | B26: ='DF raw data'!G31 -> 1.1966247e-06 | C26: ='DF raw data'!H31 -> -5.6132822e-06 | D26: ='DF raw data'!I31 -> 2.7149392e-06 | F26: 1.19834784e-06 | G26: -5.635278219e-06 | H26: 2.718848712e-06 | J26: -2.159785619e-06 | K26: 5.810214744e-06 | L26: 3.431601901e-06 | N26: 1.246550534e-05 | O26: -2.033925535e-05 | P26: 4.652310983e-05 | Q26: 0.0002742284974 | R26: 9.48260503e-09
A27: 10.43557 | B27: ='DF raw data'!G32 -> 5.7431307e-06 | C27: ='DF raw data'!H32 -> -1.0902871e-05 | D27: ='DF raw data'!I32 -> -4.0826239e-06 | F27: 5.751400808e-06 | G27: -1.094559462e-05 | H27: -4.088502878e-06 | J27: 2.41251793e-06 | K27: -5.499853319e-06 | L27: -1.972506525e-06 | N27: 1.367217443e-05 | O27: -1.350084387e-05 | P27: 4.377224819e-05 | Q27: 0.0002961220627 | R27: 1.053443156e-08
A28: 10.93574 | B28: ='DF raw data'!G33 -> 4.5045954e-06 | C28: ='DF raw data'!H33 -> -1.2242476e-05 | D28: ='DF raw data'!I33 -> -5.7458788e-06 | F28: 4.511082017e-06 | G28: -1.229044896e-05 | H28: -5.754152865e-06 | J28: 2.969944771e-06 | K28: -5.905320769e-06 | L28: 8.197069006e-06 | N28: 1.515765171e-05 | O28: -5.919441212e-06 | P28: 4.08185839e-05 | Q28: 0.0003165382939 | R28: 1.148270947e-08
A29: 11.43591 | B29: ='DF raw data'!G34 -> -6.1932742e-06 | C29: ='DF raw data'!H34 -> -4.3764265e-07 | D29: ='DF raw data'!I34 -> -4.0693817e-06 | F29: -6.202192515e-06 | G29: -4.393575818e-07 | H29: -4.07524161e-06 | J29: -3.203778708e-06 | K29: -4.817915431e-06 | L29: 9.960896366e-06 | N29: 1.355521771e-05 | O29: 8.604720323e-07 | P29: 3.840880714e-05 | Q29: 0.0003357492269 | R29: 1.231248169e-08
A30: 11.93608 | B30: ='DF raw data'!G35 -> -8.1189946e-06 | C30: ='DF raw data'!H35 -> 4.8348656e-06 | D30: ='DF raw data'!I35 -> 3.1834163e-06 | F30: -8.130685952e-06 | G30: 4.853811342e-06 | H30: 3.188000419e-06 | J30: -5.832353112e-06 | K30: 3.079480247e-07 | L30: 7.902740783e-06 | N30: 1.063804966e-05 | O30: 6.18130533e-06 | P30: 3.856283351e-05 | Q30: 0.0003550371994 | R30: 1.311288385e-08
A31: 12.43625 | B31: ='DF raw data'!G36 -> -1.8566946e-06 | C31: ='DF raw data'!H36 -> -6.1069767e-07 | D31: ='DF raw data'!I36 -> 6.3871298e-06 | F31: -1.85936824e-06 | G31: -6.130907294e-07 | H31: 6.396327267e-06 | J31: -6.771261296e-06 | K31: 8.328744449e-06 | L31: 6.755899206e-06 | N31: 7.251267895e-06 | O31: 9.808171993e-06 | P31: 4.272862162e-05 | Q31: 0.000376408774 | R31: 1.405236116e-08
A32: 12.93642 | B32: ='DF raw data'!G37 -> 1.5843023e-06 | C32: ='DF raw data'!H37 -> -5.8294353e-07 | D32: ='DF raw data'!I37 -> 4.3773284e-06 | F32: 1.586583695e-06 | G32: -5.85227833e-07 | H32: 4.383631753e-06 | J32: -1.269685218e-05 | K32: -3.922190273e-06 | L32: -2.159789725e-06 | N32: 9.006833421e-07 | O32: 1.025866678e-05 | P32: 4.076685971e-05 | Q32: 0.0003967991342 | R32: 1.488401786e-08
A33: 13.43659 | B33: ='DF raw data'!G38 -> 4.4122027e-07 | C33: ='DF raw data'!H38 -> 1.9174793e-06 | D33: ='DF raw data'!I38 -> -3.4241813e-07 | F33: 4.418556272e-07 | G33: 1.92499307e-06 | H33: -3.429112121e-07 | J33: -1.274692518e-05 | K33: 6.680085686e-06 | L33: -8.523594227e-06 | N33: -5.474946224e-06 | O33: 7.520262927e-06 | P33: 4.410803817e-05 | Q33: 0.0004188606517 | R33: 1.587210073e-08
A34: 13.93676 | B34: ='DF raw data'!G39 -> -1.906091e-06 | C34: ='DF raw data'!H39 -> 3.6515e-06 | D34: ='DF raw data'!I39 -> -9.700253e-06 | F34: -1.908835771e-06 | G34: 3.665808645e-06 | H34: -9.714221364e-06 | J34: -2.959792473e-06 | K34: 7.06344976e-06 | L34: 7.600086388e-07 | N34: -6.955345625e-06 | O34: 4.041407706e-06 | P34: 4.764096383e-05 | Q34: 0.0004426892326 | R34: 1.703151393e-08
A35: 14.43693 | B35: ='DF raw data'!G40 -> -2.726106e-06 | C35: ='DF raw data'!H40 -> -4.6184477e-06 | D35: ='DF raw data'!I40 -> -9.7624188e-06 | F35: -2.730031593e-06 | G35: -4.636545394e-06 | H35: -9.776476683e-06 | J35: 7.223590413e-06 | K35: 9.817866396e-06 | L35: 4.320109512e-06 | N35: -3.342322408e-06 | O35: 2.369678307e-06 | P35: 5.255156607e-05 | Q35: 0.0004689739494 | R35: 1.841840442e-08
A36: 14.9371 | B36: ='DF raw data'!G41 -> -1.8352014e-06 | C36: ='DF raw data'!H41 -> 5.5290866e-06 | D36: ='DF raw data'!I41 -> 8.913587e-07 | F36: -1.83784409e-06 | G36: 5.550752693e-06 | H36: 8.926422565e-07 | J36: 9.705903904e-06 | K36: -6.5381314e-07 | L36: 9.197416435e-06 | N36: 1.512279547e-06 | O36: 3.126075168e-06 | P36: 5.222454835e-05 | Q36: 0.0004950951017 | R36: 1.978371369e-08
A37: 15.43727 | B37: ='DF raw data'!G42 -> 4.0991655e-08 | C37: ='DF raw data'!H42 -> 9.0250143e-07 | D37: ='DF raw data'!I42 -> 4.2325078e-06 | F37: 4.105068298e-08 | G37: 9.060379419e-07 | H37: 4.238602611e-06 | J37: 4.397961959e-06 | K37: -4.551644604e-07 | L37: 7.163465958e-06 | N37: 3.71200818e-06 | O37: 4.982710299e-06 | P37: 5.199688874e-05 | Q37: 0.0005211023856 | R37: 2.114290338e-08
A38: 15.93744 | B38: ='DF raw data'!G43 -> 3.3249296e-06 | C38: ='DF raw data'!H43 -> -5.0680983e-06 | D38: ='DF raw data'!I43 -> 8.8483021e-06 | F38: 3.329717499e-06 | G38: -5.08795798e-06 | H38: 8.861043655e-06 | J38: -2.338062869e-06 | K38: 6.36383136e-06 | L38: 4.690683071e-06 | N38: 2.542579275e-06 | O38: 6.254432175e-06 | P38: 5.517988627e-05 | Q38: 0.0005487017093 | R38: 2.266906438e-08
A39: 16.43761 | B39: ='DF raw data'!G44 -> 3.4978791e-06 | C39: ='DF raw data'!H44 -> -5.3596386e-06 | D39: ='DF raw data'!I44 -> 7.4129962e-06 | F39: 3.502916046e-06 | G39: -5.3806407e-06 | H39: 7.423670915e-06 | J39: -2.47482923e-06 | K39: 7.030634473e-06 | L39: 8.767810492e-07 | N39: 1.304743939e-06 | O39: 6.907025951e-06 | P39: 5.869639872e-05 | Q39: 0.000578059887 | R39: 2.439313515e-08
A40: 16.93778 | B40: ='DF raw data'!G45 -> 2.4391691e-06 | C40: ='DF raw data'!H45 -> 2.5736761e-06 | D40: ='DF raw data'!I45 -> 9.7884431e-06 | F40: 2.442681504e-06 | G40: 2.583761221e-06 | H40: 9.802538458e-06 | J40: -6.085036753e-07 | K40: 1.079626073e-07 | L40: 3.479524811e-06 | N40: 1.000388656e-06 | O40: 7.407390345e-06 | P40: 5.875039838e-05 | Q40: 0.0006074450738 | R40: 2.612002714e-08
A41: 17.43795 | B41: ='DF raw data'!G46 -> 3.9587821e-06 | C41: ='DF raw data'!H46 -> 1.2702257e-07 | D41: ='DF raw data'!I46 -> 5.2951104e-06 | F41: 3.964482746e-06 | G41: 1.275203164e-07 | H41: 5.302735359e-06 | J41: -2.425164916e-06 | K41: 5.772709953e-06 | L41: -3.978870335e-06 | N41: -2.126060801e-07 | O41: 7.301051162e-06 | P41: 6.163773471e-05 | Q41: 0.0006382744196 | R41: 2.802030078e-08
A42: 17.93812 | B42: ='DF raw data'!G47 -> 3.4028915e-06 | C42: ='DF raw data'!H47 -> 4.7473359e-06 | D42: ='DF raw data'!I47 -> -2.7283138e-06 | F42: 3.407791664e-06 | G42: 4.765938651e-06 | H42: -2.732242572e-06 | J42: -8.266933166e-06 | K42: 1.218543104e-05 | L42: -5.735090555e-06 | N42: -4.347478042e-06 | O42: 5.12657307e-06 | P42: 6.773252176e-05 | Q42: 0.000672152195 | R42: 3.032438144e-08
A43: 18.43829 | B43: ='DF raw data'!G48 -> -1.0569067e-06 | C43: ='DF raw data'!H48 -> 5.8947882e-07 | D43: ='DF raw data'!I48 -> -6.4876508e-07 | F43: -1.058428646e-06 | G43: 5.917887319e-07 | H43: -6.496993017e-07 | J43: -1.194725331e-05 | K43: 4.897210943e-06 | L43: -5.859528288e-06 | N43: -1.032313573e-05 | O43: -3.674972717e-08 | P43: 7.018195975e-05 | Q43: 0.0007072551058 | R43: 3.284127419e-08
A44: 18.93846 | B44: ='DF raw data'!G49 -> -5.1009856e-06 | C44: ='DF raw data'!H49 -> -6.0190332e-06 | D44: ='DF raw data'!I49 -> 1.5127742e-07 | F44: -5.108331019e-06 | G44: -6.042619182e-06 | H44: 1.514952595e-07 | J44: -1.22917046e-05 | K44: 6.874983526e-06 | L44: -3.768452368e-06 | N44: -1.647107762e-05 | O44: -8.27508862e-06 | P44: 7.362062026e-05 | Q44: 0.0007440779314 | R44: 3.568788778e-08
A45: 19.43863 | B45: ='DF raw data'!G50 -> -4.6285359e-06 | C45: ='DF raw data'!H50 -> 5.3090372e-07 | D45: ='DF raw data'!I50 -> -6.3949087e-06 | F45: -4.635200992e-06 | G45: 5.329841015e-07 | H45: -6.404117369e-06 | J45: -8.231236937e-06 | K45: 7.556654773e-06 | L45: -4.46921091e-06 | N45: -2.05880954e-05 | O45: -1.85726363e-05 | P45: 7.740023228e-05 | Q45: 0.0007827912056 | R45: 3.889631108e-08
A46: 19.9388 | B46: ='DF raw data'!G51 -> 5.7458857e-07 | C46: ='DF raw data'!H51 -> 2.6898743e-07 | D46: ='DF raw data'!I51 -> -4.254533e-06 | F46: 5.754159775e-07 | G46: 2.700414751e-07 | H46: -4.260659528e-06 | J46: -1.496275539e-06 | K46: 6.809349237e-06 | L46: 1.159701669e-08 | N46: -2.133648753e-05 | O46: -2.924450727e-05 | P46: 8.080606449e-05 | Q46: 0.0008232079749 | R46: 4.238993139e-08
A47: 20.43897 | B47: ='DF raw data'!G52 -> 3.2609885e-06 | C47: ='DF raw data'!H52 -> 1.9711176e-06 | D47: ='DF raw data'!I52 -> -8.3498594e-07 | F47: 3.265684323e-06 | G47: 1.978841555e-06 | H47: -8.361883198e-07 | J47: 7.912423406e-07 | K47: 1.766626322e-05 | L47: 5.768346775e-06 | N47: -2.094073185e-05 | O47: -3.971843312e-05 | P47: 8.964219936e-05 | Q47: 0.0008680443137 | R47: 4.662849109e-08
A48: 20.93914 | B48: ='DF raw data'!G53 -> 3.6298431e-06 | C48: ='DF raw data'!H53 -> 1.1964282e-05 | D48: ='DF raw data'!I53 -> -6.4922174e-06 | F48: 3.635070074e-06 | G48: 1.201116483e-05 | H48: -6.501566193e-06 | J48: -1.987862205e-06 | K48: -9.837155687e-06 | L48: 1.097423518e-05 | N48: -2.193500089e-05 | O48: -5.068966251e-05 | P48: 8.47219492e-05 | Q48: 0.0009104196911 | R48: 5.045926958e-08
A49: 21.43931 | B49: ='DF raw data'!G54 -> 7.3369074e-06 | C49: ='DF raw data'!H54 -> -1.0935703e-06 | D49: ='DF raw data'!I54 -> -8.0035943e-06 | F49: 7.347472547e-06 | G49: -1.097855528e-06 | H49: -8.015119476e-06 | J49: -5.395451178e-06 | K49: -1.248642089e-05 | L49: 1.119765243e-05 | N49: -2.463364371e-05 | O49: -6.301067209e-05 | P49: 7.847661607e-05 | Q49: 0.0009496713401 | R49: 5.384311754e-08
A50: 21.93948 | B50: ='DF raw data'!G55 -> 5.2999158e-06 | C50: ='DF raw data'!H55 -> -9.2685195e-06 | D50: ='DF raw data'!I55 -> -3.2888317e-06 | F50: 5.307547679e-06 | G50: -9.30483881e-06 | H50: -3.293567618e-06 | J50: -6.921300942e-07 | K50: 2.362074216e-06 | L50: 1.220473254e-05 | N50: -2.497982642e-05 | O50: -7.550483187e-05 | P50: 7.965805473e-05 | Q50: 0.0009895139094 | R50: 5.732900104e-08
A51: 22.43965 | B51: ='DF raw data'!G56 -> 3.3805979e-06 | C51: ='DF raw data'!H56 -> 5.375513e-06 | D51: ='DF raw data'!I56 -> -1.6698024e-07 | F51: 3.385465961e-06 | G51: 5.396577305e-06 | H51: -1.672206915e-07 | J51: 7.629211668e-06 | K51: 9.251902585e-07 | L51: 9.178690308e-06 | N51: -2.116392362e-05 | O51: -8.609039154e-05 | P51: 8.012080714e-05 | Q51: 0.001029587933 | R51: 6.076379617e-08
A52: 22.93982 | B52: ='DF raw data'!G57 -> 1.1960208e-06 | C52: ='DF raw data'!H57 -> 1.4636935e-07 | D52: ='DF raw data'!I57 -> -2.359008e-06 | F52: 1.19774307e-06 | G52: 1.46942908e-07 | H52: -2.362404972e-06 | J52: 7.157815734e-06 | K52: -4.132226601e-06 | L52: 4.060778012e-06 | N52: -1.758379892e-05 | O52: -9.488528025e-05 | P52: 7.805399136e-05 | Q52: 0.001068628198 | R52: 6.396569222e-08
A53: 23.43999 | B53: ='DF raw data'!G58 -> -8.2579654e-06 | C53: ='DF raw data'!H58 -> -2.0422387e-06 | D53: ='DF raw data'!I58 -> -3.0192866e-06 | F53: -8.26985687e-06 | G53: -2.050241348e-06 | H53: -3.023634373e-06 | J53: 3.270145839e-06 | K53: -3.84303802e-07 | L53: 6.418318689e-06 | N53: -1.594817008e-05 | O53: -0.0001028620765 | P53: 7.786177413e-05 | Q53: 0.001107572322 | R53: 6.712516608e-08
A54: 23.94016 | B54: ='DF raw data'!G59 -> -1.4430088e-05 | C54: ='DF raw data'!H59 -> -3.3065928e-06 | D54: ='DF raw data'!I59 -> 3.0993572e-06 | F54: -1.445086733e-05 | G54: -3.319549904e-06 | H54: 3.103820274e-06 | J54: 3.293804959e-06 | K54: 6.412588673e-06 | L54: 4.613235507e-06 | N54: -1.430070765e-05 | O54: -0.0001100148614 | P54: 8.106915861e-05 | Q54: 0.001148120683 | R54: 7.051467748e-08
A55: 24.44033 | B55: ='DF raw data'!G60 -> -8.2690467e-06 | C55: ='DF raw data'!H60 -> -4.61338e-06 | D55: ='DF raw data'!I60 -> 5.1930142e-06 | F55: -8.280954127e-06 | G55: -4.631457836e-06 | H55: 5.20049214e-06 | J55: 9.412481784e-07 | K55: 6.416339514e-06 | L55: -4.660698455e-06 | N55: -1.382992355e-05 | O55: -0.0001169321743 | P55: 8.427841914e-05 | Q55: 0.00119027422 | R55: 7.416297684e-08
A56: 24.9405 | B56: ='DF raw data'!G61 -> 6.2672081e-07 | C56: ='DF raw data'!H61 -> -1.2257021e-05 | D56: ='DF raw data'!I61 -> 7.7175455e-06 | F56: 6.27623288e-07 | G56: -1.230505095e-05 | H56: 7.728658766e-06 | J56: -2.452233939e-06 | K56: 6.437635739e-06 | L56: 1.602925293e-06 | N56: -1.50564574e-05 | O56: -0.0001244629626 | P56: 8.749833141e-05 | Q56: 0.00123403826 | R56: 7.810564434e-08
A57: 25.44067 | B57: ='DF raw data'!G62 -> -4.5622545e-07 | C57: ='DF raw data'!H62 -> -7.2306875e-06 | D57: ='DF raw data'!I62 -> 4.2183997e-06 | F57: -4.568824146e-07 | G57: -7.25902143e-06 | H57: 4.224474196e-06 | J57: -2.40096662e-06 | K57: 8.567976838e-06 | L57: 4.393228953e-06 | N57: -1.625734887e-05 | O57: -0.0001325944008 | P57: 9.178377638e-05 | Q57: 0.001279945752 | R57: 8.24514029e-08
A58: 25.94084 | B58: ='DF raw data'!G63 -> -3.4858469e-06 | C58: ='DF raw data'!H63 -> -8.1433291e-06 | D58: ='DF raw data'!I63 -> -3.8289186e-06 | F58: -3.49086652e-06 | G58: -8.175239276e-06 | H58: -3.834432243e-06 | J58: -3.324638896e-06 | K58: -5.201414632e-06 | L58: -1.297015316e-07 | N58: -1.792023351e-05 | O58: -0.000141557564 | P58: 8.918218483e-05 | Q58: 0.001324552005 | R58: 8.659010801e-08
A59: 26.44101 | B59: ='DF raw data'!G64 -> -3.7910297e-06 | C59: ='DF raw data'!H64 -> -6.2712573e-08 | D59: ='DF raw data'!I64 -> 1.6755687e-06 | F59: -3.796488783e-06 | G59: -6.295831639e-08 | H59: 1.677981519e-06 | J59: -2.706319296e-06 | K59: -3.773909794e-06 | L59: 8.309202246e-07 | N59: -1.927385323e-05 | O59: -0.0001511977671 | P59: 8.729458836e-05 | Q59: 0.001368214139 | R59: 9.058737991e-08
A60: 26.94118 | B60: ='DF raw data'!G65 -> 6.7764523e-07 | C60: ='DF raw data'!H65 -> -1.004947e-05 | D60: ='DF raw data'!I65 -> 2.2831402e-06 | F60: 6.786210391e-07 | G60: -1.008884952e-05 | H60: 2.286427922e-06 | J60: -1.123348496e-06 | K60: 1.389728889e-06 | L60: -5.579663662e-06 | N60: -1.983571845e-05 | O60: -0.0001611189984 | P60: 8.798968906e-05 | Q60: 0.001412223942 | R60: 9.465658352e-08
A61: 27.44135 | B61: ='DF raw data'!G66 -> -5.563499e-07 | C61: ='DF raw data'!H66 -> -6.2190628e-07 | D61: ='DF raw data'!I66 -> -1.5437879e-06 | F61: -5.571510439e-07 | G61: -6.243432611e-07 | H61: -1.546010955e-06 | J61: 2.078289133e-06 | K61: 3.296911138e-06 | L61: -5.799211256e-06 | N61: -1.879622057e-05 | O61: -0.0001705203041 | P61: 8.963870511e-05 | Q61: 0.001457058533 | R61: 9.885220723e-08
A62: 27.94152 | B62: ='DF raw data'!G67 -> -4.6555006e-06 | C62: ='DF raw data'!H67 -> -5.9468692e-07 | D62: ='DF raw data'!I67 -> -6.3197044e-06 | F62: -4.662204521e-06 | G62: -5.970172402e-07 | H62: -6.328804774e-06 | J62: 3.212721467e-06 | K62: -1.783679384e-06 | L62: 2.714317897e-06 | N62: -1.718931368e-05 | O62: -0.0001791178831 | P62: 8.874656219e-05 | Q62: 0.001501446901 | R62: 1.029393088e-07
A63: 28.44169 | B63: ='DF raw data'!G68 -> -4.3154078e-06 | C63: ='DF raw data'!H68 -> -6.139654e-06 | D63: ='DF raw data'!I68 -> 1.2442936e-06 | F63: -4.321621987e-06 | G63: -6.163712642e-06 | H63: 1.246085383e-06 | J63: 2.111908776e-06 | K63: 4.835584096e-07 | L63: 1.564008434e-06 | N63: -1.613300027e-05 | O63: -0.0001871871258 | P63: 8.89884236e-05 | Q63: 0.001545956241 | R63: 1.070303059e-07
A64: 28.94186 | B64: ='DF raw data'!G69 -> -2.1138123e-06 | C64: ='DF raw data'!H69 -> -1.5517592e-06 | D64: ='DF raw data'!I69 -> 9.5497116e-06 | F64: -2.11685619e-06 | G64: -1.557839872e-06 | H64: 9.563463185e-06 | J64: 3.674761648e-06 | K64: 6.936333792e-06 | L64: 6.28035e-06 | N64: -1.429499473e-05 | O64: -0.0001943370534 | P64: 9.245776967e-05 | Q64: 0.001592200844 | R64: 1.114081869e-07
A65: 29.44203 | B65: ='DF raw data'!G70 -> -1.4929112e-06 | C65: ='DF raw data'!H70 -> 1.034087e-05 | D65: ='DF raw data'!I70 -> 1.6260485e-06 | F65: -1.495060992e-06 | G65: 1.038139139e-05 | H65: 1.62839001e-06 | J65: 4.161866871e-06 | K65: -1.392010093e-06 | L65: 2.941858785e-06 | N65: -1.221335378e-05 | O65: -0.0002004458065 | P65: 9.176152798e-05 | Q65: 0.001638097207 | R65: 1.156943157e-07
A66: 29.9422 | B66: ='DF raw data'!G71 -> -2.6198649e-07 | C66: ='DF raw data'!H71 -> 1.3268264e-05 | D66: ='DF raw data'!I71 -> -6.0841016e-06 | F66: -2.623637505e-07 | G66: 1.332025657e-05 | H66: -6.092862706e-06 | J66: 3.046612614e-06 | K66: 6.560201044e-06 | L66: -1.83220398e-07 | N66: -1.068952955e-05 | O66: -0.0002057923885 | P66: 9.504274374e-05 | Q66: 0.001685634736 | R66: 1.202695653e-07
A67: 30.44237 | B67: ='DF raw data'!G72 -> -9.3214584e-07 | C67: ='DF raw data'!H72 -> -1.6418084e-05 | D67: ='DF raw data'!I72 -> -1.5147714e-06 | F67: -9.3348813e-07 | G67: -1.648241935e-05 | H67: -1.516952671e-06 | J67: 4.980053365e-06 | K67: 7.267189713e-06 | L67: -1.089929742e-06 | N67: -8.198656257e-06 | O67: -0.0002098931104 | P67: 9.867757402e-05 | Q67: 0.001734990299 | R67: 1.251734729e-07
A68: 30.94254 | B68: ='DF raw data'!G73 -> 1.3190474e-07 | C68: ='DF raw data'!H73 -> -3.2828441e-06 | D68: ='DF raw data'!I73 -> -5.1637949e-06 | F68: 1.320946828e-07 | G68: -3.295708143e-06 | H68: -5.171230765e-06 | J68: 4.227437457e-06 | K68: -9.58064094e-06 | L68: -1.391253024e-06 | N68: -6.084218865e-06 | O68: -0.0002129362542 | P68: 9.388562484e-05 | Q68: 0.001781949072 | R68: 1.296007417e-07
A69: 31.44271 | B69: ='DF raw data'!G74 -> -3.0999011e-06 | C69: ='DF raw data'!H74 -> -2.6725428e-07 | D69: ='DF raw data'!I74 -> -8.5117981e-06 | F69: -3.104364958e-06 | G69: -2.683015337e-07 | H69: -8.524055089e-06 | J69: 3.360453996e-06 | K69: -3.267176878e-06 | L69: -6.296881972e-06 | N69: -4.40342059e-06 | O69: -0.000215138713 | P69: 9.225148098e-05 | Q69: 0.001828090495 | R69: 1.338670547e-07
A70: 31.94288 | B70: ='DF raw data'!G75 -> -1.1755307e-05 | C70: ='DF raw data'!H75 -> 2.9321952e-06 | D70: ='DF raw data'!I75 -> -8.7020062e-06 | F70: -1.177223464e-05 | G70: 2.943685202e-06 | H70: -8.714537089e-06 | J70: 3.863334302e-06 | K70: 4.668960821e-06 | L70: -9.039262521e-06 | N70: -2.471096672e-06 | O70: -0.0002163746815 | P70: 9.458675511e-05 | Q70: 0.001875399952 | R70: 1.38344957e-07
A71: 32.44305 | B71: ='DF raw data'!G76 -> -7.845455e-06 | C71: ='DF raw data'!H76 -> 1.8035341e-06 | D71: ='DF raw data'!I76 -> -7.4693639e-06 | F71: -7.856752455e-06 | G71: =(1-$G$1*($B$2-$G$2))*C71*$M$2/$M$1 -> 1.810601368e-06 | H71: -7.480119784e-06 | J71: =-CELL("contents", INDEX($F$6:$F$1203,1204-CELL("row",F71))) -> 3.176092597e-06 | K71: =CELL("contents", INDEX($G$6:$G$1203,1204-CELL("row",G71))) -> 5.644627111e-07 | L71: =-CELL("contents", INDEX($H$6:$H$1203,1204-CELL("row",H71))) -> 5.278628195e-07 | N71: -8.825104379e-07 | O71: -0.0002168160867 | P71: 9.486908243e-05 | Q71: 0.001922850621 | R71: 1.428469479e-07
A72: =A71+$B$1 -> 32.94322 | B72: ='DF raw data'!G77 -> -2.2518518e-06 | C72: ='DF raw data'!H77 -> 6.7151223e-06 | D72: ='DF raw data'!I77 -> -6.1742217e-06 | F72: -2.255094467e-06 | G72: 6.741435953e-06 | H72: -6.183112579e-06 | J72: 9.044332111e-06 | K72: 9.526524007e-06 | L72: 5.052928154e-06 | N72: =J72*$B$1+N71 -> 3.641193154e-06 | O72: =N72*$B$1+O71 -> -0.0002149948711 | P72: =K72*$B$1+P71 -> 9.963396394e-05 | Q72: =P72*$B$1+Q71 -> 0.001972684541 | R72: =(N72^2+P72^2)*$B$1+R71 -> 1.478187303e-07
A73: 33.44339 | B73: ='DF raw data'!G78 -> -1.3080146e-06 | C73: ='DF raw data'!H78 -> 1.0421998e-06 | D73: ='DF raw data'!I78 -> -9.4468169e-06 | F73: -1.309898141e-06 | G73: 1.046283729e-06 | H73: -9.460420316e-06 | J73: 1.259128838e-05 | K73: 7.042555304e-06 | L73: 1.172566568e-06 | N73: 9.938977865e-06 | O73: -0.0002100236926 | P73: 0.0001031564388 | Q73: 0.002024280297 | R73: 1.531905732e-07
A74: 33.94356 | B74: ='DF raw data'!G79 -> 4.8788098e-07 | C74: ='DF raw data'!H79 -> -7.2879275e-06 | D74: ='DF raw data'!I79 -> 5.9645686e-07 | F74: 4.885835286e-07 | G74: -7.316485728e-06 | H74: 5.973157579e-07 | J74: 8.088504799e-06 | K74: -1.401655642e-06 | L74: 2.597946263e-06 | N74: 1.398460531e-05 | O74: -0.0002030290125 | P74: 0.0001024553727 | Q74: 0.002075525401 | R74: 1.585387272e-07
A75: 34.44373 | B75: ='DF raw data'!G80 -> 1.9956194e-06 | C75: ='DF raw data'!H80 -> -5.5756545e-06 | D75: ='DF raw data'!I80 -> 3.7597085e-06 | F75: 1.998493092e-06 | G75: -5.597503073e-06 | H75: 3.76512248e-06 | J75: 6.203059562e-06 | K75: 5.860980798e-06 | L75: 2.83554962e-06 | N75: 1.708718961e-05 | O75: -0.0001944825129 | P75: 0.0001053868595 | Q75: 0.002128236746 | R75: 1.642398461e-07
A76: 34.9439 | B76: ='DF raw data'!G81 -> 1.9279312e-06 | C76: ='DF raw data'!H81 -> -2.0589152e-06 | D76: ='DF raw data'!I81 -> -3.7829348e-06 | F76: 1.930707421e-06 | G76: -2.066983196e-06 | H76: -3.788382226e-06 | J76: 6.67512586e-06 | K76: -1.309363702e-06 | L76: 7.411467066e-06 | N76: 2.042588731e-05 | O76: -0.0001842660968 | P76: 0.000104731955 | Q76: 0.002180620528 | R76: 1.699347813e-07
A77: 35.44407 | B77: ='DF raw data'!G82 -> 6.7537513e-07 | C77: ='DF raw data'!H82 -> 1.1271902e-06 | D77: ='DF raw data'!I82 -> 4.9622718e-06 | F77: 6.763476702e-07 | G77: 1.13160717e-06 | H77: 4.969417471e-06 | J77: 5.275379824e-06 | K77: 2.368502106e-06 | L77: 6.822548243e-06 | N77: 2.306447404e-05 | O77: -0.0001727299389 | P77: 0.0001059166087 | Q77: 0.002233596838 | R77: 1.758119279e-07
A78: 35.94424 | B78: ='DF raw data'!G83 -> -9.0511566e-07 | C78: ='DF raw data'!H83 -> 2.6330515e-06 | D78: ='DF raw data'!I83 -> 1.1663399e-05 | F78: -9.064190266e-07 | G78: 2.643369287e-06 | H78: 1.168019429e-05 | J78: 5.021964931e-06 | K78: 2.657700626e-06 | L78: 7.74105479e-06 | N78: 2.557631024e-05 | O78: -0.0001599374358 | P78: 0.0001072459109 | Q78: 0.002287238025 | R78: 1.818919109e-07
A79: 36.44441 | B79: ='DF raw data'!G84 -> 2.4490765e-07 | C79: ='DF raw data'!H84 -> -2.2191609e-06 | D79: ='DF raw data'!I84 -> 3.8588073e-06 | F79: 2.45260317e-07 | G79: -2.22785683e-06 | H79: 3.864363983e-06 | J79: 6.110142954e-06 | K79: -5.58172077e-07 | L79: 6.984438229e-06 | N79: 2.863242044e-05 | O79: -0.000145616358 | P79: 0.0001069667299 | Q79: 0.002340739575 | R79: 1.880248438e-07
A80: 36.94458 | B80: ='DF raw data'!G85 -> -3.261973e-06 | C80: ='DF raw data'!H85 -> -2.9179184e-06 | D80: ='DF raw data'!I85 -> -5.7850089e-06 | F80: -3.266670241e-06 | G80: -2.929352457e-06 | H80: -5.793339313e-06 | J80: 7.861831058e-06 | K80: 8.6281218e-06 | L80: 1.042743992e-05 | N80: 3.256467248e-05 | O80: -0.0001293284858 | P80: 0.0001112822576 | Q80: 0.002396399622 | R80: 1.947492287e-07
A81: 37.44475 | B81: ='DF raw data'!G86 -> -7.3856218e-06 | C81: ='DF raw data'!H86 -> 2.1749936e-06 | D81: ='DF raw data'!I86 -> -8.5121983e-06 | F81: -7.396257095e-06 | G81: 2.183516457e-06 | H81: -8.524455866e-06 | J81: 6.56462707e-06 | K81: 7.779546982e-06 | L81: 5.022004588e-06 | N81: 3.5848102e-05 | O81: -0.0001113983406 | P81: 0.0001151733536 | Q81: 0.002454005878 | R81: 2.020266961e-07
A82: 37.94492 | B82: ='DF raw data'!G87 -> -7.1401819e-06 | C82: ='DF raw data'!H87 -> 4.2161655e-06 | D82: ='DF raw data'!I87 -> -9.4373462e-08 | F82: -7.150463762e-06 | G82: 4.232686825e-06 | H82: -9.450935979e-08 | J82: 3.806080175e-07 | K82: -5.072708859e-07 | L82: 1.949038279e-06 | N82: 3.603847071e-05 | O82: -9.337297874e-05 | P82: 0.000114919632 | Q82: 0.00251148523 | R82: 2.092818085e-07
A83: 38.44509 | B83: ='DF raw data'!G88 -> -2.4901467e-06 | C83: ='DF raw data'!H88 -> 5.6973187e-07 | D83: ='DF raw data'!I88 -> 6.9919074e-06 | F83: -2.493732511e-06 | G83: 5.719644022e-07 | H83: 7.001975747e-06 | J83: -3.034128663e-06 | K83: -2.005501516e-06 | L83: 1.350588751e-06 | N83: 3.452089058e-05 | O83: -7.610666489e-05 | P83: 0.0001139165403 | Q83: 0.002568462866 | R83: 2.163685522e-07
A84: 38.94526 | B84: ='DF raw data'!G89 -> -1.4404443e-06 | C84: ='DF raw data'!H89 -> 2.7017657e-06 | D84: ='DF raw data'!I89 -> 4.6022186e-07 | F84: -1.44251854e-06 | G84: 2.712352749e-06 | H84: 4.608845795e-07 | J84: -2.599060566e-07 | K84: 6.077711657e-06 | L84: 2.709581787e-06 | N84: 3.439089337e-05 | O84: -5.890537176e-05 | P84: 0.0001169564293 | Q84: 0.002626960963 | R84: 2.238018487e-07
A85: 39.44543 | B85: ='DF raw data'!G90 -> -2.2548568e-06 | C85: ='DF raw data'!H90 -> 9.3116132e-06 | D85: ='DF raw data'!I90 -> 1.2056291e-06 | F85: -2.258103794e-06 | G85: 9.348101375e-06 | H85: 1.207365206e-06 | J85: 5.657932207e-06 | K85: 6.033106953e-06 | L85: 1.096386927e-06 | N85: 3.722082132e-05 | O85: -4.028863356e-05 | P85: 0.0001199740084 | Q85: 0.002686968363 | R85: 2.316941072e-07
A86: 39.9456 | B86: ='DF raw data'!G91 -> 4.4922481e-06 | C86: ='DF raw data'!H91 -> 3.5047294e-06 | D86: ='DF raw data'!I91 -> 8.5933307e-06 | F86: 4.498716937e-06 | G86: 3.518462915e-06 | H86: 8.605705096e-06 | J86: 7.884564747e-06 | K86: -9.114093579e-06 | L86: 3.586693612e-06 | N86: 4.116444407e-05 | O86: -1.969941357e-05 | P86: 0.0001154154122 | Q86: 0.00274469569 | R86: 2.392042742e-07
A87: 40.44577 | B87: ='DF raw data'!G92 -> 8.9509767e-06 | C87: ='DF raw data'!H92 -> 5.3852518e-06 | D87: ='DF raw data'!I92 -> 5.1610727e-06 | F87: =(1-$G$1*($B$2-$G$2))*B87 -> 8.963866106e-06 | G87: 5.406354267e-06 | H87: 5.168504645e-06 | J87: 4.924304803e-06 | K87: -2.514108046e-06 | L87: 8.716941647e-06 | N87: 4.36274336e-05 | O87: 2.121719896e-06 | P87: 0.0001141579308 | Q87: 0.002801794062 | R87: 2.466745063e-07
A88: 40.94594 | B88: ='DF raw data'!G93 -> 4.5234183e-06 | C88: ='DF raw data'!H93 -> 1.8635753e-06 | D88: ='DF raw data'!I93 -> 7.2679718e-06 | F88: 4.529932022e-06 | G88: 1.870877844e-06 | H88: 7.278437679e-06 | J88: 8.509401018e-07 | K88: 1.162954326e-06 | L88: 1.019143156e-05 | N88: 4.405304831e-05 | O88: 2.415573307e-05 | P88: 0.0001147396057 | Q88: 0.002859183371 | R88: 2.542299984e-07
A89: 41.44611 | B89: ='DF raw data'!G94 -> -1.0832555e-07 | C89: ='DF raw data'!H94 -> -4.8502125e-06 | D89: ='DF raw data'!I94 -> 6.0477064e-06 | F89: -1.084815388e-07 | G89: -4.86921838e-06 | H89: 6.056415097e-06 | J89: 1.269307975e-07 | K89: 3.365627858e-06 | L89: 1.190400612e-05 | N89: 4.411653529e-05 | O89: 4.622150053e-05 | P89: 0.0001164229918 | Q89: 0.002917414658 | R89: 2.619829243e-07
A90: 41.94628 | B90: ='DF raw data'!G95 -> -2.3230107e-06 | C90: ='DF raw data'!H95 -> 1.9414972e-06 | D90: ='DF raw data'!I95 -> 8.1768985e-06 | F90: -2.326355835e-06 | G90: 1.949105086e-06 | H90: 8.188673234e-06 | J90: 2.549816156e-06 | K90: 6.444600524e-06 | L90: 1.764618597e-06 | N90: 4.539187684e-05 | O90: 6.892515556e-05 | P90: 0.0001196463876 | Q90: 0.002977258192 | R90: 2.701735485e-07
A91: 42.44645 | B91: ='DF raw data'!G96 -> -3.1033717e-06 | C91: ='DF raw data'!H96 -> 4.5546685e-06 | D91: ='DF raw data'!I96 -> 1.1335535e-06 | F91: -3.107840555e-06 | G91: 4.572516271e-06 | H91: 1.135185817e-06 | J91: 7.655066545e-07 | K91: -3.356251259e-06 | L91: -3.376019578e-06 | N91: 4.57747603e-05 | O91: 9.182031742e-05 | P91: 0.0001179676914 | Q91: 0.003036262092 | R91: 2.781821229e-07
A92: 42.94662 | B92: ='DF raw data'!G97 -> 2.1558797e-06 | C92: ='DF raw data'!H97 -> 1.1848304e-06 | D92: ='DF raw data'!I97 -> -3.201246e-07 | F92: 2.158984167e-06 | G92: 1.189473237e-06 | H92: -3.205855794e-07 | J92: -5.287225757e-06 | K92: -4.615923903e-07 | L92: -2.632803185e-06 | N92: 4.313024859e-05 | O92: 0.0001133927739 | P92: 0.0001177368167 | Q92: 0.003095150516 | R92: 2.860458839e-07
A93: 43.44679 | B93: ='DF raw data'!G98 -> 7.1749737e-06 | C93: ='DF raw data'!H98 -> -5.073035e-06 | D93: ='DF raw data'!I98 -> 1.3164689e-07 | F93: 7.185305662e-06 | G93: -5.092914025e-06 | H93: 1.318364615e-07 | J93: -3.826980428e-06 | K93: -1.139914696e-06 | L93: -6.618738378e-06 | N93: 4.121610779e-05 | O93: 0.0001340078345 | P93: 0.0001171666656 | Q93: 0.003153753767 | R93: 2.93761904e-07
A94: 43.94696 | B94: ='DF raw data'!G99 -> 2.5798715e-06 | C94: ='DF raw data'!H99 -> -7.5078142e-06 | D94: ='DF raw data'!I99 -> -5.2664222e-06 | F94: 2.583586515e-06 | G94: -7.537234069e-06 | H94: -5.274005848e-06 | J94: 5.495950088e-07 | K94: 1.525673417e-07 | L94: -7.050029845e-06 | N94: 4.149099873e-05 | O94: 0.0001547603873 | P94: 0.0001172429752 | Q94: 0.003212395186 | R94: 3.014982425e-07
A95: 44.44713 | B95: ='DF raw data'!G100 -> -3.6026624e-06 | C95: ='DF raw data'!H100 -> -4.8288648e-06 | D95: ='DF raw data'!I100 -> -1.0648849e-05 | F95: -3.607850234e-06 | G95: -4.847787028e-06 | H95: -1.066418334e-05 | J95: -2.364804021e-06 | K95: -3.638111135e-07 | L95: 1.348322693e-06 | N95: 4.03081947e-05 | O95: 0.0001749213371 | P95: 0.0001170610078 | Q95: 0.00327094559 | R95: 3.091648633e-07
A96: 44.9473 | B96: ='DF raw data'!G101 -> 3.3390158e-06 | C96: ='DF raw data'!H101 -> 1.7540322e-06 | D96: ='DF raw data'!I101 -> -5.7312322e-06 | F96: 3.343823983e-06 | G96: 1.760905492e-06 | H96: -5.739485174e-06 | J96: -3.160664913e-06 | K96: -1.466084726e-06 | L96: 4.551053093e-06 | N96: 3.872732493e-05 | O96: 0.0001942915832 | P96: 0.0001163277162 | Q96: 0.003329129224 | R96: 3.166833904e-07
A97: 45.44747 | B97: ='DF raw data'!G102 -> 1.0515315e-05 | C97: ='DF raw data'!H102 -> 7.4439004e-06 | D97: ='DF raw data'!I102 -> -5.4340921e-07 | F97: 1.053045705e-05 | G97: 7.473069819e-06 | H97: -5.441917193e-07 | J97: -6.714730508e-07 | K97: 6.168798393e-06 | L97: -8.855161196e-07 | N97: 3.839147426e-05 | O97: 0.0002134938469 | P97: 0.0001194131641 | Q97: 0.003388856106 | R97: 3.245527696e-07
A98: 45.94764 | B98: ='DF raw data'!G103 -> 5.4579787e-06 | C98: ='DF raw data'!H103 -> 1.7276132e-06 | D98: ='DF raw data'!I103 -> 1.7433879e-06 | F98: 5.465838189e-06 | G98: 1.734382967e-06 | H98: 1.745898379e-06 | J98: -2.501905564e-06 | K98: 3.369780467e-06 | L98: -4.593247966e-06 | N98: 3.714009615e-05 | O98: 0.0002320702088 | P98: 0.0001210986272 | Q98: 0.003449426007 | R98: 3.325776293e-07
A99: 46.44781 | B99: ='DF raw data'!G104 -> 3.5592882e-06 | C99: ='DF raw data'!H104 -> 1.138799e-06 | D99: ='DF raw data'!I104 -> 4.8838078e-06 | F99: 3.564413575e-06 | G99: 1.14326146e-06 | H99: 4.890840483e-06 | J99: -3.553855493e-06 | K99: -7.221245379e-07 | L99: -1.060160536e-05 | N99: 3.536256425e-05 | O99: 0.0002497575025 | P99: 0.0001207374422 | Q99: 0.003509815253 | R99: 3.404943405e-07
A100: 46.94798 | B100: ='DF raw data'!G105 -> 4.087814e-06 | C100: ='DF raw data'!H105 -> 1.0810243e-06 | D100: ='DF raw data'!I105 -> 1.767675e-06 | F100: 4.093700452e-06 | G100: 1.085260366e-06 | H100: 1.770220452e-06 | J100: -9.226801789e-07 | K100: 4.262292885e-07 | L100: -7.367813095e-06 | N100: 3.49010673e-05 | O100: 0.0002672139693 | P100: 0.0001209506293 | Q100: 0.003570311129 | R100: 3.484206041e-07
A101: 47.44815 | B101: ='DF raw data'!G106 -> 3.0847648e-06 | C101: ='DF raw data'!H106 -> -4.8407392e-06 | D101: ='DF raw data'!I106 -> 9.8067835e-07 | F101: 3.089206861e-06 | G101: -4.859707958e-06 | H101: 9.820905268e-07 | J101: 9.017411301e-07 | K101: 4.518536273e-06 | L101: 2.863748168e-06 | N101: 3.535209116e-05 | O101: 0.0002848960248 | P101: 0.0001232106656 | Q101: 0.003631937408 | R101: 3.566387165e-07
A102: 47.94832 | B102: ='DF raw data'!G107 -> 4.6248088e-06 | C102: ='DF raw data'!H107 -> -1.0086963e-05 | D102: ='DF raw data'!I107 -> -1.063662e-06 | F102: 4.631468525e-06 | G102: -1.012648944e-05 | H102: -1.065193673e-06 | J102: 3.256610075e-07 | K102: -5.767083692e-06 | L102: 5.133336676e-07 | N102: 3.551497703e-05 | O102: 0.0003026595508 | P102: 0.0001203261433 | Q102: 0.003692120935 | R102: 3.645112395e-07
A103: 48.44849 | B103: ='DF raw data'!G108 -> 4.0412842e-06 | C103: ='DF raw data'!H108 -> 2.7381927e-06 | D103: ='DF raw data'!I108 -> 4.953647e-07 | F103: 4.047103649e-06 | G103: 2.74892249e-06 | H103: 4.960780252e-07 | J103: -1.970280024e-06 | K103: -7.411454718e-06 | L103: 1.009875029e-06 | N103: 3.452950207e-05 | O103: 0.0003199301719 | P103: 0.000116619156 | Q103: 0.003750450338 | R103: 3.719099112e-07
A104: 48.94866 | B104: ='DF raw data'!G109 -> 3.2245432e-06 | C104: ='DF raw data'!H109 -> -1.6991955e-06 | D104: ='DF raw data'!I109 -> 5.1601414e-06 | F104: 3.229186542e-06 | G104: -1.705853911e-06 | H104: 5.167572004e-06 | J104: -1.660584704e-06 | K104: -4.276219645e-06 | L104: 8.206468522e-06 | N104: 3.369892742e-05 | O104: 0.0003367853644 | P104: 0.0001144803192 | Q104: 0.00380770996 | R104: 3.790330128e-07
A105: 49.44883 | B105: ='DF raw data'!G110 -> 1.9539646e-06 | C105: ='DF raw data'!H110 -> -1.5265407e-06 | D105: ='DF raw data'!I110 -> 6.1685673e-06 | F105: 1.956778309e-06 | G105: -1.532522551e-06 | H105: 6.177450037e-06 | J105: 4.091562678e-07 | K105: 7.014024038e-06 | L105: 9.830828537e-07 | N105: 3.390357511e-05 | O105: 0.0003537429156 | P105: 0.0001179885236 | Q105: 0.00386672428 | R105: 3.865709469e-07
A106: 49.949 | B106: ='DF raw data'!G111 -> -4.3175469e-06 | C106: ='DF raw data'!H111 -> -3.2691968e-08 | D106: ='DF raw data'!I111 -> 4.2441566e-06 | F106: -4.323764168e-06 | G106: -3.282007365e-08 | H106: 4.250268186e-06 | J106: -1.72555783e-06 | K106: 6.081331085e-06 | L106: -3.171802728e-06 | N106: 3.304050285e-05 | O106: 0.0003702687839 | P106: 0.000121030223 | Q106: 0.003927259966 | R106: 3.944436175e-07
A107: 50.44917 | B107: ='DF raw data'!G112 -> -6.73868e-06 | C107: ='DF raw data'!H112 -> -7.733307e-06 | D107: ='DF raw data'!I112 -> 1.4434293e-06 | F107: -6.748383699e-06 | G107: -7.763610478e-06 | H107: 1.445507838e-06 | J107: -5.030604855e-06 | K107: -8.760359459e-08 | L107: 3.137208084e-06 | N107: 3.052434522e-05 | O107: 0.0003855361456 | P107: 0.0001209864063 | Q107: 0.003987773737 | R107: 4.022309874e-07
A108: 50.94934 | B108: ='DF raw data'!G113 -> -3.3117697e-06 | C108: ='DF raw data'!H113 -> 4.2488527e-06 | D108: ='DF raw data'!I113 -> 5.1720522e-06 | F108: -3.316538648e-06 | G108: 4.265502112e-06 | H108: 5.179499955e-06 | J108: -8.017001182e-06 | K108: -1.511425504e-05 | L108: 1.22901724e-05 | N108: 2.651448174e-05 | O108: 0.000398797894 | P108: 0.0001134267094 | Q108: 0.004044506374 | R108: 4.090176122e-07
A109: 51.44951 | B109: ='DF raw data'!G114 -> -1.2454705e-06 | C109: ='DF raw data'!H114 -> 1.0540741e-06 | D109: ='DF raw data'!I114 -> 5.9154586e-06 | F109: -1.247263978e-06 | G109: 1.058204559e-06 | H109: 5.92397686e-06 | J109: -4.985953549e-06 | K109: -1.219306986e-05 | L109: -2.30669156e-06 | N109: 2.402065735e-05 | O109: 0.0004108123062 | P109: 0.0001073281016 | Q109: 0.004098188671 | R109: 4.150678252e-07
A110: 51.94968 | B110: ='DF raw data'!G115 -> 1.9678471e-06 | C110: ='DF raw data'!H115 -> -5.2374171e-06 | D110: ='DF raw data'!I115 -> -3.8345138e-06 | F110: 1.9706808e-06 | G110: -5.257940267e-06 | H110: -3.8400355e-06 | J110: 3.866921861e-07 | K110: -3.437425805e-06 | L110: -6.898136733e-06 | N110: 2.421406918e-05 | O110: 0.0004229234571 | P110: 0.0001056088043 | Q110: 0.004151011026 | R110: 4.209395913e-07
A111: 52.44985 | B111: ='DF raw data'!G116 -> 4.6814157e-06 | C111: ='DF raw data'!H116 -> 2.3186974e-06 | D111: ='DF raw data'!I116 -> -1.2025984e-05 | F111: 4.688156939e-06 | G111: 2.32778337e-06 | H111: -1.204330142e-05 | J111: 2.884044953e-06 | K111: -2.147219179e-06 | L111: -6.29645666e-07 | N111: 2.565658195e-05 | O111: 0.0004357561097 | P111: 0.0001045348297 | Q111: 0.004203296212 | R111: 4.267344563e-07
A112: 52.95002 | B112: ='DF raw data'!G117 -> 4.4440521e-06 | C112: ='DF raw data'!H117 -> -2.3563298e-07 | D112: ='DF raw data'!I117 -> -1.0645254e-05 | F112: 4.450451535e-06 | G112: -2.365563235e-07 | H112: -1.066058317e-05 | J112: 1.748803856e-06 | K112: -1.993982354e-06 | L112: 3.873953872e-06 | N112: 2.653128117e-05 | O112: 0.0004490262606 | P112: 0.0001035374996 | Q112: 0.004255082563 | R112: 4.324483597e-07
A113: 53.45019 | B113: ='DF raw data'!G118 -> 2.4150056e-06 | C113: ='DF raw data'!H118 -> 3.267897e-06 | D113: ='DF raw data'!I118 -> 1.4636564e-06 | F113: 2.418483208e-06 | G113: 3.280702472e-06 | H113: 1.465764065e-06 | J113: -2.225895481e-06 | K113: 3.151830951e-07 | L113: 3.087419892e-06 | N113: 2.541795503e-05 | O113: 0.0004617395592 | P113: 0.0001036951447 | Q113: 0.004306947764 | R113: 4.381496752e-07
A114: 53.95036 | B114: ='DF raw data'!G119 -> -1.5481139e-06 | C114: ='DF raw data'!H119 -> 1.1476738e-05 | D114: ='DF raw data'!I119 -> 4.803343e-06 | F114: -1.550343184e-06 | G114: 1.152171036e-05 | H114: 4.810259814e-06 | J114: -8.703769606e-06 | K114: -7.415340686e-06 | L114: -3.453802324e-06 | N114: 2.106459059e-05 | O114: 0.0004722754355 | P114: 9.998621375e-05 | Q114: 0.004356957868 | R114: 4.433719302e-07
A115: 54.45053 | B115: ='DF raw data'!G120 -> -3.0441017e-06 | C115: ='DF raw data'!H120 -> 6.9212683e-06 | D115: ='DF raw data'!I120 -> 1.1513548e-08 | F115: -3.048485206e-06 | G115: 6.94838975e-06 | H115: 1.153012751e-08 | J115: -1.217412353e-05 | K115: -8.101164643e-06 | L115: -3.178535309e-06 | N115: 1.497545922e-05 | O115: 0.0004797657109 | P115: 9.593425423e-05 | Q115: 0.004404941304 | R115: 4.480873556e-07
A116: 54.9507 | B116: ='DF raw data'!G121 -> 1.4269742e-06 | C116: ='DF raw data'!H121 -> -3.8896696e-06 | D116: ='DF raw data'!I121 -> -1.8145918e-06 | F116: 1.429029043e-06 | G116: -3.904911529e-06 | H116: -1.817204812e-06 | J116: -8.408647041e-06 | K116: 4.245411191e-06 | L116: -6.748288462e-07 | N116: 1.076970623e-05 | O116: 0.0004851523949 | P116: 9.805768155e-05 | Q116: 0.004453986815 | R116: 4.529546577e-07
A117: 55.45087 | B117: ='DF raw data'!G122 -> 1.6216206e-06 | C117: ='DF raw data'!H122 -> -2.4463891e-06 | D117: ='DF raw data'!I122 -> 3.2887067e-06 | F117: 1.623955734e-06 | G117: -2.455975438e-06 | H117: 3.293442438e-06 | J117: -2.245481344e-06 | K117: 6.124193689e-06 | L117: 1.702035407e-06 | N117: 9.646583825e-06 | O117: 0.0004899773267 | P117: 0.0001011208195 | Q117: 0.004504564415 | R117: 4.581156502e-07
A118: 55.95104 | B118: ='DF raw data'!G123 -> -1.6175338e-06 | C118: ='DF raw data'!H123 -> 1.3146312e-05 | D118: ='DF raw data'!I123 -> 2.9425603e-06 | F118: -1.619863049e-06 | G118: 1.31978267e-05 | H118: 2.946797587e-06 | J118: 5.792726632e-07 | K118: 8.726976858e-06 | L118: 1.238756544e-06 | N118: 9.936318633e-06 | O118: 0.0004949471752 | P118: 0.0001054857915 | Q118: 0.004557325244 | R118: 4.637305499e-07
A119: 56.45121 | B119: ='DF raw data'!G124 -> -1.2856556e-06 | C119: ='DF raw data'!H124 -> 1.0795992e-05 | D119: ='DF raw data'!I124 -> -3.6703248e-06 | F119: -1.287506944e-06 | G119: 1.083829681e-05 | H119: -3.675610068e-06 | J119: -6.045617171e-07 | K119: -3.931569181e-06 | L119: 6.349265095e-06 | N119: 9.633934999e-06 | O119: 0.0004997657805 | P119: 0.0001035193386 | Q119: 0.004609102511 | R119: 4.691369205e-07
A120: 56.95138 | B120: ='DF raw data'!G125 -> 1.8327471e-06 | C120: ='DF raw data'!H125 -> 7.6273636e-06 | D120: ='DF raw data'!I125 -> -2.8253532e-06 | F120: 1.835386256e-06 | G120: 7.657251931e-06 | H120: -2.829421709e-06 | J120: -5.009486087e-07 | K120: -1.427009907e-05 | L120: 8.81758186e-06 | N120: 9.383375534e-06 | O120: 0.0005044590634 | P120: 9.638186311e-05 | Q120: 0.004657309828 | R120: 4.738272703e-07
A121: 57.45155 | B121: ='DF raw data'!G126 -> 5.3326867e-06 | C121: ='DF raw data'!H126 -> 9.0798521e-06 | D121: ='DF raw data'!I126 -> 6.1374844e-06 | F121: 5.340365769e-06 | G121: 9.115432104e-06 | H121: 6.146322378e-06 | J121: 1.448406006e-06 | K121: -8.963398777e-06 | L121: 4.128629277e-06 | N121: 1.010782477e-05 | O121: 0.0005095146941 | P121: 9.189863995e-05 | Q121: 0.00470327477 | R121: 4.781024875e-07
A122: 57.95172 | B122: ='DF raw data'!G127 -> 6.0713346e-06 | C122: ='DF raw data'!H127 -> 6.9288473e-07 | D122: ='DF raw data'!I127 -> 9.513441e-06 | F122: 6.080077322e-06 | G122: 6.955998449e-07 | H122: 9.527140355e-06 | J122: 1.989052116e-06 | K122: -9.442538991e-06 | L122: -5.919043967e-06 | N122: 1.110268896e-05 | O122: 0.0005150679261 | P122: 8.717576522e-05 | Q122: 0.004746877473 | R122: 4.819652423e-07
A123: 58.45189 | B123: ='DF raw data'!G128 -> 4.4953185e-06 | C123: ='DF raw data'!H128 -> 5.3103832e-07 | D123: ='DF raw data'!I128 -> 1.3620986e-06 | F123: 4.501791759e-06 | G123: 5.33119229e-07 | H123: 1.364060022e-06 | J123: -1.490730565e-06 | K123: -1.113352316e-05 | L123: -5.36105602e-06 | N123: 1.035707026e-05 | O123: 0.0005202482219 | P123: 8.160711094e-05 | Q123: 0.004787694902 | R123: 4.853498874e-07
A124: 58.95206 | B124: ='DF raw data'!G129 -> 1.1806685e-06 | C124: ='DF raw data'!H129 -> 6.7195242e-06 | D124: ='DF raw data'!I129 -> -5.254708e-06 | F124: 1.182368663e-06 | G124: 6.745855102e-06 | H124: -5.26227478e-06 | J124: -4.336950729e-06 | K124: -7.966141511e-06 | L124: 7.273508391e-07 | N124: 8.18785761e-06 | O124: 0.0005243435426 | P124: 7.762268594e-05 | Q124: 0.00482651944 | R124: 4.883970843e-07
A125: 59.45223 | B125: ='DF raw data'!G130 -> -9.9095746e-07 | C125: ='DF raw data'!H130 -> 2.28147e-06 | D125: ='DF raw data'!I130 -> -8.9253635e-06 | F125: -9.923844387e-07 | G125: 2.290410092e-06 | H125: -8.938216023e-06 | J125: -2.522188629e-07 | K125: -1.447600779e-06 | L125: 2.06214562e-06 | N125: 8.061705301e-06 | O125: 0.0005283757658 | P125: 7.689863946e-05 | Q125: 0.004864981833 | R125: 4.913872965e-07
A126: 59.9524 | B126: ='DF raw data'!G131 -> 2.1038857e-06 | C126: ='DF raw data'!H131 -> -1.5991257e-06 | D126: ='DF raw data'!I131 -> -1.5529047e-06 | F126: 2.106915295e-06 | G126: -1.60539198e-06 | H126: -1.555140883e-06 | J126: 7.470986751e-06 | K126: -7.779684017e-06 | L126: -2.545431551e-06 | N126: 1.179846874e-05 | O126: 0.0005342770059 | P126: 7.30074749e-05 | Q126: 0.004901497982 | R126: 4.941228739e-07
A127: 60.45257 | B127: ='DF raw data'!G132 -> -1.0919139e-07 | C127: ='DF raw data'!H132 -> -3.6972681e-06 | D127: ='DF raw data'!I132 -> 6.0956913e-06 | F127: -1.093486256e-07 | G127: -3.711756091e-06 | H127: 6.104469095e-06 | J127: 8.970331003e-06 | K127: -5.810081424e-06 | L127: -5.147308466e-06 | N127: 1.62851592e-05 | O127: 0.000542422354 | P127: 7.010144648e-05 | Q127: 0.004936560622 | R127: 4.96713464e-07
A128: 60.95274 | B128: ='DF raw data'!G133 -> -4.6310679e-06 | C128: ='DF raw data'!H133 -> -7.5949438e-06 | D128: ='DF raw data'!I133 -> 4.330806e-06 | F128: -4.637736638e-06 | G128: -7.624705092e-06 | H128: 4.337042361e-06 | J128: 3.131973256e-06 | K128: 2.863852292e-07 | L128: -2.300138837e-07 | N128: 1.785167827e-05 | O128: 0.0005513512279 | P128: 7.024468778e-05 | Q128: 0.004971694908 | R128: 4.993408563e-07
A129: 61.45291 | B129: ='DF raw data'!G134 -> -6.4217538e-06 | C129: ='DF raw data'!H134 -> -1.1691559e-05 | D129: ='DF raw data'!I134 -> 5.2131804e-07 | F129: -6.431001125e-06 | G129: -1.173737315e-05 | H129: 5.22068738e-07 | J129: -2.025358222e-06 | K129: 4.905917828e-06 | L129: -1.787955654e-06 | N129: 1.683865484e-05 | O129: 0.0005597734179 | P129: 7.26984807e-05 | Q129: 0.005008056507 | R129: 5.021261077e-07
A130: 61.95308 | B130: ='DF raw data'!G135 -> -7.3820129e-06 | C130: ='DF raw data'!H135 -> -5.6694562e-06 | D130: ='DF raw data'!I135 -> -8.2979577e-06 | F130: -7.392642999e-06 | G130: -5.691672341e-06 | H130: -8.309906759e-06 | J130: -6.193469872e-12 | K130: 1.50502221e-05 | L130: -8.74893455e-06 | N130: 1.683865175e-05 | O130: 0.0005681956063 | P130: 8.022615029e-05 | Q130: 0.00504818322 | R130: 5.054871377e-07
A131: 62.45325 | B131: ='DF raw data'!G136 -> -5.4714483e-06 | C131: ='DF raw data'!H136 -> 1.5865796e-06 | D131: ='DF raw data'!I136 -> -1.1443507e-05 | F131: -5.479327186e-06 | G131: 1.592796718e-06 | H131: -1.145998565e-05 | J131: 3.957249145e-06 | K131: -3.027539207e-06 | L131: -5.645445552e-06 | N131: 1.881794905e-05 | O131: 0.0005776077799 | P131: 7.8711866e-05 | Q131: 0.005087552534 | R131: 5.087630877e-07
A132: 62.95342 | B132: ='DF raw data'!G137 -> -7.9471027e-07 | C132: ='DF raw data'!H137 -> 3.7526395e-06 | D132: ='DF raw data'!I137 -> -5.3287845e-06 | F132: -7.958546528e-07 | G132: 3.767344467e-06 | H132: -5.33645795e-06 | J132: 6.467367718e-06 | K132: 2.94408697e-06 | L132: -1.945508003e-07 | N132: 2.205273236e-05 | O132: 0.000588637895 | P132: 8.018440998e-05 | Q132: 0.005127658371 | R132: 5.122221947e-07
A133: 63.45359 | B133: ='DF raw data'!G138 -> 1.8974304e-06 | C133: ='DF raw data'!H138 -> 6.014895e-06 | D133: ='DF raw data'!I138 -> -1.3568394e-06 | F133: 1.9001627e-06 | G133: 6.038464766e-06 | H133: -1.358793249e-06 | J133: 6.904000065e-06 | K133: 1.139258234e-05 | L133: 2.663196288e-06 | N133: 2.550590607e-05 | O133: 0.0006013951841 | P133: 8.588263789e-05 | Q133: 0.00517061429 | R133: 5.162367486e-07
A134: 63.95376 | B134: ='DF raw data'!G139 -> 1.896761e-06 | C134: ='DF raw data'!H139 -> 1.7033296e-06 | D134: ='DF raw data'!I139 -> -8.3345631e-06 | F134: 1.899492336e-06 | G134: 1.71000421e-06 | H134: -8.346564871e-06 | J134: 6.377394843e-06 | K134: -1.800691487e-06 | L134: 6.080198897e-06 | N134: 2.869568765e-05 | O134: 0.0006157479062 | P134: 8.498198603e-05 | Q134: 0.00521311973 | R134: 5.202608065e-07
A135: 64.45393 | B135: ='DF raw data'!G140 -> -3.1310785e-06 | C135: ='DF raw data'!H140 -> 4.8631509e-06 | D135: ='DF raw data'!I140 -> -6.1388096e-06 | F135: -3.135587253e-06 | G135: =(1-$G$1*($B$2-$G$2))*C135*$M$2/$M$1 -> 4.88220748e-06 | H135: -6.147649486e-06 | J135: =-CELL("contents", INDEX($F$6:$F$1203,1204-CELL("row",F135))) -> 6.538155506e-06 | K135: =CELL("contents", INDEX($G$6:$G$1203,1204-CELL("row",G135))) -> -4.737142552e-06 | L135: =-CELL("contents", INDEX($H$6:$H$1203,1204-CELL("row",H135))) -> 2.900005503e-06 | N135: 3.196587689e-05 | O135: 0.0006317362788 | P135: 8.261260944e-05 | Q135: 0.005254440078 | R135: 5.241854707e-07
A136: =A135+$B$1 -> 64.9541 | B136: ='DF raw data'!G141 -> -1.0457829e-05 | C136: ='DF raw data'!H141 -> 1.5614312e-05 | D136: ='DF raw data'!I141 -> 5.6716704e-06 | F136: -1.047288827e-05 | G136: 1.567549772e-05 | H136: 5.679837605e-06 | J136: 5.602322144e-06 | K136: -6.772244307e-06 | L136: 1.986179386e-07 | N136: =J136*$B$1+N135 -> 3.476799036e-05 | O136: =N136*$B$1+O135 -> 0.0006491261846 | P136: =K136*$B$1+P135 -> 7.9225336e-05 | Q136: =P136*$B$1+Q135 -> 0.005294066215 | R136: =(N136^2+P136^2)*$B$1+R135 -> 5.279294767e-07
A137: 65.45427 | B137: ='DF raw data'!G142 -> -9.351993e-06 | C137: ='DF raw data'!H142 -> 4.2616631e-07 | D137: ='DF raw data'!I142 -> 4.3890427e-06 | F137: -9.36545987e-06 | G137: 4.27836271e-07 | H137: 4.395362921e-06 | J137: 5.910144871e-06 | K137: 2.890640153e-06 | L137: 2.030485995e-06 | N137: 3.772406752e-05 | O137: 0.0006679946314 | P137: 8.067114749e-05 | Q137: 0.005334415503 | R137: 5.318962946e-07
A138: 65.95444 | B138: ='DF raw data'!G143 -> -7.8739549e-06 | C138: ='DF raw data'!H143 -> -2.3631303e-06 | D138: ='DF raw data'!I143 -> -2.2238353e-06 | F138: -7.885293395e-06 | G138: -2.372390383e-06 | H138: -2.227037623e-06 | J138: 3.270743398e-06 | K138: 1.724605905e-06 | L138: -4.685355811e-06 | N138: 3.935999524e-05 | O138: 0.0006876813202 | P138: 8.153374362e-05 | Q138: 0.005375196235 | R138: 5.359961684e-07
A139: 66.45461 | B139: ='DF raw data'!G144 -> -4.2909169e-06 | C139: ='DF raw data'!H144 -> 6.0647972e-06 | D139: ='DF raw data'!I144 -> -7.6930492e-06 | F139: -4.29709582e-06 | G139: 6.088562511e-06 | H139: -7.704127191e-06 | J139: -3.280118779e-06 | K139: -1.1197018e-05 | L139: -5.0826559e-06 | N139: 3.771937824e-05 | O139: 0.0007065474217 | P139: 7.593333113e-05 | Q139: 0.005413175809 | R139: 5.395917016e-07
A140: 66.95478 | B140: ='DF raw data'!G145 -> 4.9863947e-06 | C140: ='DF raw data'!H145 -> 6.6577556e-08 | D140: ='DF raw data'!I145 -> -9.8074061e-06 | F140: 4.993575108e-06 | G140: 6.683844458e-08 | H140: -9.821528765e-06 | J140: -5.450726059e-06 | K140: 2.780397445e-06 | L140: 2.632134223e-06 | N140: 3.499308858e-05 | O140: 0.0007240499148 | P140: 7.732400252e-05 | Q140: 0.005451850956 | R140: 5.43194685e-07
A141: 67.45495 | B141: ='DF raw data'!G146 -> 5.2141395e-06 | C141: ='DF raw data'!H146 -> 5.2993264e-06 | D141: ='DF raw data'!I146 -> 2.9416995e-07 | F141: 5.221647861e-06 | G141: 5.320092163e-06 | H141: 2.945935547e-07 | J141: -4.463151797e-06 | K141: 5.030627002e-06 | L141: 1.10818369e-06 | N141: 3.276075395e-05 | O141: 0.0007404358611 | P141: 7.984017123e-05 | Q141: 0.005491784614 | R141: 5.469198111e-07
A142: 67.95512 | B142: ='DF raw data'!G147 -> 3.1825537e-06 | C142: ='DF raw data'!H147 -> 3.7943998e-06 | D142: ='DF raw data'!I147 -> 9.3186345e-06 | F142: 3.187136577e-06 | G142: 3.809268408e-06 | H142: 9.332053334e-06 | J142: -3.83159276e-06 | K142: 4.110924955e-06 | L142: 4.458478978e-06 | N142: 3.08443062e-05 | O142: 0.0007558632577 | P142: 8.189633256e-05 | Q142: 0.005532746703 | R142: 5.507503033e-07
A143: 68.45529 | B143: ='DF raw data'!G148 -> -1.8884687e-06 | C143: ='DF raw data'!H148 -> -4.6184477e-06 | D143: ='DF raw data'!I148 -> 1.4383652e-06 | F143: -1.891188095e-06 | G143: -4.636545394e-06 | H143: 1.440436446e-06 | J143: -4.636080757e-06 | K143: -1.409825732e-06 | L143: 4.870038672e-06 | N143: 2.852547768e-05 | O143: 0.0007701308459 | P143: 8.119118003e-05 | Q143: 0.005573356095 | R143: 5.544544176e-07
A144: 68.95546 | B144: ='DF raw data'!G149 -> -1.3251091e-05 | C144: ='DF raw data'!H149 -> 2.8641468e-06 | D144: ='DF raw data'!I149 -> -5.1732463e-06 | F144: -1.327017257e-05 | G144: 2.87537015e-06 | H144: -5.180695775e-06 | J144: -5.12318628e-06 | K144: -1.050007665e-05 | L144: 5.018266613e-06 | N144: 2.59630136e-05 | O144: 0.0007831167664 | P144: 7.593935669e-05 | Q144: 0.005611338683 | R144: 5.576759445e-07
A145: 69.45563 | B145: ='DF raw data'!G150 -> -1.5583386e-05 | C145: ='DF raw data'!H150 -> 5.9299009e-06 | D145: ='DF raw data'!I150 -> 5.5747037e-06 | F145: -1.560582608e-05 | G145: 5.953137611e-06 | H145: 5.582731273e-06 | J145: -4.571442812e-06 | K145: -9.601137343e-06 | L145: 1.268747569e-06 | N145: 2.367651505e-05 | O145: 0.0007949590489 | P145: 7.113715583e-05 | Q145: 0.005646919355 | R145: 5.604874362e-07
A146: 69.9558 | B146: ='DF raw data'!G151 -> -9.797609e-06 | C146: ='DF raw data'!H151 -> -8.5158581e-06 | D146: ='DF raw data'!I151 -> 4.3813229e-06 | F146: -9.811717557e-06 | G146: -8.549228056e-06 | H146: 4.387632005e-06 | J146: -3.692356047e-06 | K146: -3.688717766e-06 | L146: -4.18195055e-06 | N146: 2.182970933e-05 | O146: 0.0008058776146 | P146: 6.929216986e-05 | Q146: 0.005681577219 | R146: 5.63127304e-07
A147: 70.45597 | B147: ='DF raw data'!G152 -> -3.4251073e-06 | C147: ='DF raw data'!H152 -> -6.908992e-06 | D147: ='DF raw data'!I152 -> -1.011189e-05 | F147: -3.430039455e-06 | G147: -6.936065344e-06 | H147: -1.012645112e-05 | J147: -6.175242863e-07 | K147: 4.770763183e-06 | L147: -9.547134305e-06 | N147: 2.152084221e-05 | O147: 0.0008166416943 | P147: 7.167836248e-05 | Q147: 0.005717428586 | R147: 5.659287233e-07
A148: 70.95614 | B148: ='DF raw data'!G153 -> 1.4108871e-06 | C148: ='DF raw data'!H153 -> -1.6420902e-06 | D148: ='DF raw data'!I153 -> -1.2781577e-05 | F148: 1.412918777e-06 | G148: -1.64852484e-06 | H148: -1.279998247e-05 | J148: -2.03692906e-06 | K148: -1.438356998e-06 | L148: -8.861371526e-06 | N148: 2.05020314e-05 | O148: 0.0008268961953 | P148: 7.095893946e-05 | Q148: 0.005752920119 | R148: 5.686574029e-07
A149: 71.45631 | B149: ='DF raw data'!G154 -> 3.5564869e-06 | C149: ='DF raw data'!H154 -> -2.7483341e-06 | D149: ='DF raw data'!I154 -> -7.1743966e-06 | F149: 3.561608241e-06 | G149: -2.75910363e-06 | H149: -7.184727731e-06 | J149: -6.776813579e-06 | K149: -9.363778568e-06 | L149: -4.731413338e-06 | N149: 1.711247255e-05 | O149: 0.0008354553407 | P149: 6.627545834e-05 | Q149: 0.005786069115 | R149: 5.71000836e-07
A150: 71.95648 | B150: ='DF raw data'!G155 -> 4.3860482e-06 | C150: ='DF raw data'!H155 -> -3.7490365e-06 | D150: ='DF raw data'!I155 -> -7.0194551e-06 | F150: 4.392364109e-06 | G150: -3.763727349e-06 | H150: -7.029563115e-06 | J150: -4.477192787e-06 | K150: 3.706386231e-07 | L150: -4.451016748e-06 | N150: 1.487311503e-05 | O150: 0.0008428944267 | P150: 6.646084066e-05 | Q150: 0.005819310833 | R150: 5.733207509e-07
A151: 72.45665 | B151: ='DF raw data'!G156 -> 6.1643868e-06 | C151: ='DF raw data'!H156 -> 2.6970945e-06 | D151: ='DF raw data'!I156 -> -3.793645e-06 | F151: =(1-$G$1*($B$2-$G$2))*B151 -> 6.173263517e-06 | G151: 2.707663244e-06 | H151: -3.799107849e-06 | J151: -2.072086114e-06 | K151: 2.759361838e-07 | L151: -1.201696354e-06 | N151: 1.383671972e-05 | O151: 0.0008498151388 | P151: 6.659885566e-05 | Q151: 0.005852621583 | R151: 5.756349687e-07
A152: 72.95682 | B152: ='DF raw data'!G157 -> 4.1677113e-06 | C152: ='DF raw data'!H157 -> 2.5567304e-06 | D152: ='DF raw data'!I157 -> -8.2153683e-06 | F152: 4.173712804e-06 | G152: 2.566749118e-06 | H152: -8.22719843e-06 | J152: -1.604304276e-06 | K152: -8.950272642e-06 | L152: 5.449932318e-07 | N152: 1.303429485e-05 | O152: 0.000856334502 | P152: 6.212219779e-05 | Q152: 0.005883693242 | R152: 5.776501838e-07
A153: 73.45699 | B153: ='DF raw data'!G158 -> -4.2002002e-06 | C153: ='DF raw data'!H158 -> 4.5450606e-06 | D153: ='DF raw data'!I158 -> -7.4286986e-06 | F153: -4.206248488e-06 | G153: 4.562870722e-06 | H153: -7.439395926e-06 | J153: 2.164373616e-07 | K153: -7.634883823e-06 | L153: -5.343393723e-06 | N153: 1.314255033e-05 | O153: 0.0008629080114 | P153: 5.830345795e-05 | Q153: 0.005912854883 | R153: 5.794368009e-07
A154: 73.95716 | B154: ='DF raw data'!G159 -> -8.2647757e-06 | C154: ='DF raw data'!H159 -> 2.20795e-06 | D154: ='DF raw data'!I159 -> -9.1026641e-06 | F154: -8.276676977e-06 | G154: 2.216601999e-06 | H154: -9.115771936e-06 | J154: 1.346527011e-06 | K154: 2.680738951e-06 | L154: 3.823016828e-07 | N154: 1.381604274e-05 | O154: 0.0008698183815 | P154: 5.964428315e-05 | Q154: 0.005942687164 | R154: 5.813115999e-07
A155: 74.45733 | B155: ='DF raw data'!G160 -> -6.5984432e-06 | C155: ='DF raw data'!H160 -> -6.9255375e-06 | D155: ='DF raw data'!I160 -> -1.3721718e-05 | F155: -6.607944958e-06 | G155: -6.952675679e-06 | H155: -1.374147727e-05 | J155: 5.441156098e-07 | K155: -4.82756098e-06 | L155: 8.107096132e-06 | N155: 1.408819305e-05 | O155: 0.000876864873 | P155: 5.722968197e-05 | Q155: 0.005971311734 | R155: 5.830490473e-07
A156: 74.9575 | B156: ='DF raw data'!G161 -> -3.7572547e-06 | C156: ='DF raw data'!H161 -> 2.1673902e-06 | D156: ='DF raw data'!I161 -> -4.0636555e-06 | F156: -3.762665147e-06 | G156: 2.175883263e-06 | H156: -4.069507164e-06 | J156: 5.875646264e-07 | K156: -1.061219226e-05 | L156: 1.807142243e-06 | N156: 1.438207525e-05 | O156: 0.0008840583556 | P156: 5.192178177e-05 | Q156: 0.005997281452 | R156: 5.845008985e-07
A157: 75.45767 | B157: ='DF raw data'!G162 -> -2.4763297e-06 | C157: ='DF raw data'!H162 -> 6.7591527e-06 | D157: ='DF raw data'!I162 -> 5.6235544e-06 | F157: -2.479895615e-06 | G157: 6.785638889e-06 | H157: 5.631652318e-06 | J157: 3.656042731e-06 | K157: 1.989425768e-06 | L157: -5.379145131e-08 | N157: 1.621071814e-05 | O157: 0.0008921664705 | P157: 5.291683286e-05 | Q157: 0.006023748864 | R157: 5.860329085e-07
A158: 75.95784 | B158: ='DF raw data'!G163 -> -1.4270274e-06 | C158: ='DF raw data'!H163 -> 7.115802e-06 | D158: ='DF raw data'!I163 -> 8.0533746e-06 | F158: -1.429082319e-06 | G158: 7.143685743e-06 | H158: 8.064971459e-06 | J158: 5.7286544e-06 | K158: -6.461347893e-06 | L158: 8.361227455e-07 | N158: 1.907601921e-05 | O158: 0.000901707723 | P158: 4.968506048e-05 | Q158: 0.006048599841 | R158: 5.874496399e-07
A159: 76.45801 | B159: ='DF raw data'!G164 -> -3.5564674e-06 | C159: ='DF raw data'!H164 -> 7.8185649e-06 | D159: ='DF raw data'!I164 -> 4.3570285e-06 | F159: -3.561588713e-06 | G159: 7.849202466e-06 | H159: 4.363302621e-06 | J159: 3.679104292e-06 | K159: -1.386610316e-05 | L159: 3.214786736e-06 | N159: 2.09161968e-05 | O159: 0.0009121693772 | P159: 4.274965166e-05 | Q159: 0.006069981934 | R159: 5.885825349e-07
A160: 76.95818 | B160: ='DF raw data'!G165 -> -3.6815557e-06 | C160: ='DF raw data'!H165 -> -4.3614682e-06 | D160: ='DF raw data'!I165 -> -2.0338236e-06 | F160: -3.68685714e-06 | G160: -4.378558903e-06 | H160: -2.036752306e-06 | J160: 1.481828865e-06 | K160: -1.109950337e-05 | L160: 9.554393443e-06 | N160: 2.165736315e-05 | O160: 0.0009230017405 | P160: 3.719801306e-05 | Q160: 0.006088587264 | R160: 5.895092167e-07
A161: 77.45835 | B161: ='DF raw data'!G166 -> -2.9444429e-06 | C161: ='DF raw data'!H166 -> 8.1588032e-06 | D161: ='DF raw data'!I166 -> -5.228289e-06 | F161: -2.948682898e-06 | G161: 8.190774013e-06 | H161: -5.235817736e-06 | J161: -3.820995722e-07 | K161: -6.738756996e-06 | L161: 2.670060158e-06 | N161: 2.14662484e-05 | O161: 0.000933738514 | P161: 3.382748897e-05 | Q161: 0.006105506759 | R161: 5.90312039e-07
A162: 77.95852 | B162: ='DF raw data'!G167 -> -5.9896201e-06 | C162: ='DF raw data'!H167 -> 1.4468706e-05 | D162: ='DF raw data'!I167 -> 3.5765996e-07 | F162: -5.998245153e-06 | G162: 1.452540259e-05 | H162: 3.581749903e-07 | J162: -5.47378762e-06 | K162: -5.92474328e-06 | L162: -2.421926559e-06 | N162: 1.872842405e-05 | O162: 0.0009431059098 | P162: 3.086411013e-05 | Q162: 0.006120944061 | R162: 5.909639341e-07
A163: 78.45869 | B163: ='DF raw data'!G168 -> -1.0360775e-05 | C163: ='DF raw data'!H168 -> 3.8376302e-06 | D163: ='DF raw data'!I168 -> 4.7526951e-06 | F163: -1.037569452e-05 | G163: 3.852668209e-06 | H163: 4.759538981e-06 | J163: -8.28745177e-06 | K163: -1.531050706e-06 | L163: -3.172543694e-07 | N163: 1.45832893e-05 | O163: 0.0009504000336 | P163: 3.009832449e-05 | Q163: 0.00613599834 | R163: 5.91523415e-07
A164: 78.95886 | B164: ='DF raw data'!G169 -> -1.0203848e-05 | C164: ='DF raw data'!H169 -> 1.8091366e-06 | D164: ='DF raw data'!I169 -> -2.0292347e-07 | F164: -1.021854154e-05 | G164: 1.816225822e-06 | H164: -2.032156798e-07 | J164: -4.015954158e-06 | K164: -9.965900111e-07 | L164: -1.499026695e-06 | N164: 1.257462951e-05 | O164: 0.0009566894861 | P164: 2.959986007e-05 | Q164: 0.006150803302 | R164: 5.920407273e-07
A165: 79.45903 | B165: ='DF raw data'!G170 -> -8.6359732e-06 | C165: ='DF raw data'!H170 -> 4.5870902e-06 | D165: ='DF raw data'!I170 -> 3.0455151e-06 | F165: -8.648409001e-06 | G165: 4.605065018e-06 | H165: 3.049900642e-06 | J165: -3.000640209e-06 | K165: -3.929691954e-06 | L165: -8.514996263e-06 | N165: 1.107379929e-05 | O165: 0.0009622282683 | P165: 2.763434604e-05 | Q165: 0.006164625173 | R165: 5.924840211e-07
A166: 79.9592 | B166: ='DF raw data'!G171 -> -7.2404373e-06 | C166: ='DF raw data'!H171 -> 4.4529979e-06 | D166: ='DF raw data'!I171 -> 2.4859939e-06 | F166: -7.25086353e-06 | G166: 4.470447268e-06 | H166: 2.489573731e-06 | J166: -5.552736142e-06 | K166: -7.901712427e-06 | L166: -1.739632068e-06 | N166: 8.296487258e-06 | O166: 0.0009663779223 | P166: 2.368214654e-05 | Q166: 0.006176470272 | R166: 5.92798966e-07
A167: 80.45937 | B167: ='DF raw data'!G172 -> -5.470044e-06 | C167: ='DF raw data'!H172 -> 6.0015545e-06 | D167: ='DF raw data'!I172 -> -4.8999759e-06 | F167: -5.477920863e-06 | G167: 6.02507199e-06 | H167: -4.907031865e-06 | J167: -2.464671924e-06 | K167: 5.441854032e-06 | L167: 7.209253898e-06 | N167: 7.063732301e-06 | O167: 0.0009699109893 | P167: 2.640399867e-05 | Q167: 0.00618967676 | R167: 5.931726267e-07
A168: 80.95954 | B168: ='DF raw data'!G173 -> -1.7640498e-06 | C168: ='DF raw data'!H173 -> 3.1301995e-06 | D168: ='DF raw data'!I173 -> -2.1958156e-06 | F168: -1.766590032e-06 | G168: 3.142465395e-06 | H168: -2.198977574e-06 | J168: -9.500188901e-07 | K168: 4.699234186e-06 | L168: 9.4879484e-06 | N168: 6.588561353e-06 | O168: 0.00097320639 | P168: 2.875441463e-05 | Q168: 0.006204058856 | R168: 5.936078874e-07
A169: 81.45971 | B169: ='DF raw data'!G174 -> 3.2292799e-06 | C169: ='DF raw data'!H174 -> 5.7361676e-06 | D169: ='DF raw data'!I174 -> 5.3230474e-07 | F169: 3.233930063e-06 | G169: 5.758645154e-06 | H169: 5.330712588e-07 | J169: -1.347012909e-06 | K169: -7.505222218e-06 | L169: 1.155822892e-05 | N169: 5.914825906e-06 | O169: 0.0009761648085 | P169: 2.500052764e-05 | Q169: 0.00621656337 | R169: 5.939380054e-07
A170: 81.95988 | B170: ='DF raw data'!G175 -> 5.6146373e-06 | C170: ='DF raw data'!H175 -> 2.4576985e-07 | D170: ='DF raw data'!I175 -> -2.4529843e-06 | F170: 5.622722378e-06 | G170: 2.467329155e-07 | H170: -2.456516597e-06 | J170: 3.974496145e-06 | K170: -4.644317431e-06 | L170: 8.322774662e-06 | N170: 7.902749643e-06 | O170: 0.0009801175268 | P170: 2.267757939e-05 | Q170: 0.006227906015 | R170: 5.942264665e-07
A171: 82.46005 | B171: ='DF raw data'!G176 -> 2.6565674e-06 | C171: ='DF raw data'!H176 -> 2.774216e-06 | D171: ='DF raw data'!I176 -> -1.0803055e-05 | F171: 2.660392857e-06 | G171: 2.78508695e-06 | H171: -1.08186114e-05 | J171: 5.779258666e-06 | K171: -1.377635686e-05 | L171: 6.125093352e-07 | N171: 1.079336145e-05 | O171: 0.0009855160424 | P171: 1.578705898e-05 | Q171: 0.006235802228 | R171: 5.944093926e-07
A172: 82.96022 | B172: ='DF raw data'!G177 -> -1.0332744e-06 | C172: ='DF raw data'!H177 -> 1.8379567e-06 | D172: ='DF raw data'!I177 -> -9.7703351e-06 | F172: -1.034762315e-06 | G172: 1.845158856e-06 | H172: -9.784404383e-06 | J172: 1.549272044e-06 | K172: -9.314082691e-06 | L172: -7.905281937e-06 | N172: 1.156826085e-05 | O172: 0.0009913021394 | P172: 1.112843424e-05 | Q172: 0.006241368337 | R172: 5.945382697e-07
A173: 83.46039 | B173: ='DF raw data'!G178 -> -2.0384552e-06 | C173: ='DF raw data'!H178 -> -1.4515547e-06 | D173: ='DF raw data'!I178 -> -5.1861539e-06 | F173: -2.041390575e-06 | G173: -1.457242714e-06 | H173: -5.193621962e-06 | J173: -1.592332662e-06 | K173: -2.531390403e-06 | L173: -6.484704447e-06 | N173: 1.077182382e-05 | O173: 0.0009966898825 | P173: 9.8623087e-06 | Q173: 0.006246301168 | R173: 5.946449547e-07
A174: 83.96056 | B174: ='DF raw data'!G179 -> -1.7465584e-06 | C174: ='DF raw data'!H179 -> 1.1636173e-06 | D174: ='DF raw data'!I179 -> 2.9084484e-07 | F174: -1.749073444e-06 | G174: 1.168177012e-06 | H174: 2.912636566e-07 | J174: 6.899026012e-07 | K174: -4.962580397e-06 | L174: -3.796847699e-06 | N174: 1.11168924e-05 | O174: 0.001002250219 | P174: 7.380174863e-06 | Q174: 0.00624999251 | R174: 5.947340111e-07
A175: 84.46073 | B175: ='DF raw data'!G180 -> -3.4882504e-07 | C175: ='DF raw data'!H180 -> 5.7603165e-06 | D175: ='DF raw data'!I180 -> 3.4043726e-06 | F175: -3.493273481e-07 | G175: 5.782888683e-06 | H175: 3.409274897e-06 | J175: 4.270007469e-07 | K175: -2.780534882e-06 | L175: -8.734274169e-06 | N175: 1.133046537e-05 | O175: 0.001007917377 | P175: 5.989434731e-06 | Q175: 0.006252988246 | R175: 5.948161654e-07
A176: 84.9609 | B176: ='DF raw data'!G181 -> 8.6588153e-07 | C176: ='DF raw data'!H181 -> 1.5681026e-05 | D176: ='DF raw data'!I181 -> 2.0989203e-06 | F176: 8.671283994e-07 | G176: 1.574247314e-05 | H176: 2.101942745e-06 | J176: -6.68402806e-06 | K176: -7.527321879e-06 | L176: -6.671922153e-06 | N176: 7.987315053e-06 | O176: 0.001011912393 | P176: 2.224494147e-06 | Q176: 0.006254100871 | R176: 5.948505499e-07
A177: 85.46107 | B177: ='DF raw data'!G182 -> 5.793907e-07 | C177: ='DF raw data'!H182 -> 8.1102362e-06 | D177: ='DF raw data'!I182 -> 3.1140037e-06 | F177: 5.802250226e-07 | G177: 8.1420167e-06 | H177: 3.118487865e-06 | J177: -8.366065111e-06 | K177: -8.535294771e-06 | L177: -1.588270921e-06 | N177: 3.802860267e-06 | O177: 0.001013814469 | P177: -2.044604239e-06 | Q177: 0.006253078221 | R177: 5.948598741e-07
A178: 85.96124 | B178: ='DF raw data'!G183 -> -4.5999632e-06 | C178: ='DF raw data'!H183 -> -1.3338733e-06 | D178: ='DF raw data'!I183 -> 5.9117988e-06 | F178: -4.606587147e-06 | G178: -1.339100171e-06 | H178: 5.92031179e-06 | J178: 2.057296948e-06 | K178: -1.230759689e-05 | L178: 9.115009139e-07 | N178: 4.831858481e-06 | O178: 0.00101623122 | P178: -8.200494975e-06 | Q178: 0.00624897658 | R178: 5.94905187e-07
A179: 86.46141 | B179: ='DF raw data'!G184 -> -7.2442426e-06 | C179: ='DF raw data'!H184 -> 4.5529332e-06 | D179: ='DF raw data'!I184 -> 8.293503e-06 | F179: -7.254674309e-06 | G179: 4.570774171e-06 | H179: 8.305445644e-06 | J179: 1.040497161e-05 | K179: -1.512014202e-05 | L179: -2.100806011e-06 | N179: 1.003611313e-05 | O179: 0.001021250983 | P179: -1.576313641e-05 | Q179: 0.006241092332 | R179: 5.950798464e-07
A180: 86.96158 | B180: ='DF raw data'!G185 -> -4.8455995e-06 | C180: ='DF raw data'!H185 -> 2.0821305e-06 | D180: ='DF raw data'!I185 -> 5.8188311e-07 | F180: -4.852577163e-06 | G180: 2.090289467e-06 | H180: 5.827210217e-07 | J180: 3.642541017e-06 | K180: -9.996557475e-06 | L180: -2.009630907e-06 | N180: 1.185800287e-05 | O180: 0.001027182 | P180: -2.076311456e-05 | Q180: 0.006230707245 | R180: 5.953658031e-07
A181: 87.46175 | B181: ='DF raw data'!G186 -> -6.4837668e-06 | C181: ='DF raw data'!H186 -> -3.2855107e-06 | D181: ='DF raw data'!I186 -> -1.0172987e-05 | F181: -6.493103424e-06 | G181: -3.298385192e-06 | H181: -1.01876361e-05 | J181: -7.291920767e-06 | K181: -1.336982003e-05 | L181: -2.801899534e-06 | N181: 8.210802864e-06 | O181: 0.001031288797 | P181: -2.745029745e-05 | Q181: 0.006216977429 | R181: 5.957764108e-07
A182: 87.96192 | B182: ='DF raw data'!G187 -> -5.4060301e-06 | C182: ='DF raw data'!H187 -> 6.2601348e-06 | D182: ='DF raw data'!I187 -> -8.8115603e-06 | F182: -5.413814783e-06 | G182: 6.284665554e-06 | H182: -8.824248947e-06 | J182: -1.114891535e-05 | K182: -1.450678492e-07 | L182: -4.622502933e-06 | N182: 2.634449872e-06 | O182: 0.00103260647 | P182: -2.752285603e-05 | Q182: 0.006203211322 | R182: 5.961587647e-07
A183: 88.46209 | B183: ='DF raw data'!G188 -> -1.9683758e-07 | C183: ='DF raw data'!H188 -> 5.2802452e-06 | D183: ='DF raw data'!I188 -> -5.511542e-06 | F183: -1.971210261e-07 | G183: 5.300936192e-06 | H183: -5.51947862e-06 | J183: -9.040934726e-06 | K183: 9.334954359e-07 | L183: -1.962239862e-06 | N183: -1.88755445e-06 | O183: 0.001031662372 | P183: -2.705594962e-05 | Q183: 0.006189678748 | R183: 5.965266834e-07
A184: 88.96226 | B184: ='DF raw data'!G189 -> 7.8040827e-08 | C184: ='DF raw data'!H189 -> 3.4785796e-06 | D184: ='DF raw data'!I189 -> -4.4464073e-06 | F184: 7.815320579e-08 | G184: 3.492210645e-06 | H184: -4.452810127e-06 | J184: -5.222719001e-06 | K184: -8.150590265e-06 | L184: -6.156851317e-06 | N184: -4.499801813e-06 | O184: 0.001029411706 | P184: -3.113263035e-05 | Q184: 0.00617410714 | R184: 5.97021596e-07
A185: 89.46243 | B185: ='DF raw data'!G190 -> -5.5498103e-06 | C185: ='DF raw data'!H190 -> 1.016795e-05 | D185: ='DF raw data'!I190 -> 1.5246114e-08 | F185: -5.557802027e-06 | G185: 1.020779379e-05 | H185: 1.52680684e-08 | J185: -4.335274919e-06 | K185: -3.676934372e-07 | L185: -7.977330238e-06 | N185: -6.668176269e-06 | O185: 0.001026076484 | P185: -3.131653958e-05 | Q185: 0.006158443547 | R185: 5.975343654e-07
A186: 89.9626 | B186: ='DF raw data'!G191 -> -1.1441386e-05 | C186: ='DF raw data'!H191 -> 1.0031187e-05 | D186: ='DF raw data'!I191 -> 4.1483443e-07 | F186: -1.14578616e-05 | G186: 1.007049487e-05 | H186: 4.154317916e-07 | J186: -2.809597202e-06 | K186: -1.016198498e-05 | L186: -7.196457998e-06 | N186: -8.073452502e-06 | O186: 0.001022038386 | P186: -3.639925961e-05 | Q186: 0.006140237729 | R186: 5.982296451e-07
A187: 90.46277 | B187: ='DF raw data'!G192 -> -1.0829354e-05 | C187: ='DF raw data'!H192 -> 1.0191168e-06 | D187: ='DF raw data'!I192 -> -2.3945606e-07 | F187: -1.084494827e-05 | G187: 1.023110277e-06 | H187: -2.398008767e-07 | J187: 6.496669151e-07 | K187: -1.079221896e-05 | L187: -3.179902976e-07 | N187: -7.748508601e-06 | O187: 0.001018162814 | P187: -4.179720376e-05 | Q187: 0.006119332022 | R187: 5.991334751e-07
A188: 90.96294 | B188: ='DF raw data'!G193 -> -6.0050379e-06 | C188: ='DF raw data'!H193 -> 1.8938517e-05 | D188: ='DF raw data'!I193 -> 6.5693562e-06 | F188: -6.013685155e-06 | G188: 1.901272884e-05 | H188: 6.578816073e-06 | J188: -1.508791135e-07 | K188: 1.720183041e-06 | L188: 9.298991593e-07 | N188: -7.823973807e-06 | O188: 0.001014249497 | P188: -4.093681981e-05 | Q188: 0.006098856653 | R188: 6.000022893e-07
A189: 91.46311 | B189: ='DF raw data'!G194 -> -2.3853511e-06 | C189: ='DF raw data'!H194 -> 1.3634922e-05 | D189: ='DF raw data'!I194 -> 2.1500339e-06 | F189: -2.388786006e-06 | G189: 1.368835135e-05 | H189: 2.153129949e-06 | J189: -8.105298246e-06 | K189: -8.073035146e-06 | L189: 1.733498248e-06 | N189: -1.187800083e-05 | O189: 0.001008308478 | P189: -4.49747098e-05 | Q189: 0.006076361652 | R189: 6.010845629e-07
A190: 91.96328 | B190: ='DF raw data'!G195 -> -3.8003066e-06 | C190: ='DF raw data'!H195 -> -1.8450312e-06 | D190: ='DF raw data'!I195 -> -6.0604066e-07 | F190: -3.805779042e-06 | G190: -1.852261077e-06 | H190: -6.069133586e-07 | J190: -1.472588378e-05 | K190: -9.636498267e-06 | L190: 8.674680278e-06 | N190: -1.924344612e-05 | O190: 0.0009986834831 | P190: -4.979459714e-05 | Q190: 0.006051455888 | R190: 6.025099534e-07
A191: 92.46345 | B191: ='DF raw data'!G196 -> -4.7209114e-06 | C191: ='DF raw data'!H196 -> 2.5648685e-06 | D191: ='DF raw data'!I196 -> 3.9389374e-06 | F191: -4.727709512e-06 | G191: 2.574919108e-06 | H191: 3.94460947e-06 | J191: -1.107164224e-05 | K191: -8.686928237e-06 | L191: -1.209068054e-07 | N191: -2.478114942e-05 | O191: 0.0009862886956 | P191: -5.413953804e-05 | Q191: 0.006024376916 | R191: 6.042831535e-07
A192: 92.96362 | B192: ='DF raw data'!G197 -> -2.2360582e-07 | C192: ='DF raw data'!H197 -> 5.0498156e-06 | D192: ='DF raw data'!I197 -> 2.6907176e-06 | F192: -2.239278124e-07 | G192: 5.069603638e-06 | H192: 2.694592233e-06 | J192: -3.813682506e-06 | K192: -1.793001873e-05 | L192: -8.818119233e-06 | N192: -2.6688639e-05 | O192: 0.000972939839 | P192: -6.31075955e-05 | Q192: 0.00599281239 | R192: 6.066313777e-07
A193: 93.46379 | B193: ='DF raw data'!G198 -> 1.4869208e-06 | C193: ='DF raw data'!H198 -> 3.5915898e-06 | D193: ='DF raw data'!I198 -> -7.2245716e-06 | F193: 1.489061966e-06 | G193: 3.605663683e-06 | H193: -7.234974983e-06 | J193: -4.587684266e-06 | K193: -1.451884198e-05 | L193: -3.091892323e-06 | N193: -2.898326104e-05 | O193: 0.0009584432813 | P193: -7.036948469e-05 | Q193: 0.005957615684 | R193: 6.095283092e-07
A194: 93.96396 | B194: ='DF raw data'!G199 -> -4.6298674e-06 | C194: ='DF raw data'!H199 -> 1.3176733e-05 | D194: ='DF raw data'!I199 -> -1.0679932e-05 | F194: -4.636534409e-06 | G194: 1.32283669e-05 | H194: -1.06953111e-05 | J194: -8.051422277e-06 | K194: -1.340759448e-05 | L194: 3.75485732e-06 | N194: -3.301034092e-05 | O194: 0.0009419324991 | P194: -7.707556123e-05 | Q194: 0.005919064801 | R194: 6.130446668e-07
A195: 94.46413 | B195: ='DF raw data'!G200 -> -1.349293e-05 | C195: ='DF raw data'!H200 -> 1.8697148e-05 | D195: ='DF raw data'!I200 -> -9.09135e-06 | F195: -1.351235982e-05 | G195: 1.877041402e-05 | H195: -9.104441544e-06 | J195: -2.597758694e-06 | K195: -1.112280834e-05 | L195: 7.115538442e-07 | N195: -3.430966189e-05 | O195: 0.0009247718355 | P195: -8.263885627e-05 | Q195: 0.005877731324 | R195: 6.170491946e-07
A196: 94.9643 | B196: ='DF raw data'!G201 -> -1.4098609e-05 | C196: ='DF raw data'!H201 -> 1.7349133e-05 | D196: ='DF raw data'!I201 -> -7.3819069e-06 | F196: -1.4118911e-05 | G196: 1.741711673e-05 | H196: -7.392536846e-06 | J196: 1.660302798e-06 | K196: -1.427197238e-05 | L196: -2.887609879e-06 | N196: -3.347922823e-05 | O196: 0.00090802653 | P196: -8.97772687e-05 | Q196: 0.005832827428 | R196: 6.216411636e-07
A197: 95.46447 | B197: ='DF raw data'!G202 -> -8.6172813e-06 | C197: ='DF raw data'!H202 -> 2.1189833e-05 | D197: ='DF raw data'!I202 -> 1.5061531e-07 | F197: -8.629690185e-06 | G197: 2.127286677e-05 | H197: 1.50832196e-07 | J197: -4.429923117e-07 | K197: -1.234965606e-05 | L197: -1.07859935e-06 | N197: -3.37007997e-05 | O197: 0.000891170401 | P197: -9.595419617e-05 | Q197: 0.005784834017 | R197: 6.268143978e-07
A198: 95.96464 | B198: ='DF raw data'!G203 -> -4.7220465e-06 | C198: ='DF raw data'!H203 -> 1.312296e-05 | D198: ='DF raw data'!I203 -> 3.9182373e-06 | F198: -4.728846247e-06 | G198: 1.317438319e-05 | H198: 3.923879562e-06 | J198: -1.113387973e-06 | K198: -5.629653766e-06 | L198: -3.094420759e-06 | N198: -3.425768296e-05 | O198: 0.0008740357357 | P198: -9.876998009e-05 | Q198: 0.005735432236 | R198: 6.322808046e-07
A199: 96.46481 | B199: ='DF raw data'!G204 -> -1.8663716e-06 | C199: ='DF raw data'!H204 -> 1.0257211e-05 | D199: ='DF raw data'!I204 -> 3.7318198e-06 | F199: -1.869059175e-06 | G199: =(1-$G$1*($B$2-$G$2))*C199*$M$2/$M$1 -> 1.029740456e-05 | H199: 3.737193621e-06 | J199: =-CELL("contents", INDEX($F$6:$F$1203,1204-CELL("row",F199))) -> -1.006568875e-06 | K199: =CELL("contents", INDEX($G$6:$G$1203,1204-CELL("row",G199))) -> -7.502274914e-06 | L199: =-CELL("contents", INDEX($H$6:$H$1203,1204-CELL("row",H199))) -> -3.92201428e-06 | N199: -3.476113852e-05 | O199: 0.000856649257 | P199: -0.0001025223929 | Q199: 0.005684153611 | R199: 6.381423858e-07
A200: =A199+$B$1 -> 96.96498 | B200: ='DF raw data'!G205 -> -3.8839435e-06 | C200: ='DF raw data'!H205 -> 1.1941464e-05 | D200: ='DF raw data'!I205 -> -5.5505802e-07 | F200: -3.889536379e-06 | G200: 1.198825742e-05 | H200: -5.558573035e-07 | J200: -3.375794554e-07 | K200: -3.130411646e-06 | L200: -1.043057844e-05 | N200: =J200*$B$1+N199 -> -3.492998563e-05 | O200: =N200*$B$1+O199 -> 0.0008391783261 | P200: =K200*$B$1+P199 -> -0.0001040881309 | Q200: =P200*$B$1+Q199 -> 0.005632091851 | R200: =(N200^2+P200^2)*$B$1+R199 -> 6.441716565e-07
... 1003 more rows

Sheet 10 x=1
A1: dz | B1: ='DF raw data'!K7 -> 0.50015 | C1: mm | F1: T_coeff | G1: -0.0008 | H1: /degC | L1: Hallref | M1: ='PI vs x'!B44 -> 0.50505 | N1: T | P1: IBy total | Q1: =P1203*1000 -> -7.651037105 | R1: muTm
A2: Tref | B2: ='DF raw data'!K8 -> 21.8 | C2: degC | F2: Tcorr | G2: 20 | H2: degC | L2: NMRref | M2: ='PI vs x'!B45 -> 0.5063 | N2: T | P2: JBy total | Q2: =Q1203 -> -3.918762412 | R2: muTm^2
A3: Encoder | B3: ='DF raw data'!K9 -> 382597 | P3: PI total | Q3: =R1203 -> 4617.599753 | R3: T^2mm^3
J4: SXR-rotation
A5: z [mm] | B5: Bx | C5: By | D5: Bz | F5: Bx_corr | G5: By_corr | H5: Bz_corr | J5: Bx_rot | K5: By_rot | L5: Bz_rot | N5: Ix | O5: Jx | P5: Iy | Q5: Jy | R5: PI
A6: ='PI vs x'!B53 -> -0.068 | B6: ='DF raw data'!J11 -> -8.1500993e-06 | C6: ='DF raw data'!K11 -> 5.5865385e-06 | D6: ='DF raw data'!L11 -> 2.6939222e-06 | F6: =(1-$G$1*($B$2-$G$2))*B6 -> -8.161835443e-06 | G6: =(1-$G$1*($B$2-$G$2))*C6*$M$2/$M$1 -> 5.608429722e-06 | H6: =(1-$G$1*($B$2-$G$2))*D6 -> 2.697801448e-06 | J6: =-CELL("contents", INDEX($F$6:$F$1203,1204-CELL("row",F6))) -> -1.455756775e-05 | K6: =CELL("contents", INDEX($G$6:$G$1203,1204-CELL("row",G6))) -> -7.481569395e-06 | L6: =-CELL("contents", INDEX($H$6:$H$1203,1204-CELL("row",H6))) -> 4.509984039e-06 | N6: =J6*$B$1 -> -7.280967512e-06 | O6: =N6*$B$1 -> -3.641575901e-06 | P6: =K6*$B$1 -> -3.741906933e-06 | Q6: =P6*$B$1 -> -1.871514752e-06 | R6: =(N6^2+P6^2)*$B$1 -> 3.351722986e-11
A7: =A6+$B$1 -> 0.43215 | B7: ='DF raw data'!J12 -> -7.7507439e-06 | C7: ='DF raw data'!K12 -> -4.2034153e-06 | D7: ='DF raw data'!L12 -> 8.8727384e-06 | F7: =(1-$G$1*($B$2-$G$2))*B7 -> -7.761904971e-06 | G7: =(1-$G$1*($B$2-$G$2))*C7*$M$2/$M$1 -> -4.219886662e-06 | H7: 8.885515143e-06 | J7: =-CELL("contents", INDEX($F$6:$F$1203,1204-CELL("row",F7))) -> -1.575797786e-05 | K7: =CELL("contents", INDEX($G$6:$G$1203,1204-CELL("row",G7))) -> -6.108712763e-06 | L7: =-CELL("contents", INDEX($H$6:$H$1203,1204-CELL("row",H7))) -> 4.503921721e-06 | N7: =J7*$B$1+N6 -> -1.516232014e-05 | O7: =N7*$B$1+O6 -> -1.122501032e-05 | P7: =K7*$B$1+P6 -> -6.797179621e-06 | Q7: =P7*$B$1+Q6 -> -5.27112414e-06 | R7: =(N7^2+P7^2)*$B$1+R6 -> 1.716074459e-10
A8: =A7+$B$1 -> 0.9323 | B8: ='DF raw data'!J13 -> -8.0103282e-06 | C8: ='DF raw data'!K13 -> 2.0572554e-06 | D8: ='DF raw data'!L13 -> 3.5183318e-06 | F8: -8.021863073e-06 | G8: 2.065316892e-06 | H8: 3.523398198e-06 | J8: -7.890523215e-06 | K8: -2.467953392e-06 | L8: 4.772448744e-06 | N8: =J8*$B$1+N7 -> -1.910876532e-05 | O8: =N8*$B$1+O7 -> -2.07822593e-05 | P8: =K8*$B$1+P7 -> -8.03152651e-06 | Q8: =P8*$B$1+Q7 -> -9.288092124e-06 | R8: =(N8^2+P8^2)*$B$1+R7 -> 3.864970586e-10
A9: 1.43245 | B9: ='DF raw data'!J14 -> -8.2384804e-06 | C9: ='DF raw data'!K14 -> 6.7614965e-06 | D9: ='DF raw data'!L14 -> -5.3042763e-06 | F9: -8.250343812e-06 | G9: 6.787991874e-06 | H9: -5.311914458e-06 | J9: 2.219602031e-06 | K9: 9.33171642e-07 | L9: 5.352303234e-06 | N9: -1.799863137e-05 | O9: -2.978427478e-05 | P9: -7.564800713e-06 | Q9: -1.30716272e-05 | R9: 5.771427056e-10
A10: 1.9326 | B10: ='DF raw data'!J15 -> -7.9420433e-06 | C10: ='DF raw data'!K15 -> -2.3351674e-06 | D10: ='DF raw data'!L15 -> -1.1153717e-05 | F10: -7.953479842e-06 | G10: -2.344317909e-06 | H10: -1.116977835e-05 | J10: 1.275943116e-06 | K10: -4.863917991e-06 | L10: 5.358372762e-06 | N10: -1.736046842e-05 | O10: -3.846711306e-05 | P10: -9.997489296e-06 | Q10: -1.807187147e-05 | R10: 7.77870734e-10
A11: 2.43275 | B11: ='DF raw data'!J16 -> -7.7463346e-06 | C11: ='DF raw data'!K16 -> -6.9580165e-06 | D11: ='DF raw data'!L16 -> -7.3269925e-06 | F11: -7.757489322e-06 | G11: -6.98528195e-06 | H11: -7.337543369e-06 | J11: -5.720251317e-06 | K11: -7.262424412e-06 | L11: 4.497320229e-06 | N11: -2.022145212e-05 | O11: -4.858087233e-05 | P11: -1.362979087e-05 | Q11: -2.488881137e-05 | R11: 1.075299098e-09
A12: 2.9329 | B12: ='DF raw data'!J17 -> -8.0206091e-06 | C12: ='DF raw data'!K17 -> 1.7920031e-06 | D12: ='DF raw data'!L17 -> -1.8889549e-08 | F12: -8.032158777e-06 | G12: 1.799025183e-06 | H12: -1.891674995e-08 | J12: -5.452132381e-06 | K12: 1.412713705e-06 | L12: 3.880210168e-06 | N12: -2.294833613e-05 | O12: -6.005848264e-05 | P12: -1.292322211e-05 | Q12: -3.135236091e-05 | R12: 1.422221044e-09
A13: 3.43305 | B13: ='DF raw data'!J18 -> -8.1402259e-06 | C13: ='DF raw data'!K18 -> 3.5661835e-06 | D13: ='DF raw data'!L18 -> -8.5040601e-06 | F13: -8.151947825e-06 | G13: 3.580157827e-06 | H13: -8.516305947e-06 | J13: 3.435782112e-07 | K13: 8.573949149e-06 | L13: 4.213389657e-06 | N13: -2.277649548e-05 | O13: -7.145014686e-05 | P13: -8.63496144e-06 | Q13: -3.567113687e-05 | R13: 1.718975696e-09
A14: 3.9332 | B14: ='DF raw data'!J19 -> -7.9212195e-06 | C14: ='DF raw data'!K19 -> -1.9085999e-06 | D14: ='DF raw data'!L19 -> -5.0690082e-06 | F14: -7.932626056e-06 | G14: -1.916078876e-06 | H14: -5.076307572e-06 | J14: 5.750848915e-06 | K14: 7.70796046e-06 | L14: 4.896616789e-06 | N14: -1.99002084e-05 | O14: -8.140323609e-05 | P14: -4.779825016e-06 | Q14: -3.806176636e-05 | R14: 1.928471037e-09
A15: 4.43335 | B15: ='DF raw data'!J20 -> -7.7614177e-06 | C15: ='DF raw data'!K20 -> -4.8971015e-06 | D15: ='DF raw data'!L20 -> 3.0038634e-06 | F15: -7.772594141e-06 | G15: -4.916291118e-06 | H15: 3.008188963e-06 | J15: 3.819280556e-06 | K15: 7.515476744e-06 | L15: 5.467407045e-06 | N15: -1.798999523e-05 | O15: -9.040093221e-05 | P15: -1.020959322e-06 | Q15: -3.857239916e-05 | R15: 2.090860882e-09
A16: 4.9335 | B16: ='DF raw data'!J21 -> -7.6084334e-06 | C16: ='DF raw data'!K21 -> -8.820396e-06 | D16: ='DF raw data'!L21 -> 3.9066058e-06 | F16: -7.619389544e-06 | G16: -8.854959308e-06 | H16: 3.912231312e-06 | J16: -1.415817646e-07 | K16: 1.119575306e-05 | L16: 5.806794561e-06 | N16: -1.806080735e-05 | O16: -9.9434045e-05 | P16: 4.578596572e-06 | Q16: -3.628241409e-05 | R16: 2.26449111e-09
A17: 5.43365 | B17: ='DF raw data'!J22 -> -7.783784e-06 | C17: ='DF raw data'!K22 -> -5.0924391e-06 | D17: ='DF raw data'!L22 -> -2.6342616e-06 | F17: -7.794992649e-06 | G17: -5.112394161e-06 | H17: -2.638054937e-06 | J17: -2.682784254e-06 | K17: -1.47632058e-06 | L17: 5.651498756e-06 | N17: -1.940260189e-05 | O17: -0.0001091382563 | P17: 3.840214834e-06 | Q17: -3.436173064e-05 | R17: 2.460153896e-09
A18: 5.9338 | B18: ='DF raw data'!J23 -> -8.1553744e-06 | C18: ='DF raw data'!K23 -> 6.315051e-06 | D18: ='DF raw data'!L23 -> 5.4824036e-06 | F18: -8.167118139e-06 | G18: 6.339796947e-06 | H18: 5.490298261e-06 | J18: -3.516753243e-06 | K18: 8.102577156e-06 | L18: 5.605244546e-06 | N18: -2.116150603e-05 | O18: -0.0001197221836 | P18: 7.892718798e-06 | Q18: -3.041418733e-05 | R18: 2.715282586e-09
A19: 6.43395 | B19: ='DF raw data'!J24 -> -7.6183796e-06 | C19: ='DF raw data'!K24 -> -7.7951408e-06 | D19: ='DF raw data'!L24 -> 9.1179891e-06 | F19: -7.629350067e-06 | G19: -7.825686577e-06 | H19: 9.131119004e-06 | J19: -1.891535795e-06 | K19: 4.485393106e-06 | L19: 5.696689237e-06 | N19: -2.210755766e-05 | O19: -0.0001307792785 | P19: 1.013608816e-05 | Q19: -2.534462284e-05 | R19: 3.011113503e-09
A20: 6.9341 | B20: ='DF raw data'!J25 -> -7.5298676e-06 | C20: ='DF raw data'!K25 -> -1.0480628e-05 | D20: ='DF raw data'!L25 -> 7.2289172e-06 | F20: -7.540710609e-06 | G20: -1.052169704e-05 | H20: 7.239326841e-06 | J20: 8.370374708e-07 | K20: -2.616369199e-06 | L20: 5.437015244e-06 | N20: -2.168891337e-05 | O20: -0.0001416269886 | P20: 8.827511106e-06 | Q20: -2.092954316e-05 | R20: 3.28536271e-09
A21: 7.43425 | B21: ='DF raw data'!J26 -> -7.7116283e-06 | C21: ='DF raw data'!K26 -> -5.685255e-06 | D21: ='DF raw data'!L26 -> 5.9677172e-06 | F21: -7.722733045e-06 | G21: -5.70753305e-06 | H21: 5.976310713e-06 | J21: -1.544001966e-06 | K21: 3.81590963e-06 | L21: 5.232004152e-06 | N21: -2.246114595e-05 | O21: -0.0001528609307 | P21: 1.073603831e-05 | Q21: -1.55599136e-05 | R21: 3.595338473e-09
A22: 7.9344 | B22: ='DF raw data'!J27 -> -7.6992083e-06 | C22: ='DF raw data'!K27 -> -4.7571375e-06 | D22: ='DF raw data'!L27 -> -3.2046967e-06 | F22: -7.71029516e-06 | G22: -4.77577866e-06 | H22: -3.209311463e-06 | J22: -4.700718802e-06 | K22: 3.977454986e-06 | L22: 5.669161153e-06 | N22: -2.481221046e-05 | O22: -0.0001652707578 | P22: 1.272536242e-05 | Q22: -9.195323584e-06 | R22: 3.984245429e-09
A23: 8.43455 | B23: ='DF raw data'!J28 -> -4.8668962e-06 | C23: ='DF raw data'!K28 -> -1.5300418e-05 | D23: ='DF raw data'!L28 -> -5.6738513e-06 | F23: =(1-$G$1*($B$2-$G$2))*B23 -> -4.873904531e-06 | G23: -1.536037371e-05 | H23: -5.682021646e-06 | J23: -2.0654702e-06 | K23: 8.361938615e-07 | L23: 1.11111881e-05 | N23: -2.584525538e-05 | O23: -0.0001781972622 | P23: 1.314358478e-05 | Q23: -2.621559657e-06 | R23: 4.404737061e-09
A24: 8.9347 | B24: ='DF raw data'!J29 -> -1.8753863e-06 | C24: ='DF raw data'!K29 -> 5.3994736e-06 | D24: ='DF raw data'!L29 -> 5.6786726e-06 | F24: -1.878086856e-06 | G24: 5.420631796e-06 | H24: 5.686849889e-06 | J24: -5.643109793e-06 | K24: -5.188210894e-06 | L24: 1.311661877e-05 | N24: -2.866765674e-05 | O24: -0.0001925353908 | P24: 1.05487011e-05 | Q24: 2.654373197e-06 | R24: 4.871431847e-09
A25: 9.43485 | B25: ='DF raw data'!J30 -> -1.7209977e-06 | C25: ='DF raw data'!K30 -> -4.3323053e-06 | D25: ='DF raw data'!L30 -> 3.4521715e-06 | F25: -1.723475937e-06 | G25: -4.349281726e-06 | H25: 3.457142627e-06 | J25: -3.925376514e-06 | K25: -8.048845427e-06 | L25: 8.13507246e-06 | N25: -3.06309338e-05 | O25: -0.0002078554523 | P25: 6.523071059e-06 | Q25: 5.916887188e-06 | R25: 5.361981248e-09
A26: 9.935 | B26: ='DF raw data'!J31 -> -1.4895058e-06 | C26: ='DF raw data'!K31 -> 2.1342585e-07 | D26: ='DF raw data'!L31 -> 7.8062908e-07 | F26: -1.491650688e-06 | G26: 2.142621734e-07 | H26: 7.817531859e-07 | J26: -7.836332593e-07 | K26: -1.522249453e-07 | L26: 1.591052521e-06 | N26: -3.102286798e-05 | O26: -0.0002233715397 | P26: 6.446935753e-06 | Q26: 9.141322104e-06 | R26: 5.864122505e-09
A27: 10.43515 | B27: ='DF raw data'!J32 -> -3.5855055e-06 | C27: ='DF raw data'!K32 -> 1.3151475e-08 | D27: ='DF raw data'!L32 -> -4.4842892e-08 | F27: -3.590668628e-06 | G27: 1.320300993e-08 | H27: -4.490746576e-08 | J27: -2.420414385e-06 | K27: 1.267094514e-05 | L27: 1.248874193e-06 | N27: -3.223343823e-05 | O27: -0.0002394930939 | P27: 1.278430896e-05 | Q27: 1.553539423e-05 | R27: 6.465519418e-09
A28: 10.9353 | B28: ='DF raw data'!J33 -> -5.5047576e-06 | C28: ='DF raw data'!K33 -> -9.2993978e-06 | D28: ='DF raw data'!L33 -> -6.0016578e-07 | F28: -5.512684451e-06 | G28: -9.335838108e-06 | H28: -6.010300187e-07 | J28: -1.411250378e-06 | K28: 9.492847659e-06 | L28: 6.678704005e-06 | N28: -3.293927511e-05 | O28: -0.0002559676723 | P28: 1.753215672e-05 | Q28: 2.430410241e-05 | R28: 7.161914455e-09
A29: 11.43545 | B29: ='DF raw data'!J34 -> -5.2191389e-08 | C29: ='DF raw data'!K34 -> -1.1501346e-05 | D29: ='DF raw data'!L34 -> 3.2932323e-07 | F29: -5.22665446e-08 | G29: -1.154641479e-05 | H29: 3.297974555e-07 | J29: -4.419032457e-06 | K29: 7.705559087e-07 | L29: 9.954881416e-06 | N29: -3.514945419e-05 | O29: -0.0002735476718 | P29: 1.791755026e-05 | Q29: 3.326556518e-05 | R29: 7.940409303e-09
A30: 11.9356 | B30: ='DF raw data'!J35 -> 6.147834e-06 | C30: ='DF raw data'!K35 -> -1.3757064e-05 | D30: ='DF raw data'!L35 -> 7.6210549e-06 | F30: 6.156686881e-06 | G30: -1.381097197e-05 | H30: 7.632029219e-06 | J30: -9.973365295e-06 | K30: 8.917127668e-06 | L30: 7.018419391e-06 | N30: -4.013763285e-05 | O30: -0.0002936225089 | P30: 2.237745166e-05 | Q30: 4.445764762e-05 | R30: 8.996616026e-09
A31: 12.43575 | B31: ='DF raw data'!J36 -> 4.3047467e-06 | C31: ='DF raw data'!K36 -> -5.3636977e-06 | D31: ='DF raw data'!L36 -> 2.3871751e-06 | F31: 4.310945535e-06 | G31: -5.384715706e-06 | H31: 2.390612632e-06 | J31: -1.374993944e-05 | K31: 4.13243391e-06 | L31: -4.951772399e-06 | N31: -4.701466506e-05 | O31: -0.0003171368936 | P31: 2.444428848e-05 | Q31: 5.668345851e-05 | R31: 1.04009882e-08
A32: 12.9359 | B32: ='DF raw data'!J37 -> -6.2042915e-07 | C32: ='DF raw data'!K37 -> 1.6659144e-06 | D32: ='DF raw data'!L37 -> -6.6965235e-06 | F32: -6.21322568e-07 | G32: 1.672442396e-06 | H32: -6.706166494e-06 | J32: -9.656179504e-06 | K32: 1.345348058e-05 | L32: -3.381494851e-06 | N32: -5.184420324e-05 | O32: -0.0003430667719 | P32: 3.117304679e-05 | Q32: 7.227465786e-05 | R32: 1.223132726e-08
A33: 13.43605 | B33: ='DF raw data'!J38 -> -4.9834586e-07 | C33: ='DF raw data'!K38 -> 2.2519273e-06 | D33: ='DF raw data'!L38 -> -2.5955244e-06 | F33: -4.99063478e-07 | G33: 2.260751627e-06 | H33: -2.599261955e-06 | J33: -2.329173587e-06 | K33: 1.062124159e-05 | L33: -1.162192551e-06 | N33: -5.300913941e-05 | O33: -0.0003695792929 | P33: 3.648526077e-05 | Q33: 9.052276104e-05 | R33: 1.430251999e-08
A34: 13.9362 | B34: ='DF raw data'!J39 -> 9.0419684e-07 | C34: ='DF raw data'!K39 -> 5.6543176e-06 | D34: ='DF raw data'!L39 -> 1.2797816e-06 | F34: 9.054988834e-07 | G34: 5.676474419e-06 | H34: 1.281624486e-06 | J34: -4.044429604e-06 | K34: 9.391311838e-06 | L34: 7.329542865e-06 | N34: -5.503196087e-05 | O34: -0.0003971035282 | P34: 4.118232539e-05 | Q34: 0.0001111201011 | R34: 1.666547899e-08
A35: 14.43635 | B35: ='DF raw data'!J40 -> -2.0408561e-06 | C35: ='DF raw data'!K40 -> 5.4713892e-06 | D35: ='DF raw data'!L40 -> 1.6840338e-06 | F35: -2.043794933e-06 | G35: 5.492829202e-06 | H35: 1.686458809e-06 | J35: -8.754104284e-06 | K35: 1.104613205e-05 | L35: 1.641999079e-05 | N35: -5.941032613e-05 | O35: -0.0004268176028 | P35: 4.670704833e-05 | Q35: 0.0001344806313 | R35: 1.952190326e-08
A36: 14.9365 | B36: ='DF raw data'!J41 -> -4.2348483e-06 | C36: ='DF raw data'!K41 -> 1.4928594e-06 | D36: ='DF raw data'!L41 -> 6.268207e-06 | F36: -4.240946482e-06 | G36: 1.498709269e-06 | H36: 6.277233218e-06 | J36: -1.082764839e-05 | K36: 6.252596179e-06 | L36: 1.222730901e-05 | N36: -6.482577447e-05 | O36: -0.0004592402139 | P36: 4.983428431e-05 | Q36: 0.0001594052486 | R36: 2.28658246e-08
A37: 15.43665 | B37: ='DF raw data'!J42 -> 1.3884628e-06 | C37: ='DF raw data'!K42 -> 7.6734723e-06 | D37: ='DF raw data'!L42 -> -7.1065443e-08 | F37: 1.390462186e-06 | G37: 7.703541311e-06 | H37: -7.116777724e-08 | J37: -9.150362475e-06 | K37: 7.688004668e-06 | L37: 1.701289033e-06 | N37: -6.940232827e-05 | O37: -0.0004939517884 | P37: 5.367943985e-05 | Q37: 0.0001862530204 | R37: 2.671606204e-08
A38: 15.9368 | B38: ='DF raw data'!J43 -> 6.9553635e-06 | C38: ='DF raw data'!K43 -> -4.3696637e-06 | D38: ='DF raw data'!L43 -> -4.4219719e-06 | F38: 6.965379223e-06 | G38: -4.386786518e-06 | H38: -4.42833954e-06 | J38: -5.77492874e-06 | K38: 9.444221759e-06 | L38: -5.979965768e-07 | N38: -7.229065888e-05 | O38: -0.0005301079614 | P38: 5.840296736e-05 | Q38: 0.0002154632646 | R38: 3.103578055e-08
A39: 16.43695 | B39: ='DF raw data'!J44 -> 2.1391234e-06 | C39: ='DF raw data'!K44 -> 5.7832112e-06 | D39: ='DF raw data'!L44 -> -1.1101085e-06 | F39: 2.142203738e-06 | G39: 5.805873098e-06 | H39: -1.111707056e-06 | J39: -6.248131672e-06 | K39: 6.456869312e-06 | L39: 4.403944561e-06 | N39: -7.541566193e-05 | O39: -0.0005678271047 | P39: 6.163237055e-05 | Q39: 0.0002462886947 | R39: 3.578023904e-08
A40: 16.9371 | B40: ='DF raw data'!J45 -> -4.6667128e-06 | C40: ='DF raw data'!K45 -> 4.9344781e-06 | D40: ='DF raw data'!L45 -> 1.2173539e-06 | F40: -4.673432866e-06 | G40: 4.95381418e-06 | H40: 1.21910689e-06 | J40: -1.137738888e-05 | K40: 9.837633151e-06 | L40: -5.758701406e-06 | N40: -8.110606298e-05 | O40: -0.0006083923021 | P40: 6.655266277e-05 | Q40: 0.000279575009 | R40: 4.128561535e-08
A41: 17.43725 | B41: ='DF raw data'!J46 -> -8.4600842e-06 | C41: ='DF raw data'!K46 -> 1.4000321e-05 | D41: ='DF raw data'!L46 -> 1.9708157e-06 | F41: -8.472266721e-06 | G41: 1.405518219e-05 | H41: 1.973653675e-06 | J41: -1.065157922e-05 | K41: 7.746539043e-06 | L41: -7.288583168e-06 | N41: -8.643345033e-05 | O41: -0.0006516219923 | P41: 7.042709427e-05 | Q41: 0.0003147991202 | R41: 4.750283843e-08
A42: 17.9374 | B42: ='DF raw data'!J47 -> -4.2717593e-06 | C42: ='DF raw data'!K47 -> -7.7797959e-06 | D42: ='DF raw data'!L47 -> 3.7918642e-06 | F42: -4.277910633e-06 | G42: -7.810281547e-06 | H42: 3.797324484e-06 | J42: -5.451593206e-06 | K42: 3.366509399e-06 | L42: 3.722451322e-06 | N42: -8.916006467e-05 | O42: -0.0006962153986 | P42: 7.211085395e-05 | Q42: 0.0003508653638 | R42: 5.407955704e-08
A43: 18.43755 | B43: ='DF raw data'!J48 -> 6.2685189e-07 | C43: ='DF raw data'!K48 -> -1.9898578e-06 | D43: ='DF raw data'!L48 -> 5.6317572e-06 | F43: 6.277545567e-07 | G43: -1.99765519e-06 | H43: 5.63986693e-06 | J43: -3.956190823e-06 | K43: -4.32664517e-06 | L43: 1.332956497e-05 | N43: -9.113875351e-05 | O43: -0.0007417984462 | P43: 6.994688236e-05 | Q43: 0.000385849297 | R43: 6.068095624e-08
A44: 18.9377 | B44: ='DF raw data'!J49 -> -3.3833212e-06 | C44: ='DF raw data'!K49 -> -6.8336631e-06 | D44: ='DF raw data'!L49 -> 9.131566e-06 | F44: -3.388193183e-06 | G44: -6.860441263e-06 | H44: 9.144715455e-06 | J44: -1.022744935e-06 | K44: 1.200789306e-05 | L44: 1.041383236e-05 | N44: -9.165027939e-05 | O44: -0.0007876373334 | P44: 7.595263008e-05 | Q44: 0.0004238370049 | R44: 6.776736939e-08
A45: 19.43785 | B45: ='DF raw data'!J50 -> -8.3573623e-06 | C45: ='DF raw data'!K50 -> 3.3509643e-06 | D45: ='DF raw data'!L50 -> 8.2342149e-06 | F45: -8.369396902e-06 | G45: 3.364095276e-06 | H45: 8.246072169e-06 | J45: 1.075201864e-06 | K45: 6.100962712e-06 | L45: 6.192961041e-06 | N45: -9.111251718e-05 | O45: -0.0008332072589 | P45: 7.900402658e-05 | Q45: 0.0004633508688 | R45: 7.504111436e-08
A46: 19.938 | B46: ='DF raw data'!J51 -> -5.1107354e-06 | C46: ='DF raw data'!K51 -> -8.2438564e-06 | D46: ='DF raw data'!L51 -> 4.369022e-06 | F46: -5.118094859e-06 | G46: -8.276160499e-06 | H46: 4.375313392e-06 | J46: -4.469236046e-06 | K46: 8.791750085e-06 | L46: 7.199975556e-06 | N46: -9.334780558e-05 | O46: -0.0008798951639 | P46: 8.340122039e-05 | Q46: 0.0005050639892 | R46: 8.287825298e-08
A47: 20.43815 | B47: ='DF raw data'!J52 -> -1.4458574e-06 | C47: ='DF raw data'!K52 -> -1.1578868e-05 | D47: ='DF raw data'!L52 -> -1.7197392e-06 | F47: -1.447939435e-06 | G47: -1.162424056e-05 | H47: -1.722215624e-06 | J47: -1.062644808e-05 | K47: -2.754741403e-06 | L47: 5.00179653e-06 | N47: -9.866262359e-05 | O47: -0.0009292412751 | P47: 8.202343647e-05 | Q47: 0.000546088011 | R47: 9.111180102e-08
A48: 20.9383 | B48: ='DF raw data'!J53 -> 1.5428514e-06 | C48: ='DF raw data'!K53 -> -2.3352984e-06 | D48: ='DF raw data'!L53 -> 2.0305804e-06 | F48: 1.545073106e-06 | G48: -2.344449422e-06 | H48: 2.033504436e-06 | J48: -8.61880974e-06 | K48: 4.916711057e-06 | L48: -7.518933796e-07 | N48: -0.0001029733213 | O48: -0.0009807433817 | P48: 8.448252951e-05 | Q48: 0.0005883419481 | R48: 9.998486348e-08
A49: 21.43845 | B49: ='DF raw data'!J54 -> 4.5836268e-06 | C49: ='DF raw data'!K54 -> 2.3772157e-06 | D49: ='DF raw data'!L54 -> 5.6479507e-07 | F49: 4.590227223e-06 | G49: 2.386530978e-06 | H49: 5.656083749e-07 | J49: -7.550013586e-06 | K49: 4.652026321e-06 | L49: -2.071226277e-06 | N49: -0.0001067494606 | O49: -0.001034134124 | P49: 8.680924047e-05 | Q49: 0.0006317595897 | R49: 1.09453349e-07
A50: 21.9386 | B50: ='DF raw data'!J55 -> 4.9618966e-06 | C50: ='DF raw data'!K55 -> -8.4788189e-06 | D50: ='DF raw data'!L55 -> 1.9826609e-06 | F50: 4.969041731e-06 | G50: -8.512043716e-06 | H50: 1.985515932e-06 | J50: -5.614765636e-06 | K50: 3.331279989e-06 | L50: 3.868610188e-06 | N50: -0.0001095576856 | O50: -0.001088929401 | P50: 8.847538016e-05 | Q50: 0.0006760105511 | R50: 1.193717133e-07
A51: 22.43875 | B51: ='DF raw data'!J56 -> 6.5373815e-06 | C51: ='DF raw data'!K56 -> -8.5107094e-06 | D51: ='DF raw data'!L56 -> -2.4842459e-06 | F51: 6.546795329e-06 | G51: -8.544059181e-06 | H51: -2.487823214e-06 | J51: 5.059491592e-07 | K51: -2.931391215e-07 | L51: 9.072501416e-06 | N51: -0.0001093046351 | O51: -0.001143598114 | P51: 8.832876663e-05 | Q51: 0.0007201881837 | R51: 1.292494128e-07
A52: 22.9389 | B52: ='DF raw data'!J57 -> 4.8675784e-06 | C52: ='DF raw data'!K57 -> -4.5441884e-06 | D52: ='DF raw data'!L57 -> -5.345611e-06 | F52: 4.874587713e-06 | G52: -4.561995104e-06 | H52: -5.35330868e-06 | J52: 2.791442597e-07 | K52: 1.065499634e-05 | L52: 3.993244604e-06 | N52: -0.0001091650211 | O52: -0.001198196999 | P52: 9.365786305e-05 | Q52: 0.0007670311639 | R52: 1.395969147e-07
A53: 23.43905 | B53: ='DF raw data'!J58 -> 1.2443479e-06 | C53: ='DF raw data'!K58 -> -6.4379201e-06 | D53: ='DF raw data'!L58 -> -1.648333e-06 | F53: 1.246139761e-06 | G53: -6.463147518e-06 | H53: -1.6507066e-06 | J53: -7.386979555e-06 | K53: 5.956564286e-06 | L53: 6.199489728e-06 | N53: -0.000112859619 | O53: -0.001254643738 | P53: 9.663703868e-05 | Q53: 0.0008153641788 | R53: 1.506382315e-07
A54: 23.9392 | B54: ='DF raw data'!J59 -> 7.1329026e-07 | C54: ='DF raw data'!K59 -> -1.2716468e-05 | D54: ='DF raw data'!L59 -> 6.4798501e-06 | F54: 7.14317398e-07 | G54: -1.276629833e-05 | H54: 6.489181084e-06 | J54: -1.042149537e-05 | K54: -3.11988817e-06 | L54: 7.818352939e-06 | N54: -0.0001180719299 | O54: -0.001313697414 | P54: 9.507662661e-05 | Q54: 0.0008629167536 | R54: 1.621319514e-07
A55: 24.43935 | B55: ='DF raw data'!J60 -> 5.257526e-06 | C55: ='DF raw data'!K60 -> 1.2114617e-06 | D55: ='DF raw data'!L60 -> 3.7037523e-06 | F55: 5.265096837e-06 | G55: 1.216208893e-06 | H55: 3.709085703e-06 | J55: -7.119392584e-06 | K55: -5.164365419e-06 | L55: 7.429913591e-06 | N55: -0.0001216326941 | O55: -0.001374532006 | P55: 9.249366924e-05 | Q55: 0.0009091774623 | R55: 1.738102494e-07
A56: 24.9395 | B56: ='DF raw data'!J61 -> 7.6645147e-06 | C56: ='DF raw data'!K61 -> 9.7422912e-07 | D56: ='DF raw data'!L61 -> -5.5993091e-06 | F56: 7.675551601e-06 | G56: 9.780467016e-07 | H56: -5.607372105e-06 | J56: -2.895023539e-06 | K56: -3.714891931e-06 | L56: 2.157441649e-06 | N56: -0.0001230806401 | O56: -0.001436090788 | P56: 9.063566604e-05 | Q56: 0.0009545088907 | R56: 1.854955879e-07
A57: 25.43965 | B57: ='DF raw data'!J62 -> 5.3173329e-07 | C57: ='DF raw data'!K62 -> -5.4433513e-06 | D57: ='DF raw data'!L62 -> -7.8563617e-06 | F57: 5.324989859e-07 | G57: -5.464681434e-06 | H57: -7.867674861e-06 | J57: -5.194039562e-06 | K57: -9.580685314e-07 | L57: -3.523529386e-06 | N57: -0.000125678439 | O57: -0.001498948859 | P57: 9.015648807e-05 | Q57: 0.0009996006582 | R57: 1.974608076e-07
A58: 25.9398 | B58: ='DF raw data'!J63 -> 1.0094582e-06 | C58: ='DF raw data'!K63 -> -6.2215004e-06 | D58: ='DF raw data'!L63 -> -2.1388998e-06 | F58: 1.01091182e-06 | G58: -6.245879763e-06 | H58: -2.141979816e-06 | J58: -8.522483029e-06 | K58: -3.940330077e-06 | L58: -7.499328705e-06 | N58: -0.0001299409589 | O58: -0.00156393883 | P58: 8.818573198e-05 | Q58: 0.001043706752 | R58: 2.097951948e-07
A59: 26.43995 | B59: ='DF raw data'!J64 -> 5.0373192e-06 | C59: ='DF raw data'!K64 -> 1.1508702e-05 | D59: ='DF raw data'!L64 -> 5.1187585e-06 | F59: 5.04457294e-06 | G59: 1.155379961e-05 | H59: 5.126129512e-06 | J59: -4.071972309e-06 | K59: 2.434886523e-06 | L59: -1.165088515e-05 | N59: -0.0001319775558 | O59: -0.001629947404 | P59: 8.940354047e-05 | Q59: 0.001088421933 | R59: 2.225045406e-07
A60: 26.9401 | B60: ='DF raw data'!J65 -> 3.8394346e-06 | C60: ='DF raw data'!K65 -> 4.1319145e-06 | D60: ='DF raw data'!L65 -> 7.032248e-06 | F60: 3.844963386e-06 | G60: 4.148105682e-06 | H60: 7.042374437e-06 | J60: 3.211869942e-07 | K60: -1.176406433e-06 | L60: -3.972147668e-06 | N60: -0.0001318169141 | O60: -0.001695875634 | P60: 8.88151608e-05 | Q60: 0.001132842835 | R60: 2.35140246e-07
A61: 27.44025 | B61: ='DF raw data'!J66 -> 1.5007308e-06 | C61: ='DF raw data'!K66 -> 1.6803244e-06 | D61: ='DF raw data'!L66 -> 9.5728892e-06 | F61: 1.502891852e-06 | G61: 1.686908863e-06 | H61: 9.58667416e-06 | J61: 4.352778688e-06 | K61: 4.040813993e-06 | L61: -1.260362713e-06 | N61: -0.0001296398719 | O61: -0.001760715016 | P61: 9.083617391e-05 | Q61: 0.001178274548 | R61: 2.476728581e-07
A62: 27.9404 | B62: ='DF raw data'!J67 -> 1.6236218e-06 | C62: ='DF raw data'!K67 -> 4.4263907e-06 | D62: ='DF raw data'!L67 -> 8.5588026e-06 | F62: 1.625959815e-06 | G62: 4.443735806e-06 | H62: 8.571127276e-06 | J62: 6.717642195e-06 | K62: 4.047106755e-06 | L62: -4.061155755e-07 | N62: -0.0001262800431 | O62: -0.001823873979 | P62: 9.286033436e-05 | Q62: 0.001224718644 | R62: 2.599613891e-07
A63: 28.44055 | B63: ='DF raw data'!J68 -> -2.8217628e-06 | C63: ='DF raw data'!K68 -> 6.367889e-06 | D63: ='DF raw data'!L68 -> 3.1289226e-06 | F63: -2.825826138e-06 | G63: 6.392841996e-06 | H63: 3.133428249e-06 | J63: 4.260023613e-07 | K63: -8.819594771e-06 | L63: 7.539756537e-06 | N63: -0.0001260669781 | O63: -0.001886926378 | P63: 8.844921403e-05 | Q63: 0.001268956518 | R63: 2.718230197e-07
A64: 28.9407 | B64: ='DF raw data'!J69 -> -6.5073991e-06 | C64: ='DF raw data'!K69 -> -4.8175789e-06 | D64: ='DF raw data'!L69 -> 4.1233711e-06 | F64: -6.516769755e-06 | G64: -4.836456903e-06 | H64: 4.129308754e-06 | J64: -1.031434129e-05 | K64: -3.759230095e-06 | L64: 3.92266822e-06 | N64: -0.0001312256959 | O64: -0.00195255891 | P64: 8.65690351e-05 | Q64: 0.001312254021 | R64: 2.841839174e-07
A65: 29.44085 | B65: ='DF raw data'!J70 -> -8.0031905e-06 | C65: ='DF raw data'!K70 -> -1.2613452e-06 | D65: ='DF raw data'!L70 -> 3.9567996e-07 | F65: -8.014715094e-06 | G65: -1.266287865e-06 | H65: 3.962497391e-07 | J65: -1.238508788e-05 | K65: -1.482215288e-06 | L65: -4.12692012e-08 | N65: -0.0001374200976 | O65: -0.002021289572 | P65: 8.582770513e-05 | Q65: 0.001355180748 | R65: 2.973131941e-07
A66: 29.941 | B66: ='DF raw data'!J71 -> -6.6378934e-06 | C66: ='DF raw data'!K71 -> -3.1544733e-08 | D66: ='DF raw data'!L71 -> -5.8348464e-06 | F66: -6.647451966e-06 | G66: -3.166834313e-08 | H66: -5.843248579e-06 | J66: -8.196276667e-06 | K66: -3.335545338e-06 | L66: 5.208541815e-06 | N66: -0.0001415194653 | O66: -0.002092070532 | P66: 8.415943212e-05 | Q66: 0.001397273088 | R66: 3.108725452e-07
A67: 30.44115 | B67: ='DF raw data'!J72 -> -2.9182505e-07 | C67: ='DF raw data'!K72 -> -3.8160761e-06 | D67: ='DF raw data'!L72 -> -5.2106348e-06 | F67: -2.922452781e-07 | G67: -3.831029648e-06 | H67: -5.218138114e-06 | J67: -7.192927221e-06 | K67: 3.466045315e-07 | L67: 7.793557185e-06 | N67: -0.0001451170079 | O67: -0.002164650804 | P67: 8.433278638e-05 | Q67: 0.001439452131 | R67: 3.249622533e-07
A68: 30.9413 | B68: ='DF raw data'!J73 -> 5.0136344e-07 | C68: ='DF raw data'!K73 -> -4.362726e-06 | D68: ='DF raw data'!L73 -> -7.1027039e-06 | F68: 5.020854034e-07 | G68: -4.379821632e-06 | H68: -7.112931794e-06 | J68: -5.76256366e-06 | K68: -6.871693785e-06 | L68: 7.316077603e-06 | N68: -0.0001479991541 | O68: -0.002238672581 | P68: 8.089590873e-05 | Q68: 0.00147991222 | R68: 3.391904693e-07
A69: 31.44145 | B69: ='DF raw data'!J74 -> -8.4630237e-06 | C69: ='DF raw data'!K74 -> 2.3942923e-06 | D69: ='DF raw data'!L74 -> -1.2163008e-05 | F69: -8.475210454e-06 | G69: 2.403674494e-06 | H69: -1.218052273e-05 | J69: -1.779302812e-06 | K69: 4.674662877e-06 | L69: 2.075061292e-06 | N69: -0.0001488890724 | O69: -0.00231313945 | P69: 8.323394137e-05 | Q69: 0.001521541676 | R69: 3.537427561e-07
A70: 31.9416 | B70: ='DF raw data'!J75 -> -1.3447069e-05 | C70: ='DF raw data'!K75 -> 3.658781e-06 | D70: ='DF raw data'!L75 -> -1.3947655e-05 | F70: -1.346643278e-05 | G70: 3.673118177e-06 | H70: -1.396773962e-05 | J70: 2.15075253e-06 | K70: 1.223520432e-05 | L70: 5.097234263e-06 | N70: -0.0001478133735 | O70: -0.002387068309 | P70: 8.935337881e-05 | Q70: 0.001566231768 | R70: 3.686636409e-07
A71: 32.44175 | B71: ='DF raw data'!J76 -> -9.8775135e-06 | C71: ='DF raw data'!K76 -> -8.8645575e-06 | D71: ='DF raw data'!L76 -> -9.5423757e-06 | F71: -9.891737119e-06 | G71: =(1-$G$1*($B$2-$G$2))*C71*$M$2/$M$1 -> -8.899293858e-06 | H71: -9.556116721e-06 | J71: =-CELL("contents", INDEX($F$6:$F$1203,1204-CELL("row",F71))) -> 2.367596837e-06 | K71: =CELL("contents", INDEX($G$6:$G$1203,1204-CELL("row",G71))) -> -3.548258817e-06 | L71: =-CELL("contents", INDEX($H$6:$H$1203,1204-CELL("row",H71))) -> 4.154537131e-06 | N71: -0.00014662922 | O71: -0.002460404914 | P71: 8.757871717e-05 | Q71: 0.001610034264 | R71: 3.832530964e-07
A72: =A71+$B$1 -> 32.9419 | B72: ='DF raw data'!J77 -> -4.9422606e-06 | C72: ='DF raw data'!K77 -> -1.0652072e-06 | D72: ='DF raw data'!L77 -> -2.2594261e-06 | F72: -4.949377455e-06 | G72: -1.069381285e-06 | H72: -2.262679674e-06 | J72: 6.128665088e-06 | K72: -5.752137854e-06 | L72: 2.25102141e-06 | N72: =J72*$B$1+N71 -> -0.0001435639681 | O72: =N72*$B$1+O71 -> -0.002532208432 | P72: =K72*$B$1+P71 -> 8.470178542e-05 | Q72: =P72*$B$1+Q71 -> 0.001652397861 | R72: =(N72^2+P72^2)*$B$1+R71 -> 3.971497668e-07
A73: 33.44205 | B73: ='DF raw data'!J78 -> -5.1701363e-06 | C73: ='DF raw data'!K78 -> 7.8405246e-06 | D73: ='DF raw data'!L78 -> 8.6714749e-07 | F73: -5.177581296e-06 | G73: 7.871248217e-06 | H73: 8.683961824e-07 | J73: 6.655875078e-06 | K73: 9.081218961e-06 | L73: 3.084873731e-06 | N73: -0.0001402350322 | O73: -0.002602346984 | P73: 8.924375708e-05 | Q73: 0.001697033127 | R73: 4.109690676e-07
A74: 33.9422 | B74: ='DF raw data'!J79 -> -2.9151424e-06 | C74: ='DF raw data'!K79 -> 2.6923701e-06 | D74: ='DF raw data'!L79 -> 4.9637197e-07 | F74: -2.919340205e-06 | G74: 2.702920331e-06 | H74: 4.970867456e-07 | J74: 1.234833003e-06 | K74: 1.561348467e-08 | L74: -3.779130222e-06 | N74: -0.0001396174305 | O74: -0.002672176641 | P74: 8.925156617e-05 | Q74: 0.001741672297 | R74: 4.247026209e-07
A75: 34.44235 | B75: ='DF raw data'!J80 -> 4.0877412e-06 | C75: ='DF raw data'!K80 -> 5.1703792e-06 | D75: ='DF raw data'!L80 -> 7.3781325e-06 | F75: 4.093627547e-06 | G75: 5.190639675e-06 | H75: 7.388757011e-06 | J75: -2.784655939e-06 | K75: -8.835266542e-06 | L75: -1.29534882e-05 | N75: -0.0001410101761 | O75: -0.002742702881 | P75: 8.483260761e-05 | Q75: 0.001784101326 | R75: 4.382469035e-07
A76: 34.9425 | B76: ='DF raw data'!J81 -> 3.4369359e-06 | C76: ='DF raw data'!K81 -> 7.1644463e-06 | D76: ='DF raw data'!L81 -> 8.7252547e-06 | F76: 3.441885088e-06 | G76: 7.192520659e-06 | H76: 8.737819067e-06 | J76: -3.823774418e-06 | K76: 4.626844228e-06 | L76: -1.431908283e-05 | N76: -0.0001429226369 | O76: -0.002814185638 | P76: 8.714672375e-05 | Q76: 0.00182768776 | R76: 4.522618225e-07
A77: 35.44265 | B77: ='DF raw data'!J82 -> 5.9494681e-07 | C77: ='DF raw data'!K82 -> 2.0624614e-06 | D77: ='DF raw data'!L82 -> 1.285746e-05 | F77: 5.958035334e-07 | G77: 2.070543292e-06 | H77: 1.287597474e-05 | J77: -3.634931875e-06 | K77: -2.919899158e-06 | L77: -2.69545918e-07 | N77: -0.0001447406481 | O77: -0.002886577673 | P77: 8.568633618e-05 | Q77: 0.001870543781 | R77: 4.66412068e-07
A78: 35.9428 | B78: ='DF raw data'!J83 -> 1.2285955e-06 | C78: ='DF raw data'!K83 -> 2.476216e-06 | D78: ='DF raw data'!L83 -> 1.5626041e-05 | F78: 1.230364678e-06 | G78: 2.485919217e-06 | H78: 1.56485425e-05 | J78: -3.996499384e-06 | K78: -4.410628279e-06 | L78: 1.239139996e-05 | N78: -0.0001467394973 | O78: -0.002959969433 | P78: 8.348036045e-05 | Q78: 0.001912296483 | R78: 4.806670686e-07
A79: 36.44295 | B79: ='DF raw data'!J84 -> -7.4385122e-07 | C79: ='DF raw data'!K84 -> -2.3006397e-08 | D79: ='DF raw data'!L84 -> 8.3288605e-06 | F79: -7.449223658e-07 | G79: -2.30965491e-08 | H79: 8.340854059e-06 | J79: -4.988219608e-06 | K79: 2.504302371e-07 | L79: 9.865105225e-06 | N79: -0.0001492343553 | O79: -0.003034608995 | P79: 8.360561313e-05 | Q79: 0.001954111831 | R79: 4.953018534e-07
A80: 36.9431 | B80: ='DF raw data'!J85 -> -1.4533953e-06 | C80: ='DF raw data'!K85 -> -5.0354647e-06 | D80: ='DF raw data'!L85 -> -1.1053137e-06 | F80: -1.455488189e-06 | G80: -5.055196503e-06 | H80: -1.106905352e-06 | J80: 7.084246146e-07 | K80: -6.154793027e-06 | L80: -1.803027226e-06 | N80: -0.0001488800367 | O80: -0.003109071346 | P80: 8.05272934e-05 | Q80: 0.001994387557 | R80: 5.09631106e-07
A81: 37.44325 | B81: ='DF raw data'!J86 -> -1.9505469e-06 | C81: ='DF raw data'!K86 -> -2.9159474e-07 | D81: ='DF raw data'!L86 -> -6.9536195e-06 | F81: -1.953355688e-06 | G81: -2.927373734e-07 | H81: -6.963632712e-06 | J81: 3.547620428e-06 | K81: -1.623932951e-06 | L81: -6.939079206e-07 | N81: -0.0001471056944 | O81: -0.003182646259 | P81: 7.971508333e-05 | Q81: 0.002034257055 | R81: 5.236325951e-07
A82: 37.9434 | B82: ='DF raw data'!J87 -> -5.1115358e-06 | C82: ='DF raw data'!K87 -> -7.6463693e-06 | D82: ='DF raw data'!L87 -> -1.0344746e-05 | F82: -5.118896412e-06 | G82: -7.676332106e-06 | H82: -1.035964243e-05 | J82: -7.592260334e-06 | K82: 1.881536447e-06 | L82: 7.773694424e-06 | N82: -0.0001509029634 | O82: -0.003258120376 | P82: 8.065613379e-05 | Q82: 0.002074597221 | R82: 5.382755448e-07
A83: 38.44355 | B83: ='DF raw data'!J88 -> -6.707779e-06 | C83: ='DF raw data'!K88 -> -2.6756713e-06 | D83: ='DF raw data'!L88 -> -7.7954619e-06 | F83: -6.717438202e-06 | G83: -2.686156096e-06 | H83: -7.806687365e-06 | J83: -1.468698184e-05 | K83: 2.05754857e-06 | L83: 4.957735474e-06 | N83: -0.0001582486573 | O83: -0.003337268442 | P83: 8.168521671e-05 | Q83: 0.002115452082 | R83: 5.541378582e-07
A84: 38.9437 | B84: ='DF raw data'!J89 -> -2.8765653e-06 | C84: ='DF raw data'!K89 -> 2.5373267e-06 | D84: ='DF raw data'!L89 -> -7.6718862e-08 | F84: -2.880707554e-06 | G84: 2.547269383e-06 | H84: -7.682933716e-08 | J84: -1.086662344e-05 | K84: 3.586319177e-06 | L84: 2.619190311e-06 | N84: -0.0001636835991 | O84: -0.003419134794 | P84: 8.347891424e-05 | Q84: 0.002157204061 | R84: 5.710234472e-07
A85: 39.44385 | B85: ='DF raw data'!J90 -> 2.5439576e-06 | C85: ='DF raw data'!K90 -> -4.5660672e-06 | D85: ='DF raw data'!L90 -> 2.1491607e-07 | F85: 2.547620899e-06 | G85: -4.583959638e-06 | H85: 2.152255491e-07 | J85: -7.257230084e-06 | K85: -2.050163344e-06 | L85: 2.389889492e-07 | N85: -0.0001673133027 | O85: -0.003502816542 | P85: 8.245352505e-05 | Q85: 0.002198443191 | R85: 5.884248286e-07
A86: 39.944 | B86: ='DF raw data'!J91 -> 2.53909e-06 | C86: ='DF raw data'!K91 -> -5.4257163e-07 | D86: ='DF raw data'!L91 -> 3.3651187e-07 | F86: 2.54274629e-06 | G86: -5.44697733e-07 | H86: 3.369964471e-07 | J86: -8.194404074e-06 | K86: -4.138978757e-06 | L86: -6.615853029e-07 | N86: -0.0001714117339 | O86: -0.003588548121 | P86: 8.038341482e-05 | Q86: 0.002238646956 | R86: 6.06351943e-07
A87: 40.44415 | B87: ='DF raw data'!J92 -> -2.1393143e-06 | C87: ='DF raw data'!K92 -> 9.1852016e-06 | D87: ='DF raw data'!L92 -> 2.8639686e-06 | F87: =(1-$G$1*($B$2-$G$2))*B87 -> -2.142394913e-06 | G87: 9.221194423e-06 | H87: 2.868092715e-06 | J87: -1.040853274e-05 | K87: -4.598561332e-06 | L87: -4.211288435e-06 | N87: -0.0001766175615 | O87: -0.003676883394 | P87: 7.808344437e-05 | Q87: 0.002277700391 | R87: 6.250029303e-07
A88: 40.9443 | B88: ='DF raw data'!J93 -> -3.5528001e-06 | C88: ='DF raw data'!K93 -> -7.6446287e-07 | D88: ='DF raw data'!L93 -> -5.0726026e-06 | F88: -3.557916132e-06 | G88: -7.674584686e-07 | H88: -5.079907148e-06 | J88: -6.69272076e-06 | K88: 5.898431679e-06 | L88: 2.308205336e-06 | N88: -0.0001799649258 | O88: -0.003766892852 | P88: 8.103354497e-05 | Q88: 0.002318229319 | R88: 6.444856783e-07
A89: 41.44445 | B89: ='DF raw data'!J94 -> 3.5032854e-06 | C89: ='DF raw data'!K94 -> 2.9334735e-06 | D89: ='DF raw data'!L94 -> -4.5615975e-06 | F89: 3.508330131e-06 | G89: 2.944968511e-06 | H89: -4.5681662e-06 | J89: -2.030792737e-07 | K89: 2.943226411e-06 | L89: 1.461890696e-05 | N89: -0.0001800664959 | O89: -0.00385695311 | P89: 8.250559966e-05 | Q89: 0.002359494494 | R89: 6.641071215e-07
A90: 41.9446 | B90: ='DF raw data'!J95 -> 7.9359806e-06 | C90: ='DF raw data'!K95 -> -1.1848895e-06 | D90: ='DF raw data'!L95 -> -1.0666492e-06 | F90: 7.947408412e-06 | G90: -1.189532568e-06 | H90: -1.068185175e-06 | J90: 1.559232466e-06 | K90: -4.11433346e-06 | L90: 1.441502479e-05 | N90: -0.0001792866458 | O90: -0.003946623326 | P90: 8.044781578e-05 | Q90: 0.002399730469 | R90: 6.8342069e-07
A91: 42.44475 | B91: ='DF raw data'!J96 -> 6.3544858e-06 | C91: ='DF raw data'!K96 -> 8.1670187e-06 | D91: ='DF raw data'!L96 -> -3.2572727e-06 | F91: 6.36363626e-06 | G91: 8.199021706e-06 | H91: -3.261963173e-06 | J91: 2.540256209e-06 | K91: -1.214182383e-05 | L91: 3.394000733e-06 | N91: -0.0001780161367 | O91: -0.004035658097 | P91: 7.437508259e-05 | Q91: 0.002436929167 | R91: 7.020369721e-07
A92: 42.9449 | B92: ='DF raw data'!J97 -> 3.9946963e-06 | C92: ='DF raw data'!K97 -> 7.687082e-06 | D92: ='DF raw data'!L97 -> -6.1759361e-06 | F92: 4.000448663e-06 | G92: 7.717204342e-06 | H92: -6.184829448e-06 | J92: 7.537300606e-06 | K92: 1.060426532e-06 | L92: -1.1101382e-06 | N92: -0.0001742463558 | O92: -0.004122807411 | P92: 7.490545492e-05 | Q92: 0.00247439313 | R92: 7.200286779e-07
A93: 43.44505 | B93: ='DF raw data'!J98 -> 1.2945447e-06 | C93: ='DF raw data'!K98 -> -5.4577613e-06 | D93: ='DF raw data'!L98 -> -6.0845573e-06 | F93: 1.296408844e-06 | G93: -5.4791479e-06 | H93: -6.093319063e-06 | J93: 1.00470179e-05 | K93: 4.158581973e-07 | L93: 1.027796499e-06 | N93: -0.0001692213398 | O93: -0.004207443465 | P93: 7.51134464e-05 | Q93: 0.00251196112 | R93: 7.371727654e-07
A94: 43.9452 | B94: ='DF raw data'!J99 -> -1.487374e-06 | C94: ='DF raw data'!K99 -> -7.4259478e-06 | D94: ='DF raw data'!L99 -> -1.8309522e-06 | F94: -1.489515819e-06 | G94: -7.45504687e-06 | H94: -1.833588771e-06 | J94: 1.097396278e-06 | K94: -1.148225235e-05 | L94: 1.920304662e-06 | N94: -0.000168672477 | O94: -0.004291805004 | P94: 6.937059789e-05 | Q94: 0.002546656825 | R94: 7.53809097e-07
A95: 44.44535 | B95: ='DF raw data'!J100 -> -3.3668339e-06 | C95: ='DF raw data'!K100 -> 7.6101077e-07 | D95: ='DF raw data'!L100 -> 4.4013054e-06 | F95: -3.371682141e-06 | G95: 7.639928413e-07 | H95: 4.40764328e-06 | J95: -4.864823873e-06 | K95: -7.839616249e-06 | L95: 4.504704347e-07 | N95: -0.0001711056187 | O95: -0.004377383479 | P95: 6.544961382e-05 | Q95: 0.002579391449 | R95: 7.705945234e-07
A96: 44.9455 | B96: ='DF raw data'!J101 -> -5.0780955e-06 | C96: ='DF raw data'!K101 -> -5.478043e-06 | D96: ='DF raw data'!L101 -> 5.9332438e-06 | F96: -5.085407958e-06 | G96: -5.499509076e-06 | H96: 5.941787671e-06 | J96: -2.539132193e-06 | K96: 3.897620771e-06 | L96: 1.058916848e-06 | N96: -0.0001723755656 | O96: -0.004463597118 | P96: 6.739900885e-05 | Q96: 0.002613101064 | R96: 7.877276428e-07
A97: 45.44565 | B97: ='DF raw data'!J102 -> -1.7392822e-06 | C97: ='DF raw data'!K102 -> -5.5360833e-06 | D97: ='DF raw data'!L102 -> 1.3861343e-06 | F97: -1.741786766e-06 | G97: -5.55777681e-06 | H97: 1.388130333e-06 | J97: -1.149281185e-06 | K97: 3.021051885e-06 | L97: 4.150609784e-06 | N97: -0.0001729503786 | O97: -0.00455009825 | P97: 6.890998795e-05 | Q97: 0.002647566394 | R97: 8.050630518e-07
A98: 45.9458 | B98: ='DF raw data'!J103 -> 6.5701801e-07 | C98: ='DF raw data'!K103 -> 5.2226824e-06 | D98: ='DF raw data'!L103 -> -1.0844037e-05 | F98: 6.579641159e-07 | G98: 5.243147828e-06 | H98: -1.085965241e-05 | J98: -1.221409601e-06 | K98: 9.568819498e-07 | L98: 3.470245969e-06 | N98: -0.0001735612666 | O98: -0.004636904918 | P98: 6.938857246e-05 | Q98: 0.002682271089 | R98: 8.225374362e-07
A99: 46.44595 | B99: ='DF raw data'!J104 -> 4.4122041e-07 | C99: ='DF raw data'!K104 -> 4.2377214e-06 | D99: ='DF raw data'!L104 -> -1.7384506e-05 | F99: 4.418557674e-07 | G99: 4.254327193e-06 | H99: -1.740953969e-05 | J99: -4.107063768e-06 | K99: -3.404397286e-06 | L99: 1.06078223e-06 | N99: -0.0001756154146 | O99: -0.004724738967 | P99: 6.768586316e-05 | Q99: 0.002716124173 | R99: 8.402538245e-07
A100: 46.9461 | B100: ='DF raw data'!J105 -> 9.8889632e-07 | C100: ='DF raw data'!K105 -> -3.672372e-06 | D100: ='DF raw data'!L105 -> -8.4842986e-06 | F100: 9.903203307e-07 | G100: -3.686762434e-06 | H100: -8.49651599e-06 | J100: -8.134575145e-06 | K100: -1.339825603e-06 | L100: -3.109900317e-06 | N100: -0.0001796839223 | O100: -0.004814607881 | P100: 6.701574938e-05 | Q100: 0.0027496421 | R100: 8.586480524e-07
A101: 47.44625 | B101: ='DF raw data'!J106 -> -1.1907405e-06 | C101: ='DF raw data'!K106 -> -6.6585909e-07 | D101: ='DF raw data'!L106 -> -2.2449178e-06 | F101: -1.192455166e-06 | G101: -6.684683031e-07 | H101: -2.248150482e-06 | J101: -7.200206388e-06 | K101: 2.514318969e-06 | L101: -7.903026794e-06 | N101: -0.0001832851056 | O101: -0.004906277927 | P101: 6.827328602e-05 | Q101: 0.002783788984 | R101: 8.777811264e-07
A102: 47.9464 | B102: ='DF raw data'!J107 -> -1.2625615e-06 | C102: ='DF raw data'!K107 -> 8.1424895e-07 | D102: ='DF raw data'!L107 -> -5.895346e-06 | F102: -1.264379589e-06 | G102: 8.174396386e-07 | H102: -5.903835298e-06 | J102: -2.655110461e-06 | K102: -2.208089573e-06 | L102: -6.294298056e-06 | N102: -0.0001846130591 | O102: -0.004998612148 | P102: 6.716891002e-05 | Q102: 0.002817383514 | R102: 8.970837374e-07
A103: 48.44655 | B103: ='DF raw data'!J108 -> 1.0871508e-06 | C103: ='DF raw data'!K108 -> -1.0827007e-05 | D103: ='DF raw data'!L108 -> -9.8864371e-07 | F103: 1.088716297e-06 | G103: -1.086943335e-05 | H103: -9.900673569e-07 | J103: -1.548286326e-06 | K103: 4.295451412e-06 | L103: -2.495318692e-06 | N103: -0.0001853874345 | O103: -0.005091333673 | P103: 6.931728004e-05 | Q103: 0.002852052552 | R103: 9.166763065e-07
A104: 48.9467 | B104: ='DF raw data'!J109 -> -1.4860352e-06 | C104: ='DF raw data'!K109 -> -7.4303498e-06 | D104: ='DF raw data'!L109 -> 3.5030887e-06 | F104: -1.488175091e-06 | G104: -7.45946612e-06 | H104: 3.508133148e-06 | J104: -9.528841701e-06 | K104: -7.142782819e-07 | L104: -6.351948353e-06 | N104: -0.0001901532846 | O104: -0.005186438839 | P104: 6.896003376e-05 | Q104: 0.002886542913 | R104: 9.371393225e-07
A105: 49.44685 | B105: ='DF raw data'!J110 -> -7.4312784e-06 | C105: ='DF raw data'!K110 -> -5.5151359e-06 | D105: ='DF raw data'!L110 -> -1.5740527e-06 | F105: -7.441979441e-06 | G105: -5.536747327e-06 | H105: -1.576319336e-06 | J105: -1.391805919e-05 | K105: -1.767387493e-07 | L105: -6.135941951e-06 | N105: -0.0001971144019 | O105: -0.005285025607 | P105: 6.887163787e-05 | Q105: 0.002920989063 | R105: 9.589445571e-07
A106: 49.947 | B106: ='DF raw data'!J111 -> -9.6462254e-06 | C106: ='DF raw data'!K111 -> 4.5395354e-06 | D106: ='DF raw data'!L111 -> -6.5016516e-06 | F106: -9.660115965e-06 | G106: 4.557323871e-06 | H106: -6.511013978e-06 | J106: -8.249081397e-06 | K106: 7.5070365e-06 | L106: 6.783147687e-06 | N106: -0.00020124018 | O106: -0.005385675883 | P106: 7.262628218e-05 | Q106: 0.002957313098 | R106: 9.818375164e-07
A107: 50.44715 | B107: ='DF raw data'!J112 -> -1.0390345e-05 | C107: ='DF raw data'!K112 -> 4.2263819e-06 | D107: ='DF raw data'!L112 -> 7.7550681e-07 | F107: -1.04053071e-05 | G107: 4.242943258e-06 | H107: 7.766235398e-07 | J107: -2.925837948e-06 | K107: 9.970377287e-06 | L107: 9.590974945e-06 | N107: -0.0002027035379 | O107: -0.005487058057 | P107: 7.761296638e-05 | Q107: 0.002996131223 | R107: 1.005400832e-06
A108: 50.9473 | B108: ='DF raw data'!J113 -> -7.5446815e-06 | C108: ='DF raw data'!K113 -> -4.5931284e-07 | D108: ='DF raw data'!L113 -> 1.1336167e-05 | F108: -7.555545841e-06 | G108: -4.611126879e-07 | H108: 1.135249108e-05 | J108: -4.320301288e-06 | K108: -8.39202766e-06 | L108: 7.21743386e-06 | N108: -0.0002048643365 | O108: -0.005589520955 | P108: 7.341569374e-05 | Q108: 0.003032850082 | R108: 1.029087566e-06
A109: 51.44745 | B109: ='DF raw data'!J114 -> 2.8879867e-06 | C109: ='DF raw data'!K114 -> -1.2830931e-06 | D109: ='DF raw data'!L114 -> 6.7639035e-06 | F109: 2.892145401e-06 | G109: -1.288120986e-06 | H109: 6.773643521e-06 | J109: -9.522823147e-06 | K109: -9.684776209e-06 | L109: 6.542673502e-06 | N109: -0.0002096271765 | O109: -0.005694365988 | P109: 6.857185292e-05 | Q109: 0.003067146294 | R109: 1.053417689e-06
A110: 51.9476 | B110: ='DF raw data'!J115 -> 7.6495626e-06 | C110: ='DF raw data'!K115 -> -4.5356464e-06 | D110: ='DF raw data'!L115 -> 3.4151733e-06 | F110: 7.66057797e-06 | G110: -4.553419632e-06 | H110: 3.42009115e-06 | J110: -8.860187424e-06 | K110: 7.110677704e-06 | L110: 1.30545345e-06 | N110: -0.0002140585993 | O110: -0.005801427396 | P110: 7.212825838e-05 | Q110: 0.003103221243 | R110: 1.078937127e-06
A111: 52.44775 | B111: ='DF raw data'!J116 -> 5.3189351e-06 | C111: ='DF raw data'!K116 -> 9.156247e-06 | D111: ='DF raw data'!L116 -> 4.8095449e-06 | F111: 5.326594367e-06 | G111: 9.192126363e-06 | H111: 4.816470645e-06 | J111: -4.267226871e-06 | K111: 7.060981727e-06 | L111: -1.927596047e-06 | N111: -0.0002161928528 | O111: -0.005909556251 | P111: 7.565980839e-05 | Q111: 0.003141062496 | R111: 1.105176875e-06
A112: 52.9479 | B112: ='DF raw data'!J117 -> 9.2475448e-06 | C112: ='DF raw data'!K117 -> 8.3674277e-06 | D112: ='DF raw data'!L117 -> 2.5035831e-06 | F112: 9.260861265e-06 | G112: 8.400216022e-06 | H112: 2.50718826e-06 | J112: -2.00029308e-06 | K112: 2.102555043e-06 | L112: -4.644117313e-06 | N112: -0.0002171932994 | O112: -0.00601818548 | P112: 7.671140129e-05 | Q112: 0.003179429703 | R112: 1.131713618e-06
A113: 53.44805 | B113: ='DF raw data'!J118 -> 1.34344e-05 | C113: ='DF raw data'!K118 -> 3.8164944e-06 | D113: ='DF raw data'!L118 -> 3.2063242e-06 | F113: 1.345374554e-05 | G113: 3.831449587e-06 | H113: 3.210941307e-06 | J113: -2.832316571e-06 | K113: 1.029493693e-07 | L113: -6.018768764e-06 | N113: -0.0002186098825 | O113: -0.006127523213 | P113: 7.676289142e-05 | Q113: 0.003217822663 | R113: 1.158563081e-06
A114: 53.9482 | B114: ='DF raw data'!J119 -> 1.0903866e-05 | C114: ='DF raw data'!K119 -> 2.5734846e-06 | D114: ='DF raw data'!L119 -> 1.7776754e-06 | F114: 1.091956757e-05 | G114: 2.58356897e-06 | H114: 1.780235253e-06 | J114: -3.210868702e-06 | K114: -6.743630118e-07 | L114: -3.117762422e-06 | N114: -0.0002202157985 | O114: -0.006237664144 | P114: 7.642560876e-05 | Q114: 0.003256046931 | R114: 1.185739167e-06
A115: 54.44835 | B115: ='DF raw data'!J120 -> 4.2981401e-06 | C115: ='DF raw data'!K120 -> 5.5706587e-06 | D115: ='DF raw data'!L120 -> -7.8878375e-06 | F115: 4.304329422e-06 | G115: 5.592487696e-06 | H115: -7.899195986e-06 | J115: -6.110294172e-06 | K115: 6.640379502e-06 | L115: -2.078298146e-07 | N115: -0.0002232718621 | O115: -0.006349333566 | P115: 7.974679457e-05 | Q115: 0.003295932291 | R115: 1.213852537e-06
A116: 54.9485 | B116: ='DF raw data'!J121 -> -1.5577907e-06 | C116: ='DF raw data'!K121 -> 5.3754557e-06 | D116: ='DF raw data'!L121 -> -1.3412756e-05 | F116: -1.560033919e-06 | G116: 5.396519781e-06 | H116: -1.343207037e-05 | J116: -5.51529851e-06 | K116: -3.429444251e-06 | L116: 3.821955102e-06 | N116: -0.0002260303387 | O116: -0.00646238264 | P116: 7.803155802e-05 | Q116: 0.003334959775 | R116: 1.242450432e-06
A117: 55.44865 | B117: ='DF raw data'!J122 -> -1.2195751e-06 | C117: ='DF raw data'!K122 -> -1.3879651e-06 | D117: ='DF raw data'!L122 -> -4.6655564e-06 | F117: -1.221331288e-06 | G117: -1.393403934e-06 | H117: -4.672274801e-06 | J117: -5.596316308e-06 | K117: -5.51611941e-06 | L117: 2.360121188e-06 | N117: -0.0002288293363 | O117: -0.006576831633 | P117: 7.52726709e-05 | Q117: 0.003372607401 | R117: 1.271473557e-06
A118: 55.9488 | B118: ='DF raw data'!J123 -> 1.1065777e-06 | C118: ='DF raw data'!K123 -> 7.4874733e-06 | D118: ='DF raw data'!L123 -> 2.8712995e-07 | F118: 1.108171172e-06 | G118: 7.516813462e-06 | H118: 2.875434171e-07 | J118: -5.350195103e-06 | K118: 4.387608225e-06 | L118: -2.941539927e-06 | N118: -0.0002315052364 | O118: -0.006692618977 | P118: 7.746713315e-05 | Q118: 0.003411352588 | R118: 1.301280412e-06
A119: 56.44895 | B119: ='DF raw data'!J124 -> 1.6300974e-06 | C119: ='DF raw data'!K124 -> 1.4084781e-05 | D119: ='DF raw data'!L124 -> -1.8953259e-07 | F119: 1.63244474e-06 | G119: 1.413997315e-05 | H119: -1.898055169e-07 | J119: -1.478292881e-06 | K119: -2.992987944e-08 | L119: 3.302155166e-06 | N119: -0.0002322446045 | O119: -0.006808776116 | P119: 7.745216372e-05 | Q119: 0.003450090287 | R119: 1.331257599e-06
A120: 56.9491 | B120: ='DF raw data'!J125 -> 3.7573982e-06 | C120: ='DF raw data'!K125 -> 6.8723748e-06 | D120: ='DF raw data'!L125 -> 3.9442734e-06 | F120: 3.762808853e-06 | G120: 6.899304658e-06 | H120: 3.949953154e-06 | J120: -1.702365281e-06 | K120: -3.83287224e-07 | L120: 7.783028345e-06 | N120: -0.0002330960425 | O120: -0.006925359101 | P120: 7.726046262e-05 | Q120: 0.003488732108 | R120: 1.361418117e-06
A121: 57.44925 | B121: ='DF raw data'!J126 -> 6.7387655e-06 | C121: ='DF raw data'!K126 -> -5.8739206e-06 | D121: ='DF raw data'!L126 -> 7.2200696e-06 | F121: 6.748469322e-06 | G121: -5.896937948e-06 | H121: 7.2304665e-06 | J121: 3.815478188e-07 | K121: 2.605807473e-06 | L121: 7.634064846e-06 | N121: -0.0002329052114 | O121: -0.007041846643 | P121: 7.856375723e-05 | Q121: 0.003528025771 | R121: 1.39163573e-06
A122: 57.9494 | B122: ='DF raw data'!J127 -> 5.2764144e-06 | C122: ='DF raw data'!K127 -> 4.5386005e-06 | D122: ='DF raw data'!L127 -> 5.2005475e-06 | F122: 5.284012437e-06 | G122: 4.556385308e-06 | H122: 5.208036288e-06 | J122: 1.702753339e-06 | K122: 1.301402527e-07 | L122: 8.959401386e-06 | N122: -0.0002320535793 | O122: -0.00715790824 | P122: 7.862884687e-05 | Q122: 0.003567351989 | R122: 1.421660414e-06
A123: 58.44955 | B123: ='DF raw data'!J128 -> 3.3976894e-06 | C123: ='DF raw data'!K128 -> 2.8634242e-06 | D123: ='DF raw data'!L128 -> 5.0200529e-06 | F123: 3.402582073e-06 | G123: 2.874644718e-06 | H123: 5.027281776e-06 | J123: -1.70997963e-06 | K123: 1.44392212e-06 | L123: 8.59755698e-06 | N123: -0.0002329088256 | O123: -0.00727439759 | P123: 7.935102452e-05 | Q123: 0.003607039403 | R123: 1.451941049e-06
A124: 58.9497 | B124: ='DF raw data'!J129 -> 6.2176541e-06 | C124: ='DF raw data'!K129 -> 1.9894762e-06 | D124: ='DF raw data'!L129 -> 3.7433481e-06 | F124: 6.226607522e-06 | G124: 1.997272095e-06 | H124: 3.748738521e-06 | J124: -7.778895102e-06 | K124: 9.411402858e-06 | L124: -2.798376067e-06 | N124: -0.00023679944 | O124: -0.007392832829 | P124: 8.405813766e-05 | Q124: 0.003649081081 | R124: 1.483520392e-06
A125: 59.44985 | B125: ='DF raw data'!J130 -> 4.2992679e-06 | C125: ='DF raw data'!K130 -> 6.2524741e-06 | D125: ='DF raw data'!L130 -> -7.5189323e-06 | F125: 4.305458846e-06 | G125: 6.276974835e-06 | H125: -7.529759563e-06 | J125: -1.038225795e-05 | K125: -6.167509764e-08 | L125: -8.431759675e-06 | N125: -0.0002419921263 | O125: -0.007513865191 | P125: 8.402729086e-05 | Q125: 0.003691107331 | R125: 1.516340623e-06
A126: 59.95 | B126: ='DF raw data'!J131 -> 3.7861079e-07 | C126: ='DF raw data'!K131 -> 1.3373083e-05 | D126: ='DF raw data'!L131 -> -3.5545029e-06 | F126: 3.791559895e-07 | G126: 1.342548631e-05 | H126: -3.559621384e-06 | J126: -4.540694097e-06 | K126: -2.614897354e-06 | L126: 5.573769787e-07 | N126: -0.0002442631545 | O126: -0.007636033408 | P126: 8.271944995e-05 | Q126: 0.003732479463 | R126: 1.549604097e-06
A127: 60.45015 | B127: ='DF raw data'!J132 -> 3.4798568e-06 | C127: ='DF raw data'!K132 -> 1.4346031e-05 | D127: ='DF raw data'!L132 -> 4.1556546e-06 | F127: 3.484867794e-06 | G127: 1.440224688e-05 | H127: 4.161638743e-06 | J127: -1.246875719e-06 | K127: -7.962217796e-08 | L127: 1.328830865e-05 | N127: -0.0002448867794 | O127: -0.007758513531 | P127: 8.267962692e-05 | Q127: 0.003773831679 | R127: 1.583016846e-06
A128: 60.9503 | B128: ='DF raw data'!J133 -> 5.7350544e-06 | C128: ='DF raw data'!K133 -> 1.1147247e-05 | D128: ='DF raw data'!L133 -> -4.3411069e-06 | F128: 5.743312878e-06 | G128: 1.119092823e-05 | H128: -4.347358094e-06 | J128: -1.526157507e-06 | K128: -4.907317491e-06 | L128: 1.70874205e-05 | N128: -0.000245650087 | O128: -0.007881375422 | P128: 8.022523208e-05 | Q128: 0.003813956329 | R128: 1.616416889e-06
